Workbook

Sheet 10yr Results
A1: Year 1 Profit | B1: Year 2 Profit | C1: Year 3 Profit | D1: Year 4 Profit | E1: Year 5 Profit | F1: Year 6 Profit | G1: Year 7 Profit | H1: Year 8 Profit | I1: Year 9 Profit | J1: Year 10 Profit | K1: Total 10-yr Profit | O1: Count | P1: Percentage | AB1: Total 10-yr Profit
A2: ='Year 1'!$E2 -> -125545.8858 | B2: ='Year 2'!$E2 -> -44638.83199 | C2: ='Year 3'!$E2 -> 236918.2005 | D2: ='Year 4'!$E2 -> -146057.66 | E2: ='Year 5'!$E2 -> 610686.9514 | F2: ='Year 6'!$E2 -> 1114879.897 | G2: ='Year 7'!$E2 -> 405477.7114 | H2: ='Year 8'!$E2 -> 1745119.118 | I2: ='Year 9'!$E2 -> 547260.2466 | J2: ='Year 10'!$E2 -> 1860418.845 | K2: =SUM(A2:J2) -> 6204518.592 | N2: Positive | O2: =COUNTIF(K:K,">0") -> 1000 | P2: =O2/1000 -> 1 | AB2: 436997.4717
A3: ='Year 1'!E3 -> -216306.3312 | B3: ='Year 2'!$E3 -> -91645.47653 | C3: ='Year 3'!$E3 -> 166843.9463 | D3: ='Year 4'!$E3 -> 376679.7039 | E3: ='Year 5'!$E3 -> 902963.3679 | F3: ='Year 6'!$E3 -> 822748.5157 | G3: ='Year 7'!$E3 -> 1586916.56 | H3: ='Year 8'!$E3 -> 1781003.151 | I3: ='Year 9'!$E3 -> 994569.9706 | J3: ='Year 10'!$E3 -> 2287492.681 | K3: =SUM(A3:J3) -> 8611266.089 | N3: Negative | O3: =COUNTIF(K:K,"<0") -> 0 | P3: =O3/1000 -> 0 | AB3: 1470302.343
A4: ='Year 1'!E4 -> -303236.4816 | B4: ='Year 2'!$E4 -> -456586.6649 | C4: ='Year 3'!$E4 -> 293221.3761 | D4: ='Year 4'!$E4 -> 66924.05558 | E4: ='Year 5'!$E4 -> 748761.454 | F4: ='Year 6'!$E4 -> 1024982.722 | G4: ='Year 7'!$E4 -> 1102371.323 | H4: ='Year 8'!$E4 -> 1211391.892 | I4: ='Year 9'!$E4 -> -269134.2593 | J4: ='Year 10'!$E4 -> 2027025.419 | K4: 5445720.835 | AB4: 1556890.409
A5: ='Year 1'!E5 -> -64440.46761 | B5: ='Year 2'!$E5 -> 17042.93307 | C5: ='Year 3'!$E5 -> -844151.6887 | D5: ='Year 4'!$E5 -> 723634.1411 | E5: ='Year 5'!$E5 -> -248633.8694 | F5: ='Year 6'!$E5 -> -446627.535 | G5: ='Year 7'!$E5 -> 779542.6068 | H5: ='Year 8'!$E5 -> 1671051.721 | I5: ='Year 9'!$E5 -> 1442626.377 | J5: ='Year 10'!$E5 -> 2205389.173 | K5: 5235433.391 | O5: Count | P5: Percentage | AB5: 1606964.119
A6: ='Year 1'!E6 -> -268310.5021 | B6: ='Year 2'!$E6 -> -901574.4305 | C6: ='Year 3'!$E6 -> 191686.257 | D6: ='Year 4'!$E6 -> -191637.9137 | E6: ='Year 5'!$E6 -> 725164.8215 | F6: ='Year 6'!$E6 -> 1248573.609 | G6: ='Year 7'!$E6 -> 1100424.767 | H6: ='Year 8'!$E6 -> 1364482.027 | I6: ='Year 9'!$E6 -> 1262520.049 | J6: ='Year 10'!$E6 -> 2383466.463 | K6: 6914795.146 | N6: -6.5 | O6: =COUNTIF(K:K,"<-6000000") -> 0 | P6: =O6/1000 -> 0 | AB6: 1669836.097
A7: ='Year 1'!E7 -> -198646.5856 | B7: ='Year 2'!$E7 -> -13667.77046 | C7: ='Year 3'!$E7 -> 231395.3776 | D7: ='Year 4'!$E7 -> 153538.8823 | E7: ='Year 5'!$E7 -> -183147.7895 | F7: ='Year 6'!$E7 -> 971067.4776 | G7: ='Year 7'!$E7 -> 1258084.223 | H7: ='Year 8'!$E7 -> 1415977.154 | I7: ='Year 9'!$E7 -> 1361051.447 | J7: ='Year 10'!$E7 -> 2387582.924 | K7: 7383235.339 | N7: =N6+0.5 -> -6 | O7: =COUNTIFS(K:K,">-6000000",K:K,"<-5500000") -> 0 | P7: 0 | AB7: 1687011.826
A8: ='Year 1'!E8 -> -274711.8021 | B8: ='Year 2'!$E8 -> -5948.326297 | C8: ='Year 3'!$E8 -> 73542.06434 | D8: ='Year 4'!$E8 -> -327259.7393 | E8: ='Year 5'!$E8 -> -292298.6216 | F8: ='Year 6'!$E8 -> 1171830.03 | G8: ='Year 7'!$E8 -> -263390.945 | H8: ='Year 8'!$E8 -> 707029.7638 | I8: ='Year 9'!$E8 -> 1454252.253 | J8: ='Year 10'!$E8 -> 794340.5104 | K8: 3037385.187 | N8: =N7+0.5 -> -5.5 | O8: =COUNTIFS(K:K,">-5500000",K:K,"<-5000000") -> 0 | P8: 0 | AB8: 1843862.554
A9: ='Year 1'!E9 -> -158061.3149 | B9: ='Year 2'!$E9 -> 63165.82874 | C9: ='Year 3'!$E9 -> -851486.7566 | D9: ='Year 4'!$E9 -> 712277.1461 | E9: ='Year 5'!$E9 -> 729109.6541 | F9: ='Year 6'!$E9 -> 990324.124 | G9: ='Year 7'!$E9 -> 1128414.63 | H9: ='Year 8'!$E9 -> 1168107.955 | I9: ='Year 9'!$E9 -> 825466.5271 | J9: ='Year 10'!$E9 -> 2154568.027 | K9: 6761885.82 | N9: -5 | O9: =COUNTIFS(K:K,">-5000000",K:K,"<-45000000") -> 0 | P9: 0 | AB9: 1921294.436
A10: ='Year 1'!E10 -> -138133.9634 | B10: ='Year 2'!$E10 -> 87060.591 | C10: ='Year 3'!$E10 -> 261341.736 | D10: ='Year 4'!$E10 -> 196385.8825 | E10: ='Year 5'!$E10 -> -456631.7407 | F10: ='Year 6'!$E10 -> 1180981.961 | G10: ='Year 7'!$E10 -> 141853.6681 | H10: ='Year 8'!$E10 -> 1557743.367 | I10: ='Year 9'!$E10 -> 498253.2043 | J10: ='Year 10'!$E10 -> 1146950.121 | K10: 4475804.827 | N10: -4.5 | O10: =COUNTIFS(K:K,">-4500000",K:K,"<-4000000") -> 0 | P10: 0 | AB10: 1923973.657
A11: ='Year 1'!E11 -> -249573.0674 | B11: ='Year 2'!$E11 -> -987895.0141 | C11: ='Year 3'!$E11 -> 255455.8824 | D11: ='Year 4'!$E11 -> 436834.3436 | E11: ='Year 5'!$E11 -> 719973.1323 | F11: ='Year 6'!$E11 -> 31921.54719 | G11: ='Year 7'!$E11 -> 354412.1635 | H11: ='Year 8'!$E11 -> 1132990.69 | I11: ='Year 9'!$E11 -> 792924.7707 | J11: ='Year 10'!$E11 -> 1651609.975 | K11: 4138654.423 | N11: -4 | O11: =COUNTIFS(K:K,">-4000000",K:K,"<-3500000") -> 0 | P11: 0 | AB11: 1935142.801
A12: ='Year 1'!E12 -> -193594.9321 | B12: ='Year 2'!$E12 -> -666884.1243 | C12: ='Year 3'!$E12 -> 1332.388955 | D12: ='Year 4'!$E12 -> 393582.1017 | E12: ='Year 5'!$E12 -> 923067.8492 | F12: ='Year 6'!$E12 -> 1422100.626 | G12: ='Year 7'!$E12 -> 992784.7724 | H12: ='Year 8'!$E12 -> 1763208.671 | I12: ='Year 9'!$E12 -> 1153674.417 | J12: ='Year 10'!$E12 -> 1724485.275 | K12: 7513757.046 | N12: -3.5 | O12: =COUNTIFS(K:K,">-3500000",K:K,"<-3000000") -> 0 | P12: 0 | AB12: 2174653.945
A13: ='Year 1'!E13 -> -225860.0321 | B13: ='Year 2'!$E13 -> -112384.2901 | C13: ='Year 3'!$E13 -> 314421.0071 | D13: ='Year 4'!$E13 -> 9218.207436 | E13: ='Year 5'!$E13 -> 602171.5257 | F13: ='Year 6'!$E13 -> 164791.781 | G13: ='Year 7'!$E13 -> 1400019.935 | H13: ='Year 8'!$E13 -> 1199615.452 | I13: ='Year 9'!$E13 -> 1643323.052 | J13: ='Year 10'!$E13 -> 2035373.449 | K13: 7030690.086 | N13: -3 | O13: =COUNTIFS(K:K,">-3000000",K:K,"<-2500000") -> 0 | P13: 0 | AB13: 2282500.173
A14: ='Year 1'!E14 -> -856804.2189 | B14: ='Year 2'!$E14 -> 48686.92597 | C14: ='Year 3'!$E14 -> -870225.9563 | D14: ='Year 4'!$E14 -> -774376.9378 | E14: ='Year 5'!$E14 -> 731845.1096 | F14: ='Year 6'!$E14 -> 454758.3684 | G14: ='Year 7'!$E14 -> 1258751.67 | H14: ='Year 8'!$E14 -> 372172.2733 | I14: ='Year 9'!$E14 -> 1865490.093 | J14: ='Year 10'!$E14 -> 2291994.911 | K14: 4522292.238 | N14: -2.5 | O14: =COUNTIFS(K:K,">-2500000",K:K,"<-2000000") -> 0 | P14: 0 | AB14: 2299658.511
A15: ='Year 1'!E15 -> -326220.1385 | B15: ='Year 2'!$E15 -> -16707.86085 | C15: ='Year 3'!$E15 -> 576670.5065 | D15: ='Year 4'!$E15 -> 472855.4919 | E15: ='Year 5'!$E15 -> 410469.6988 | F15: ='Year 6'!$E15 -> 991817.3116 | G15: ='Year 7'!$E15 -> 962114.6372 | H15: ='Year 8'!$E15 -> 341460.4917 | I15: ='Year 9'!$E15 -> 1687589.924 | J15: ='Year 10'!$E15 -> 1585987.39 | K15: 6686037.452 | N15: -2 | O15: =COUNTIFS(K:K,">-2000000",K:K,"<-1500000") -> 0 | P15: 0 | AB15: 2352056.888
A16: ='Year 1'!E16 -> -166363.1355 | B16: ='Year 2'!$E16 -> 194260.3131 | C16: ='Year 3'!$E16 -> -1210145.2 | D16: ='Year 4'!$E16 -> 445379.1172 | E16: ='Year 5'!$E16 -> 838256.1753 | F16: ='Year 6'!$E16 -> 927510.5779 | G16: ='Year 7'!$E16 -> 1232174.597 | H16: ='Year 8'!$E16 -> 1798433.846 | I16: ='Year 9'!$E16 -> 516962.5943 | J16: ='Year 10'!$E16 -> 1596361.016 | K16: 6172829.901 | N16: -1.5 | O16: =COUNTIFS(K:K,">-1500000",K:K,"<-1000000") -> 0 | AB16: 2654815.988
A17: ='Year 1'!E17 -> -182083.0017 | B17: ='Year 2'!$E17 -> -759144.082 | C17: ='Year 3'!$E17 -> 363836.4167 | D17: ='Year 4'!$E17 -> -521495.6589 | E17: ='Year 5'!$E17 -> 493534.7622 | F17: ='Year 6'!$E17 -> 1304477.19 | G17: ='Year 7'!$E17 -> 1448041.433 | H17: ='Year 8'!$E17 -> 1543934.657 | I17: ='Year 9'!$E17 -> -613758.7076 | J17: ='Year 10'!$E17 -> 2285686.614 | K17: 5363029.623 | N17: -1 | O17: =COUNTIFS(K:K,">-1000000",K:K,"<-500000") -> 0 | AB17: 2685441.662
A18: ='Year 1'!E18 -> 133049.1463 | B18: ='Year 2'!$E18 -> 84449.95145 | C18: ='Year 3'!$E18 -> -254515.9776 | D18: ='Year 4'!$E18 -> 213639.3621 | E18: ='Year 5'!$E18 -> 696827.7288 | F18: ='Year 6'!$E18 -> 985937.8554 | G18: ='Year 7'!$E18 -> 1134286.879 | H18: ='Year 8'!$E18 -> 1285733.565 | I18: ='Year 9'!$E18 -> -543776.7549 | J18: ='Year 10'!$E18 -> 2799221.454 | K18: 6534853.209 | N18: -0.5 | O18: =COUNTIFS(K:K,">-500000",K:K,"<0") -> 0 | AB18: 2702019.885
A19: ='Year 1'!E19 -> -64303.44975 | B19: ='Year 2'!$E19 -> -63020.28458 | C19: ='Year 3'!$E19 -> 226044.2173 | D19: ='Year 4'!$E19 -> 465131.8208 | E19: ='Year 5'!$E19 -> 358149.7252 | F19: ='Year 6'!$E19 -> 956682.2886 | G19: ='Year 7'!$E19 -> 373607.2362 | H19: ='Year 8'!$E19 -> 1520611.097 | I19: ='Year 9'!$E19 -> 723279.3325 | J19: ='Year 10'!$E19 -> 388162.313 | K19: 4884344.296 | N19: 0 | O19: =COUNTIFS(K:K,">0",K:K,"<500000") -> 1 | AB19: 2797064.245
A20: ='Year 1'!E20 -> -226271.7171 | B20: ='Year 2'!$E20 -> -5140.15277 | C20: ='Year 3'!$E20 -> 208154.0738 | D20: ='Year 4'!$E20 -> 368811.8604 | E20: ='Year 5'!$E20 -> 1032071.361 | F20: ='Year 6'!$E20 -> 354613.5379 | G20: ='Year 7'!$E20 -> 235558.6548 | H20: ='Year 8'!$E20 -> 2051634.631 | I20: ='Year 9'!$E20 -> 1456069.998 | J20: ='Year 10'!$E20 -> 1536725.511 | K20: 7012227.757 | N20: 0.5 | O20: =COUNTIFS(K:K,">500000",K:K,"<1000000") -> 0 | AB20: 2808992.169
A21: ='Year 1'!E21 -> -1079559.209 | B21: ='Year 2'!$E21 -> 27151.40392 | C21: ='Year 3'!$E21 -> 248605.0429 | D21: ='Year 4'!$E21 -> 473016.599 | E21: ='Year 5'!$E21 -> 664087.1049 | F21: ='Year 6'!$E21 -> 1022008.856 | G21: ='Year 7'!$E21 -> 1482680.094 | H21: ='Year 8'!$E21 -> -1686971.266 | I21: ='Year 9'!$E21 -> -538672.4801 | J21: ='Year 10'!$E21 -> 2308175.798 | K21: 2920521.943 | N21: 1 | O21: =COUNTIFS(K:K,">1000000",K:K,"<1500000") -> 1 | AB21: 2828541.512
A22: ='Year 1'!E22 -> -215891.4174 | B22: ='Year 2'!$E22 -> 389297.4706 | C22: ='Year 3'!$E22 -> 92277.0488 | D22: ='Year 4'!$E22 -> -377752.4058 | E22: ='Year 5'!$E22 -> 524381.0803 | F22: ='Year 6'!$E22 -> -129908.0452 | G22: ='Year 7'!$E22 -> 1215406.358 | H22: ='Year 8'!$E22 -> 1370785.598 | I22: ='Year 9'!$E22 -> 1108840.275 | J22: ='Year 10'!$E22 -> 2171517.719 | K22: 6148953.681 | N22: 1.5 | O22: =COUNTIFS(K:K,">1500000",K:K,"<2000000") -> 8 | AB22: 2842066.605
A23: ='Year 1'!E23 -> -161178.8357 | B23: ='Year 2'!$E23 -> -38075.94991 | C23: ='Year 3'!$E23 -> 174834.1662 | D23: ='Year 4'!$E23 -> -745606.7664 | E23: ='Year 5'!$E23 -> 837644.1222 | F23: ='Year 6'!$E23 -> 801758.2329 | G23: ='Year 7'!$E23 -> 963249.5228 | H23: ='Year 8'!$E23 -> 1553088.234 | I23: ='Year 9'!$E23 -> 1959131.026 | J23: ='Year 10'!$E23 -> 2055094.144 | K23: 7399937.895 | N23: 2 | O23: =COUNTIFS(K:K,">2000000",K:K,"<2500000") -> 4 | AB23: 2856937.989
A24: ='Year 1'!E24 -> -793870.78 | B24: ='Year 2'!$E24 -> 270833.3881 | C24: ='Year 3'!$E24 -> 209812.2061 | D24: ='Year 4'!$E24 -> 491568.4384 | E24: ='Year 5'!$E24 -> 611471.1253 | F24: ='Year 6'!$E24 -> 898146.6634 | G24: ='Year 7'!$E24 -> 1321337.834 | H24: ='Year 8'!$E24 -> 1372846.945 | I24: ='Year 9'!$E24 -> 701598.1824 | J24: ='Year 10'!$E24 -> 1268937.848 | K24: 6352681.85 | N24: 2.5 | O24: =COUNTIFS(K:K,">2500000",K:K,"<3000000") -> 15 | Q24: Positive | T24: Negative | AB24: 2864234.063
A25: ='Year 1'!E25 -> -321059.723 | B25: ='Year 2'!$E25 -> 244088.0444 | C25: ='Year 3'!$E25 -> 553829.0274 | D25: ='Year 4'!$E25 -> 241640.1859 | E25: ='Year 5'!$E25 -> 762670.5568 | F25: ='Year 6'!$E25 -> 212995.3228 | G25: ='Year 7'!$E25 -> 1025517.717 | H25: ='Year 8'!$E25 -> 1695127.238 | I25: ='Year 9'!$E25 -> 593104.8254 | J25: ='Year 10'!$E25 -> 2304519.878 | K25: 7312433.073 | N25: 3 | O25: =COUNTIFS(K:K,">3000000",K:K,"<3500000") -> 24 | Q25: MEAN | R25: =AVERAGE(AB:AB) -> 5977030.752 | T25: MEAN | U25: =AVERAGE(AC:AC) ->  | AB25: 2869606.06
A26: ='Year 1'!E26 -> -66377.73901 | B26: ='Year 2'!$E26 -> -68776.36077 | C26: ='Year 3'!$E26 -> -312402.4099 | D26: ='Year 4'!$E26 -> 332178.4898 | E26: ='Year 5'!$E26 -> 845019.1388 | F26: ='Year 6'!$E26 -> 314928.7047 | G26: ='Year 7'!$E26 -> 1268929.496 | H26: ='Year 8'!$E26 -> -13342.61673 | I26: ='Year 9'!$E26 -> 1244958.137 | J26: ='Year 10'!$E26 -> 2482168.023 | K26: 6027282.864 | N26: 3.5 | O26: =COUNTIFS(K:K,">3500000",K:K,"<4000000") -> 45 | Q26: STDEV | R26: =STDEV(AB:AB) -> 1474615.816 | T26: STDEV | U26: =STDEV(AC:AC) ->  | AB26: 2886382.345
A27: ='Year 1'!E27 -> -176390.0669 | B27: ='Year 2'!$E27 -> -161104.3096 | C27: ='Year 3'!$E27 -> 240816.8291 | D27: ='Year 4'!$E27 -> 427496.3247 | E27: ='Year 5'!$E27 -> -141714.0009 | F27: ='Year 6'!$E27 -> 834176.3558 | G27: ='Year 7'!$E27 -> 1396346.158 | H27: ='Year 8'!$E27 -> 1281481.86 | I27: ='Year 9'!$E27 -> 2102789.185 | J27: ='Year 10'!$E27 -> 1900067.213 | K27: 7703965.549 | N27: 4 | O27: =COUNTIFS(K:K,">4000000",K:K,"<4500000") -> 69 | AB27: 2920521.943
A28: ='Year 1'!E28 -> -77829.75646 | B28: ='Year 2'!$E28 -> -474205.535 | C28: ='Year 3'!$E28 -> 195750.8167 | D28: ='Year 4'!$E28 -> 176795.0395 | E28: ='Year 5'!$E28 -> -95324.10786 | F28: ='Year 6'!$E28 -> 893089.6577 | G28: ='Year 7'!$E28 -> 1366506.318 | H28: ='Year 8'!$E28 -> 1300473.559 | I28: ='Year 9'!$E28 -> 1485359.007 | J28: ='Year 10'!$E28 -> 2006385.206 | K28: 6777000.204 | N28: 4.5 | O28: =COUNTIFS(K:K,">4500000",K:K,"<5000000") -> 82 | AB28: 2932228.915
A29: ='Year 1'!E29 -> -303511.2502 | B29: ='Year 2'!$E29 -> 81007.66865 | C29: ='Year 3'!$E29 -> 234480.2591 | D29: ='Year 4'!$E29 -> 819712.343 | E29: ='Year 5'!$E29 -> 691089.5663 | F29: ='Year 6'!$E29 -> -670874.0775 | G29: ='Year 7'!$E29 -> 1269440.923 | H29: ='Year 8'!$E29 -> 1451574.001 | I29: ='Year 9'!$E29 -> 1589066.682 | J29: ='Year 10'!$E29 -> 2195797.98 | K29: 7357784.094 | N29: 5 | O29: =COUNTIFS(K:K,">5000000",K:K,"<5500000") -> 118 | AB29: 2945184.488
A30: ='Year 1'!E30 -> -270468.8466 | B30: ='Year 2'!$E30 -> -74089.90578 | C30: ='Year 3'!$E30 -> 250696.4281 | D30: ='Year 4'!$E30 -> 443024.6749 | E30: ='Year 5'!$E30 -> 383407.062 | F30: ='Year 6'!$E30 -> 813663.7322 | G30: ='Year 7'!$E30 -> 1352789.938 | H30: ='Year 8'!$E30 -> 1051069.224 | I30: ='Year 9'!$E30 -> 1377148.932 | J30: ='Year 10'!$E30 -> 1799189.209 | K30: 7126430.448 | N30: 5.5 | O30: =COUNTIFS(K:K,">5500000",K:K,"<6000000") -> 117 | AB30: 2945234.974
A31: ='Year 1'!E31 -> -438746.952 | B31: ='Year 2'!$E31 -> -232472.1056 | C31: ='Year 3'!$E31 -> 277358.1692 | D31: ='Year 4'!$E31 -> 211502.255 | E31: ='Year 5'!$E31 -> -433665.7636 | F31: ='Year 6'!$E31 -> 1016982.654 | G31: ='Year 7'!$E31 -> 681324.6347 | H31: ='Year 8'!$E31 -> 1779541.06 | I31: ='Year 9'!$E31 -> 559000.5564 | J31: ='Year 10'!$E31 -> 1546864.652 | K31: 4967689.16 | N31: 6 | O31: =COUNTIFS(K:K,">6000000",K:K,"<6500000") -> 125 | AB31: 3006791.973
... 38 more rows

Sheet Simulation
A2: Number of Destinations | B2: Policy | C2: Company Industry Type | D2: Excutive Employees | E2: Officers | F2: Other Employees | G2: Company networth | H2: Max | I2: Destination | J2: Length of Stay | K2: Travel Frenquecy | L2: # of Employees | M2: Expected claim | N2: Kidnapped? | O2: Days Held Captive | P2: Costs of Services | Q2: Medical Needs | R2: Claim | S2: Destination | T2: Length of Stay | U2: Travel Frenquecy | V2: # of Employees | W2: Expected claim | X2: Kidnapped? | Y2: Days Held Captive | Z2: Costs of Services | AA2: Medical Needs | AB2: Claim | AC2: Destination | AD2: Length of Stay | AE2: Travel Frenquecy | AF2: # of Employees | AG2: Expected claim | AH2: Kidnapped? | AI2: Days Held Captive | AJ2: Costs of Services | AK2: Medical Needs | AL2: Claim | AM2: Destination | AN2: Length of Stay | AO2: Travel Frenquecy | AP2: # of Employees | AQ2: Expected claim | AR2: Kidnapped? | AS2: Days Held Captive | AT2: Costs of Services | AU2: Medical Needs | AV2: Claim | AW2: Destination | AX2: Length of Stay | AY2: Travel Frenquecy | AZ2: # of Employees | BA2: Expected claim | BB2: Kidnapped? | BC2: Days Held Captive | BD2: Costs of Services | BE2: Medical Needs | BF2: Claim | BG2: Destination | BH2: Length of Stay | BI2: Travel Frenquecy | BJ2: # of Employees | BK2: Expected claim | BL2: Kidnapped? | BM2: Days Held Captive | BN2: Costs of Services | BO2: Medical Needs | BP2: Claim | BQ2: Destination | BR2: Length of Stay | BS2: Travel Frenquecy | BT2: # of Employees | BU2: Expected claim | BV2: Kidnapped? | BW2: Days Held Captive | BX2: Costs of Services | BY2: Medical Needs | BZ2: Claim | CA2: Destination | CB2: Length of Stay | CC2: Travel Frenquecy | CD2: # of Employees | CE2: Expected claim | CF2: Kidnapped? | CG2: Days Held Captive | CH2: Costs of Services | CI2: Medical Needs | CJ2: Claim | CK2: Destination | CL2: Length of Stay | CM2: Travel Frenquecy | CN2: # of Employees | CO2: Expected claim | CP2: Kidnapped? | CQ2: Days Held Captive | CR2: Costs of Services | CS2: Medical Needs | CT2: Claim | CU2: Destination | CV2: Length of Stay | CW2: Travel Frenquecy | CX2: # of Employees | CY2: Expected claim | CZ2: Kidnapped? | DA2: Days Held Captive | DB2: Costs of Services | DC2: Medical Needs | DD2: Claim | DE2: Total Claims | DF2: Total Premium
A3: =RANDBETWEEN(0,10) -> 8 | B3: 1 | C3: =INDEX([1]Variables!$C$2:$C$19,INT((RAND()*10)+1),1) -> Finance and Insurance | D3: =RANDBETWEEN(1,50) -> 13 | E3: =RANDBETWEEN(D3,500) -> 81 | F3: =RANDBETWEEN(E3,20000) -> 16756 | G3: =RANDBETWEEN(500000,50000000) -> 20410706 | H3: =Variables!$H$21 -> 1000000 | I3: =INDEX([1]Variables!$A$2:$A$103,INT((RAND()*100)+1),1) -> Iran | J3: =INDEX(Variables!$E$3:$E$5,RANDBETWEEN(1,3),1) -> Long (more than one month) | K3: =INDEX([1]Variables!$G$3:$G$5,RANDBETWEEN(1,3),1) -> frequent (3 times to 12 times) | L3: =RANDBETWEEN(1,20) -> 3 | M3: =IF(ISNA(VLOOKUP(I3,Variables!$K$1:$K$36,1,FALSE)),SUM('Other cost'!$B$2,'Salary in Industry'!$AR2,IF(ISNA(VLOOKUP(Simulation!I3,'Ransom Statistics'!$A$1:$D$18,4,FALSE)),'Ransom Statistics'!$D$18,VLOOKUP(Simulation!I3,'Ransom Statistics'!$A$1:$D$18,4,FALSE)))*IF(ISNA(VLOOKUP(I3,'Industry Type P'!$A$2:$S$103,2,FALSE)),'Kidnapping Statistics'!$K$3,VLOOKUP(I3,'Industry Type P'!$A$1:$S$102,MATCH($C3,'Industry Type P'!$A$1:$S$1,0),FALSE))*VLOOKUP(K3,'travel frequence'!$A$1:$D$4,MATCH(J3,'travel frequence'!$A$1:$D$1,0),FALSE)*L3*IF(ISNA(VLOOKUP(L3,'travel frequence'!$A$7:$B$23,2,FALSE)),'travel frequence'!$B$23,VLOOKUP(L3,'travel frequence'!$A$7:$B$23,2,FALSE)),0) -> 0 | N3: =IF(VLOOKUP(I3,'Industry Type P'!$A$1:$S$102,MATCH($C3,'Industry Type P'!$A$1:$S$1,0),FALSE)>RAND(),"Y","N") -> N | O3: =IF(N3="N",0,RANDBETWEEN(1,200)) -> 0 | P3: =SUM(VLOOKUP(O3,Negotiation_Team,2,FALSE),VLOOKUP(O3,Recording_Equipment,2,FALSE),VLOOKUP(O3,Security,2,FALSE)) -> 0 | Q3: =IF(N3="N"," ",INDEX('Other cost'!$A$9:$A$13,RANDBETWEEN(1,5),1)) ->  | R3: =MIN($H3,IF(N3="N",0,SUM(P3,'Other cost'!$B$16,VLOOKUP(Q3,'Other cost'!$A$9:$B$13,2,FALSE),IF(O3>=30,HLOOKUP(30,'Salary in Industry'!$N$1:$AQ$1001,$B3+1,FALSE),HLOOKUP(O3,'Salary in Industry'!$N$1:$AQ$1001,$B3+1,FALSE)),IF(ISNA(VLOOKUP(I3,'Ransom Statistics'!$A$1:$D$18,4,FALSE)),'Ransom Statistics'!$D$18,VLOOKUP(I3,'Ransom Statistics'!$A$1:$D$18,4,FALSE))))) -> 0 | S3: =INDEX([1]Variables!$A$2:$A$103,INT((RAND()*100)+1),1) -> Liberia | T3: =INDEX(Variables!$E$3:$E$5,RANDBETWEEN(1,3),1) -> Medium (1 week to 1month) | U3: =INDEX([1]Variables!$G$3:$G$5,RANDBETWEEN(1,3),1) -> very frequent ( more than 12 times a year) | V3: =RANDBETWEEN(1,20) -> 6 | W3: =IF(ISNA(VLOOKUP(S3,Variables!$K$1:$K$36,1,FALSE)),SUM('Other cost'!$B$2,'Salary in Industry'!$AR2,IF(ISNA(VLOOKUP(Simulation!S3,'Ransom Statistics'!$A$1:$D$18,4,FALSE)),'Ransom Statistics'!$D$18,VLOOKUP(Simulation!S3,'Ransom Statistics'!$A$1:$D$18,4,FALSE)))*IF(ISNA(VLOOKUP(S3,'Industry Type P'!$A$2:$S$103,2,FALSE)),'Kidnapping Statistics'!$K$3,VLOOKUP(S3,'Industry Type P'!$A$1:$S$102,MATCH($C3,'Industry Type P'!$A$1:$S$1,0),FALSE))*VLOOKUP(U3,'travel frequence'!$A$1:$D$4,MATCH(T3,'travel frequence'!$A$1:$D$1,0),FALSE)*V3*IF(ISNA(VLOOKUP(V3,'travel frequence'!$A$7:$B$23,2,FALSE)),'travel frequence'!$B$23,VLOOKUP(V3,'travel frequence'!$A$7:$B$23,2,FALSE)),0) -> 0 | X3: =IF(VLOOKUP(S3,'Industry Type P'!$A$1:$S$102,MATCH($C3,'Industry Type P'!$A$1:$S$1,0),FALSE)>RAND(),"Y","N") -> N | Y3: =IF(X3="N",0,RANDBETWEEN(1,200)) -> 0 | Z3: =SUM(VLOOKUP(Y3,Negotiation_Team,2,FALSE),VLOOKUP(Y3,Recording_Equipment,2,FALSE),VLOOKUP(Y3,Security,2,FALSE)) -> 0 | AA3: =IF(X3="N"," ",INDEX('Other cost'!$A$9:$A$13,RANDBETWEEN(1,5),1)) ->  | AB3: =MIN($H3,IF(X3="N",0,SUM(Z3,'Other cost'!$B$16,VLOOKUP(AA3,'Other cost'!$A$9:$B$13,2,FALSE),IF(Y3>=30,HLOOKUP(30,'Salary in Industry'!$N$1:$AQ$1001,$B3+1,FALSE),HLOOKUP(Y3,'Salary in Industry'!$N$1:$AQ$1001,$B3+1,FALSE)),IF(ISNA(VLOOKUP(S3,'Ransom Statistics'!$A$1:$D$18,4,FALSE)),'Ransom Statistics'!$D$18,VLOOKUP(S3,'Ransom Statistics'!$A$1:$D$18,4,FALSE))))) -> 0 | AC3: =INDEX([1]Variables!$A$2:$A$103,INT((RAND()*100)+1),1) -> Dagestan | AD3: =INDEX(Variables!$E$3:$E$5,RANDBETWEEN(1,3),1) -> Long (more than one month) | AE3: =INDEX([1]Variables!$G$3:$G$5,RANDBETWEEN(1,3),1) -> infrequent (less than 3 times) | AF3: =RANDBETWEEN(1,20) -> 17 | AG3: =IF(ISNA(VLOOKUP(AC3,Variables!$K$1:$K$36,1,FALSE)),SUM('Other cost'!$B$2,'Salary in Industry'!$AR2,IF(ISNA(VLOOKUP(Simulation!AC3,'Ransom Statistics'!$A$1:$D$18,4,FALSE)),'Ransom Statistics'!$D$18,VLOOKUP(Simulation!AC3,'Ransom Statistics'!$A$1:$D$18,4,FALSE)))*IF(ISNA(VLOOKUP(AC3,'Industry Type P'!$A$2:$S$103,2,FALSE)),'Kidnapping Statistics'!$K$3,VLOOKUP(AC3,'Industry Type P'!$A$1:$S$102,MATCH($C3,'Industry Type P'!$A$1:$S$1,0),FALSE))*VLOOKUP(AE3,'travel frequence'!$A$1:$D$4,MATCH(AD3,'travel frequence'!$A$1:$D$1,0),FALSE)*AF3*IF(ISNA(VLOOKUP(AF3,'travel frequence'!$A$7:$B$23,2,FALSE)),'travel frequence'!$B$23,VLOOKUP(AF3,'travel frequence'!$A$7:$B$23,2,FALSE)),0) -> 3485.792375 | AH3: =IF(VLOOKUP(AC3,'Industry Type P'!$A$1:$S$102,MATCH($C3,'Industry Type P'!$A$1:$S$1,0),FALSE)>RAND(),"Y","N") -> N | AI3: =IF(AH3="N",0,RANDBETWEEN(1,200)) -> 0 | AJ3: =SUM(VLOOKUP(AI3,Negotiation_Team,2,FALSE),VLOOKUP(AI3,Recording_Equipment,2,FALSE),VLOOKUP(AI3,Security,2,FALSE)) -> 0 | AK3: =IF(AH3="N"," ",INDEX('Other cost'!$A$9:$A$13,RANDBETWEEN(1,5),1)) ->  | AL3: =MIN($H3,IF(AH3="N",0,SUM(AJ3,'Other cost'!$B$16,VLOOKUP(AK3,'Other cost'!$A$9:$B$13,2,FALSE),IF(AI3>=30,HLOOKUP(30,'Salary in Industry'!$N$1:$AQ$1001,$B3+1,FALSE),HLOOKUP(AI3,'Salary in Industry'!$N$1:$AQ$1001,$B3+1,FALSE)),IF(ISNA(VLOOKUP(AC3,'Ransom Statistics'!$A$1:$D$18,4,FALSE)),'Ransom Statistics'!$D$18,VLOOKUP(AC3,'Ransom Statistics'!$A$1:$D$18,4,FALSE))))) -> 0 | AM3: =INDEX([1]Variables!$A$2:$A$103,INT((RAND()*100)+1),1) -> East Timor | AN3: =INDEX(Variables!$E$3:$E$5,RANDBETWEEN(1,3),1) -> Medium (1 week to 1month) | AO3: =INDEX([1]Variables!$G$3:$G$5,RANDBETWEEN(1,3),1) -> frequent (3 times to 12 times) | AP3: =RANDBETWEEN(1,20) -> 13 | AQ3: =IF(ISNA(VLOOKUP(AM3,Variables!$K$1:$K$36,1,FALSE)),SUM('Other cost'!$B$2,'Salary in Industry'!$AR2,IF(ISNA(VLOOKUP(Simulation!AM3,'Ransom Statistics'!$A$1:$D$18,4,FALSE)),'Ransom Statistics'!$D$18,VLOOKUP(Simulation!AM3,'Ransom Statistics'!$A$1:$D$18,4,FALSE)))*IF(ISNA(VLOOKUP(AM3,'Industry Type P'!$A$2:$S$103,2,FALSE)),'Kidnapping Statistics'!$K$3,VLOOKUP(AM3,'Industry Type P'!$A$1:$S$102,MATCH($C3,'Industry Type P'!$A$1:$S$1,0),FALSE))*VLOOKUP(AO3,'travel frequence'!$A$1:$D$4,MATCH(AN3,'travel frequence'!$A$1:$D$1,0),FALSE)*AP3*IF(ISNA(VLOOKUP(AP3,'travel frequence'!$A$7:$B$23,2,FALSE)),'travel frequence'!$B$23,VLOOKUP(AP3,'travel frequence'!$A$7:$B$23,2,FALSE)),0) -> 7.792353709 | AR3: =IF(VLOOKUP(AM3,'Industry Type P'!$A$1:$S$102,MATCH($C3,'Industry Type P'!$A$1:$S$1,0),FALSE)>RAND(),"Y","N") -> N | AS3: =IF(AR3="N",0,RANDBETWEEN(1,200)) -> 0 | AT3: =SUM(VLOOKUP(AS3,Negotiation_Team,2,FALSE),VLOOKUP(AS3,Recording_Equipment,2,FALSE),VLOOKUP(AS3,Security,2,FALSE)) -> 0 | AU3: =IF(AR3="N"," ",INDEX('Other cost'!$A$9:$A$13,RANDBETWEEN(1,5),1)) ->  | AV3: =MIN($H3,IF(AR3="N",0,SUM(AT3,'Other cost'!$B$16,VLOOKUP(AU3,'Other cost'!$A$9:$B$13,2,FALSE),IF(AS3>=30,HLOOKUP(30,'Salary in Industry'!$N$1:$AQ$1001,$B3+1,FALSE),HLOOKUP(AS3,'Salary in Industry'!$N$1:$AQ$1001,$B3+1,FALSE)),IF(ISNA(VLOOKUP(AM3,'Ransom Statistics'!$A$1:$D$18,4,FALSE)),'Ransom Statistics'!$D$18,VLOOKUP(AM3,'Ransom Statistics'!$A$1:$D$18,4,FALSE))))) -> 0 | AW3: =INDEX([1]Variables!$A$2:$A$103,INT((RAND()*100)+1),1) -> South Africa | AX3: =INDEX(Variables!$E$3:$E$5,RANDBETWEEN(1,3),1) -> Short (less a week) | AY3: =INDEX([1]Variables!$G$3:$G$5,RANDBETWEEN(1,3),1) -> infrequent (less than 3 times) | AZ3: =RANDBETWEEN(1,20) -> 10 | BA3: =IF(ISNA(VLOOKUP(AW3,Variables!$K$1:$K$36,1,FALSE)),SUM('Other cost'!$B$2,'Salary in Industry'!$AR2,IF(ISNA(VLOOKUP(Simulation!AW3,'Ransom Statistics'!$A$1:$D$18,4,FALSE)),'Ransom Statistics'!$D$18,VLOOKUP(Simulation!AW3,'Ransom Statistics'!$A$1:$D$18,4,FALSE)))*IF(ISNA(VLOOKUP(AW3,'Industry Type P'!$A$2:$S$103,2,FALSE)),'Kidnapping Statistics'!$K$3,VLOOKUP(AW3,'Industry Type P'!$A$1:$S$102,MATCH($C3,'Industry Type P'!$A$1:$S$1,0),FALSE))*VLOOKUP(AY3,'travel frequence'!$A$1:$D$4,MATCH(AX3,'travel frequence'!$A$1:$D$1,0),FALSE)*AZ3*IF(ISNA(VLOOKUP(AZ3,'travel frequence'!$A$7:$B$23,2,FALSE)),'travel frequence'!$B$23,VLOOKUP(AZ3,'travel frequence'!$A$7:$B$23,2,FALSE)),0) -> 11801.06016 | BB3: =IF(VLOOKUP(AW3,'Industry Type P'!$A$1:$S$102,MATCH($C3,'Industry Type P'!$A$1:$S$1,0),FALSE)>RAND(),"Y","N") -> N | BC3: =IF(BB3="N",0,RANDBETWEEN(1,200)) -> 0 | BD3: =SUM(VLOOKUP(BC3,Negotiation_Team,2,FALSE),VLOOKUP(BC3,Recording_Equipment,2,FALSE),VLOOKUP(BC3,Security,2,FALSE)) -> 0 | BE3: =IF(BB3="N"," ",INDEX('Other cost'!$A$9:$A$13,RANDBETWEEN(1,5),1)) ->  | BF3: =MIN($H3,IF(BB3="N",0,SUM(BD3,'Other cost'!$B$16,VLOOKUP(BE3,'Other cost'!$A$9:$B$13,2,FALSE),IF(BC3>=30,HLOOKUP(30,'Salary in Industry'!$N$1:$AQ$1001,$B3+1,FALSE),HLOOKUP(BC3,'Salary in Industry'!$N$1:$AQ$1001,$B3+1,FALSE)),IF(ISNA(VLOOKUP(AW3,'Ransom Statistics'!$A$1:$D$18,4,FALSE)),'Ransom Statistics'!$D$18,VLOOKUP(AW3,'Ransom Statistics'!$A$1:$D$18,4,FALSE))))) -> 0 | BG3: =INDEX([1]Variables!$A$2:$A$103,INT((RAND()*100)+1),1) -> EI Salvador | BH3: =INDEX(Variables!$E$3:$E$5,RANDBETWEEN(1,3),1) -> Medium (1 week to 1month) | BI3: =INDEX([1]Variables!$G$3:$G$5,RANDBETWEEN(1,3),1) -> frequent (3 times to 12 times) | BJ3: =RANDBETWEEN(1,20) -> 13 | BK3: =IF(ISNA(VLOOKUP(BG3,Variables!$K$1:$K$36,1,FALSE)),SUM('Other cost'!$B$2,'Salary in Industry'!$AR2,IF(ISNA(VLOOKUP(Simulation!BG3,'Ransom Statistics'!$A$1:$D$18,4,FALSE)),'Ransom Statistics'!$D$18,VLOOKUP(Simulation!BG3,'Ransom Statistics'!$A$1:$D$18,4,FALSE)))*IF(ISNA(VLOOKUP(BG3,'Industry Type P'!$A$2:$S$103,2,FALSE)),'Kidnapping Statistics'!$K$3,VLOOKUP(BG3,'Industry Type P'!$A$1:$S$102,MATCH($C3,'Industry Type P'!$A$1:$S$1,0),FALSE))*VLOOKUP(BI3,'travel frequence'!$A$1:$D$4,MATCH(BH3,'travel frequence'!$A$1:$D$1,0),FALSE)*BJ3*IF(ISNA(VLOOKUP(BJ3,'travel frequence'!$A$7:$B$23,2,FALSE)),'travel frequence'!$B$23,VLOOKUP(BJ3,'travel frequence'!$A$7:$B$23,2,FALSE)),0) -> 54.20767798 | BL3: =IF(VLOOKUP(BG3,'Industry Type P'!$A$1:$S$102,MATCH($C3,'Industry Type P'!$A$1:$S$1,0),FALSE)>RAND(),"Y","N") -> N | BM3: =IF(BL3="N",0,RANDBETWEEN(1,200)) -> 0 | BN3: =SUM(VLOOKUP(BM3,Negotiation_Team,2,FALSE),VLOOKUP(BM3,Recording_Equipment,2,FALSE),VLOOKUP(BM3,Security,2,FALSE)) -> 0 | BO3: =IF(BL3="N"," ",INDEX('Other cost'!$A$9:$A$13,RANDBETWEEN(1,5),1)) ->  | BP3: =MIN($H3,IF(BL3="N",0,SUM(BN3,'Other cost'!$B$16,VLOOKUP(BO3,'Other cost'!$A$9:$B$13,2,FALSE),IF(BM3>=30,HLOOKUP(30,'Salary in Industry'!$N$1:$AQ$1001,$B3+1,FALSE),HLOOKUP(BM3,'Salary in Industry'!$N$1:$AQ$1001,$B3+1,FALSE)),IF(ISNA(VLOOKUP(BG3,'Ransom Statistics'!$A$1:$D$18,4,FALSE)),'Ransom Statistics'!$D$18,VLOOKUP(BG3,'Ransom Statistics'!$A$1:$D$18,4,FALSE))))) -> 0 | BQ3: =INDEX([1]Variables!$A$2:$A$103,INT((RAND()*100)+1),1) -> Russia | BR3: =INDEX(Variables!$E$3:$E$5,RANDBETWEEN(1,3),1) -> Medium (1 week to 1month) | BS3: =INDEX([1]Variables!$G$3:$G$5,RANDBETWEEN(1,3),1) -> very frequent ( more than 12 times a year) | BT3: =RANDBETWEEN(1,20) -> 17 | BU3: =IF(ISNA(VLOOKUP(BQ3,Variables!$K$1:$K$36,1,FALSE)),SUM('Other cost'!$B$2,'Salary in Industry'!$AR2,IF(ISNA(VLOOKUP(Simulation!BQ3,'Ransom Statistics'!$A$1:$D$18,4,FALSE)),'Ransom Statistics'!$D$18,VLOOKUP(Simulation!BQ3,'Ransom Statistics'!$A$1:$D$18,4,FALSE)))*IF(ISNA(VLOOKUP(BQ3,'Industry Type P'!$A$2:$S$103,2,FALSE)),'Kidnapping Statistics'!$K$3,VLOOKUP(BQ3,'Industry Type P'!$A$1:$S$102,MATCH($C3,'Industry Type P'!$A$1:$S$1,0),FALSE))*VLOOKUP(BS3,'travel frequence'!$A$1:$D$4,MATCH(BR3,'travel frequence'!$A$1:$D$1,0),FALSE)*BT3*IF(ISNA(VLOOKUP(BT3,'travel frequence'!$A$7:$B$23,2,FALSE)),'travel frequence'!$B$23,VLOOKUP(BT3,'travel frequence'!$A$7:$B$23,2,FALSE)),0) -> 9.150204984 | BV3: =IF(VLOOKUP(BQ3,'Industry Type P'!$A$1:$S$102,MATCH($C3,'Industry Type P'!$A$1:$S$1,0),FALSE)>RAND(),"Y","N") -> N | BW3: =IF(BV3="N",0,RANDBETWEEN(1,200)) -> 0 | BX3: =SUM(VLOOKUP(BW3,Negotiation_Team,2,FALSE),VLOOKUP(BW3,Recording_Equipment,2,FALSE),VLOOKUP(BW3,Security,2,FALSE)) -> 0 | BY3: =IF(BV3="N"," ",INDEX('Other cost'!$A$9:$A$13,RANDBETWEEN(1,5),1)) ->  | BZ3: =MIN($H3,IF(BV3="N",0,SUM(BX3,'Other cost'!$B$16,VLOOKUP(BY3,'Other cost'!$A$9:$B$13,2,FALSE),IF(BW3>=30,HLOOKUP(30,'Salary in Industry'!$N$1:$AQ$1001,$B3+1,FALSE),HLOOKUP(BW3,'Salary in Industry'!$N$1:$AQ$1001,$B3+1,FALSE)),IF(ISNA(VLOOKUP(BQ3,'Ransom Statistics'!$A$1:$D$18,4,FALSE)),'Ransom Statistics'!$D$18,VLOOKUP(BQ3,'Ransom Statistics'!$A$1:$D$18,4,FALSE))))) -> 0 | CA3: =INDEX([1]Variables!$A$2:$A$103,INT((RAND()*100)+1),1) -> Nangladesh | CB3: =INDEX(Variables!$E$3:$E$5,RANDBETWEEN(1,3),1) -> Long (more than one month) | CC3: =INDEX([1]Variables!$G$3:$G$5,RANDBETWEEN(1,3),1) -> infrequent (less than 3 times) | CD3: =RANDBETWEEN(1,20) -> 4 | CE3: =IF(ISNA(VLOOKUP(CA3,Variables!$K$1:$K$36,1,FALSE)),SUM('Other cost'!$B$2,'Salary in Industry'!$AR2,IF(ISNA(VLOOKUP(Simulation!CA3,'Ransom Statistics'!$A$1:$D$18,4,FALSE)),'Ransom Statistics'!$D$18,VLOOKUP(Simulation!CA3,'Ransom Statistics'!$A$1:$D$18,4,FALSE)))*IF(ISNA(VLOOKUP(CA3,'Industry Type P'!$A$2:$S$103,2,FALSE)),'Kidnapping Statistics'!$K$3,VLOOKUP(CA3,'Industry Type P'!$A$1:$S$102,MATCH($C3,'Industry Type P'!$A$1:$S$1,0),FALSE))*VLOOKUP(CC3,'travel frequence'!$A$1:$D$4,MATCH(CB3,'travel frequence'!$A$1:$D$1,0),FALSE)*CD3*IF(ISNA(VLOOKUP(CD3,'travel frequence'!$A$7:$B$23,2,FALSE)),'travel frequence'!$B$23,VLOOKUP(CD3,'travel frequence'!$A$7:$B$23,2,FALSE)),0) -> 8831.215393 | CF3: =IF(VLOOKUP(CA3,'Industry Type P'!$A$1:$S$102,MATCH($C3,'Industry Type P'!$A$1:$S$1,0),FALSE)>RAND(),"Y","N") -> N | CG3: =IF(CF3="N",0,RANDBETWEEN(1,200)) -> 0 | CH3: =SUM(VLOOKUP(CG3,Negotiation_Team,2,FALSE),VLOOKUP(CG3,Recording_Equipment,2,FALSE),VLOOKUP(CG3,Security,2,FALSE)) -> 0 | CI3: =IF(CF3="N"," ",INDEX('Other cost'!$A$9:$A$13,RANDBETWEEN(1,5),1)) ->  | CJ3: =MIN($H3,IF(CF3="N",0,SUM(CH3,'Other cost'!$B$16,VLOOKUP(CI3,'Other cost'!$A$9:$B$13,2,FALSE),IF(CG3>=30,HLOOKUP(30,'Salary in Industry'!$N$1:$AQ$1001,$B3+1,FALSE),HLOOKUP(CG3,'Salary in Industry'!$N$1:$AQ$1001,$B3+1,FALSE)),IF(ISNA(VLOOKUP(CA3,'Ransom Statistics'!$A$1:$D$18,4,FALSE)),'Ransom Statistics'!$D$18,VLOOKUP(CA3,'Ransom Statistics'!$A$1:$D$18,4,FALSE))))) -> 0 | CK3: =INDEX([1]Variables!$A$2:$A$103,INT((RAND()*100)+1),1) -> South Sudan | CL3: =INDEX(Variables!$E$3:$E$5,RANDBETWEEN(1,3),1) -> Medium (1 week to 1month) | CM3: =INDEX([1]Variables!$G$3:$G$5,RANDBETWEEN(1,3),1) -> infrequent (less than 3 times) | CN3: =RANDBETWEEN(1,20) -> 14 | CO3: =IF(ISNA(VLOOKUP(CK3,Variables!$K$1:$K$36,1,FALSE)),SUM('Other cost'!$B$2,'Salary in Industry'!$AR2,IF(ISNA(VLOOKUP(Simulation!CK3,'Ransom Statistics'!$A$1:$D$18,4,FALSE)),'Ransom Statistics'!$D$18,VLOOKUP(Simulation!CK3,'Ransom Statistics'!$A$1:$D$18,4,FALSE)))*IF(ISNA(VLOOKUP(CK3,'Industry Type P'!$A$2:$S$103,2,FALSE)),'Kidnapping Statistics'!$K$3,VLOOKUP(CK3,'Industry Type P'!$A$1:$S$102,MATCH($C3,'Industry Type P'!$A$1:$S$1,0),FALSE))*VLOOKUP(CM3,'travel frequence'!$A$1:$D$4,MATCH(CL3,'travel frequence'!$A$1:$D$1,0),FALSE)*CN3*IF(ISNA(VLOOKUP(CN3,'travel frequence'!$A$7:$B$23,2,FALSE)),'travel frequence'!$B$23,VLOOKUP(CN3,'travel frequence'!$A$7:$B$23,2,FALSE)),0) -> 4274.412674 | CP3: =IF(VLOOKUP(CK3,'Industry Type P'!$A$1:$S$102,MATCH($C3,'Industry Type P'!$A$1:$S$1,0),FALSE)>RAND(),"Y","N") -> N | CQ3: =IF(CP3="N",0,RANDBETWEEN(1,200)) -> 0 | CR3: =SUM(VLOOKUP(CQ3,Negotiation_Team,2,FALSE),VLOOKUP(CQ3,Recording_Equipment,2,FALSE),VLOOKUP(CQ3,Security,2,FALSE)) -> 0 | CS3: =IF(CP3="N"," ",INDEX('Other cost'!$A$9:$A$13,RANDBETWEEN(1,5),1)) ->  | CT3: =MIN($H3,IF(CP3="N",0,SUM(CR3,'Other cost'!$B$16,VLOOKUP(CS3,'Other cost'!$A$9:$B$13,2,FALSE),IF(CQ3>=30,HLOOKUP(30,'Salary in Industry'!$N$1:$AQ$1001,$B3+1,FALSE),HLOOKUP(CQ3,'Salary in Industry'!$N$1:$AQ$1001,$B3+1,FALSE)),IF(ISNA(VLOOKUP(CK3,'Ransom Statistics'!$A$1:$D$18,4,FALSE)),'Ransom Statistics'!$D$18,VLOOKUP(CK3,'Ransom Statistics'!$A$1:$D$18,4,FALSE))))) -> 0 | CU3: =INDEX([1]Variables!$A$2:$A$103,INT((RAND()*100)+1),1) -> Spain | CV3: =INDEX(Variables!$E$3:$E$5,RANDBETWEEN(1,3),1) -> Medium (1 week to 1month) | CW3: =INDEX([1]Variables!$G$3:$G$5,RANDBETWEEN(1,3),1) -> frequent (3 times to 12 times) | CX3: =RANDBETWEEN(1,20) -> 11 | CY3: =IF(ISNA(VLOOKUP(CU3,Variables!$K$1:$K$36,1,FALSE)),SUM('Other cost'!$B$2,'Salary in Industry'!$AR2,IF(ISNA(VLOOKUP(Simulation!CU3,'Ransom Statistics'!$A$1:$D$18,4,FALSE)),'Ransom Statistics'!$D$18,VLOOKUP(Simulation!CU3,'Ransom Statistics'!$A$1:$D$18,4,FALSE)))*IF(ISNA(VLOOKUP(CU3,'Industry Type P'!$A$2:$S$103,2,FALSE)),'Kidnapping Statistics'!$K$3,VLOOKUP(CU3,'Industry Type P'!$A$1:$S$102,MATCH($C3,'Industry Type P'!$A$1:$S$1,0),FALSE))*VLOOKUP(CW3,'travel frequence'!$A$1:$D$4,MATCH(CV3,'travel frequence'!$A$1:$D$1,0),FALSE)*CX3*IF(ISNA(VLOOKUP(CX3,'travel frequence'!$A$7:$B$23,2,FALSE)),'travel frequence'!$B$23,VLOOKUP(CX3,'travel frequence'!$A$7:$B$23,2,FALSE)),0) -> 33.62700332 | CZ3: =IF(VLOOKUP(CU3,'Industry Type P'!$A$1:$S$102,MATCH($C3,'Industry Type P'!$A$1:$S$1,0),FALSE)>RAND(),"Y","N") -> N | DA3: =IF(CZ3="N",0,RANDBETWEEN(1,200)) -> 0 | DB3: =SUM(VLOOKUP(DA3,Negotiation_Team,2,FALSE),VLOOKUP(DA3,Recording_Equipment,2,FALSE),VLOOKUP(DA3,Security,2,FALSE)) -> 0 | DC3: =IF(CZ3="N"," ",INDEX('Other cost'!$A$9:$A$13,RANDBETWEEN(1,5),1)) ->  | DD3: =MIN($H3,IF(CZ3="N",0,SUM(DB3,'Other cost'!$B$16,VLOOKUP(DC3,'Other cost'!$A$9:$B$13,2,FALSE),IF(DA3>=30,HLOOKUP(30,'Salary in Industry'!$N$1:$AQ$1001,$B3+1,FALSE),HLOOKUP(DA3,'Salary in Industry'!$N$1:$AQ$1001,$B3+1,FALSE)),IF(ISNA(VLOOKUP(CU3,'Ransom Statistics'!$A$1:$D$18,4,FALSE)),'Ransom Statistics'!$D$18,VLOOKUP(CU3,'Ransom Statistics'!$A$1:$D$18,4,FALSE))))) -> 0 | DE3: =IF(A3=0,0,IF(A3=1,R3,IF(A3=2,R3+AB3,IF(A3=3,R3+AB3+AL3,IF(A3=4,R3+AB3+AL3+AV3,IF(A3=5,R3+AB3+AL3+AV3+BF3,IF(A3=6,R3+AB3+AL3+AV3+BF3+BP3,IF(A3=7,R3+AB3+AL3+AV3+BF3+BP3+BZ3,IF(A3=8,R3+AB3+AL3+AV3+BF3+BP3+BZ3+CJ3,IF(A3=9,R3+AB3+AL3+AV3+BF3+BP3+BZ3+CJ3+CT3,IF(A3=10,R3+AB3+AL3+AV3+BF3+BP3+BZ3+CJ3+CT3+DD3))))))))))) -> 0 | DF3: =((IF(A3=0,0,IF(A3=1,M3,IF(A3=2,M3+W3,IF(A3=3,M3+W3+AG3,IF(A3=4,M3+W3+AG3+AQ3,IF(A3=5,M3+W3+AG3+AQ3+BA3,IF(A3=6,M3+W3+AG3+AQ3+BA3+BK3,IF(A3=7,M3+W3+AG3+AQ3+BA3+BK3+BU3,IF(A3=8,M3+W3+AG3+AQ3+BA3+BK3+BU3+CE3,IF(A3=9,M3+W3+AG3+AQ3+BA3+BK3+BU3+CE3+CO3,IF(A3=10,M3+W3+AG3+AQ3+BA3+BK3+BU3+CE3+CO3+CY3))))))))))))/(1+Variables!$G$12))*(1+Variables!$F$21) -> 26518.26286
A4: =RANDBETWEEN(0,10) -> 3 | B4: =B3+1 -> 2 | C4: =INDEX([1]Variables!$C$2:$C$19,INT((RAND()*10)+1),1) -> Agriculture, Forestry, Fishing, and Hunting | D4: =RANDBETWEEN(1,50) -> 13 | E4: =RANDBETWEEN(D4,500) -> 332 | F4: =RANDBETWEEN(E4,20000) -> 18182 | G4: =RANDBETWEEN(500000,50000000) -> 30322038 | H4: =Variables!$H$21 -> 1000000 | I4: =INDEX([1]Variables!$A$2:$A$103,INT((RAND()*100)+1),1) -> Argentina | J4: =INDEX(Variables!$E$3:$E$5,RANDBETWEEN(1,3),1) -> Medium (1 week to 1month) | K4: =INDEX([1]Variables!$G$3:$G$5,RANDBETWEEN(1,3),1) -> frequent (3 times to 12 times) | L4: =RANDBETWEEN(1,20) -> 18 | M4: =IF(ISNA(VLOOKUP(I4,Variables!$K$1:$K$36,1,FALSE)),SUM('Other cost'!$B$2,'Salary in Industry'!$AR3,IF(ISNA(VLOOKUP(Simulation!I4,'Ransom Statistics'!$A$1:$D$18,4,FALSE)),'Ransom Statistics'!$D$18,VLOOKUP(Simulation!I4,'Ransom Statistics'!$A$1:$D$18,4,FALSE)))*IF(ISNA(VLOOKUP(I4,'Industry Type P'!$A$2:$S$103,2,FALSE)),'Kidnapping Statistics'!$K$3,VLOOKUP(I4,'Industry Type P'!$A$1:$S$102,MATCH($C4,'Industry Type P'!$A$1:$S$1,0),FALSE))*VLOOKUP(K4,'travel frequence'!$A$1:$D$4,MATCH(J4,'travel frequence'!$A$1:$D$1,0),FALSE)*L4*IF(ISNA(VLOOKUP(L4,'travel frequence'!$A$7:$B$23,2,FALSE)),'travel frequence'!$B$23,VLOOKUP(L4,'travel frequence'!$A$7:$B$23,2,FALSE)),0) -> 9.248166244 | N4: =IF(VLOOKUP(I4,'Industry Type P'!$A$1:$S$102,MATCH($C4,'Industry Type P'!$A$1:$S$1,0),FALSE)>RAND(),"Y","N") -> N | O4: =IF(N4="N",0,RANDBETWEEN(1,200)) -> 0 | P4: 0 | Q4: =IF(N4="N"," ",INDEX('Other cost'!$A$9:$A$13,RANDBETWEEN(1,5),1)) ->  | R4: =MIN($H4,IF(N4="N",0,SUM(P4,'Other cost'!$B$16,VLOOKUP(Q4,'Other cost'!$A$9:$B$13,2,FALSE),IF(O4>=30,HLOOKUP(30,'Salary in Industry'!$N$1:$AQ$1001,$B4+1,FALSE),HLOOKUP(O4,'Salary in Industry'!$N$1:$AQ$1001,$B4+1,FALSE)),IF(ISNA(VLOOKUP(I4,'Ransom Statistics'!$A$1:$D$18,4,FALSE)),'Ransom Statistics'!$D$18,VLOOKUP(I4,'Ransom Statistics'!$A$1:$D$18,4,FALSE))))) -> 0 | S4: =INDEX([1]Variables!$A$2:$A$103,INT((RAND()*100)+1),1) -> Djibouti | T4: =INDEX(Variables!$E$3:$E$5,RANDBETWEEN(1,3),1) -> Medium (1 week to 1month) | U4: =INDEX([1]Variables!$G$3:$G$5,RANDBETWEEN(1,3),1) -> very frequent ( more than 12 times a year) | V4: =RANDBETWEEN(1,20) -> 6 | W4: =IF(ISNA(VLOOKUP(S4,Variables!$K$1:$K$36,1,FALSE)),SUM('Other cost'!$B$2,'Salary in Industry'!$AR3,IF(ISNA(VLOOKUP(Simulation!S4,'Ransom Statistics'!$A$1:$D$18,4,FALSE)),'Ransom Statistics'!$D$18,VLOOKUP(Simulation!S4,'Ransom Statistics'!$A$1:$D$18,4,FALSE)))*IF(ISNA(VLOOKUP(S4,'Industry Type P'!$A$2:$S$103,2,FALSE)),'Kidnapping Statistics'!$K$3,VLOOKUP(S4,'Industry Type P'!$A$1:$S$102,MATCH($C4,'Industry Type P'!$A$1:$S$1,0),FALSE))*VLOOKUP(U4,'travel frequence'!$A$1:$D$4,MATCH(T4,'travel frequence'!$A$1:$D$1,0),FALSE)*V4*IF(ISNA(VLOOKUP(V4,'travel frequence'!$A$7:$B$23,2,FALSE)),'travel frequence'!$B$23,VLOOKUP(V4,'travel frequence'!$A$7:$B$23,2,FALSE)),0) -> 0 | X4: =IF(VLOOKUP(S4,'Industry Type P'!$A$1:$S$102,MATCH($C4,'Industry Type P'!$A$1:$S$1,0),FALSE)>RAND(),"Y","N") -> N | Y4: =IF(X4="N",0,RANDBETWEEN(1,200)) -> 0 | Z4: 0 | AA4: =IF(X4="N"," ",INDEX('Other cost'!$A$9:$A$13,RANDBETWEEN(1,5),1)) ->  | AB4: =MIN($H4,IF(X4="N",0,SUM(Z4,'Other cost'!$B$16,VLOOKUP(AA4,'Other cost'!$A$9:$B$13,2,FALSE),IF(Y4>=30,HLOOKUP(30,'Salary in Industry'!$N$1:$AQ$1001,$B4+1,FALSE),HLOOKUP(Y4,'Salary in Industry'!$N$1:$AQ$1001,$B4+1,FALSE)),IF(ISNA(VLOOKUP(S4,'Ransom Statistics'!$A$1:$D$18,4,FALSE)),'Ransom Statistics'!$D$18,VLOOKUP(S4,'Ransom Statistics'!$A$1:$D$18,4,FALSE))))) -> 0 | AC4: =INDEX([1]Variables!$A$2:$A$103,INT((RAND()*100)+1),1) -> Belarus | AD4: =INDEX(Variables!$E$3:$E$5,RANDBETWEEN(1,3),1) -> Medium (1 week to 1month) | AE4: =INDEX([1]Variables!$G$3:$G$5,RANDBETWEEN(1,3),1) -> frequent (3 times to 12 times) | AF4: =RANDBETWEEN(1,20) -> 17 | AG4: =IF(ISNA(VLOOKUP(AC4,Variables!$K$1:$K$36,1,FALSE)),SUM('Other cost'!$B$2,'Salary in Industry'!$AR3,IF(ISNA(VLOOKUP(Simulation!AC4,'Ransom Statistics'!$A$1:$D$18,4,FALSE)),'Ransom Statistics'!$D$18,VLOOKUP(Simulation!AC4,'Ransom Statistics'!$A$1:$D$18,4,FALSE)))*IF(ISNA(VLOOKUP(AC4,'Industry Type P'!$A$2:$S$103,2,FALSE)),'Kidnapping Statistics'!$K$3,VLOOKUP(AC4,'Industry Type P'!$A$1:$S$102,MATCH($C4,'Industry Type P'!$A$1:$S$1,0),FALSE))*VLOOKUP(AE4,'travel frequence'!$A$1:$D$4,MATCH(AD4,'travel frequence'!$A$1:$D$1,0),FALSE)*AF4*IF(ISNA(VLOOKUP(AF4,'travel frequence'!$A$7:$B$23,2,FALSE)),'travel frequence'!$B$23,VLOOKUP(AF4,'travel frequence'!$A$7:$B$23,2,FALSE)),0) -> 20.96251015 | AH4: =IF(VLOOKUP(AC4,'Industry Type P'!$A$1:$S$102,MATCH($C4,'Industry Type P'!$A$1:$S$1,0),FALSE)>RAND(),"Y","N") -> N | AI4: =IF(AH4="N",0,RANDBETWEEN(1,200)) -> 0 | AJ4: 0 | AK4: =IF(AH4="N"," ",INDEX('Other cost'!$A$9:$A$13,RANDBETWEEN(1,5),1)) ->  | AL4: =MIN($H4,IF(AH4="N",0,SUM(AJ4,'Other cost'!$B$16,VLOOKUP(AK4,'Other cost'!$A$9:$B$13,2,FALSE),IF(AI4>=30,HLOOKUP(30,'Salary in Industry'!$N$1:$AQ$1001,$B4+1,FALSE),HLOOKUP(AI4,'Salary in Industry'!$N$1:$AQ$1001,$B4+1,FALSE)),IF(ISNA(VLOOKUP(AC4,'Ransom Statistics'!$A$1:$D$18,4,FALSE)),'Ransom Statistics'!$D$18,VLOOKUP(AC4,'Ransom Statistics'!$A$1:$D$18,4,FALSE))))) -> 0 | AM4: =INDEX([1]Variables!$A$2:$A$103,INT((RAND()*100)+1),1) -> Cameroon | AN4: =INDEX(Variables!$E$3:$E$5,RANDBETWEEN(1,3),1) -> Long (more than one month) | AO4: =INDEX([1]Variables!$G$3:$G$5,RANDBETWEEN(1,3),1) -> infrequent (less than 3 times) | AP4: =RANDBETWEEN(1,20) -> 11 | AQ4: =IF(ISNA(VLOOKUP(AM4,Variables!$K$1:$K$36,1,FALSE)),SUM('Other cost'!$B$2,'Salary in Industry'!$AR3,IF(ISNA(VLOOKUP(Simulation!AM4,'Ransom Statistics'!$A$1:$D$18,4,FALSE)),'Ransom Statistics'!$D$18,VLOOKUP(Simulation!AM4,'Ransom Statistics'!$A$1:$D$18,4,FALSE)))*IF(ISNA(VLOOKUP(AM4,'Industry Type P'!$A$2:$S$103,2,FALSE)),'Kidnapping Statistics'!$K$3,VLOOKUP(AM4,'Industry Type P'!$A$1:$S$102,MATCH($C4,'Industry Type P'!$A$1:$S$1,0),FALSE))*VLOOKUP(AO4,'travel frequence'!$A$1:$D$4,MATCH(AN4,'travel frequence'!$A$1:$D$1,0),FALSE)*AP4*IF(ISNA(VLOOKUP(AP4,'travel frequence'!$A$7:$B$23,2,FALSE)),'travel frequence'!$B$23,VLOOKUP(AP4,'travel frequence'!$A$7:$B$23,2,FALSE)),0) -> 0 | AR4: =IF(VLOOKUP(AM4,'Industry Type P'!$A$1:$S$102,MATCH($C4,'Industry Type P'!$A$1:$S$1,0),FALSE)>RAND(),"Y","N") -> N | AS4: =IF(AR4="N",0,RANDBETWEEN(1,200)) -> 0 | AT4: 0 | AU4: =IF(AR4="N"," ",INDEX('Other cost'!$A$9:$A$13,RANDBETWEEN(1,5),1)) ->  | AV4: =MIN($H4,IF(AR4="N",0,SUM(AT4,'Other cost'!$B$16,VLOOKUP(AU4,'Other cost'!$A$9:$B$13,2,FALSE),IF(AS4>=30,HLOOKUP(30,'Salary in Industry'!$N$1:$AQ$1001,$B4+1,FALSE),HLOOKUP(AS4,'Salary in Industry'!$N$1:$AQ$1001,$B4+1,FALSE)),IF(ISNA(VLOOKUP(AM4,'Ransom Statistics'!$A$1:$D$18,4,FALSE)),'Ransom Statistics'!$D$18,VLOOKUP(AM4,'Ransom Statistics'!$A$1:$D$18,4,FALSE))))) -> 0 | AW4: =INDEX([1]Variables!$A$2:$A$103,INT((RAND()*100)+1),1) -> Saudi Abrabia | AX4: =INDEX(Variables!$E$3:$E$5,RANDBETWEEN(1,3),1) -> Long (more than one month) | AY4: =INDEX([1]Variables!$G$3:$G$5,RANDBETWEEN(1,3),1) -> frequent (3 times to 12 times) | AZ4: =RANDBETWEEN(1,20) -> 15 | BA4: =IF(ISNA(VLOOKUP(AW4,Variables!$K$1:$K$36,1,FALSE)),SUM('Other cost'!$B$2,'Salary in Industry'!$AR3,IF(ISNA(VLOOKUP(Simulation!AW4,'Ransom Statistics'!$A$1:$D$18,4,FALSE)),'Ransom Statistics'!$D$18,VLOOKUP(Simulation!AW4,'Ransom Statistics'!$A$1:$D$18,4,FALSE)))*IF(ISNA(VLOOKUP(AW4,'Industry Type P'!$A$2:$S$103,2,FALSE)),'Kidnapping Statistics'!$K$3,VLOOKUP(AW4,'Industry Type P'!$A$1:$S$102,MATCH($C4,'Industry Type P'!$A$1:$S$1,0),FALSE))*VLOOKUP(AY4,'travel frequence'!$A$1:$D$4,MATCH(AX4,'travel frequence'!$A$1:$D$1,0),FALSE)*AZ4*IF(ISNA(VLOOKUP(AZ4,'travel frequence'!$A$7:$B$23,2,FALSE)),'travel frequence'!$B$23,VLOOKUP(AZ4,'travel frequence'!$A$7:$B$23,2,FALSE)),0) -> 8.073795927 | BB4: =IF(VLOOKUP(AW4,'Industry Type P'!$A$1:$S$102,MATCH($C4,'Industry Type P'!$A$1:$S$1,0),FALSE)>RAND(),"Y","N") -> N | BC4: =IF(BB4="N",0,RANDBETWEEN(1,200)) -> 0 | BD4: 0 | BE4: =IF(BB4="N"," ",INDEX('Other cost'!$A$9:$A$13,RANDBETWEEN(1,5),1)) ->  | BF4: =MIN($H4,IF(BB4="N",0,SUM(BD4,'Other cost'!$B$16,VLOOKUP(BE4,'Other cost'!$A$9:$B$13,2,FALSE),IF(BC4>=30,HLOOKUP(30,'Salary in Industry'!$N$1:$AQ$1001,$B4+1,FALSE),HLOOKUP(BC4,'Salary in Industry'!$N$1:$AQ$1001,$B4+1,FALSE)),IF(ISNA(VLOOKUP(AW4,'Ransom Statistics'!$A$1:$D$18,4,FALSE)),'Ransom Statistics'!$D$18,VLOOKUP(AW4,'Ransom Statistics'!$A$1:$D$18,4,FALSE))))) -> 0 | BG4: =INDEX([1]Variables!$A$2:$A$103,INT((RAND()*100)+1),1) -> French Guiana | BH4: =INDEX(Variables!$E$3:$E$5,RANDBETWEEN(1,3),1) -> Short (less a week) | BI4: =INDEX([1]Variables!$G$3:$G$5,RANDBETWEEN(1,3),1) -> very frequent ( more than 12 times a year) | BJ4: =RANDBETWEEN(1,20) -> 11 | BK4: =IF(ISNA(VLOOKUP(BG4,Variables!$K$1:$K$36,1,FALSE)),SUM('Other cost'!$B$2,'Salary in Industry'!$AR3,IF(ISNA(VLOOKUP(Simulation!BG4,'Ransom Statistics'!$A$1:$D$18,4,FALSE)),'Ransom Statistics'!$D$18,VLOOKUP(Simulation!BG4,'Ransom Statistics'!$A$1:$D$18,4,FALSE)))*IF(ISNA(VLOOKUP(BG4,'Industry Type P'!$A$2:$S$103,2,FALSE)),'Kidnapping Statistics'!$K$3,VLOOKUP(BG4,'Industry Type P'!$A$1:$S$102,MATCH($C4,'Industry Type P'!$A$1:$S$1,0),FALSE))*VLOOKUP(BI4,'travel frequence'!$A$1:$D$4,MATCH(BH4,'travel frequence'!$A$1:$D$1,0),FALSE)*BJ4*IF(ISNA(VLOOKUP(BJ4,'travel frequence'!$A$7:$B$23,2,FALSE)),'travel frequence'!$B$23,VLOOKUP(BJ4,'travel frequence'!$A$7:$B$23,2,FALSE)),0) -> 6.578648533 | BL4: =IF(VLOOKUP(BG4,'Industry Type P'!$A$1:$S$102,MATCH($C4,'Industry Type P'!$A$1:$S$1,0),FALSE)>RAND(),"Y","N") -> N | BM4: =IF(BL4="N",0,RANDBETWEEN(1,200)) -> 0 | BN4: 0 | BO4: =IF(BL4="N"," ",INDEX('Other cost'!$A$9:$A$13,RANDBETWEEN(1,5),1)) ->  | BP4: =MIN($H4,IF(BL4="N",0,SUM(BN4,'Other cost'!$B$16,VLOOKUP(BO4,'Other cost'!$A$9:$B$13,2,FALSE),IF(BM4>=30,HLOOKUP(30,'Salary in Industry'!$N$1:$AQ$1001,$B4+1,FALSE),HLOOKUP(BM4,'Salary in Industry'!$N$1:$AQ$1001,$B4+1,FALSE)),IF(ISNA(VLOOKUP(BG4,'Ransom Statistics'!$A$1:$D$18,4,FALSE)),'Ransom Statistics'!$D$18,VLOOKUP(BG4,'Ransom Statistics'!$A$1:$D$18,4,FALSE))))) -> 0 | BQ4: =INDEX([1]Variables!$A$2:$A$103,INT((RAND()*100)+1),1) -> Iran | BR4: =INDEX(Variables!$E$3:$E$5,RANDBETWEEN(1,3),1) -> Long (more than one month) | BS4: =INDEX([1]Variables!$G$3:$G$5,RANDBETWEEN(1,3),1) -> infrequent (less than 3 times) | BT4: =RANDBETWEEN(1,20) -> 15 | BU4: =IF(ISNA(VLOOKUP(BQ4,Variables!$K$1:$K$36,1,FALSE)),SUM('Other cost'!$B$2,'Salary in Industry'!$AR3,IF(ISNA(VLOOKUP(Simulation!BQ4,'Ransom Statistics'!$A$1:$D$18,4,FALSE)),'Ransom Statistics'!$D$18,VLOOKUP(Simulation!BQ4,'Ransom Statistics'!$A$1:$D$18,4,FALSE)))*IF(ISNA(VLOOKUP(BQ4,'Industry Type P'!$A$2:$S$103,2,FALSE)),'Kidnapping Statistics'!$K$3,VLOOKUP(BQ4,'Industry Type P'!$A$1:$S$102,MATCH($C4,'Industry Type P'!$A$1:$S$1,0),FALSE))*VLOOKUP(BS4,'travel frequence'!$A$1:$D$4,MATCH(BR4,'travel frequence'!$A$1:$D$1,0),FALSE)*BT4*IF(ISNA(VLOOKUP(BT4,'travel frequence'!$A$7:$B$23,2,FALSE)),'travel frequence'!$B$23,VLOOKUP(BT4,'travel frequence'!$A$7:$B$23,2,FALSE)),0) -> 0 | BV4: =IF(VLOOKUP(BQ4,'Industry Type P'!$A$1:$S$102,MATCH($C4,'Industry Type P'!$A$1:$S$1,0),FALSE)>RAND(),"Y","N") -> N | BW4: =IF(BV4="N",0,RANDBETWEEN(1,200)) -> 0 | BX4: 0 | BY4: =IF(BV4="N"," ",INDEX('Other cost'!$A$9:$A$13,RANDBETWEEN(1,5),1)) ->  | BZ4: =MIN($H4,IF(BV4="N",0,SUM(BX4,'Other cost'!$B$16,VLOOKUP(BY4,'Other cost'!$A$9:$B$13,2,FALSE),IF(BW4>=30,HLOOKUP(30,'Salary in Industry'!$N$1:$AQ$1001,$B4+1,FALSE),HLOOKUP(BW4,'Salary in Industry'!$N$1:$AQ$1001,$B4+1,FALSE)),IF(ISNA(VLOOKUP(BQ4,'Ransom Statistics'!$A$1:$D$18,4,FALSE)),'Ransom Statistics'!$D$18,VLOOKUP(BQ4,'Ransom Statistics'!$A$1:$D$18,4,FALSE))))) -> 0 | CA4: =INDEX([1]Variables!$A$2:$A$103,INT((RAND()*100)+1),1) -> Turkey | CB4: =INDEX(Variables!$E$3:$E$5,RANDBETWEEN(1,3),1) -> Long (more than one month) | CC4: =INDEX([1]Variables!$G$3:$G$5,RANDBETWEEN(1,3),1) -> frequent (3 times to 12 times) | CD4: =RANDBETWEEN(1,20) -> 7 | CE4: =IF(ISNA(VLOOKUP(CA4,Variables!$K$1:$K$36,1,FALSE)),SUM('Other cost'!$B$2,'Salary in Industry'!$AR3,IF(ISNA(VLOOKUP(Simulation!CA4,'Ransom Statistics'!$A$1:$D$18,4,FALSE)),'Ransom Statistics'!$D$18,VLOOKUP(Simulation!CA4,'Ransom Statistics'!$A$1:$D$18,4,FALSE)))*IF(ISNA(VLOOKUP(CA4,'Industry Type P'!$A$2:$S$103,2,FALSE)),'Kidnapping Statistics'!$K$3,VLOOKUP(CA4,'Industry Type P'!$A$1:$S$102,MATCH($C4,'Industry Type P'!$A$1:$S$1,0),FALSE))*VLOOKUP(CC4,'travel frequence'!$A$1:$D$4,MATCH(CB4,'travel frequence'!$A$1:$D$1,0),FALSE)*CD4*IF(ISNA(VLOOKUP(CD4,'travel frequence'!$A$7:$B$23,2,FALSE)),'travel frequence'!$B$23,VLOOKUP(CD4,'travel frequence'!$A$7:$B$23,2,FALSE)),0) -> 745.5163742 | CF4: =IF(VLOOKUP(CA4,'Industry Type P'!$A$1:$S$102,MATCH($C4,'Industry Type P'!$A$1:$S$1,0),FALSE)>RAND(),"Y","N") -> N | CG4: =IF(CF4="N",0,RANDBETWEEN(1,200)) -> 0 | CH4: 0 | CI4: =IF(CF4="N"," ",INDEX('Other cost'!$A$9:$A$13,RANDBETWEEN(1,5),1)) ->  | CJ4: =MIN($H4,IF(CF4="N",0,SUM(CH4,'Other cost'!$B$16,VLOOKUP(CI4,'Other cost'!$A$9:$B$13,2,FALSE),IF(CG4>=30,HLOOKUP(30,'Salary in Industry'!$N$1:$AQ$1001,$B4+1,FALSE),HLOOKUP(CG4,'Salary in Industry'!$N$1:$AQ$1001,$B4+1,FALSE)),IF(ISNA(VLOOKUP(CA4,'Ransom Statistics'!$A$1:$D$18,4,FALSE)),'Ransom Statistics'!$D$18,VLOOKUP(CA4,'Ransom Statistics'!$A$1:$D$18,4,FALSE))))) -> 0 | CK4: =INDEX([1]Variables!$A$2:$A$103,INT((RAND()*100)+1),1) -> Somalia | CL4: =INDEX(Variables!$E$3:$E$5,RANDBETWEEN(1,3),1) -> Medium (1 week to 1month) | CM4: =INDEX([1]Variables!$G$3:$G$5,RANDBETWEEN(1,3),1) -> very frequent ( more than 12 times a year) | CN4: =RANDBETWEEN(1,20) -> 15 | CO4: =IF(ISNA(VLOOKUP(CK4,Variables!$K$1:$K$36,1,FALSE)),SUM('Other cost'!$B$2,'Salary in Industry'!$AR3,IF(ISNA(VLOOKUP(Simulation!CK4,'Ransom Statistics'!$A$1:$D$18,4,FALSE)),'Ransom Statistics'!$D$18,VLOOKUP(Simulation!CK4,'Ransom Statistics'!$A$1:$D$18,4,FALSE)))*IF(ISNA(VLOOKUP(CK4,'Industry Type P'!$A$2:$S$103,2,FALSE)),'Kidnapping Statistics'!$K$3,VLOOKUP(CK4,'Industry Type P'!$A$1:$S$102,MATCH($C4,'Industry Type P'!$A$1:$S$1,0),FALSE))*VLOOKUP(CM4,'travel frequence'!$A$1:$D$4,MATCH(CL4,'travel frequence'!$A$1:$D$1,0),FALSE)*CN4*IF(ISNA(VLOOKUP(CN4,'travel frequence'!$A$7:$B$23,2,FALSE)),'travel frequence'!$B$23,VLOOKUP(CN4,'travel frequence'!$A$7:$B$23,2,FALSE)),0) -> 3229.518371 | CP4: =IF(VLOOKUP(CK4,'Industry Type P'!$A$1:$S$102,MATCH($C4,'Industry Type P'!$A$1:$S$1,0),FALSE)>RAND(),"Y","N") -> N | CQ4: =IF(CP4="N",0,RANDBETWEEN(1,200)) -> 0 | CR4: 0 | CS4: =IF(CP4="N"," ",INDEX('Other cost'!$A$9:$A$13,RANDBETWEEN(1,5),1)) ->  | CT4: =MIN($H4,IF(CP4="N",0,SUM(CR4,'Other cost'!$B$16,VLOOKUP(CS4,'Other cost'!$A$9:$B$13,2,FALSE),IF(CQ4>=30,HLOOKUP(30,'Salary in Industry'!$N$1:$AQ$1001,$B4+1,FALSE),HLOOKUP(CQ4,'Salary in Industry'!$N$1:$AQ$1001,$B4+1,FALSE)),IF(ISNA(VLOOKUP(CK4,'Ransom Statistics'!$A$1:$D$18,4,FALSE)),'Ransom Statistics'!$D$18,VLOOKUP(CK4,'Ransom Statistics'!$A$1:$D$18,4,FALSE))))) -> 0 | CU4: =INDEX([1]Variables!$A$2:$A$103,INT((RAND()*100)+1),1) -> Spain | CV4: =INDEX(Variables!$E$3:$E$5,RANDBETWEEN(1,3),1) -> Medium (1 week to 1month) | CW4: =INDEX([1]Variables!$G$3:$G$5,RANDBETWEEN(1,3),1) -> very frequent ( more than 12 times a year) | CX4: =RANDBETWEEN(1,20) -> 1 | CY4: =IF(ISNA(VLOOKUP(CU4,Variables!$K$1:$K$36,1,FALSE)),SUM('Other cost'!$B$2,'Salary in Industry'!$AR3,IF(ISNA(VLOOKUP(Simulation!CU4,'Ransom Statistics'!$A$1:$D$18,4,FALSE)),'Ransom Statistics'!$D$18,VLOOKUP(Simulation!CU4,'Ransom Statistics'!$A$1:$D$18,4,FALSE)))*IF(ISNA(VLOOKUP(CU4,'Industry Type P'!$A$2:$S$103,2,FALSE)),'Kidnapping Statistics'!$K$3,VLOOKUP(CU4,'Industry Type P'!$A$1:$S$102,MATCH($C4,'Industry Type P'!$A$1:$S$1,0),FALSE))*VLOOKUP(CW4,'travel frequence'!$A$1:$D$4,MATCH(CV4,'travel frequence'!$A$1:$D$1,0),FALSE)*CX4*IF(ISNA(VLOOKUP(CX4,'travel frequence'!$A$7:$B$23,2,FALSE)),'travel frequence'!$B$23,VLOOKUP(CX4,'travel frequence'!$A$7:$B$23,2,FALSE)),0) -> 4.575151025 | CZ4: =IF(VLOOKUP(CU4,'Industry Type P'!$A$1:$S$102,MATCH($C4,'Industry Type P'!$A$1:$S$1,0),FALSE)>RAND(),"Y","N") -> N | DA4: =IF(CZ4="N",0,RANDBETWEEN(1,200)) -> 0 | DB4: 0 | DC4: =IF(CZ4="N"," ",INDEX('Other cost'!$A$9:$A$13,RANDBETWEEN(1,5),1)) ->  | DD4: =MIN($H4,IF(CZ4="N",0,SUM(DB4,'Other cost'!$B$16,VLOOKUP(DC4,'Other cost'!$A$9:$B$13,2,FALSE),IF(DA4>=30,HLOOKUP(30,'Salary in Industry'!$N$1:$AQ$1001,$B4+1,FALSE),HLOOKUP(DA4,'Salary in Industry'!$N$1:$AQ$1001,$B4+1,FALSE)),IF(ISNA(VLOOKUP(CU4,'Ransom Statistics'!$A$1:$D$18,4,FALSE)),'Ransom Statistics'!$D$18,VLOOKUP(CU4,'Ransom Statistics'!$A$1:$D$18,4,FALSE))))) -> 0 | DE4: =IF(A4=0,0,IF(A4=1,R4,IF(A4=2,R4+AB4,IF(A4=3,R4+AB4+AL4,IF(A4=4,R4+AB4+AL4+AV4,IF(A4=5,R4+AB4+AL4+AV4+BF4,IF(A4=6,R4+AB4+AL4+AV4+BF4+BP4,IF(A4=7,R4+AB4+AL4+AV4+BF4+BP4+BZ4,IF(A4=8,R4+AB4+AL4+AV4+BF4+BP4+BZ4+CJ4,IF(A4=9,R4+AB4+AL4+AV4+BF4+BP4+BZ4+CJ4+CT4,IF(A4=10,R4+AB4+AL4+AV4+BF4+BP4+BZ4+CJ4+CT4+DD4))))))))))) -> 0 | DF4: =((IF(A4=0,0,IF(A4=1,M4,IF(A4=2,M4+W4,IF(A4=3,M4+W4+AG4,IF(A4=4,M4+W4+AG4+AQ4,IF(A4=5,M4+W4+AG4+AQ4+BA4,IF(A4=6,M4+W4+AG4+AQ4+BA4+BK4,IF(A4=7,M4+W4+AG4+AQ4+BA4+BK4+BU4,IF(A4=8,M4+W4+AG4+AQ4+BA4+BK4+BU4+CE4,IF(A4=9,M4+W4+AG4+AQ4+BA4+BK4+BU4+CE4+CO4,IF(A4=10,M4+W4+AG4+AQ4+BA4+BK4+BU4+CE4+CO4+CY4))))))))))))/(1+Variables!$G$12))*(1+Variables!$F$21) -> 33.11949368
A5: 3 | B5: 3 | C5: =INDEX([1]Variables!$C$2:$C$19,INT((RAND()*10)+1),1) -> Transportation and Warehousing | D5: 7 | E5: 331 | F5: 17698 | G5: 14930087 | H5: =Variables!$H$21 -> 1000000 | I5: =INDEX([1]Variables!$A$2:$A$103,INT((RAND()*100)+1),1) -> Eritrea | J5: =INDEX(Variables!$E$3:$E$5,RANDBETWEEN(1,3),1) -> Short (less a week) | K5: =INDEX([1]Variables!$G$3:$G$5,RANDBETWEEN(1,3),1) -> infrequent (less than 3 times) | L5: 20 | M5: =IF(ISNA(VLOOKUP(I5,Variables!$K$1:$K$36,1,FALSE)),SUM('Other cost'!$B$2,'Salary in Industry'!$AR4,IF(ISNA(VLOOKUP(Simulation!I5,'Ransom Statistics'!$A$1:$D$18,4,FALSE)),'Ransom Statistics'!$D$18,VLOOKUP(Simulation!I5,'Ransom Statistics'!$A$1:$D$18,4,FALSE)))*IF(ISNA(VLOOKUP(I5,'Industry Type P'!$A$2:$S$103,2,FALSE)),'Kidnapping Statistics'!$K$3,VLOOKUP(I5,'Industry Type P'!$A$1:$S$102,MATCH($C5,'Industry Type P'!$A$1:$S$1,0),FALSE))*VLOOKUP(K5,'travel frequence'!$A$1:$D$4,MATCH(J5,'travel frequence'!$A$1:$D$1,0),FALSE)*L5*IF(ISNA(VLOOKUP(L5,'travel frequence'!$A$7:$B$23,2,FALSE)),'travel frequence'!$B$23,VLOOKUP(L5,'travel frequence'!$A$7:$B$23,2,FALSE)),0) -> 0 | N5: =IF(VLOOKUP(I5,'Industry Type P'!$A$1:$S$102,MATCH($C5,'Industry Type P'!$A$1:$S$1,0),FALSE)>RAND(),"Y","N") -> N | O5: 0 | P5: 0 | Q5: =IF(N5="N"," ",INDEX('Other cost'!$A$9:$A$13,RANDBETWEEN(1,5),1)) ->  | R5: =MIN($H5,IF(N5="N",0,SUM(P5,'Other cost'!$B$16,VLOOKUP(Q5,'Other cost'!$A$9:$B$13,2,FALSE),IF(O5>=30,HLOOKUP(30,'Salary in Industry'!$N$1:$AQ$1001,$B5+1,FALSE),HLOOKUP(O5,'Salary in Industry'!$N$1:$AQ$1001,$B5+1,FALSE)),IF(ISNA(VLOOKUP(I5,'Ransom Statistics'!$A$1:$D$18,4,FALSE)),'Ransom Statistics'!$D$18,VLOOKUP(I5,'Ransom Statistics'!$A$1:$D$18,4,FALSE))))) -> 0 | S5: =INDEX([1]Variables!$A$2:$A$103,INT((RAND()*100)+1),1) -> Maili | T5: =INDEX(Variables!$E$3:$E$5,RANDBETWEEN(1,3),1) -> Long (more than one month) | U5: =INDEX([1]Variables!$G$3:$G$5,RANDBETWEEN(1,3),1) -> frequent (3 times to 12 times) | V5: 10 | W5: =IF(ISNA(VLOOKUP(S5,Variables!$K$1:$K$36,1,FALSE)),SUM('Other cost'!$B$2,'Salary in Industry'!$AR4,IF(ISNA(VLOOKUP(Simulation!S5,'Ransom Statistics'!$A$1:$D$18,4,FALSE)),'Ransom Statistics'!$D$18,VLOOKUP(Simulation!S5,'Ransom Statistics'!$A$1:$D$18,4,FALSE)))*IF(ISNA(VLOOKUP(S5,'Industry Type P'!$A$2:$S$103,2,FALSE)),'Kidnapping Statistics'!$K$3,VLOOKUP(S5,'Industry Type P'!$A$1:$S$102,MATCH($C5,'Industry Type P'!$A$1:$S$1,0),FALSE))*VLOOKUP(U5,'travel frequence'!$A$1:$D$4,MATCH(T5,'travel frequence'!$A$1:$D$1,0),FALSE)*V5*IF(ISNA(VLOOKUP(V5,'travel frequence'!$A$7:$B$23,2,FALSE)),'travel frequence'!$B$23,VLOOKUP(V5,'travel frequence'!$A$7:$B$23,2,FALSE)),0) -> 2511.83691 | X5: =IF(VLOOKUP(S5,'Industry Type P'!$A$1:$S$102,MATCH($C5,'Industry Type P'!$A$1:$S$1,0),FALSE)>RAND(),"Y","N") -> N | Y5: 0 | Z5: 0 | AA5: =IF(X5="N"," ",INDEX('Other cost'!$A$9:$A$13,RANDBETWEEN(1,5),1)) ->  | AB5: =MIN($H5,IF(X5="N",0,SUM(Z5,'Other cost'!$B$16,VLOOKUP(AA5,'Other cost'!$A$9:$B$13,2,FALSE),IF(Y5>=30,HLOOKUP(30,'Salary in Industry'!$N$1:$AQ$1001,$B5+1,FALSE),HLOOKUP(Y5,'Salary in Industry'!$N$1:$AQ$1001,$B5+1,FALSE)),IF(ISNA(VLOOKUP(S5,'Ransom Statistics'!$A$1:$D$18,4,FALSE)),'Ransom Statistics'!$D$18,VLOOKUP(S5,'Ransom Statistics'!$A$1:$D$18,4,FALSE))))) -> 0 | AC5: =INDEX([1]Variables!$A$2:$A$103,INT((RAND()*100)+1),1) -> Pakistan | AD5: =INDEX(Variables!$E$3:$E$5,RANDBETWEEN(1,3),1) -> Medium (1 week to 1month) | AE5: =INDEX([1]Variables!$G$3:$G$5,RANDBETWEEN(1,3),1) -> infrequent (less than 3 times) | AF5: 6 | AG5: =IF(ISNA(VLOOKUP(AC5,Variables!$K$1:$K$36,1,FALSE)),SUM('Other cost'!$B$2,'Salary in Industry'!$AR4,IF(ISNA(VLOOKUP(Simulation!AC5,'Ransom Statistics'!$A$1:$D$18,4,FALSE)),'Ransom Statistics'!$D$18,VLOOKUP(Simulation!AC5,'Ransom Statistics'!$A$1:$D$18,4,FALSE)))*IF(ISNA(VLOOKUP(AC5,'Industry Type P'!$A$2:$S$103,2,FALSE)),'Kidnapping Statistics'!$K$3,VLOOKUP(AC5,'Industry Type P'!$A$1:$S$102,MATCH($C5,'Industry Type P'!$A$1:$S$1,0),FALSE))*VLOOKUP(AE5,'travel frequence'!$A$1:$D$4,MATCH(AD5,'travel frequence'!$A$1:$D$1,0),FALSE)*AF5*IF(ISNA(VLOOKUP(AF5,'travel frequence'!$A$7:$B$23,2,FALSE)),'travel frequence'!$B$23,VLOOKUP(AF5,'travel frequence'!$A$7:$B$23,2,FALSE)),0) -> 0 | AH5: =IF(VLOOKUP(AC5,'Industry Type P'!$A$1:$S$102,MATCH($C5,'Industry Type P'!$A$1:$S$1,0),FALSE)>RAND(),"Y","N") -> N | AI5: 0 | AJ5: 0 | AK5: =IF(AH5="N"," ",INDEX('Other cost'!$A$9:$A$13,RANDBETWEEN(1,5),1)) ->  | AL5: =MIN($H5,IF(AH5="N",0,SUM(AJ5,'Other cost'!$B$16,VLOOKUP(AK5,'Other cost'!$A$9:$B$13,2,FALSE),IF(AI5>=30,HLOOKUP(30,'Salary in Industry'!$N$1:$AQ$1001,$B5+1,FALSE),HLOOKUP(AI5,'Salary in Industry'!$N$1:$AQ$1001,$B5+1,FALSE)),IF(ISNA(VLOOKUP(AC5,'Ransom Statistics'!$A$1:$D$18,4,FALSE)),'Ransom Statistics'!$D$18,VLOOKUP(AC5,'Ransom Statistics'!$A$1:$D$18,4,FALSE))))) -> 0 | AM5: =INDEX([1]Variables!$A$2:$A$103,INT((RAND()*100)+1),1) -> Kenya | AN5: =INDEX(Variables!$E$3:$E$5,RANDBETWEEN(1,3),1) -> Medium (1 week to 1month) | AO5: =INDEX([1]Variables!$G$3:$G$5,RANDBETWEEN(1,3),1) -> frequent (3 times to 12 times) | AP5: 16 | AQ5: =IF(ISNA(VLOOKUP(AM5,Variables!$K$1:$K$36,1,FALSE)),SUM('Other cost'!$B$2,'Salary in Industry'!$AR4,IF(ISNA(VLOOKUP(Simulation!AM5,'Ransom Statistics'!$A$1:$D$18,4,FALSE)),'Ransom Statistics'!$D$18,VLOOKUP(Simulation!AM5,'Ransom Statistics'!$A$1:$D$18,4,FALSE)))*IF(ISNA(VLOOKUP(AM5,'Industry Type P'!$A$2:$S$103,2,FALSE)),'Kidnapping Statistics'!$K$3,VLOOKUP(AM5,'Industry Type P'!$A$1:$S$102,MATCH($C5,'Industry Type P'!$A$1:$S$1,0),FALSE))*VLOOKUP(AO5,'travel frequence'!$A$1:$D$4,MATCH(AN5,'travel frequence'!$A$1:$D$1,0),FALSE)*AP5*IF(ISNA(VLOOKUP(AP5,'travel frequence'!$A$7:$B$23,2,FALSE)),'travel frequence'!$B$23,VLOOKUP(AP5,'travel frequence'!$A$7:$B$23,2,FALSE)),0) -> 0 | AR5: =IF(VLOOKUP(AM5,'Industry Type P'!$A$1:$S$102,MATCH($C5,'Industry Type P'!$A$1:$S$1,0),FALSE)>RAND(),"Y","N") -> N | AS5: 0 | AT5: 0 | AU5: =IF(AR5="N"," ",INDEX('Other cost'!$A$9:$A$13,RANDBETWEEN(1,5),1)) ->  | AV5: =MIN($H5,IF(AR5="N",0,SUM(AT5,'Other cost'!$B$16,VLOOKUP(AU5,'Other cost'!$A$9:$B$13,2,FALSE),IF(AS5>=30,HLOOKUP(30,'Salary in Industry'!$N$1:$AQ$1001,$B5+1,FALSE),HLOOKUP(AS5,'Salary in Industry'!$N$1:$AQ$1001,$B5+1,FALSE)),IF(ISNA(VLOOKUP(AM5,'Ransom Statistics'!$A$1:$D$18,4,FALSE)),'Ransom Statistics'!$D$18,VLOOKUP(AM5,'Ransom Statistics'!$A$1:$D$18,4,FALSE))))) -> 0 | AW5: =INDEX([1]Variables!$A$2:$A$103,INT((RAND()*100)+1),1) -> Nangladesh | AX5: =INDEX(Variables!$E$3:$E$5,RANDBETWEEN(1,3),1) -> Medium (1 week to 1month) | AY5: =INDEX([1]Variables!$G$3:$G$5,RANDBETWEEN(1,3),1) -> very frequent ( more than 12 times a year) | AZ5: 15 | BA5: =IF(ISNA(VLOOKUP(AW5,Variables!$K$1:$K$36,1,FALSE)),SUM('Other cost'!$B$2,'Salary in Industry'!$AR4,IF(ISNA(VLOOKUP(Simulation!AW5,'Ransom Statistics'!$A$1:$D$18,4,FALSE)),'Ransom Statistics'!$D$18,VLOOKUP(Simulation!AW5,'Ransom Statistics'!$A$1:$D$18,4,FALSE)))*IF(ISNA(VLOOKUP(AW5,'Industry Type P'!$A$2:$S$103,2,FALSE)),'Kidnapping Statistics'!$K$3,VLOOKUP(AW5,'Industry Type P'!$A$1:$S$102,MATCH($C5,'Industry Type P'!$A$1:$S$1,0),FALSE))*VLOOKUP(AY5,'travel frequence'!$A$1:$D$4,MATCH(AX5,'travel frequence'!$A$1:$D$1,0),FALSE)*AZ5*IF(ISNA(VLOOKUP(AZ5,'travel frequence'!$A$7:$B$23,2,FALSE)),'travel frequence'!$B$23,VLOOKUP(AZ5,'travel frequence'!$A$7:$B$23,2,FALSE)),0) -> 23182.08746 | BB5: =IF(VLOOKUP(AW5,'Industry Type P'!$A$1:$S$102,MATCH($C5,'Industry Type P'!$A$1:$S$1,0),FALSE)>RAND(),"Y","N") -> N | BC5: 0 | BD5: 0 | BE5: =IF(BB5="N"," ",INDEX('Other cost'!$A$9:$A$13,RANDBETWEEN(1,5),1)) ->  | BF5: =MIN($H5,IF(BB5="N",0,SUM(BD5,'Other cost'!$B$16,VLOOKUP(BE5,'Other cost'!$A$9:$B$13,2,FALSE),IF(BC5>=30,HLOOKUP(30,'Salary in Industry'!$N$1:$AQ$1001,$B5+1,FALSE),HLOOKUP(BC5,'Salary in Industry'!$N$1:$AQ$1001,$B5+1,FALSE)),IF(ISNA(VLOOKUP(AW5,'Ransom Statistics'!$A$1:$D$18,4,FALSE)),'Ransom Statistics'!$D$18,VLOOKUP(AW5,'Ransom Statistics'!$A$1:$D$18,4,FALSE))))) -> 0 | BG5: =INDEX([1]Variables!$A$2:$A$103,INT((RAND()*100)+1),1) -> Maili | BH5: =INDEX(Variables!$E$3:$E$5,RANDBETWEEN(1,3),1) -> Long (more than one month) | BI5: =INDEX([1]Variables!$G$3:$G$5,RANDBETWEEN(1,3),1) -> frequent (3 times to 12 times) | BJ5: 15 | BK5: =IF(ISNA(VLOOKUP(BG5,Variables!$K$1:$K$36,1,FALSE)),SUM('Other cost'!$B$2,'Salary in Industry'!$AR4,IF(ISNA(VLOOKUP(Simulation!BG5,'Ransom Statistics'!$A$1:$D$18,4,FALSE)),'Ransom Statistics'!$D$18,VLOOKUP(Simulation!BG5,'Ransom Statistics'!$A$1:$D$18,4,FALSE)))*IF(ISNA(VLOOKUP(BG5,'Industry Type P'!$A$2:$S$103,2,FALSE)),'Kidnapping Statistics'!$K$3,VLOOKUP(BG5,'Industry Type P'!$A$1:$S$102,MATCH($C5,'Industry Type P'!$A$1:$S$1,0),FALSE))*VLOOKUP(BI5,'travel frequence'!$A$1:$D$4,MATCH(BH5,'travel frequence'!$A$1:$D$1,0),FALSE)*BJ5*IF(ISNA(VLOOKUP(BJ5,'travel frequence'!$A$7:$B$23,2,FALSE)),'travel frequence'!$B$23,VLOOKUP(BJ5,'travel frequence'!$A$7:$B$23,2,FALSE)),0) -> 3229.504598 | BL5: =IF(VLOOKUP(BG5,'Industry Type P'!$A$1:$S$102,MATCH($C5,'Industry Type P'!$A$1:$S$1,0),FALSE)>RAND(),"Y","N") -> N | BM5: 0 | BN5: 0 | BO5: =IF(BL5="N"," ",INDEX('Other cost'!$A$9:$A$13,RANDBETWEEN(1,5),1)) ->  | BP5: =MIN($H5,IF(BL5="N",0,SUM(BN5,'Other cost'!$B$16,VLOOKUP(BO5,'Other cost'!$A$9:$B$13,2,FALSE),IF(BM5>=30,HLOOKUP(30,'Salary in Industry'!$N$1:$AQ$1001,$B5+1,FALSE),HLOOKUP(BM5,'Salary in Industry'!$N$1:$AQ$1001,$B5+1,FALSE)),IF(ISNA(VLOOKUP(BG5,'Ransom Statistics'!$A$1:$D$18,4,FALSE)),'Ransom Statistics'!$D$18,VLOOKUP(BG5,'Ransom Statistics'!$A$1:$D$18,4,FALSE))))) -> 0 | BQ5: =INDEX([1]Variables!$A$2:$A$103,INT((RAND()*100)+1),1) -> Uganda | BR5: =INDEX(Variables!$E$3:$E$5,RANDBETWEEN(1,3),1) -> Medium (1 week to 1month) | BS5: =INDEX([1]Variables!$G$3:$G$5,RANDBETWEEN(1,3),1) -> very frequent ( more than 12 times a year) | BT5: 5 | BU5: =IF(ISNA(VLOOKUP(BQ5,Variables!$K$1:$K$36,1,FALSE)),SUM('Other cost'!$B$2,'Salary in Industry'!$AR4,IF(ISNA(VLOOKUP(Simulation!BQ5,'Ransom Statistics'!$A$1:$D$18,4,FALSE)),'Ransom Statistics'!$D$18,VLOOKUP(Simulation!BQ5,'Ransom Statistics'!$A$1:$D$18,4,FALSE)))*IF(ISNA(VLOOKUP(BQ5,'Industry Type P'!$A$2:$S$103,2,FALSE)),'Kidnapping Statistics'!$K$3,VLOOKUP(BQ5,'Industry Type P'!$A$1:$S$102,MATCH($C5,'Industry Type P'!$A$1:$S$1,0),FALSE))*VLOOKUP(BS5,'travel frequence'!$A$1:$D$4,MATCH(BR5,'travel frequence'!$A$1:$D$1,0),FALSE)*BT5*IF(ISNA(VLOOKUP(BT5,'travel frequence'!$A$7:$B$23,2,FALSE)),'travel frequence'!$B$23,VLOOKUP(BT5,'travel frequence'!$A$7:$B$23,2,FALSE)),0) -> 246.5560241 | BV5: =IF(VLOOKUP(BQ5,'Industry Type P'!$A$1:$S$102,MATCH($C5,'Industry Type P'!$A$1:$S$1,0),FALSE)>RAND(),"Y","N") -> N | BW5: 0 | BX5: 0 | BY5: =IF(BV5="N"," ",INDEX('Other cost'!$A$9:$A$13,RANDBETWEEN(1,5),1)) ->  | BZ5: =MIN($H5,IF(BV5="N",0,SUM(BX5,'Other cost'!$B$16,VLOOKUP(BY5,'Other cost'!$A$9:$B$13,2,FALSE),IF(BW5>=30,HLOOKUP(30,'Salary in Industry'!$N$1:$AQ$1001,$B5+1,FALSE),HLOOKUP(BW5,'Salary in Industry'!$N$1:$AQ$1001,$B5+1,FALSE)),IF(ISNA(VLOOKUP(BQ5,'Ransom Statistics'!$A$1:$D$18,4,FALSE)),'Ransom Statistics'!$D$18,VLOOKUP(BQ5,'Ransom Statistics'!$A$1:$D$18,4,FALSE))))) -> 0 | CA5: =INDEX([1]Variables!$A$2:$A$103,INT((RAND()*100)+1),1) -> Nepal | CB5: =INDEX(Variables!$E$3:$E$5,RANDBETWEEN(1,3),1) -> Long (more than one month) | CC5: =INDEX([1]Variables!$G$3:$G$5,RANDBETWEEN(1,3),1) -> very frequent ( more than 12 times a year) | CD5: 1 | CE5: =IF(ISNA(VLOOKUP(CA5,Variables!$K$1:$K$36,1,FALSE)),SUM('Other cost'!$B$2,'Salary in Industry'!$AR4,IF(ISNA(VLOOKUP(Simulation!CA5,'Ransom Statistics'!$A$1:$D$18,4,FALSE)),'Ransom Statistics'!$D$18,VLOOKUP(Simulation!CA5,'Ransom Statistics'!$A$1:$D$18,4,FALSE)))*IF(ISNA(VLOOKUP(CA5,'Industry Type P'!$A$2:$S$103,2,FALSE)),'Kidnapping Statistics'!$K$3,VLOOKUP(CA5,'Industry Type P'!$A$1:$S$102,MATCH($C5,'Industry Type P'!$A$1:$S$1,0),FALSE))*VLOOKUP(CC5,'travel frequence'!$A$1:$D$4,MATCH(CB5,'travel frequence'!$A$1:$D$1,0),FALSE)*CD5*IF(ISNA(VLOOKUP(CD5,'travel frequence'!$A$7:$B$23,2,FALSE)),'travel frequence'!$B$23,VLOOKUP(CD5,'travel frequence'!$A$7:$B$23,2,FALSE)),0) -> 390.0239442 | CF5: =IF(VLOOKUP(CA5,'Industry Type P'!$A$1:$S$102,MATCH($C5,'Industry Type P'!$A$1:$S$1,0),FALSE)>RAND(),"Y","N") -> N | CG5: 0 | CH5: 0 | CI5: =IF(CF5="N"," ",INDEX('Other cost'!$A$9:$A$13,RANDBETWEEN(1,5),1)) ->  | CJ5: =MIN($H5,IF(CF5="N",0,SUM(CH5,'Other cost'!$B$16,VLOOKUP(CI5,'Other cost'!$A$9:$B$13,2,FALSE),IF(CG5>=30,HLOOKUP(30,'Salary in Industry'!$N$1:$AQ$1001,$B5+1,FALSE),HLOOKUP(CG5,'Salary in Industry'!$N$1:$AQ$1001,$B5+1,FALSE)),IF(ISNA(VLOOKUP(CA5,'Ransom Statistics'!$A$1:$D$18,4,FALSE)),'Ransom Statistics'!$D$18,VLOOKUP(CA5,'Ransom Statistics'!$A$1:$D$18,4,FALSE))))) -> 0 | CK5: =INDEX([1]Variables!$A$2:$A$103,INT((RAND()*100)+1),1) -> Kashmir | CL5: =INDEX(Variables!$E$3:$E$5,RANDBETWEEN(1,3),1) -> Medium (1 week to 1month) | CM5: =INDEX([1]Variables!$G$3:$G$5,RANDBETWEEN(1,3),1) -> infrequent (less than 3 times) | CN5: 3 | CO5: =IF(ISNA(VLOOKUP(CK5,Variables!$K$1:$K$36,1,FALSE)),SUM('Other cost'!$B$2,'Salary in Industry'!$AR4,IF(ISNA(VLOOKUP(Simulation!CK5,'Ransom Statistics'!$A$1:$D$18,4,FALSE)),'Ransom Statistics'!$D$18,VLOOKUP(Simulation!CK5,'Ransom Statistics'!$A$1:$D$18,4,FALSE)))*IF(ISNA(VLOOKUP(CK5,'Industry Type P'!$A$2:$S$103,2,FALSE)),'Kidnapping Statistics'!$K$3,VLOOKUP(CK5,'Industry Type P'!$A$1:$S$102,MATCH($C5,'Industry Type P'!$A$1:$S$1,0),FALSE))*VLOOKUP(CM5,'travel frequence'!$A$1:$D$4,MATCH(CL5,'travel frequence'!$A$1:$D$1,0),FALSE)*CN5*IF(ISNA(VLOOKUP(CN5,'travel frequence'!$A$7:$B$23,2,FALSE)),'travel frequence'!$B$23,VLOOKUP(CN5,'travel frequence'!$A$7:$B$23,2,FALSE)),0) -> 880.7739814 | CP5: =IF(VLOOKUP(CK5,'Industry Type P'!$A$1:$S$102,MATCH($C5,'Industry Type P'!$A$1:$S$1,0),FALSE)>RAND(),"Y","N") -> N | CQ5: 0 | CR5: 0 | CS5: =IF(CP5="N"," ",INDEX('Other cost'!$A$9:$A$13,RANDBETWEEN(1,5),1)) ->  | CT5: =MIN($H5,IF(CP5="N",0,SUM(CR5,'Other cost'!$B$16,VLOOKUP(CS5,'Other cost'!$A$9:$B$13,2,FALSE),IF(CQ5>=30,HLOOKUP(30,'Salary in Industry'!$N$1:$AQ$1001,$B5+1,FALSE),HLOOKUP(CQ5,'Salary in Industry'!$N$1:$AQ$1001,$B5+1,FALSE)),IF(ISNA(VLOOKUP(CK5,'Ransom Statistics'!$A$1:$D$18,4,FALSE)),'Ransom Statistics'!$D$18,VLOOKUP(CK5,'Ransom Statistics'!$A$1:$D$18,4,FALSE))))) -> 0 | CU5: =INDEX([1]Variables!$A$2:$A$103,INT((RAND()*100)+1),1) -> Burkina | CV5: =INDEX(Variables!$E$3:$E$5,RANDBETWEEN(1,3),1) -> Short (less a week) | CW5: =INDEX([1]Variables!$G$3:$G$5,RANDBETWEEN(1,3),1) -> frequent (3 times to 12 times) | CX5: 18 | CY5: =IF(ISNA(VLOOKUP(CU5,Variables!$K$1:$K$36,1,FALSE)),SUM('Other cost'!$B$2,'Salary in Industry'!$AR4,IF(ISNA(VLOOKUP(Simulation!CU5,'Ransom Statistics'!$A$1:$D$18,4,FALSE)),'Ransom Statistics'!$D$18,VLOOKUP(Simulation!CU5,'Ransom Statistics'!$A$1:$D$18,4,FALSE)))*IF(ISNA(VLOOKUP(CU5,'Industry Type P'!$A$2:$S$103,2,FALSE)),'Kidnapping Statistics'!$K$3,VLOOKUP(CU5,'Industry Type P'!$A$1:$S$102,MATCH($C5,'Industry Type P'!$A$1:$S$1,0),FALSE))*VLOOKUP(CW5,'travel frequence'!$A$1:$D$4,MATCH(CV5,'travel frequence'!$A$1:$D$1,0),FALSE)*CX5*IF(ISNA(VLOOKUP(CX5,'travel frequence'!$A$7:$B$23,2,FALSE)),'travel frequence'!$B$23,VLOOKUP(CX5,'travel frequence'!$A$7:$B$23,2,FALSE)),0) -> 8.807739814 | CZ5: =IF(VLOOKUP(CU5,'Industry Type P'!$A$1:$S$102,MATCH($C5,'Industry Type P'!$A$1:$S$1,0),FALSE)>RAND(),"Y","N") -> N | DA5: 0 | DB5: 0 | DC5: =IF(CZ5="N"," ",INDEX('Other cost'!$A$9:$A$13,RANDBETWEEN(1,5),1)) ->  | DD5: =MIN($H5,IF(CZ5="N",0,SUM(DB5,'Other cost'!$B$16,VLOOKUP(DC5,'Other cost'!$A$9:$B$13,2,FALSE),IF(DA5>=30,HLOOKUP(30,'Salary in Industry'!$N$1:$AQ$1001,$B5+1,FALSE),HLOOKUP(DA5,'Salary in Industry'!$N$1:$AQ$1001,$B5+1,FALSE)),IF(ISNA(VLOOKUP(CU5,'Ransom Statistics'!$A$1:$D$18,4,FALSE)),'Ransom Statistics'!$D$18,VLOOKUP(CU5,'Ransom Statistics'!$A$1:$D$18,4,FALSE))))) -> 0 | DE5: 0 | DF5: =((IF(A5=0,0,IF(A5=1,M5,IF(A5=2,M5+W5,IF(A5=3,M5+W5+AG5,IF(A5=4,M5+W5+AG5+AQ5,IF(A5=5,M5+W5+AG5+AQ5+BA5,IF(A5=6,M5+W5+AG5+AQ5+BA5+BK5,IF(A5=7,M5+W5+AG5+AQ5+BA5+BK5+BU5,IF(A5=8,M5+W5+AG5+AQ5+BA5+BK5+BU5+CE5,IF(A5=9,M5+W5+AG5+AQ5+BA5+BK5+BU5+CE5+CO5,IF(A5=10,M5+W5+AG5+AQ5+BA5+BK5+BU5+CE5+CO5+CY5))))))))))))/(1+Variables!$G$12))*(1+Variables!$F$21) -> 2753.687655 | DJ5: Results
A6: 3 | B6: 4 | C6: =INDEX([1]Variables!$C$2:$C$19,INT((RAND()*10)+1),1) -> Wholesale Trade | D6: 22 | E6: 449 | F6: 13427 | G6: 48588371 | H6: =Variables!$H$21 -> 1000000 | I6: =INDEX([1]Variables!$A$2:$A$103,INT((RAND()*100)+1),1) -> Spain | J6: =INDEX(Variables!$E$3:$E$5,RANDBETWEEN(1,3),1) -> Long (more than one month) | K6: =INDEX([1]Variables!$G$3:$G$5,RANDBETWEEN(1,3),1) -> very frequent ( more than 12 times a year) | L6: 10 | M6: =IF(ISNA(VLOOKUP(I6,Variables!$K$1:$K$36,1,FALSE)),SUM('Other cost'!$B$2,'Salary in Industry'!$AR5,IF(ISNA(VLOOKUP(Simulation!I6,'Ransom Statistics'!$A$1:$D$18,4,FALSE)),'Ransom Statistics'!$D$18,VLOOKUP(Simulation!I6,'Ransom Statistics'!$A$1:$D$18,4,FALSE)))*IF(ISNA(VLOOKUP(I6,'Industry Type P'!$A$2:$S$103,2,FALSE)),'Kidnapping Statistics'!$K$3,VLOOKUP(I6,'Industry Type P'!$A$1:$S$102,MATCH($C6,'Industry Type P'!$A$1:$S$1,0),FALSE))*VLOOKUP(K6,'travel frequence'!$A$1:$D$4,MATCH(J6,'travel frequence'!$A$1:$D$1,0),FALSE)*L6*IF(ISNA(VLOOKUP(L6,'travel frequence'!$A$7:$B$23,2,FALSE)),'travel frequence'!$B$23,VLOOKUP(L6,'travel frequence'!$A$7:$B$23,2,FALSE)),0) -> 33.54964876 | N6: =IF(VLOOKUP(I6,'Industry Type P'!$A$1:$S$102,MATCH($C6,'Industry Type P'!$A$1:$S$1,0),FALSE)>RAND(),"Y","N") -> N | O6: 0 | P6: 0 | Q6: =IF(N6="N"," ",INDEX('Other cost'!$A$9:$A$13,RANDBETWEEN(1,5),1)) ->  | R6: =MIN($H6,IF(N6="N",0,SUM(P6,'Other cost'!$B$16,VLOOKUP(Q6,'Other cost'!$A$9:$B$13,2,FALSE),IF(O6>=30,HLOOKUP(30,'Salary in Industry'!$N$1:$AQ$1001,$B6+1,FALSE),HLOOKUP(O6,'Salary in Industry'!$N$1:$AQ$1001,$B6+1,FALSE)),IF(ISNA(VLOOKUP(I6,'Ransom Statistics'!$A$1:$D$18,4,FALSE)),'Ransom Statistics'!$D$18,VLOOKUP(I6,'Ransom Statistics'!$A$1:$D$18,4,FALSE))))) -> 0 | S6: =INDEX([1]Variables!$A$2:$A$103,INT((RAND()*100)+1),1) -> Lebanon | T6: =INDEX(Variables!$E$3:$E$5,RANDBETWEEN(1,3),1) -> Medium (1 week to 1month) | U6: =INDEX([1]Variables!$G$3:$G$5,RANDBETWEEN(1,3),1) -> infrequent (less than 3 times) | V6: 8 | W6: =IF(ISNA(VLOOKUP(S6,Variables!$K$1:$K$36,1,FALSE)),SUM('Other cost'!$B$2,'Salary in Industry'!$AR5,IF(ISNA(VLOOKUP(Simulation!S6,'Ransom Statistics'!$A$1:$D$18,4,FALSE)),'Ransom Statistics'!$D$18,VLOOKUP(Simulation!S6,'Ransom Statistics'!$A$1:$D$18,4,FALSE)))*IF(ISNA(VLOOKUP(S6,'Industry Type P'!$A$2:$S$103,2,FALSE)),'Kidnapping Statistics'!$K$3,VLOOKUP(S6,'Industry Type P'!$A$1:$S$102,MATCH($C6,'Industry Type P'!$A$1:$S$1,0),FALSE))*VLOOKUP(U6,'travel frequence'!$A$1:$D$4,MATCH(T6,'travel frequence'!$A$1:$D$1,0),FALSE)*V6*IF(ISNA(VLOOKUP(V6,'travel frequence'!$A$7:$B$23,2,FALSE)),'travel frequence'!$B$23,VLOOKUP(V6,'travel frequence'!$A$7:$B$23,2,FALSE)),0) -> 0 | X6: =IF(VLOOKUP(S6,'Industry Type P'!$A$1:$S$102,MATCH($C6,'Industry Type P'!$A$1:$S$1,0),FALSE)>RAND(),"Y","N") -> N | Y6: 0 | Z6: 0 | AA6: =IF(X6="N"," ",INDEX('Other cost'!$A$9:$A$13,RANDBETWEEN(1,5),1)) ->  | AB6: =MIN($H6,IF(X6="N",0,SUM(Z6,'Other cost'!$B$16,VLOOKUP(AA6,'Other cost'!$A$9:$B$13,2,FALSE),IF(Y6>=30,HLOOKUP(30,'Salary in Industry'!$N$1:$AQ$1001,$B6+1,FALSE),HLOOKUP(Y6,'Salary in Industry'!$N$1:$AQ$1001,$B6+1,FALSE)),IF(ISNA(VLOOKUP(S6,'Ransom Statistics'!$A$1:$D$18,4,FALSE)),'Ransom Statistics'!$D$18,VLOOKUP(S6,'Ransom Statistics'!$A$1:$D$18,4,FALSE))))) -> 0 | AC6: =INDEX([1]Variables!$A$2:$A$103,INT((RAND()*100)+1),1) -> Equatorial | AD6: =INDEX(Variables!$E$3:$E$5,RANDBETWEEN(1,3),1) -> Long (more than one month) | AE6: =INDEX([1]Variables!$G$3:$G$5,RANDBETWEEN(1,3),1) -> infrequent (less than 3 times) | AF6: 15 | AG6: =IF(ISNA(VLOOKUP(AC6,Variables!$K$1:$K$36,1,FALSE)),SUM('Other cost'!$B$2,'Salary in Industry'!$AR5,IF(ISNA(VLOOKUP(Simulation!AC6,'Ransom Statistics'!$A$1:$D$18,4,FALSE)),'Ransom Statistics'!$D$18,VLOOKUP(Simulation!AC6,'Ransom Statistics'!$A$1:$D$18,4,FALSE)))*IF(ISNA(VLOOKUP(AC6,'Industry Type P'!$A$2:$S$103,2,FALSE)),'Kidnapping Statistics'!$K$3,VLOOKUP(AC6,'Industry Type P'!$A$1:$S$102,MATCH($C6,'Industry Type P'!$A$1:$S$1,0),FALSE))*VLOOKUP(AE6,'travel frequence'!$A$1:$D$4,MATCH(AD6,'travel frequence'!$A$1:$D$1,0),FALSE)*AF6*IF(ISNA(VLOOKUP(AF6,'travel frequence'!$A$7:$B$23,2,FALSE)),'travel frequence'!$B$23,VLOOKUP(AF6,'travel frequence'!$A$7:$B$23,2,FALSE)),0) -> 7.688995132 | AH6: =IF(VLOOKUP(AC6,'Industry Type P'!$A$1:$S$102,MATCH($C6,'Industry Type P'!$A$1:$S$1,0),FALSE)>RAND(),"Y","N") -> N | AI6: 0 | AJ6: 0 | AK6: =IF(AH6="N"," ",INDEX('Other cost'!$A$9:$A$13,RANDBETWEEN(1,5),1)) ->  | AL6: =MIN($H6,IF(AH6="N",0,SUM(AJ6,'Other cost'!$B$16,VLOOKUP(AK6,'Other cost'!$A$9:$B$13,2,FALSE),IF(AI6>=30,HLOOKUP(30,'Salary in Industry'!$N$1:$AQ$1001,$B6+1,FALSE),HLOOKUP(AI6,'Salary in Industry'!$N$1:$AQ$1001,$B6+1,FALSE)),IF(ISNA(VLOOKUP(AC6,'Ransom Statistics'!$A$1:$D$18,4,FALSE)),'Ransom Statistics'!$D$18,VLOOKUP(AC6,'Ransom Statistics'!$A$1:$D$18,4,FALSE))))) -> 0 | AM6: =INDEX([1]Variables!$A$2:$A$103,INT((RAND()*100)+1),1) -> Venezuela | AN6: =INDEX(Variables!$E$3:$E$5,RANDBETWEEN(1,3),1) -> Short (less a week) | AO6: =INDEX([1]Variables!$G$3:$G$5,RANDBETWEEN(1,3),1) -> frequent (3 times to 12 times) | AP6: 20 | AQ6: =IF(ISNA(VLOOKUP(AM6,Variables!$K$1:$K$36,1,FALSE)),SUM('Other cost'!$B$2,'Salary in Industry'!$AR5,IF(ISNA(VLOOKUP(Simulation!AM6,'Ransom Statistics'!$A$1:$D$18,4,FALSE)),'Ransom Statistics'!$D$18,VLOOKUP(Simulation!AM6,'Ransom Statistics'!$A$1:$D$18,4,FALSE)))*IF(ISNA(VLOOKUP(AM6,'Industry Type P'!$A$2:$S$103,2,FALSE)),'Kidnapping Statistics'!$K$3,VLOOKUP(AM6,'Industry Type P'!$A$1:$S$102,MATCH($C6,'Industry Type P'!$A$1:$S$1,0),FALSE))*VLOOKUP(AO6,'travel frequence'!$A$1:$D$4,MATCH(AN6,'travel frequence'!$A$1:$D$1,0),FALSE)*AP6*IF(ISNA(VLOOKUP(AP6,'travel frequence'!$A$7:$B$23,2,FALSE)),'travel frequence'!$B$23,VLOOKUP(AP6,'travel frequence'!$A$7:$B$23,2,FALSE)),0) -> 5000.582876 | AR6: =IF(VLOOKUP(AM6,'Industry Type P'!$A$1:$S$102,MATCH($C6,'Industry Type P'!$A$1:$S$1,0),FALSE)>RAND(),"Y","N") -> N | AS6: 0 | AT6: 0 | AU6: =IF(AR6="N"," ",INDEX('Other cost'!$A$9:$A$13,RANDBETWEEN(1,5),1)) ->  | AV6: =MIN($H6,IF(AR6="N",0,SUM(AT6,'Other cost'!$B$16,VLOOKUP(AU6,'Other cost'!$A$9:$B$13,2,FALSE),IF(AS6>=30,HLOOKUP(30,'Salary in Industry'!$N$1:$AQ$1001,$B6+1,FALSE),HLOOKUP(AS6,'Salary in Industry'!$N$1:$AQ$1001,$B6+1,FALSE)),IF(ISNA(VLOOKUP(AM6,'Ransom Statistics'!$A$1:$D$18,4,FALSE)),'Ransom Statistics'!$D$18,VLOOKUP(AM6,'Ransom Statistics'!$A$1:$D$18,4,FALSE))))) -> 0 | AW6: =INDEX([1]Variables!$A$2:$A$103,INT((RAND()*100)+1),1) -> Dagestan | AX6: =INDEX(Variables!$E$3:$E$5,RANDBETWEEN(1,3),1) -> Medium (1 week to 1month) | AY6: =INDEX([1]Variables!$G$3:$G$5,RANDBETWEEN(1,3),1) -> infrequent (less than 3 times) | AZ6: 5 | BA6: =IF(ISNA(VLOOKUP(AW6,Variables!$K$1:$K$36,1,FALSE)),SUM('Other cost'!$B$2,'Salary in Industry'!$AR5,IF(ISNA(VLOOKUP(Simulation!AW6,'Ransom Statistics'!$A$1:$D$18,4,FALSE)),'Ransom Statistics'!$D$18,VLOOKUP(Simulation!AW6,'Ransom Statistics'!$A$1:$D$18,4,FALSE)))*IF(ISNA(VLOOKUP(AW6,'Industry Type P'!$A$2:$S$103,2,FALSE)),'Kidnapping Statistics'!$K$3,VLOOKUP(AW6,'Industry Type P'!$A$1:$S$102,MATCH($C6,'Industry Type P'!$A$1:$S$1,0),FALSE))*VLOOKUP(AY6,'travel frequence'!$A$1:$D$4,MATCH(AX6,'travel frequence'!$A$1:$D$1,0),FALSE)*AZ6*IF(ISNA(VLOOKUP(AZ6,'travel frequence'!$A$7:$B$23,2,FALSE)),'travel frequence'!$B$23,VLOOKUP(AZ6,'travel frequence'!$A$7:$B$23,2,FALSE)),0) -> 1304.799174 | BB6: =IF(VLOOKUP(AW6,'Industry Type P'!$A$1:$S$102,MATCH($C6,'Industry Type P'!$A$1:$S$1,0),FALSE)>RAND(),"Y","N") -> N | BC6: 0 | BD6: 0 | BE6: =IF(BB6="N"," ",INDEX('Other cost'!$A$9:$A$13,RANDBETWEEN(1,5),1)) ->  | BF6: =MIN($H6,IF(BB6="N",0,SUM(BD6,'Other cost'!$B$16,VLOOKUP(BE6,'Other cost'!$A$9:$B$13,2,FALSE),IF(BC6>=30,HLOOKUP(30,'Salary in Industry'!$N$1:$AQ$1001,$B6+1,FALSE),HLOOKUP(BC6,'Salary in Industry'!$N$1:$AQ$1001,$B6+1,FALSE)),IF(ISNA(VLOOKUP(AW6,'Ransom Statistics'!$A$1:$D$18,4,FALSE)),'Ransom Statistics'!$D$18,VLOOKUP(AW6,'Ransom Statistics'!$A$1:$D$18,4,FALSE))))) -> 0 | BG6: =INDEX([1]Variables!$A$2:$A$103,INT((RAND()*100)+1),1) -> Malaysia | BH6: =INDEX(Variables!$E$3:$E$5,RANDBETWEEN(1,3),1) -> Medium (1 week to 1month) | BI6: =INDEX([1]Variables!$G$3:$G$5,RANDBETWEEN(1,3),1) -> very frequent ( more than 12 times a year) | BJ6: 14 | BK6: =IF(ISNA(VLOOKUP(BG6,Variables!$K$1:$K$36,1,FALSE)),SUM('Other cost'!$B$2,'Salary in Industry'!$AR5,IF(ISNA(VLOOKUP(Simulation!BG6,'Ransom Statistics'!$A$1:$D$18,4,FALSE)),'Ransom Statistics'!$D$18,VLOOKUP(Simulation!BG6,'Ransom Statistics'!$A$1:$D$18,4,FALSE)))*IF(ISNA(VLOOKUP(BG6,'Industry Type P'!$A$2:$S$103,2,FALSE)),'Kidnapping Statistics'!$K$3,VLOOKUP(BG6,'Industry Type P'!$A$1:$S$102,MATCH($C6,'Industry Type P'!$A$1:$S$1,0),FALSE))*VLOOKUP(BI6,'travel frequence'!$A$1:$D$4,MATCH(BH6,'travel frequence'!$A$1:$D$1,0),FALSE)*BJ6*IF(ISNA(VLOOKUP(BJ6,'travel frequence'!$A$7:$B$23,2,FALSE)),'travel frequence'!$B$23,VLOOKUP(BJ6,'travel frequence'!$A$7:$B$23,2,FALSE)),0) -> 3063.673773 | BL6: =IF(VLOOKUP(BG6,'Industry Type P'!$A$1:$S$102,MATCH($C6,'Industry Type P'!$A$1:$S$1,0),FALSE)>RAND(),"Y","N") -> N | BM6: 0 | BN6: 0 | BO6: =IF(BL6="N"," ",INDEX('Other cost'!$A$9:$A$13,RANDBETWEEN(1,5),1)) ->  | BP6: =MIN($H6,IF(BL6="N",0,SUM(BN6,'Other cost'!$B$16,VLOOKUP(BO6,'Other cost'!$A$9:$B$13,2,FALSE),IF(BM6>=30,HLOOKUP(30,'Salary in Industry'!$N$1:$AQ$1001,$B6+1,FALSE),HLOOKUP(BM6,'Salary in Industry'!$N$1:$AQ$1001,$B6+1,FALSE)),IF(ISNA(VLOOKUP(BG6,'Ransom Statistics'!$A$1:$D$18,4,FALSE)),'Ransom Statistics'!$D$18,VLOOKUP(BG6,'Ransom Statistics'!$A$1:$D$18,4,FALSE))))) -> 0 | BQ6: =INDEX([1]Variables!$A$2:$A$103,INT((RAND()*100)+1),1) -> Turkmenistan | BR6: =INDEX(Variables!$E$3:$E$5,RANDBETWEEN(1,3),1) -> Long (more than one month) | BS6: =INDEX([1]Variables!$G$3:$G$5,RANDBETWEEN(1,3),1) -> very frequent ( more than 12 times a year) | BT6: 7 | BU6: =IF(ISNA(VLOOKUP(BQ6,Variables!$K$1:$K$36,1,FALSE)),SUM('Other cost'!$B$2,'Salary in Industry'!$AR5,IF(ISNA(VLOOKUP(Simulation!BQ6,'Ransom Statistics'!$A$1:$D$18,4,FALSE)),'Ransom Statistics'!$D$18,VLOOKUP(Simulation!BQ6,'Ransom Statistics'!$A$1:$D$18,4,FALSE)))*IF(ISNA(VLOOKUP(BQ6,'Industry Type P'!$A$2:$S$103,2,FALSE)),'Kidnapping Statistics'!$K$3,VLOOKUP(BQ6,'Industry Type P'!$A$1:$S$102,MATCH($C6,'Industry Type P'!$A$1:$S$1,0),FALSE))*VLOOKUP(BS6,'travel frequence'!$A$1:$D$4,MATCH(BR6,'travel frequence'!$A$1:$D$1,0),FALSE)*BT6*IF(ISNA(VLOOKUP(BT6,'travel frequence'!$A$7:$B$23,2,FALSE)),'travel frequence'!$B$23,VLOOKUP(BT6,'travel frequence'!$A$7:$B$23,2,FALSE)),0) -> 139.987554 | BV6: =IF(VLOOKUP(BQ6,'Industry Type P'!$A$1:$S$102,MATCH($C6,'Industry Type P'!$A$1:$S$1,0),FALSE)>RAND(),"Y","N") -> N | BW6: 0 | BX6: 0 | BY6: =IF(BV6="N"," ",INDEX('Other cost'!$A$9:$A$13,RANDBETWEEN(1,5),1)) ->  | BZ6: =MIN($H6,IF(BV6="N",0,SUM(BX6,'Other cost'!$B$16,VLOOKUP(BY6,'Other cost'!$A$9:$B$13,2,FALSE),IF(BW6>=30,HLOOKUP(30,'Salary in Industry'!$N$1:$AQ$1001,$B6+1,FALSE),HLOOKUP(BW6,'Salary in Industry'!$N$1:$AQ$1001,$B6+1,FALSE)),IF(ISNA(VLOOKUP(BQ6,'Ransom Statistics'!$A$1:$D$18,4,FALSE)),'Ransom Statistics'!$D$18,VLOOKUP(BQ6,'Ransom Statistics'!$A$1:$D$18,4,FALSE))))) -> 0 | CA6: =INDEX([1]Variables!$A$2:$A$103,INT((RAND()*100)+1),1) -> Uruguay | CB6: =INDEX(Variables!$E$3:$E$5,RANDBETWEEN(1,3),1) -> Medium (1 week to 1month) | CC6: =INDEX([1]Variables!$G$3:$G$5,RANDBETWEEN(1,3),1) -> infrequent (less than 3 times) | CD6: 14 | CE6: =IF(ISNA(VLOOKUP(CA6,Variables!$K$1:$K$36,1,FALSE)),SUM('Other cost'!$B$2,'Salary in Industry'!$AR5,IF(ISNA(VLOOKUP(Simulation!CA6,'Ransom Statistics'!$A$1:$D$18,4,FALSE)),'Ransom Statistics'!$D$18,VLOOKUP(Simulation!CA6,'Ransom Statistics'!$A$1:$D$18,4,FALSE)))*IF(ISNA(VLOOKUP(CA6,'Industry Type P'!$A$2:$S$103,2,FALSE)),'Kidnapping Statistics'!$K$3,VLOOKUP(CA6,'Industry Type P'!$A$1:$S$102,MATCH($C6,'Industry Type P'!$A$1:$S$1,0),FALSE))*VLOOKUP(CC6,'travel frequence'!$A$1:$D$4,MATCH(CB6,'travel frequence'!$A$1:$D$1,0),FALSE)*CD6*IF(ISNA(VLOOKUP(CD6,'travel frequence'!$A$7:$B$23,2,FALSE)),'travel frequence'!$B$23,VLOOKUP(CD6,'travel frequence'!$A$7:$B$23,2,FALSE)),0) -> 7.192705446 | CF6: =IF(VLOOKUP(CA6,'Industry Type P'!$A$1:$S$102,MATCH($C6,'Industry Type P'!$A$1:$S$1,0),FALSE)>RAND(),"Y","N") -> N | CG6: 0 | CH6: 0 | CI6: =IF(CF6="N"," ",INDEX('Other cost'!$A$9:$A$13,RANDBETWEEN(1,5),1)) ->  | CJ6: =MIN($H6,IF(CF6="N",0,SUM(CH6,'Other cost'!$B$16,VLOOKUP(CI6,'Other cost'!$A$9:$B$13,2,FALSE),IF(CG6>=30,HLOOKUP(30,'Salary in Industry'!$N$1:$AQ$1001,$B6+1,FALSE),HLOOKUP(CG6,'Salary in Industry'!$N$1:$AQ$1001,$B6+1,FALSE)),IF(ISNA(VLOOKUP(CA6,'Ransom Statistics'!$A$1:$D$18,4,FALSE)),'Ransom Statistics'!$D$18,VLOOKUP(CA6,'Ransom Statistics'!$A$1:$D$18,4,FALSE))))) -> 0 | CK6: =INDEX([1]Variables!$A$2:$A$103,INT((RAND()*100)+1),1) -> Liberia | CL6: =INDEX(Variables!$E$3:$E$5,RANDBETWEEN(1,3),1) -> Medium (1 week to 1month) | CM6: =INDEX([1]Variables!$G$3:$G$5,RANDBETWEEN(1,3),1) -> frequent (3 times to 12 times) | CN6: 18 | CO6: =IF(ISNA(VLOOKUP(CK6,Variables!$K$1:$K$36,1,FALSE)),SUM('Other cost'!$B$2,'Salary in Industry'!$AR5,IF(ISNA(VLOOKUP(Simulation!CK6,'Ransom Statistics'!$A$1:$D$18,4,FALSE)),'Ransom Statistics'!$D$18,VLOOKUP(Simulation!CK6,'Ransom Statistics'!$A$1:$D$18,4,FALSE)))*IF(ISNA(VLOOKUP(CK6,'Industry Type P'!$A$2:$S$103,2,FALSE)),'Kidnapping Statistics'!$K$3,VLOOKUP(CK6,'Industry Type P'!$A$1:$S$102,MATCH($C6,'Industry Type P'!$A$1:$S$1,0),FALSE))*VLOOKUP(CM6,'travel frequence'!$A$1:$D$4,MATCH(CL6,'travel frequence'!$A$1:$D$1,0),FALSE)*CN6*IF(ISNA(VLOOKUP(CN6,'travel frequence'!$A$7:$B$23,2,FALSE)),'travel frequence'!$B$23,VLOOKUP(CN6,'travel frequence'!$A$7:$B$23,2,FALSE)),0) -> 0 | CP6: =IF(VLOOKUP(CK6,'Industry Type P'!$A$1:$S$102,MATCH($C6,'Industry Type P'!$A$1:$S$1,0),FALSE)>RAND(),"Y","N") -> N | CQ6: 0 | CR6: 0 | CS6: =IF(CP6="N"," ",INDEX('Other cost'!$A$9:$A$13,RANDBETWEEN(1,5),1)) ->  | CT6: =MIN($H6,IF(CP6="N",0,SUM(CR6,'Other cost'!$B$16,VLOOKUP(CS6,'Other cost'!$A$9:$B$13,2,FALSE),IF(CQ6>=30,HLOOKUP(30,'Salary in Industry'!$N$1:$AQ$1001,$B6+1,FALSE),HLOOKUP(CQ6,'Salary in Industry'!$N$1:$AQ$1001,$B6+1,FALSE)),IF(ISNA(VLOOKUP(CK6,'Ransom Statistics'!$A$1:$D$18,4,FALSE)),'Ransom Statistics'!$D$18,VLOOKUP(CK6,'Ransom Statistics'!$A$1:$D$18,4,FALSE))))) -> 0 | CU6: =INDEX([1]Variables!$A$2:$A$103,INT((RAND()*100)+1),1) -> Gaza Strip | CV6: =INDEX(Variables!$E$3:$E$5,RANDBETWEEN(1,3),1) -> Medium (1 week to 1month) | CW6: =INDEX([1]Variables!$G$3:$G$5,RANDBETWEEN(1,3),1) -> frequent (3 times to 12 times) | CX6: 18 | CY6: =IF(ISNA(VLOOKUP(CU6,Variables!$K$1:$K$36,1,FALSE)),SUM('Other cost'!$B$2,'Salary in Industry'!$AR5,IF(ISNA(VLOOKUP(Simulation!CU6,'Ransom Statistics'!$A$1:$D$18,4,FALSE)),'Ransom Statistics'!$D$18,VLOOKUP(Simulation!CU6,'Ransom Statistics'!$A$1:$D$18,4,FALSE)))*IF(ISNA(VLOOKUP(CU6,'Industry Type P'!$A$2:$S$103,2,FALSE)),'Kidnapping Statistics'!$K$3,VLOOKUP(CU6,'Industry Type P'!$A$1:$S$102,MATCH($C6,'Industry Type P'!$A$1:$S$1,0),FALSE))*VLOOKUP(CW6,'travel frequence'!$A$1:$D$4,MATCH(CV6,'travel frequence'!$A$1:$D$1,0),FALSE)*CX6*IF(ISNA(VLOOKUP(CX6,'travel frequence'!$A$7:$B$23,2,FALSE)),'travel frequence'!$B$23,VLOOKUP(CX6,'travel frequence'!$A$7:$B$23,2,FALSE)),0) -> 2774.329243 | CZ6: =IF(VLOOKUP(CU6,'Industry Type P'!$A$1:$S$102,MATCH($C6,'Industry Type P'!$A$1:$S$1,0),FALSE)>RAND(),"Y","N") -> N | DA6: 0 | DB6: 0 | DC6: =IF(CZ6="N"," ",INDEX('Other cost'!$A$9:$A$13,RANDBETWEEN(1,5),1)) ->  | DD6: =MIN($H6,IF(CZ6="N",0,SUM(DB6,'Other cost'!$B$16,VLOOKUP(DC6,'Other cost'!$A$9:$B$13,2,FALSE),IF(DA6>=30,HLOOKUP(30,'Salary in Industry'!$N$1:$AQ$1001,$B6+1,FALSE),HLOOKUP(DA6,'Salary in Industry'!$N$1:$AQ$1001,$B6+1,FALSE)),IF(ISNA(VLOOKUP(CU6,'Ransom Statistics'!$A$1:$D$18,4,FALSE)),'Ransom Statistics'!$D$18,VLOOKUP(CU6,'Ransom Statistics'!$A$1:$D$18,4,FALSE))))) -> 0 | DE6: 0 | DF6: =((IF(A6=0,0,IF(A6=1,M6,IF(A6=2,M6+W6,IF(A6=3,M6+W6+AG6,IF(A6=4,M6+W6+AG6+AQ6,IF(A6=5,M6+W6+AG6+AQ6+BA6,IF(A6=6,M6+W6+AG6+AQ6+BA6+BK6,IF(A6=7,M6+W6+AG6+AQ6+BA6+BK6+BU6,IF(A6=8,M6+W6+AG6+AQ6+BA6+BK6+BU6+CE6,IF(A6=9,M6+W6+AG6+AQ6+BA6+BK6+BU6+CE6+CO6,IF(A6=10,M6+W6+AG6+AQ6+BA6+BK6+BU6+CE6+CO6+CY6))))))))))))/(1+Variables!$G$12))*(1+Variables!$F$21) -> 45.20928256 | DJ6: Total Revenue | DK6: =SUM(DF3:DF1002) -> 394930.3547
A7: 2 | B7: 5 | C7: =INDEX([1]Variables!$C$2:$C$19,INT((RAND()*10)+1),1) -> Manufacturing | D7: 28 | E7: 381 | F7: 17299 | G7: 18667201 | H7: =Variables!$H$21 -> 1000000 | I7: =INDEX([1]Variables!$A$2:$A$103,INT((RAND()*100)+1),1) -> Algeria | J7: =INDEX(Variables!$E$3:$E$5,RANDBETWEEN(1,3),1) -> Medium (1 week to 1month) | K7: =INDEX([1]Variables!$G$3:$G$5,RANDBETWEEN(1,3),1) -> infrequent (less than 3 times) | L7: 20 | M7: =IF(ISNA(VLOOKUP(I7,Variables!$K$1:$K$36,1,FALSE)),SUM('Other cost'!$B$2,'Salary in Industry'!$AR6,IF(ISNA(VLOOKUP(Simulation!I7,'Ransom Statistics'!$A$1:$D$18,4,FALSE)),'Ransom Statistics'!$D$18,VLOOKUP(Simulation!I7,'Ransom Statistics'!$A$1:$D$18,4,FALSE)))*IF(ISNA(VLOOKUP(I7,'Industry Type P'!$A$2:$S$103,2,FALSE)),'Kidnapping Statistics'!$K$3,VLOOKUP(I7,'Industry Type P'!$A$1:$S$102,MATCH($C7,'Industry Type P'!$A$1:$S$1,0),FALSE))*VLOOKUP(K7,'travel frequence'!$A$1:$D$4,MATCH(J7,'travel frequence'!$A$1:$D$1,0),FALSE)*L7*IF(ISNA(VLOOKUP(L7,'travel frequence'!$A$7:$B$23,2,FALSE)),'travel frequence'!$B$23,VLOOKUP(L7,'travel frequence'!$A$7:$B$23,2,FALSE)),0) -> 0 | N7: =IF(VLOOKUP(I7,'Industry Type P'!$A$1:$S$102,MATCH($C7,'Industry Type P'!$A$1:$S$1,0),FALSE)>RAND(),"Y","N") -> N | O7: 0 | P7: 0 | Q7: =IF(N7="N"," ",INDEX('Other cost'!$A$9:$A$13,RANDBETWEEN(1,5),1)) ->  | R7: =MIN($H7,IF(N7="N",0,SUM(P7,'Other cost'!$B$16,VLOOKUP(Q7,'Other cost'!$A$9:$B$13,2,FALSE),IF(O7>=30,HLOOKUP(30,'Salary in Industry'!$N$1:$AQ$1001,$B7+1,FALSE),HLOOKUP(O7,'Salary in Industry'!$N$1:$AQ$1001,$B7+1,FALSE)),IF(ISNA(VLOOKUP(I7,'Ransom Statistics'!$A$1:$D$18,4,FALSE)),'Ransom Statistics'!$D$18,VLOOKUP(I7,'Ransom Statistics'!$A$1:$D$18,4,FALSE))))) -> 0 | S7: =INDEX([1]Variables!$A$2:$A$103,INT((RAND()*100)+1),1) -> Honduras | T7: =INDEX(Variables!$E$3:$E$5,RANDBETWEEN(1,3),1) -> Short (less a week) | U7: =INDEX([1]Variables!$G$3:$G$5,RANDBETWEEN(1,3),1) -> frequent (3 times to 12 times) | V7: 13 | W7: =IF(ISNA(VLOOKUP(S7,Variables!$K$1:$K$36,1,FALSE)),SUM('Other cost'!$B$2,'Salary in Industry'!$AR6,IF(ISNA(VLOOKUP(Simulation!S7,'Ransom Statistics'!$A$1:$D$18,4,FALSE)),'Ransom Statistics'!$D$18,VLOOKUP(Simulation!S7,'Ransom Statistics'!$A$1:$D$18,4,FALSE)))*IF(ISNA(VLOOKUP(S7,'Industry Type P'!$A$2:$S$103,2,FALSE)),'Kidnapping Statistics'!$K$3,VLOOKUP(S7,'Industry Type P'!$A$1:$S$102,MATCH($C7,'Industry Type P'!$A$1:$S$1,0),FALSE))*VLOOKUP(U7,'travel frequence'!$A$1:$D$4,MATCH(T7,'travel frequence'!$A$1:$D$1,0),FALSE)*V7*IF(ISNA(VLOOKUP(V7,'travel frequence'!$A$7:$B$23,2,FALSE)),'travel frequence'!$B$23,VLOOKUP(V7,'travel frequence'!$A$7:$B$23,2,FALSE)),0) -> 0 | X7: =IF(VLOOKUP(S7,'Industry Type P'!$A$1:$S$102,MATCH($C7,'Industry Type P'!$A$1:$S$1,0),FALSE)>RAND(),"Y","N") -> N | Y7: 0 | Z7: 0 | AA7: =IF(X7="N"," ",INDEX('Other cost'!$A$9:$A$13,RANDBETWEEN(1,5),1)) ->  | AB7: =MIN($H7,IF(X7="N",0,SUM(Z7,'Other cost'!$B$16,VLOOKUP(AA7,'Other cost'!$A$9:$B$13,2,FALSE),IF(Y7>=30,HLOOKUP(30,'Salary in Industry'!$N$1:$AQ$1001,$B7+1,FALSE),HLOOKUP(Y7,'Salary in Industry'!$N$1:$AQ$1001,$B7+1,FALSE)),IF(ISNA(VLOOKUP(S7,'Ransom Statistics'!$A$1:$D$18,4,FALSE)),'Ransom Statistics'!$D$18,VLOOKUP(S7,'Ransom Statistics'!$A$1:$D$18,4,FALSE))))) -> 0 | AC7: =INDEX([1]Variables!$A$2:$A$103,INT((RAND()*100)+1),1) -> Niger | AD7: =INDEX(Variables!$E$3:$E$5,RANDBETWEEN(1,3),1) -> Short (less a week) | AE7: =INDEX([1]Variables!$G$3:$G$5,RANDBETWEEN(1,3),1) -> infrequent (less than 3 times) | AF7: 20 | AG7: =IF(ISNA(VLOOKUP(AC7,Variables!$K$1:$K$36,1,FALSE)),SUM('Other cost'!$B$2,'Salary in Industry'!$AR6,IF(ISNA(VLOOKUP(Simulation!AC7,'Ransom Statistics'!$A$1:$D$18,4,FALSE)),'Ransom Statistics'!$D$18,VLOOKUP(Simulation!AC7,'Ransom Statistics'!$A$1:$D$18,4,FALSE)))*IF(ISNA(VLOOKUP(AC7,'Industry Type P'!$A$2:$S$103,2,FALSE)),'Kidnapping Statistics'!$K$3,VLOOKUP(AC7,'Industry Type P'!$A$1:$S$102,MATCH($C7,'Industry Type P'!$A$1:$S$1,0),FALSE))*VLOOKUP(AE7,'travel frequence'!$A$1:$D$4,MATCH(AD7,'travel frequence'!$A$1:$D$1,0),FALSE)*AF7*IF(ISNA(VLOOKUP(AF7,'travel frequence'!$A$7:$B$23,2,FALSE)),'travel frequence'!$B$23,VLOOKUP(AF7,'travel frequence'!$A$7:$B$23,2,FALSE)),0) -> 0 | AH7: =IF(VLOOKUP(AC7,'Industry Type P'!$A$1:$S$102,MATCH($C7,'Industry Type P'!$A$1:$S$1,0),FALSE)>RAND(),"Y","N") -> N | AI7: 0 | AJ7: 0 | AK7: =IF(AH7="N"," ",INDEX('Other cost'!$A$9:$A$13,RANDBETWEEN(1,5),1)) ->  | AL7: =MIN($H7,IF(AH7="N",0,SUM(AJ7,'Other cost'!$B$16,VLOOKUP(AK7,'Other cost'!$A$9:$B$13,2,FALSE),IF(AI7>=30,HLOOKUP(30,'Salary in Industry'!$N$1:$AQ$1001,$B7+1,FALSE),HLOOKUP(AI7,'Salary in Industry'!$N$1:$AQ$1001,$B7+1,FALSE)),IF(ISNA(VLOOKUP(AC7,'Ransom Statistics'!$A$1:$D$18,4,FALSE)),'Ransom Statistics'!$D$18,VLOOKUP(AC7,'Ransom Statistics'!$A$1:$D$18,4,FALSE))))) -> 0 | AM7: =INDEX([1]Variables!$A$2:$A$103,INT((RAND()*100)+1),1) -> Laos | AN7: =INDEX(Variables!$E$3:$E$5,RANDBETWEEN(1,3),1) -> Medium (1 week to 1month) | AO7: =INDEX([1]Variables!$G$3:$G$5,RANDBETWEEN(1,3),1) -> infrequent (less than 3 times) | AP7: 17 | AQ7: =IF(ISNA(VLOOKUP(AM7,Variables!$K$1:$K$36,1,FALSE)),SUM('Other cost'!$B$2,'Salary in Industry'!$AR6,IF(ISNA(VLOOKUP(Simulation!AM7,'Ransom Statistics'!$A$1:$D$18,4,FALSE)),'Ransom Statistics'!$D$18,VLOOKUP(Simulation!AM7,'Ransom Statistics'!$A$1:$D$18,4,FALSE)))*IF(ISNA(VLOOKUP(AM7,'Industry Type P'!$A$2:$S$103,2,FALSE)),'Kidnapping Statistics'!$K$3,VLOOKUP(AM7,'Industry Type P'!$A$1:$S$102,MATCH($C7,'Industry Type P'!$A$1:$S$1,0),FALSE))*VLOOKUP(AO7,'travel frequence'!$A$1:$D$4,MATCH(AN7,'travel frequence'!$A$1:$D$1,0),FALSE)*AP7*IF(ISNA(VLOOKUP(AP7,'travel frequence'!$A$7:$B$23,2,FALSE)),'travel frequence'!$B$23,VLOOKUP(AP7,'travel frequence'!$A$7:$B$23,2,FALSE)),0) -> 8.318386371 | AR7: =IF(VLOOKUP(AM7,'Industry Type P'!$A$1:$S$102,MATCH($C7,'Industry Type P'!$A$1:$S$1,0),FALSE)>RAND(),"Y","N") -> N | AS7: 0 | AT7: 0 | AU7: =IF(AR7="N"," ",INDEX('Other cost'!$A$9:$A$13,RANDBETWEEN(1,5),1)) ->  | AV7: =MIN($H7,IF(AR7="N",0,SUM(AT7,'Other cost'!$B$16,VLOOKUP(AU7,'Other cost'!$A$9:$B$13,2,FALSE),IF(AS7>=30,HLOOKUP(30,'Salary in Industry'!$N$1:$AQ$1001,$B7+1,FALSE),HLOOKUP(AS7,'Salary in Industry'!$N$1:$AQ$1001,$B7+1,FALSE)),IF(ISNA(VLOOKUP(AM7,'Ransom Statistics'!$A$1:$D$18,4,FALSE)),'Ransom Statistics'!$D$18,VLOOKUP(AM7,'Ransom Statistics'!$A$1:$D$18,4,FALSE))))) -> 0 | AW7: =INDEX([1]Variables!$A$2:$A$103,INT((RAND()*100)+1),1) -> Chile | AX7: =INDEX(Variables!$E$3:$E$5,RANDBETWEEN(1,3),1) -> Long (more than one month) | AY7: =INDEX([1]Variables!$G$3:$G$5,RANDBETWEEN(1,3),1) -> frequent (3 times to 12 times) | AZ7: 9 | BA7: =IF(ISNA(VLOOKUP(AW7,Variables!$K$1:$K$36,1,FALSE)),SUM('Other cost'!$B$2,'Salary in Industry'!$AR6,IF(ISNA(VLOOKUP(Simulation!AW7,'Ransom Statistics'!$A$1:$D$18,4,FALSE)),'Ransom Statistics'!$D$18,VLOOKUP(Simulation!AW7,'Ransom Statistics'!$A$1:$D$18,4,FALSE)))*IF(ISNA(VLOOKUP(AW7,'Industry Type P'!$A$2:$S$103,2,FALSE)),'Kidnapping Statistics'!$K$3,VLOOKUP(AW7,'Industry Type P'!$A$1:$S$102,MATCH($C7,'Industry Type P'!$A$1:$S$1,0),FALSE))*VLOOKUP(AY7,'travel frequence'!$A$1:$D$4,MATCH(AX7,'travel frequence'!$A$1:$D$1,0),FALSE)*AZ7*IF(ISNA(VLOOKUP(AZ7,'travel frequence'!$A$7:$B$23,2,FALSE)),'travel frequence'!$B$23,VLOOKUP(AZ7,'travel frequence'!$A$7:$B$23,2,FALSE)),0) -> 343.4855559 | BB7: =IF(VLOOKUP(AW7,'Industry Type P'!$A$1:$S$102,MATCH($C7,'Industry Type P'!$A$1:$S$1,0),FALSE)>RAND(),"Y","N") -> N | BC7: 0 | BD7: 0 | BE7: =IF(BB7="N"," ",INDEX('Other cost'!$A$9:$A$13,RANDBETWEEN(1,5),1)) ->  | BF7: =MIN($H7,IF(BB7="N",0,SUM(BD7,'Other cost'!$B$16,VLOOKUP(BE7,'Other cost'!$A$9:$B$13,2,FALSE),IF(BC7>=30,HLOOKUP(30,'Salary in Industry'!$N$1:$AQ$1001,$B7+1,FALSE),HLOOKUP(BC7,'Salary in Industry'!$N$1:$AQ$1001,$B7+1,FALSE)),IF(ISNA(VLOOKUP(AW7,'Ransom Statistics'!$A$1:$D$18,4,FALSE)),'Ransom Statistics'!$D$18,VLOOKUP(AW7,'Ransom Statistics'!$A$1:$D$18,4,FALSE))))) -> 0 | BG7: =INDEX([1]Variables!$A$2:$A$103,INT((RAND()*100)+1),1) -> Togo | BH7: =INDEX(Variables!$E$3:$E$5,RANDBETWEEN(1,3),1) -> Long (more than one month) | BI7: =INDEX([1]Variables!$G$3:$G$5,RANDBETWEEN(1,3),1) -> very frequent ( more than 12 times a year) | BJ7: 18 | BK7: =IF(ISNA(VLOOKUP(BG7,Variables!$K$1:$K$36,1,FALSE)),SUM('Other cost'!$B$2,'Salary in Industry'!$AR6,IF(ISNA(VLOOKUP(Simulation!BG7,'Ransom Statistics'!$A$1:$D$18,4,FALSE)),'Ransom Statistics'!$D$18,VLOOKUP(Simulation!BG7,'Ransom Statistics'!$A$1:$D$18,4,FALSE)))*IF(ISNA(VLOOKUP(BG7,'Industry Type P'!$A$2:$S$103,2,FALSE)),'Kidnapping Statistics'!$K$3,VLOOKUP(BG7,'Industry Type P'!$A$1:$S$102,MATCH($C7,'Industry Type P'!$A$1:$S$1,0),FALSE))*VLOOKUP(BI7,'travel frequence'!$A$1:$D$4,MATCH(BH7,'travel frequence'!$A$1:$D$1,0),FALSE)*BJ7*IF(ISNA(VLOOKUP(BJ7,'travel frequence'!$A$7:$B$23,2,FALSE)),'travel frequence'!$B$23,VLOOKUP(BJ7,'travel frequence'!$A$7:$B$23,2,FALSE)),0) -> 6694.568342 | BL7: =IF(VLOOKUP(BG7,'Industry Type P'!$A$1:$S$102,MATCH($C7,'Industry Type P'!$A$1:$S$1,0),FALSE)>RAND(),"Y","N") -> N | BM7: 0 | BN7: 0 | BO7: =IF(BL7="N"," ",INDEX('Other cost'!$A$9:$A$13,RANDBETWEEN(1,5),1)) ->  | BP7: =MIN($H7,IF(BL7="N",0,SUM(BN7,'Other cost'!$B$16,VLOOKUP(BO7,'Other cost'!$A$9:$B$13,2,FALSE),IF(BM7>=30,HLOOKUP(30,'Salary in Industry'!$N$1:$AQ$1001,$B7+1,FALSE),HLOOKUP(BM7,'Salary in Industry'!$N$1:$AQ$1001,$B7+1,FALSE)),IF(ISNA(VLOOKUP(BG7,'Ransom Statistics'!$A$1:$D$18,4,FALSE)),'Ransom Statistics'!$D$18,VLOOKUP(BG7,'Ransom Statistics'!$A$1:$D$18,4,FALSE))))) -> 0 | BQ7: =INDEX([1]Variables!$A$2:$A$103,INT((RAND()*100)+1),1) -> Italy | BR7: =INDEX(Variables!$E$3:$E$5,RANDBETWEEN(1,3),1) -> Medium (1 week to 1month) | BS7: =INDEX([1]Variables!$G$3:$G$5,RANDBETWEEN(1,3),1) -> very frequent ( more than 12 times a year) | BT7: 7 | BU7: =IF(ISNA(VLOOKUP(BQ7,Variables!$K$1:$K$36,1,FALSE)),SUM('Other cost'!$B$2,'Salary in Industry'!$AR6,IF(ISNA(VLOOKUP(Simulation!BQ7,'Ransom Statistics'!$A$1:$D$18,4,FALSE)),'Ransom Statistics'!$D$18,VLOOKUP(Simulation!BQ7,'Ransom Statistics'!$A$1:$D$18,4,FALSE)))*IF(ISNA(VLOOKUP(BQ7,'Industry Type P'!$A$2:$S$103,2,FALSE)),'Kidnapping Statistics'!$K$3,VLOOKUP(BQ7,'Industry Type P'!$A$1:$S$102,MATCH($C7,'Industry Type P'!$A$1:$S$1,0),FALSE))*VLOOKUP(BS7,'travel frequence'!$A$1:$D$4,MATCH(BR7,'travel frequence'!$A$1:$D$1,0),FALSE)*BT7*IF(ISNA(VLOOKUP(BT7,'travel frequence'!$A$7:$B$23,2,FALSE)),'travel frequence'!$B$23,VLOOKUP(BT7,'travel frequence'!$A$7:$B$23,2,FALSE)),0) -> 23.61116885 | BV7: =IF(VLOOKUP(BQ7,'Industry Type P'!$A$1:$S$102,MATCH($C7,'Industry Type P'!$A$1:$S$1,0),FALSE)>RAND(),"Y","N") -> N | BW7: 0 | BX7: 0 | BY7: =IF(BV7="N"," ",INDEX('Other cost'!$A$9:$A$13,RANDBETWEEN(1,5),1)) ->  | BZ7: =MIN($H7,IF(BV7="N",0,SUM(BX7,'Other cost'!$B$16,VLOOKUP(BY7,'Other cost'!$A$9:$B$13,2,FALSE),IF(BW7>=30,HLOOKUP(30,'Salary in Industry'!$N$1:$AQ$1001,$B7+1,FALSE),HLOOKUP(BW7,'Salary in Industry'!$N$1:$AQ$1001,$B7+1,FALSE)),IF(ISNA(VLOOKUP(BQ7,'Ransom Statistics'!$A$1:$D$18,4,FALSE)),'Ransom Statistics'!$D$18,VLOOKUP(BQ7,'Ransom Statistics'!$A$1:$D$18,4,FALSE))))) -> 0 | CA7: =INDEX([1]Variables!$A$2:$A$103,INT((RAND()*100)+1),1) -> Somalia | CB7: =INDEX(Variables!$E$3:$E$5,RANDBETWEEN(1,3),1) -> Long (more than one month) | CC7: =INDEX([1]Variables!$G$3:$G$5,RANDBETWEEN(1,3),1) -> very frequent ( more than 12 times a year) | CD7: 20 | CE7: =IF(ISNA(VLOOKUP(CA7,Variables!$K$1:$K$36,1,FALSE)),SUM('Other cost'!$B$2,'Salary in Industry'!$AR6,IF(ISNA(VLOOKUP(Simulation!CA7,'Ransom Statistics'!$A$1:$D$18,4,FALSE)),'Ransom Statistics'!$D$18,VLOOKUP(Simulation!CA7,'Ransom Statistics'!$A$1:$D$18,4,FALSE)))*IF(ISNA(VLOOKUP(CA7,'Industry Type P'!$A$2:$S$103,2,FALSE)),'Kidnapping Statistics'!$K$3,VLOOKUP(CA7,'Industry Type P'!$A$1:$S$102,MATCH($C7,'Industry Type P'!$A$1:$S$1,0),FALSE))*VLOOKUP(CC7,'travel frequence'!$A$1:$D$4,MATCH(CB7,'travel frequence'!$A$1:$D$1,0),FALSE)*CD7*IF(ISNA(VLOOKUP(CD7,'travel frequence'!$A$7:$B$23,2,FALSE)),'travel frequence'!$B$23,VLOOKUP(CD7,'travel frequence'!$A$7:$B$23,2,FALSE)),0) -> 4511.035298 | CF7: =IF(VLOOKUP(CA7,'Industry Type P'!$A$1:$S$102,MATCH($C7,'Industry Type P'!$A$1:$S$1,0),FALSE)>RAND(),"Y","N") -> N | CG7: 0 | CH7: 0 | CI7: =IF(CF7="N"," ",INDEX('Other cost'!$A$9:$A$13,RANDBETWEEN(1,5),1)) ->  | CJ7: =MIN($H7,IF(CF7="N",0,SUM(CH7,'Other cost'!$B$16,VLOOKUP(CI7,'Other cost'!$A$9:$B$13,2,FALSE),IF(CG7>=30,HLOOKUP(30,'Salary in Industry'!$N$1:$AQ$1001,$B7+1,FALSE),HLOOKUP(CG7,'Salary in Industry'!$N$1:$AQ$1001,$B7+1,FALSE)),IF(ISNA(VLOOKUP(CA7,'Ransom Statistics'!$A$1:$D$18,4,FALSE)),'Ransom Statistics'!$D$18,VLOOKUP(CA7,'Ransom Statistics'!$A$1:$D$18,4,FALSE))))) -> 0 | CK7: =INDEX([1]Variables!$A$2:$A$103,INT((RAND()*100)+1),1) -> Kenya | CL7: =INDEX(Variables!$E$3:$E$5,RANDBETWEEN(1,3),1) -> Long (more than one month) | CM7: =INDEX([1]Variables!$G$3:$G$5,RANDBETWEEN(1,3),1) -> frequent (3 times to 12 times) | CN7: 19 | CO7: =IF(ISNA(VLOOKUP(CK7,Variables!$K$1:$K$36,1,FALSE)),SUM('Other cost'!$B$2,'Salary in Industry'!$AR6,IF(ISNA(VLOOKUP(Simulation!CK7,'Ransom Statistics'!$A$1:$D$18,4,FALSE)),'Ransom Statistics'!$D$18,VLOOKUP(Simulation!CK7,'Ransom Statistics'!$A$1:$D$18,4,FALSE)))*IF(ISNA(VLOOKUP(CK7,'Industry Type P'!$A$2:$S$103,2,FALSE)),'Kidnapping Statistics'!$K$3,VLOOKUP(CK7,'Industry Type P'!$A$1:$S$102,MATCH($C7,'Industry Type P'!$A$1:$S$1,0),FALSE))*VLOOKUP(CM7,'travel frequence'!$A$1:$D$4,MATCH(CL7,'travel frequence'!$A$1:$D$1,0),FALSE)*CN7*IF(ISNA(VLOOKUP(CN7,'travel frequence'!$A$7:$B$23,2,FALSE)),'travel frequence'!$B$23,VLOOKUP(CN7,'travel frequence'!$A$7:$B$23,2,FALSE)),0) -> 0 | CP7: =IF(VLOOKUP(CK7,'Industry Type P'!$A$1:$S$102,MATCH($C7,'Industry Type P'!$A$1:$S$1,0),FALSE)>RAND(),"Y","N") -> N | CQ7: 0 | CR7: 0 | CS7: =IF(CP7="N"," ",INDEX('Other cost'!$A$9:$A$13,RANDBETWEEN(1,5),1)) ->  | CT7: =MIN($H7,IF(CP7="N",0,SUM(CR7,'Other cost'!$B$16,VLOOKUP(CS7,'Other cost'!$A$9:$B$13,2,FALSE),IF(CQ7>=30,HLOOKUP(30,'Salary in Industry'!$N$1:$AQ$1001,$B7+1,FALSE),HLOOKUP(CQ7,'Salary in Industry'!$N$1:$AQ$1001,$B7+1,FALSE)),IF(ISNA(VLOOKUP(CK7,'Ransom Statistics'!$A$1:$D$18,4,FALSE)),'Ransom Statistics'!$D$18,VLOOKUP(CK7,'Ransom Statistics'!$A$1:$D$18,4,FALSE))))) -> 0 | CU7: =INDEX([1]Variables!$A$2:$A$103,INT((RAND()*100)+1),1) -> Mexico | CV7: =INDEX(Variables!$E$3:$E$5,RANDBETWEEN(1,3),1) -> Short (less a week) | CW7: =INDEX([1]Variables!$G$3:$G$5,RANDBETWEEN(1,3),1) -> infrequent (less than 3 times) | CX7: 12 | CY7: =IF(ISNA(VLOOKUP(CU7,Variables!$K$1:$K$36,1,FALSE)),SUM('Other cost'!$B$2,'Salary in Industry'!$AR6,IF(ISNA(VLOOKUP(Simulation!CU7,'Ransom Statistics'!$A$1:$D$18,4,FALSE)),'Ransom Statistics'!$D$18,VLOOKUP(Simulation!CU7,'Ransom Statistics'!$A$1:$D$18,4,FALSE)))*IF(ISNA(VLOOKUP(CU7,'Industry Type P'!$A$2:$S$103,2,FALSE)),'Kidnapping Statistics'!$K$3,VLOOKUP(CU7,'Industry Type P'!$A$1:$S$102,MATCH($C7,'Industry Type P'!$A$1:$S$1,0),FALSE))*VLOOKUP(CW7,'travel frequence'!$A$1:$D$4,MATCH(CV7,'travel frequence'!$A$1:$D$1,0),FALSE)*CX7*IF(ISNA(VLOOKUP(CX7,'travel frequence'!$A$7:$B$23,2,FALSE)),'travel frequence'!$B$23,VLOOKUP(CX7,'travel frequence'!$A$7:$B$23,2,FALSE)),0) -> 0 | CZ7: =IF(VLOOKUP(CU7,'Industry Type P'!$A$1:$S$102,MATCH($C7,'Industry Type P'!$A$1:$S$1,0),FALSE)>RAND(),"Y","N") -> N | DA7: 0 | DB7: 0 | DC7: =IF(CZ7="N"," ",INDEX('Other cost'!$A$9:$A$13,RANDBETWEEN(1,5),1)) ->  | DD7: =MIN($H7,IF(CZ7="N",0,SUM(DB7,'Other cost'!$B$16,VLOOKUP(DC7,'Other cost'!$A$9:$B$13,2,FALSE),IF(DA7>=30,HLOOKUP(30,'Salary in Industry'!$N$1:$AQ$1001,$B7+1,FALSE),HLOOKUP(DA7,'Salary in Industry'!$N$1:$AQ$1001,$B7+1,FALSE)),IF(ISNA(VLOOKUP(CU7,'Ransom Statistics'!$A$1:$D$18,4,FALSE)),'Ransom Statistics'!$D$18,VLOOKUP(CU7,'Ransom Statistics'!$A$1:$D$18,4,FALSE))))) -> 0 | DE7: 0 | DF7: =((IF(A7=0,0,IF(A7=1,M7,IF(A7=2,M7+W7,IF(A7=3,M7+W7+AG7,IF(A7=4,M7+W7+AG7+AQ7,IF(A7=5,M7+W7+AG7+AQ7+BA7,IF(A7=6,M7+W7+AG7+AQ7+BA7+BK7,IF(A7=7,M7+W7+AG7+AQ7+BA7+BK7+BU7,IF(A7=8,M7+W7+AG7+AQ7+BA7+BK7+BU7+CE7,IF(A7=9,M7+W7+AG7+AQ7+BA7+BK7+BU7+CE7+CO7,IF(A7=10,M7+W7+AG7+AQ7+BA7+BK7+BU7+CE7+CO7+CY7))))))))))))/(1+Variables!$G$12))*(1+Variables!$F$21) -> 0 | DJ7: Total Claims | DK7: =SUM(DE3:DE1002) -> 0
A8: 0 | B8: 6 | C8: =INDEX([1]Variables!$C$2:$C$19,INT((RAND()*10)+1),1) -> Transportation and Warehousing | D8: 29 | E8: 307 | F8: 3485 | G8: 49151776 | H8: =Variables!$H$21 -> 1000000 | I8: =INDEX([1]Variables!$A$2:$A$103,INT((RAND()*100)+1),1) -> Costa Rica | J8: =INDEX(Variables!$E$3:$E$5,RANDBETWEEN(1,3),1) -> Medium (1 week to 1month) | K8: =INDEX([1]Variables!$G$3:$G$5,RANDBETWEEN(1,3),1) -> very frequent ( more than 12 times a year) | L8: 19 | M8: =IF(ISNA(VLOOKUP(I8,Variables!$K$1:$K$36,1,FALSE)),SUM('Other cost'!$B$2,'Salary in Industry'!$AR7,IF(ISNA(VLOOKUP(Simulation!I8,'Ransom Statistics'!$A$1:$D$18,4,FALSE)),'Ransom Statistics'!$D$18,VLOOKUP(Simulation!I8,'Ransom Statistics'!$A$1:$D$18,4,FALSE)))*IF(ISNA(VLOOKUP(I8,'Industry Type P'!$A$2:$S$103,2,FALSE)),'Kidnapping Statistics'!$K$3,VLOOKUP(I8,'Industry Type P'!$A$1:$S$102,MATCH($C8,'Industry Type P'!$A$1:$S$1,0),FALSE))*VLOOKUP(K8,'travel frequence'!$A$1:$D$4,MATCH(J8,'travel frequence'!$A$1:$D$1,0),FALSE)*L8*IF(ISNA(VLOOKUP(L8,'travel frequence'!$A$7:$B$23,2,FALSE)),'travel frequence'!$B$23,VLOOKUP(L8,'travel frequence'!$A$7:$B$23,2,FALSE)),0) -> 11.24801588 | N8: =IF(VLOOKUP(I8,'Industry Type P'!$A$1:$S$102,MATCH($C8,'Industry Type P'!$A$1:$S$1,0),FALSE)>RAND(),"Y","N") -> N | O8: 0 | P8: 0 | Q8: =IF(N8="N"," ",INDEX('Other cost'!$A$9:$A$13,RANDBETWEEN(1,5),1)) ->  | R8: =MIN($H8,IF(N8="N",0,SUM(P8,'Other cost'!$B$16,VLOOKUP(Q8,'Other cost'!$A$9:$B$13,2,FALSE),IF(O8>=30,HLOOKUP(30,'Salary in Industry'!$N$1:$AQ$1001,$B8+1,FALSE),HLOOKUP(O8,'Salary in Industry'!$N$1:$AQ$1001,$B8+1,FALSE)),IF(ISNA(VLOOKUP(I8,'Ransom Statistics'!$A$1:$D$18,4,FALSE)),'Ransom Statistics'!$D$18,VLOOKUP(I8,'Ransom Statistics'!$A$1:$D$18,4,FALSE))))) -> 0 | S8: =INDEX([1]Variables!$A$2:$A$103,INT((RAND()*100)+1),1) -> Niger | T8: =INDEX(Variables!$E$3:$E$5,RANDBETWEEN(1,3),1) -> Short (less a week) | U8: =INDEX([1]Variables!$G$3:$G$5,RANDBETWEEN(1,3),1) -> infrequent (less than 3 times) | V8: 1 | W8: =IF(ISNA(VLOOKUP(S8,Variables!$K$1:$K$36,1,FALSE)),SUM('Other cost'!$B$2,'Salary in Industry'!$AR7,IF(ISNA(VLOOKUP(Simulation!S8,'Ransom Statistics'!$A$1:$D$18,4,FALSE)),'Ransom Statistics'!$D$18,VLOOKUP(Simulation!S8,'Ransom Statistics'!$A$1:$D$18,4,FALSE)))*IF(ISNA(VLOOKUP(S8,'Industry Type P'!$A$2:$S$103,2,FALSE)),'Kidnapping Statistics'!$K$3,VLOOKUP(S8,'Industry Type P'!$A$1:$S$102,MATCH($C8,'Industry Type P'!$A$1:$S$1,0),FALSE))*VLOOKUP(U8,'travel frequence'!$A$1:$D$4,MATCH(T8,'travel frequence'!$A$1:$D$1,0),FALSE)*V8*IF(ISNA(VLOOKUP(V8,'travel frequence'!$A$7:$B$23,2,FALSE)),'travel frequence'!$B$23,VLOOKUP(V8,'travel frequence'!$A$7:$B$23,2,FALSE)),0) -> 0 | X8: =IF(VLOOKUP(S8,'Industry Type P'!$A$1:$S$102,MATCH($C8,'Industry Type P'!$A$1:$S$1,0),FALSE)>RAND(),"Y","N") -> N | Y8: 0 | Z8: 0 | AA8: =IF(X8="N"," ",INDEX('Other cost'!$A$9:$A$13,RANDBETWEEN(1,5),1)) ->  | AB8: =MIN($H8,IF(X8="N",0,SUM(Z8,'Other cost'!$B$16,VLOOKUP(AA8,'Other cost'!$A$9:$B$13,2,FALSE),IF(Y8>=30,HLOOKUP(30,'Salary in Industry'!$N$1:$AQ$1001,$B8+1,FALSE),HLOOKUP(Y8,'Salary in Industry'!$N$1:$AQ$1001,$B8+1,FALSE)),IF(ISNA(VLOOKUP(S8,'Ransom Statistics'!$A$1:$D$18,4,FALSE)),'Ransom Statistics'!$D$18,VLOOKUP(S8,'Ransom Statistics'!$A$1:$D$18,4,FALSE))))) -> 0 | AC8: =INDEX([1]Variables!$A$2:$A$103,INT((RAND()*100)+1),1) -> Belarus | AD8: =INDEX(Variables!$E$3:$E$5,RANDBETWEEN(1,3),1) -> Long (more than one month) | AE8: =INDEX([1]Variables!$G$3:$G$5,RANDBETWEEN(1,3),1) -> very frequent ( more than 12 times a year) | AF8: 7 | AG8: =IF(ISNA(VLOOKUP(AC8,Variables!$K$1:$K$36,1,FALSE)),SUM('Other cost'!$B$2,'Salary in Industry'!$AR7,IF(ISNA(VLOOKUP(Simulation!AC8,'Ransom Statistics'!$A$1:$D$18,4,FALSE)),'Ransom Statistics'!$D$18,VLOOKUP(Simulation!AC8,'Ransom Statistics'!$A$1:$D$18,4,FALSE)))*IF(ISNA(VLOOKUP(AC8,'Industry Type P'!$A$2:$S$103,2,FALSE)),'Kidnapping Statistics'!$K$3,VLOOKUP(AC8,'Industry Type P'!$A$1:$S$102,MATCH($C8,'Industry Type P'!$A$1:$S$1,0),FALSE))*VLOOKUP(AE8,'travel frequence'!$A$1:$D$4,MATCH(AD8,'travel frequence'!$A$1:$D$1,0),FALSE)*AF8*IF(ISNA(VLOOKUP(AF8,'travel frequence'!$A$7:$B$23,2,FALSE)),'travel frequence'!$B$23,VLOOKUP(AF8,'travel frequence'!$A$7:$B$23,2,FALSE)),0) -> 12.62935117 | AH8: =IF(VLOOKUP(AC8,'Industry Type P'!$A$1:$S$102,MATCH($C8,'Industry Type P'!$A$1:$S$1,0),FALSE)>RAND(),"Y","N") -> N | AI8: 0 | AJ8: 0 | AK8: =IF(AH8="N"," ",INDEX('Other cost'!$A$9:$A$13,RANDBETWEEN(1,5),1)) ->  | AL8: =MIN($H8,IF(AH8="N",0,SUM(AJ8,'Other cost'!$B$16,VLOOKUP(AK8,'Other cost'!$A$9:$B$13,2,FALSE),IF(AI8>=30,HLOOKUP(30,'Salary in Industry'!$N$1:$AQ$1001,$B8+1,FALSE),HLOOKUP(AI8,'Salary in Industry'!$N$1:$AQ$1001,$B8+1,FALSE)),IF(ISNA(VLOOKUP(AC8,'Ransom Statistics'!$A$1:$D$18,4,FALSE)),'Ransom Statistics'!$D$18,VLOOKUP(AC8,'Ransom Statistics'!$A$1:$D$18,4,FALSE))))) -> 0 | AM8: =INDEX([1]Variables!$A$2:$A$103,INT((RAND()*100)+1),1) -> Spain | AN8: =INDEX(Variables!$E$3:$E$5,RANDBETWEEN(1,3),1) -> Short (less a week) | AO8: =INDEX([1]Variables!$G$3:$G$5,RANDBETWEEN(1,3),1) -> frequent (3 times to 12 times) | AP8: 1 | AQ8: =IF(ISNA(VLOOKUP(AM8,Variables!$K$1:$K$36,1,FALSE)),SUM('Other cost'!$B$2,'Salary in Industry'!$AR7,IF(ISNA(VLOOKUP(Simulation!AM8,'Ransom Statistics'!$A$1:$D$18,4,FALSE)),'Ransom Statistics'!$D$18,VLOOKUP(Simulation!AM8,'Ransom Statistics'!$A$1:$D$18,4,FALSE)))*IF(ISNA(VLOOKUP(AM8,'Industry Type P'!$A$2:$S$103,2,FALSE)),'Kidnapping Statistics'!$K$3,VLOOKUP(AM8,'Industry Type P'!$A$1:$S$102,MATCH($C8,'Industry Type P'!$A$1:$S$1,0),FALSE))*VLOOKUP(AO8,'travel frequence'!$A$1:$D$4,MATCH(AN8,'travel frequence'!$A$1:$D$1,0),FALSE)*AP8*IF(ISNA(VLOOKUP(AP8,'travel frequence'!$A$7:$B$23,2,FALSE)),'travel frequence'!$B$23,VLOOKUP(AP8,'travel frequence'!$A$7:$B$23,2,FALSE)),0) -> 4.158683559 | AR8: =IF(VLOOKUP(AM8,'Industry Type P'!$A$1:$S$102,MATCH($C8,'Industry Type P'!$A$1:$S$1,0),FALSE)>RAND(),"Y","N") -> N | AS8: 0 | AT8: 0 | AU8: =IF(AR8="N"," ",INDEX('Other cost'!$A$9:$A$13,RANDBETWEEN(1,5),1)) ->  | AV8: =MIN($H8,IF(AR8="N",0,SUM(AT8,'Other cost'!$B$16,VLOOKUP(AU8,'Other cost'!$A$9:$B$13,2,FALSE),IF(AS8>=30,HLOOKUP(30,'Salary in Industry'!$N$1:$AQ$1001,$B8+1,FALSE),HLOOKUP(AS8,'Salary in Industry'!$N$1:$AQ$1001,$B8+1,FALSE)),IF(ISNA(VLOOKUP(AM8,'Ransom Statistics'!$A$1:$D$18,4,FALSE)),'Ransom Statistics'!$D$18,VLOOKUP(AM8,'Ransom Statistics'!$A$1:$D$18,4,FALSE))))) -> 0 | AW8: =INDEX([1]Variables!$A$2:$A$103,INT((RAND()*100)+1),1) -> DRC | AX8: =INDEX(Variables!$E$3:$E$5,RANDBETWEEN(1,3),1) -> Medium (1 week to 1month) | AY8: =INDEX([1]Variables!$G$3:$G$5,RANDBETWEEN(1,3),1) -> very frequent ( more than 12 times a year) | AZ8: 3 | BA8: =IF(ISNA(VLOOKUP(AW8,Variables!$K$1:$K$36,1,FALSE)),SUM('Other cost'!$B$2,'Salary in Industry'!$AR7,IF(ISNA(VLOOKUP(Simulation!AW8,'Ransom Statistics'!$A$1:$D$18,4,FALSE)),'Ransom Statistics'!$D$18,VLOOKUP(Simulation!AW8,'Ransom Statistics'!$A$1:$D$18,4,FALSE)))*IF(ISNA(VLOOKUP(AW8,'Industry Type P'!$A$2:$S$103,2,FALSE)),'Kidnapping Statistics'!$K$3,VLOOKUP(AW8,'Industry Type P'!$A$1:$S$102,MATCH($C8,'Industry Type P'!$A$1:$S$1,0),FALSE))*VLOOKUP(AY8,'travel frequence'!$A$1:$D$4,MATCH(AX8,'travel frequence'!$A$1:$D$1,0),FALSE)*AZ8*IF(ISNA(VLOOKUP(AZ8,'travel frequence'!$A$7:$B$23,2,FALSE)),'travel frequence'!$B$23,VLOOKUP(AZ8,'travel frequence'!$A$7:$B$23,2,FALSE)),0) -> 0 | BB8: =IF(VLOOKUP(AW8,'Industry Type P'!$A$1:$S$102,MATCH($C8,'Industry Type P'!$A$1:$S$1,0),FALSE)>RAND(),"Y","N") -> N | BC8: 0 | BD8: 0 | BE8: =IF(BB8="N"," ",INDEX('Other cost'!$A$9:$A$13,RANDBETWEEN(1,5),1)) ->  | BF8: =MIN($H8,IF(BB8="N",0,SUM(BD8,'Other cost'!$B$16,VLOOKUP(BE8,'Other cost'!$A$9:$B$13,2,FALSE),IF(BC8>=30,HLOOKUP(30,'Salary in Industry'!$N$1:$AQ$1001,$B8+1,FALSE),HLOOKUP(BC8,'Salary in Industry'!$N$1:$AQ$1001,$B8+1,FALSE)),IF(ISNA(VLOOKUP(AW8,'Ransom Statistics'!$A$1:$D$18,4,FALSE)),'Ransom Statistics'!$D$18,VLOOKUP(AW8,'Ransom Statistics'!$A$1:$D$18,4,FALSE))))) -> 0 | BG8: =INDEX([1]Variables!$A$2:$A$103,INT((RAND()*100)+1),1) -> Chad | BH8: =INDEX(Variables!$E$3:$E$5,RANDBETWEEN(1,3),1) -> Short (less a week) | BI8: =INDEX([1]Variables!$G$3:$G$5,RANDBETWEEN(1,3),1) -> very frequent ( more than 12 times a year) | BJ8: 9 | BK8: =IF(ISNA(VLOOKUP(BG8,Variables!$K$1:$K$36,1,FALSE)),SUM('Other cost'!$B$2,'Salary in Industry'!$AR7,IF(ISNA(VLOOKUP(Simulation!BG8,'Ransom Statistics'!$A$1:$D$18,4,FALSE)),'Ransom Statistics'!$D$18,VLOOKUP(Simulation!BG8,'Ransom Statistics'!$A$1:$D$18,4,FALSE)))*IF(ISNA(VLOOKUP(BG8,'Industry Type P'!$A$2:$S$103,2,FALSE)),'Kidnapping Statistics'!$K$3,VLOOKUP(BG8,'Industry Type P'!$A$1:$S$102,MATCH($C8,'Industry Type P'!$A$1:$S$1,0),FALSE))*VLOOKUP(BI8,'travel frequence'!$A$1:$D$4,MATCH(BH8,'travel frequence'!$A$1:$D$1,0),FALSE)*BJ8*IF(ISNA(VLOOKUP(BJ8,'travel frequence'!$A$7:$B$23,2,FALSE)),'travel frequence'!$B$23,VLOOKUP(BJ8,'travel frequence'!$A$7:$B$23,2,FALSE)),0) -> 0 | BL8: =IF(VLOOKUP(BG8,'Industry Type P'!$A$1:$S$102,MATCH($C8,'Industry Type P'!$A$1:$S$1,0),FALSE)>RAND(),"Y","N") -> N | BM8: 0 | BN8: 0 | BO8: =IF(BL8="N"," ",INDEX('Other cost'!$A$9:$A$13,RANDBETWEEN(1,5),1)) ->  | BP8: =MIN($H8,IF(BL8="N",0,SUM(BN8,'Other cost'!$B$16,VLOOKUP(BO8,'Other cost'!$A$9:$B$13,2,FALSE),IF(BM8>=30,HLOOKUP(30,'Salary in Industry'!$N$1:$AQ$1001,$B8+1,FALSE),HLOOKUP(BM8,'Salary in Industry'!$N$1:$AQ$1001,$B8+1,FALSE)),IF(ISNA(VLOOKUP(BG8,'Ransom Statistics'!$A$1:$D$18,4,FALSE)),'Ransom Statistics'!$D$18,VLOOKUP(BG8,'Ransom Statistics'!$A$1:$D$18,4,FALSE))))) -> 0 | BQ8: =INDEX([1]Variables!$A$2:$A$103,INT((RAND()*100)+1),1) -> Chad | BR8: =INDEX(Variables!$E$3:$E$5,RANDBETWEEN(1,3),1) -> Long (more than one month) | BS8: =INDEX([1]Variables!$G$3:$G$5,RANDBETWEEN(1,3),1) -> very frequent ( more than 12 times a year) | BT8: 7 | BU8: =IF(ISNA(VLOOKUP(BQ8,Variables!$K$1:$K$36,1,FALSE)),SUM('Other cost'!$B$2,'Salary in Industry'!$AR7,IF(ISNA(VLOOKUP(Simulation!BQ8,'Ransom Statistics'!$A$1:$D$18,4,FALSE)),'Ransom Statistics'!$D$18,VLOOKUP(Simulation!BQ8,'Ransom Statistics'!$A$1:$D$18,4,FALSE)))*IF(ISNA(VLOOKUP(BQ8,'Industry Type P'!$A$2:$S$103,2,FALSE)),'Kidnapping Statistics'!$K$3,VLOOKUP(BQ8,'Industry Type P'!$A$1:$S$102,MATCH($C8,'Industry Type P'!$A$1:$S$1,0),FALSE))*VLOOKUP(BS8,'travel frequence'!$A$1:$D$4,MATCH(BR8,'travel frequence'!$A$1:$D$1,0),FALSE)*BT8*IF(ISNA(VLOOKUP(BT8,'travel frequence'!$A$7:$B$23,2,FALSE)),'travel frequence'!$B$23,VLOOKUP(BT8,'travel frequence'!$A$7:$B$23,2,FALSE)),0) -> 0 | BV8: =IF(VLOOKUP(BQ8,'Industry Type P'!$A$1:$S$102,MATCH($C8,'Industry Type P'!$A$1:$S$1,0),FALSE)>RAND(),"Y","N") -> N | BW8: 0 | BX8: 0 | BY8: =IF(BV8="N"," ",INDEX('Other cost'!$A$9:$A$13,RANDBETWEEN(1,5),1)) ->  | BZ8: =MIN($H8,IF(BV8="N",0,SUM(BX8,'Other cost'!$B$16,VLOOKUP(BY8,'Other cost'!$A$9:$B$13,2,FALSE),IF(BW8>=30,HLOOKUP(30,'Salary in Industry'!$N$1:$AQ$1001,$B8+1,FALSE),HLOOKUP(BW8,'Salary in Industry'!$N$1:$AQ$1001,$B8+1,FALSE)),IF(ISNA(VLOOKUP(BQ8,'Ransom Statistics'!$A$1:$D$18,4,FALSE)),'Ransom Statistics'!$D$18,VLOOKUP(BQ8,'Ransom Statistics'!$A$1:$D$18,4,FALSE))))) -> 0 | CA8: =INDEX([1]Variables!$A$2:$A$103,INT((RAND()*100)+1),1) -> Kazakhstan | CB8: =INDEX(Variables!$E$3:$E$5,RANDBETWEEN(1,3),1) -> Medium (1 week to 1month) | CC8: =INDEX([1]Variables!$G$3:$G$5,RANDBETWEEN(1,3),1) -> very frequent ( more than 12 times a year) | CD8: 3 | CE8: =IF(ISNA(VLOOKUP(CA8,Variables!$K$1:$K$36,1,FALSE)),SUM('Other cost'!$B$2,'Salary in Industry'!$AR7,IF(ISNA(VLOOKUP(Simulation!CA8,'Ransom Statistics'!$A$1:$D$18,4,FALSE)),'Ransom Statistics'!$D$18,VLOOKUP(Simulation!CA8,'Ransom Statistics'!$A$1:$D$18,4,FALSE)))*IF(ISNA(VLOOKUP(CA8,'Industry Type P'!$A$2:$S$103,2,FALSE)),'Kidnapping Statistics'!$K$3,VLOOKUP(CA8,'Industry Type P'!$A$1:$S$102,MATCH($C8,'Industry Type P'!$A$1:$S$1,0),FALSE))*VLOOKUP(CC8,'travel frequence'!$A$1:$D$4,MATCH(CB8,'travel frequence'!$A$1:$D$1,0),FALSE)*CD8*IF(ISNA(VLOOKUP(CD8,'travel frequence'!$A$7:$B$23,2,FALSE)),'travel frequence'!$B$23,VLOOKUP(CD8,'travel frequence'!$A$7:$B$23,2,FALSE)),0) -> 13.32001881 | CF8: =IF(VLOOKUP(CA8,'Industry Type P'!$A$1:$S$102,MATCH($C8,'Industry Type P'!$A$1:$S$1,0),FALSE)>RAND(),"Y","N") -> N | CG8: 0 | CH8: 0 | CI8: =IF(CF8="N"," ",INDEX('Other cost'!$A$9:$A$13,RANDBETWEEN(1,5),1)) ->  | CJ8: =MIN($H8,IF(CF8="N",0,SUM(CH8,'Other cost'!$B$16,VLOOKUP(CI8,'Other cost'!$A$9:$B$13,2,FALSE),IF(CG8>=30,HLOOKUP(30,'Salary in Industry'!$N$1:$AQ$1001,$B8+1,FALSE),HLOOKUP(CG8,'Salary in Industry'!$N$1:$AQ$1001,$B8+1,FALSE)),IF(ISNA(VLOOKUP(CA8,'Ransom Statistics'!$A$1:$D$18,4,FALSE)),'Ransom Statistics'!$D$18,VLOOKUP(CA8,'Ransom Statistics'!$A$1:$D$18,4,FALSE))))) -> 0 | CK8: =INDEX([1]Variables!$A$2:$A$103,INT((RAND()*100)+1),1) -> South Africa | CL8: =INDEX(Variables!$E$3:$E$5,RANDBETWEEN(1,3),1) -> Short (less a week) | CM8: =INDEX([1]Variables!$G$3:$G$5,RANDBETWEEN(1,3),1) -> frequent (3 times to 12 times) | CN8: 18 | CO8: =IF(ISNA(VLOOKUP(CK8,Variables!$K$1:$K$36,1,FALSE)),SUM('Other cost'!$B$2,'Salary in Industry'!$AR7,IF(ISNA(VLOOKUP(Simulation!CK8,'Ransom Statistics'!$A$1:$D$18,4,FALSE)),'Ransom Statistics'!$D$18,VLOOKUP(Simulation!CK8,'Ransom Statistics'!$A$1:$D$18,4,FALSE)))*IF(ISNA(VLOOKUP(CK8,'Industry Type P'!$A$2:$S$103,2,FALSE)),'Kidnapping Statistics'!$K$3,VLOOKUP(CK8,'Industry Type P'!$A$1:$S$102,MATCH($C8,'Industry Type P'!$A$1:$S$1,0),FALSE))*VLOOKUP(CM8,'travel frequence'!$A$1:$D$4,MATCH(CL8,'travel frequence'!$A$1:$D$1,0),FALSE)*CN8*IF(ISNA(VLOOKUP(CN8,'travel frequence'!$A$7:$B$23,2,FALSE)),'travel frequence'!$B$23,VLOOKUP(CN8,'travel frequence'!$A$7:$B$23,2,FALSE)),0) -> 19112.94845 | CP8: =IF(VLOOKUP(CK8,'Industry Type P'!$A$1:$S$102,MATCH($C8,'Industry Type P'!$A$1:$S$1,0),FALSE)>RAND(),"Y","N") -> N | CQ8: 0 | CR8: 0 | CS8: =IF(CP8="N"," ",INDEX('Other cost'!$A$9:$A$13,RANDBETWEEN(1,5),1)) ->  | CT8: =MIN($H8,IF(CP8="N",0,SUM(CR8,'Other cost'!$B$16,VLOOKUP(CS8,'Other cost'!$A$9:$B$13,2,FALSE),IF(CQ8>=30,HLOOKUP(30,'Salary in Industry'!$N$1:$AQ$1001,$B8+1,FALSE),HLOOKUP(CQ8,'Salary in Industry'!$N$1:$AQ$1001,$B8+1,FALSE)),IF(ISNA(VLOOKUP(CK8,'Ransom Statistics'!$A$1:$D$18,4,FALSE)),'Ransom Statistics'!$D$18,VLOOKUP(CK8,'Ransom Statistics'!$A$1:$D$18,4,FALSE))))) -> 0 | CU8: =INDEX([1]Variables!$A$2:$A$103,INT((RAND()*100)+1),1) -> Philippines | CV8: =INDEX(Variables!$E$3:$E$5,RANDBETWEEN(1,3),1) -> Short (less a week) | CW8: =INDEX([1]Variables!$G$3:$G$5,RANDBETWEEN(1,3),1) -> very frequent ( more than 12 times a year) | CX8: 19 | CY8: =IF(ISNA(VLOOKUP(CU8,Variables!$K$1:$K$36,1,FALSE)),SUM('Other cost'!$B$2,'Salary in Industry'!$AR7,IF(ISNA(VLOOKUP(Simulation!CU8,'Ransom Statistics'!$A$1:$D$18,4,FALSE)),'Ransom Statistics'!$D$18,VLOOKUP(Simulation!CU8,'Ransom Statistics'!$A$1:$D$18,4,FALSE)))*IF(ISNA(VLOOKUP(CU8,'Industry Type P'!$A$2:$S$103,2,FALSE)),'Kidnapping Statistics'!$K$3,VLOOKUP(CU8,'Industry Type P'!$A$1:$S$102,MATCH($C8,'Industry Type P'!$A$1:$S$1,0),FALSE))*VLOOKUP(CW8,'travel frequence'!$A$1:$D$4,MATCH(CV8,'travel frequence'!$A$1:$D$1,0),FALSE)*CX8*IF(ISNA(VLOOKUP(CX8,'travel frequence'!$A$7:$B$23,2,FALSE)),'travel frequence'!$B$23,VLOOKUP(CX8,'travel frequence'!$A$7:$B$23,2,FALSE)),0) -> 2617.860925 | CZ8: =IF(VLOOKUP(CU8,'Industry Type P'!$A$1:$S$102,MATCH($C8,'Industry Type P'!$A$1:$S$1,0),FALSE)>RAND(),"Y","N") -> N | DA8: 0 | DB8: 0 | DC8: =IF(CZ8="N"," ",INDEX('Other cost'!$A$9:$A$13,RANDBETWEEN(1,5),1)) ->  | DD8: =MIN($H8,IF(CZ8="N",0,SUM(DB8,'Other cost'!$B$16,VLOOKUP(DC8,'Other cost'!$A$9:$B$13,2,FALSE),IF(DA8>=30,HLOOKUP(30,'Salary in Industry'!$N$1:$AQ$1001,$B8+1,FALSE),HLOOKUP(DA8,'Salary in Industry'!$N$1:$AQ$1001,$B8+1,FALSE)),IF(ISNA(VLOOKUP(CU8,'Ransom Statistics'!$A$1:$D$18,4,FALSE)),'Ransom Statistics'!$D$18,VLOOKUP(CU8,'Ransom Statistics'!$A$1:$D$18,4,FALSE))))) -> 0 | DE8: 0 | DF8: =((IF(A8=0,0,IF(A8=1,M8,IF(A8=2,M8+W8,IF(A8=3,M8+W8+AG8,IF(A8=4,M8+W8+AG8+AQ8,IF(A8=5,M8+W8+AG8+AQ8+BA8,IF(A8=6,M8+W8+AG8+AQ8+BA8+BK8,IF(A8=7,M8+W8+AG8+AQ8+BA8+BK8+BU8,IF(A8=8,M8+W8+AG8+AQ8+BA8+BK8+BU8+CE8,IF(A8=9,M8+W8+AG8+AQ8+BA8+BK8+BU8+CE8+CO8,IF(A8=10,M8+W8+AG8+AQ8+BA8+BK8+BU8+CE8+CO8+CY8))))))))))))/(1+Variables!$G$12))*(1+Variables!$F$21) -> 0 | DJ8: Annual Expenses | DK8: 735811.76
A9: 1 | B9: 7 | C9: =INDEX([1]Variables!$C$2:$C$19,INT((RAND()*10)+1),1) -> Wholesale Trade | D9: 17 | E9: 454 | F9: 11025 | G9: 22846827 | H9: =Variables!$H$21 -> 1000000 | I9: =INDEX([1]Variables!$A$2:$A$103,INT((RAND()*100)+1),1) -> Sri Lanka | J9: =INDEX(Variables!$E$3:$E$5,RANDBETWEEN(1,3),1) -> Short (less a week) | K9: =INDEX([1]Variables!$G$3:$G$5,RANDBETWEEN(1,3),1) -> infrequent (less than 3 times) | L9: 17 | M9: =IF(ISNA(VLOOKUP(I9,Variables!$K$1:$K$36,1,FALSE)),SUM('Other cost'!$B$2,'Salary in Industry'!$AR8,IF(ISNA(VLOOKUP(Simulation!I9,'Ransom Statistics'!$A$1:$D$18,4,FALSE)),'Ransom Statistics'!$D$18,VLOOKUP(Simulation!I9,'Ransom Statistics'!$A$1:$D$18,4,FALSE)))*IF(ISNA(VLOOKUP(I9,'Industry Type P'!$A$2:$S$103,2,FALSE)),'Kidnapping Statistics'!$K$3,VLOOKUP(I9,'Industry Type P'!$A$1:$S$102,MATCH($C9,'Industry Type P'!$A$1:$S$1,0),FALSE))*VLOOKUP(K9,'travel frequence'!$A$1:$D$4,MATCH(J9,'travel frequence'!$A$1:$D$1,0),FALSE)*L9*IF(ISNA(VLOOKUP(L9,'travel frequence'!$A$7:$B$23,2,FALSE)),'travel frequence'!$B$23,VLOOKUP(L9,'travel frequence'!$A$7:$B$23,2,FALSE)),0) -> 354.8977744 | N9: =IF(VLOOKUP(I9,'Industry Type P'!$A$1:$S$102,MATCH($C9,'Industry Type P'!$A$1:$S$1,0),FALSE)>RAND(),"Y","N") -> N | O9: 0 | P9: 0 | Q9: =IF(N9="N"," ",INDEX('Other cost'!$A$9:$A$13,RANDBETWEEN(1,5),1)) ->  | R9: =MIN($H9,IF(N9="N",0,SUM(P9,'Other cost'!$B$16,VLOOKUP(Q9,'Other cost'!$A$9:$B$13,2,FALSE),IF(O9>=30,HLOOKUP(30,'Salary in Industry'!$N$1:$AQ$1001,$B9+1,FALSE),HLOOKUP(O9,'Salary in Industry'!$N$1:$AQ$1001,$B9+1,FALSE)),IF(ISNA(VLOOKUP(I9,'Ransom Statistics'!$A$1:$D$18,4,FALSE)),'Ransom Statistics'!$D$18,VLOOKUP(I9,'Ransom Statistics'!$A$1:$D$18,4,FALSE))))) -> 0 | S9: =INDEX([1]Variables!$A$2:$A$103,INT((RAND()*100)+1),1) -> Congo | T9: =INDEX(Variables!$E$3:$E$5,RANDBETWEEN(1,3),1) -> Short (less a week) | U9: =INDEX([1]Variables!$G$3:$G$5,RANDBETWEEN(1,3),1) -> very frequent ( more than 12 times a year) | V9: 20 | W9: =IF(ISNA(VLOOKUP(S9,Variables!$K$1:$K$36,1,FALSE)),SUM('Other cost'!$B$2,'Salary in Industry'!$AR8,IF(ISNA(VLOOKUP(Simulation!S9,'Ransom Statistics'!$A$1:$D$18,4,FALSE)),'Ransom Statistics'!$D$18,VLOOKUP(Simulation!S9,'Ransom Statistics'!$A$1:$D$18,4,FALSE)))*IF(ISNA(VLOOKUP(S9,'Industry Type P'!$A$2:$S$103,2,FALSE)),'Kidnapping Statistics'!$K$3,VLOOKUP(S9,'Industry Type P'!$A$1:$S$102,MATCH($C9,'Industry Type P'!$A$1:$S$1,0),FALSE))*VLOOKUP(U9,'travel frequence'!$A$1:$D$4,MATCH(T9,'travel frequence'!$A$1:$D$1,0),FALSE)*V9*IF(ISNA(VLOOKUP(V9,'travel frequence'!$A$7:$B$23,2,FALSE)),'travel frequence'!$B$23,VLOOKUP(V9,'travel frequence'!$A$7:$B$23,2,FALSE)),0) -> 10.25177394 | X9: =IF(VLOOKUP(S9,'Industry Type P'!$A$1:$S$102,MATCH($C9,'Industry Type P'!$A$1:$S$1,0),FALSE)>RAND(),"Y","N") -> N | Y9: 0 | Z9: 0 | AA9: =IF(X9="N"," ",INDEX('Other cost'!$A$9:$A$13,RANDBETWEEN(1,5),1)) ->  | AB9: =MIN($H9,IF(X9="N",0,SUM(Z9,'Other cost'!$B$16,VLOOKUP(AA9,'Other cost'!$A$9:$B$13,2,FALSE),IF(Y9>=30,HLOOKUP(30,'Salary in Industry'!$N$1:$AQ$1001,$B9+1,FALSE),HLOOKUP(Y9,'Salary in Industry'!$N$1:$AQ$1001,$B9+1,FALSE)),IF(ISNA(VLOOKUP(S9,'Ransom Statistics'!$A$1:$D$18,4,FALSE)),'Ransom Statistics'!$D$18,VLOOKUP(S9,'Ransom Statistics'!$A$1:$D$18,4,FALSE))))) -> 0 | AC9: =INDEX([1]Variables!$A$2:$A$103,INT((RAND()*100)+1),1) -> Maili | AD9: =INDEX(Variables!$E$3:$E$5,RANDBETWEEN(1,3),1) -> Short (less a week) | AE9: =INDEX([1]Variables!$G$3:$G$5,RANDBETWEEN(1,3),1) -> frequent (3 times to 12 times) | AF9: 6 | AG9: =IF(ISNA(VLOOKUP(AC9,Variables!$K$1:$K$36,1,FALSE)),SUM('Other cost'!$B$2,'Salary in Industry'!$AR8,IF(ISNA(VLOOKUP(Simulation!AC9,'Ransom Statistics'!$A$1:$D$18,4,FALSE)),'Ransom Statistics'!$D$18,VLOOKUP(Simulation!AC9,'Ransom Statistics'!$A$1:$D$18,4,FALSE)))*IF(ISNA(VLOOKUP(AC9,'Industry Type P'!$A$2:$S$103,2,FALSE)),'Kidnapping Statistics'!$K$3,VLOOKUP(AC9,'Industry Type P'!$A$1:$S$102,MATCH($C9,'Industry Type P'!$A$1:$S$1,0),FALSE))*VLOOKUP(AE9,'travel frequence'!$A$1:$D$4,MATCH(AD9,'travel frequence'!$A$1:$D$1,0),FALSE)*AF9*IF(ISNA(VLOOKUP(AF9,'travel frequence'!$A$7:$B$23,2,FALSE)),'travel frequence'!$B$23,VLOOKUP(AF9,'travel frequence'!$A$7:$B$23,2,FALSE)),0) -> 1565.725475 | AH9: =IF(VLOOKUP(AC9,'Industry Type P'!$A$1:$S$102,MATCH($C9,'Industry Type P'!$A$1:$S$1,0),FALSE)>RAND(),"Y","N") -> N | AI9: 0 | AJ9: 0 | AK9: =IF(AH9="N"," ",INDEX('Other cost'!$A$9:$A$13,RANDBETWEEN(1,5),1)) ->  | AL9: =MIN($H9,IF(AH9="N",0,SUM(AJ9,'Other cost'!$B$16,VLOOKUP(AK9,'Other cost'!$A$9:$B$13,2,FALSE),IF(AI9>=30,HLOOKUP(30,'Salary in Industry'!$N$1:$AQ$1001,$B9+1,FALSE),HLOOKUP(AI9,'Salary in Industry'!$N$1:$AQ$1001,$B9+1,FALSE)),IF(ISNA(VLOOKUP(AC9,'Ransom Statistics'!$A$1:$D$18,4,FALSE)),'Ransom Statistics'!$D$18,VLOOKUP(AC9,'Ransom Statistics'!$A$1:$D$18,4,FALSE))))) -> 0 | AM9: =INDEX([1]Variables!$A$2:$A$103,INT((RAND()*100)+1),1) -> Sri Lanka | AN9: =INDEX(Variables!$E$3:$E$5,RANDBETWEEN(1,3),1) -> Medium (1 week to 1month) | AO9: =INDEX([1]Variables!$G$3:$G$5,RANDBETWEEN(1,3),1) -> frequent (3 times to 12 times) | AP9: 4 | AQ9: =IF(ISNA(VLOOKUP(AM9,Variables!$K$1:$K$36,1,FALSE)),SUM('Other cost'!$B$2,'Salary in Industry'!$AR8,IF(ISNA(VLOOKUP(Simulation!AM9,'Ransom Statistics'!$A$1:$D$18,4,FALSE)),'Ransom Statistics'!$D$18,VLOOKUP(Simulation!AM9,'Ransom Statistics'!$A$1:$D$18,4,FALSE)))*IF(ISNA(VLOOKUP(AM9,'Industry Type P'!$A$2:$S$103,2,FALSE)),'Kidnapping Statistics'!$K$3,VLOOKUP(AM9,'Industry Type P'!$A$1:$S$102,MATCH($C9,'Industry Type P'!$A$1:$S$1,0),FALSE))*VLOOKUP(AO9,'travel frequence'!$A$1:$D$4,MATCH(AN9,'travel frequence'!$A$1:$D$1,0),FALSE)*AP9*IF(ISNA(VLOOKUP(AP9,'travel frequence'!$A$7:$B$23,2,FALSE)),'travel frequence'!$B$23,VLOOKUP(AP9,'travel frequence'!$A$7:$B$23,2,FALSE)),0) -> 138.0969869 | AR9: =IF(VLOOKUP(AM9,'Industry Type P'!$A$1:$S$102,MATCH($C9,'Industry Type P'!$A$1:$S$1,0),FALSE)>RAND(),"Y","N") -> N | AS9: 0 | AT9: 0 | AU9: =IF(AR9="N"," ",INDEX('Other cost'!$A$9:$A$13,RANDBETWEEN(1,5),1)) ->  | AV9: =MIN($H9,IF(AR9="N",0,SUM(AT9,'Other cost'!$B$16,VLOOKUP(AU9,'Other cost'!$A$9:$B$13,2,FALSE),IF(AS9>=30,HLOOKUP(30,'Salary in Industry'!$N$1:$AQ$1001,$B9+1,FALSE),HLOOKUP(AS9,'Salary in Industry'!$N$1:$AQ$1001,$B9+1,FALSE)),IF(ISNA(VLOOKUP(AM9,'Ransom Statistics'!$A$1:$D$18,4,FALSE)),'Ransom Statistics'!$D$18,VLOOKUP(AM9,'Ransom Statistics'!$A$1:$D$18,4,FALSE))))) -> 0 | AW9: =INDEX([1]Variables!$A$2:$A$103,INT((RAND()*100)+1),1) -> Equatorial | AX9: =INDEX(Variables!$E$3:$E$5,RANDBETWEEN(1,3),1) -> Medium (1 week to 1month) | AY9: =INDEX([1]Variables!$G$3:$G$5,RANDBETWEEN(1,3),1) -> frequent (3 times to 12 times) | AZ9: 18 | BA9: =IF(ISNA(VLOOKUP(AW9,Variables!$K$1:$K$36,1,FALSE)),SUM('Other cost'!$B$2,'Salary in Industry'!$AR8,IF(ISNA(VLOOKUP(Simulation!AW9,'Ransom Statistics'!$A$1:$D$18,4,FALSE)),'Ransom Statistics'!$D$18,VLOOKUP(Simulation!AW9,'Ransom Statistics'!$A$1:$D$18,4,FALSE)))*IF(ISNA(VLOOKUP(AW9,'Industry Type P'!$A$2:$S$103,2,FALSE)),'Kidnapping Statistics'!$K$3,VLOOKUP(AW9,'Industry Type P'!$A$1:$S$102,MATCH($C9,'Industry Type P'!$A$1:$S$1,0),FALSE))*VLOOKUP(AY9,'travel frequence'!$A$1:$D$4,MATCH(AX9,'travel frequence'!$A$1:$D$1,0),FALSE)*AZ9*IF(ISNA(VLOOKUP(AZ9,'travel frequence'!$A$7:$B$23,2,FALSE)),'travel frequence'!$B$23,VLOOKUP(AZ9,'travel frequence'!$A$7:$B$23,2,FALSE)),0) -> 9.247566087 | BB9: =IF(VLOOKUP(AW9,'Industry Type P'!$A$1:$S$102,MATCH($C9,'Industry Type P'!$A$1:$S$1,0),FALSE)>RAND(),"Y","N") -> N | BC9: 0 | BD9: 0 | BE9: =IF(BB9="N"," ",INDEX('Other cost'!$A$9:$A$13,RANDBETWEEN(1,5),1)) ->  | BF9: =MIN($H9,IF(BB9="N",0,SUM(BD9,'Other cost'!$B$16,VLOOKUP(BE9,'Other cost'!$A$9:$B$13,2,FALSE),IF(BC9>=30,HLOOKUP(30,'Salary in Industry'!$N$1:$AQ$1001,$B9+1,FALSE),HLOOKUP(BC9,'Salary in Industry'!$N$1:$AQ$1001,$B9+1,FALSE)),IF(ISNA(VLOOKUP(AW9,'Ransom Statistics'!$A$1:$D$18,4,FALSE)),'Ransom Statistics'!$D$18,VLOOKUP(AW9,'Ransom Statistics'!$A$1:$D$18,4,FALSE))))) -> 0 | BG9: =INDEX([1]Variables!$A$2:$A$103,INT((RAND()*100)+1),1) -> North Korea | BH9: =INDEX(Variables!$E$3:$E$5,RANDBETWEEN(1,3),1) -> Long (more than one month) | BI9: =INDEX([1]Variables!$G$3:$G$5,RANDBETWEEN(1,3),1) -> infrequent (less than 3 times) | BJ9: 11 | BK9: =IF(ISNA(VLOOKUP(BG9,Variables!$K$1:$K$36,1,FALSE)),SUM('Other cost'!$B$2,'Salary in Industry'!$AR8,IF(ISNA(VLOOKUP(Simulation!BG9,'Ransom Statistics'!$A$1:$D$18,4,FALSE)),'Ransom Statistics'!$D$18,VLOOKUP(Simulation!BG9,'Ransom Statistics'!$A$1:$D$18,4,FALSE)))*IF(ISNA(VLOOKUP(BG9,'Industry Type P'!$A$2:$S$103,2,FALSE)),'Kidnapping Statistics'!$K$3,VLOOKUP(BG9,'Industry Type P'!$A$1:$S$102,MATCH($C9,'Industry Type P'!$A$1:$S$1,0),FALSE))*VLOOKUP(BI9,'travel frequence'!$A$1:$D$4,MATCH(BH9,'travel frequence'!$A$1:$D$1,0),FALSE)*BJ9*IF(ISNA(VLOOKUP(BJ9,'travel frequence'!$A$7:$B$23,2,FALSE)),'travel frequence'!$B$23,VLOOKUP(BJ9,'travel frequence'!$A$7:$B$23,2,FALSE)),0) -> 0 | BL9: =IF(VLOOKUP(BG9,'Industry Type P'!$A$1:$S$102,MATCH($C9,'Industry Type P'!$A$1:$S$1,0),FALSE)>RAND(),"Y","N") -> N | BM9: 0 | BN9: 0 | BO9: =IF(BL9="N"," ",INDEX('Other cost'!$A$9:$A$13,RANDBETWEEN(1,5),1)) ->  | BP9: =MIN($H9,IF(BL9="N",0,SUM(BN9,'Other cost'!$B$16,VLOOKUP(BO9,'Other cost'!$A$9:$B$13,2,FALSE),IF(BM9>=30,HLOOKUP(30,'Salary in Industry'!$N$1:$AQ$1001,$B9+1,FALSE),HLOOKUP(BM9,'Salary in Industry'!$N$1:$AQ$1001,$B9+1,FALSE)),IF(ISNA(VLOOKUP(BG9,'Ransom Statistics'!$A$1:$D$18,4,FALSE)),'Ransom Statistics'!$D$18,VLOOKUP(BG9,'Ransom Statistics'!$A$1:$D$18,4,FALSE))))) -> 0 | BQ9: =INDEX([1]Variables!$A$2:$A$103,INT((RAND()*100)+1),1) -> Myanmar | BR9: =INDEX(Variables!$E$3:$E$5,RANDBETWEEN(1,3),1) -> Short (less a week) | BS9: =INDEX([1]Variables!$G$3:$G$5,RANDBETWEEN(1,3),1) -> frequent (3 times to 12 times) | BT9: 3 | BU9: =IF(ISNA(VLOOKUP(BQ9,Variables!$K$1:$K$36,1,FALSE)),SUM('Other cost'!$B$2,'Salary in Industry'!$AR8,IF(ISNA(VLOOKUP(Simulation!BQ9,'Ransom Statistics'!$A$1:$D$18,4,FALSE)),'Ransom Statistics'!$D$18,VLOOKUP(Simulation!BQ9,'Ransom Statistics'!$A$1:$D$18,4,FALSE)))*IF(ISNA(VLOOKUP(BQ9,'Industry Type P'!$A$2:$S$103,2,FALSE)),'Kidnapping Statistics'!$K$3,VLOOKUP(BQ9,'Industry Type P'!$A$1:$S$102,MATCH($C9,'Industry Type P'!$A$1:$S$1,0),FALSE))*VLOOKUP(BS9,'travel frequence'!$A$1:$D$4,MATCH(BR9,'travel frequence'!$A$1:$D$1,0),FALSE)*BT9*IF(ISNA(VLOOKUP(BT9,'travel frequence'!$A$7:$B$23,2,FALSE)),'travel frequence'!$B$23,VLOOKUP(BT9,'travel frequence'!$A$7:$B$23,2,FALSE)),0) -> 660.5404348 | BV9: =IF(VLOOKUP(BQ9,'Industry Type P'!$A$1:$S$102,MATCH($C9,'Industry Type P'!$A$1:$S$1,0),FALSE)>RAND(),"Y","N") -> N | BW9: 0 | BX9: 0 | BY9: =IF(BV9="N"," ",INDEX('Other cost'!$A$9:$A$13,RANDBETWEEN(1,5),1)) ->  | BZ9: =MIN($H9,IF(BV9="N",0,SUM(BX9,'Other cost'!$B$16,VLOOKUP(BY9,'Other cost'!$A$9:$B$13,2,FALSE),IF(BW9>=30,HLOOKUP(30,'Salary in Industry'!$N$1:$AQ$1001,$B9+1,FALSE),HLOOKUP(BW9,'Salary in Industry'!$N$1:$AQ$1001,$B9+1,FALSE)),IF(ISNA(VLOOKUP(BQ9,'Ransom Statistics'!$A$1:$D$18,4,FALSE)),'Ransom Statistics'!$D$18,VLOOKUP(BQ9,'Ransom Statistics'!$A$1:$D$18,4,FALSE))))) -> 0 | CA9: =INDEX([1]Variables!$A$2:$A$103,INT((RAND()*100)+1),1) -> Egypt | CB9: =INDEX(Variables!$E$3:$E$5,RANDBETWEEN(1,3),1) -> Medium (1 week to 1month) | CC9: =INDEX([1]Variables!$G$3:$G$5,RANDBETWEEN(1,3),1) -> infrequent (less than 3 times) | CD9: 19 | CE9: =IF(ISNA(VLOOKUP(CA9,Variables!$K$1:$K$36,1,FALSE)),SUM('Other cost'!$B$2,'Salary in Industry'!$AR8,IF(ISNA(VLOOKUP(Simulation!CA9,'Ransom Statistics'!$A$1:$D$18,4,FALSE)),'Ransom Statistics'!$D$18,VLOOKUP(Simulation!CA9,'Ransom Statistics'!$A$1:$D$18,4,FALSE)))*IF(ISNA(VLOOKUP(CA9,'Industry Type P'!$A$2:$S$103,2,FALSE)),'Kidnapping Statistics'!$K$3,VLOOKUP(CA9,'Industry Type P'!$A$1:$S$102,MATCH($C9,'Industry Type P'!$A$1:$S$1,0),FALSE))*VLOOKUP(CC9,'travel frequence'!$A$1:$D$4,MATCH(CB9,'travel frequence'!$A$1:$D$1,0),FALSE)*CD9*IF(ISNA(VLOOKUP(CD9,'travel frequence'!$A$7:$B$23,2,FALSE)),'travel frequence'!$B$23,VLOOKUP(CD9,'travel frequence'!$A$7:$B$23,2,FALSE)),0) -> 309.5935795 | CF9: =IF(VLOOKUP(CA9,'Industry Type P'!$A$1:$S$102,MATCH($C9,'Industry Type P'!$A$1:$S$1,0),FALSE)>RAND(),"Y","N") -> N | CG9: 0 | CH9: 0 | CI9: =IF(CF9="N"," ",INDEX('Other cost'!$A$9:$A$13,RANDBETWEEN(1,5),1)) ->  | CJ9: =MIN($H9,IF(CF9="N",0,SUM(CH9,'Other cost'!$B$16,VLOOKUP(CI9,'Other cost'!$A$9:$B$13,2,FALSE),IF(CG9>=30,HLOOKUP(30,'Salary in Industry'!$N$1:$AQ$1001,$B9+1,FALSE),HLOOKUP(CG9,'Salary in Industry'!$N$1:$AQ$1001,$B9+1,FALSE)),IF(ISNA(VLOOKUP(CA9,'Ransom Statistics'!$A$1:$D$18,4,FALSE)),'Ransom Statistics'!$D$18,VLOOKUP(CA9,'Ransom Statistics'!$A$1:$D$18,4,FALSE))))) -> 0 | CK9: =INDEX([1]Variables!$A$2:$A$103,INT((RAND()*100)+1),1) -> East Timor | CL9: =INDEX(Variables!$E$3:$E$5,RANDBETWEEN(1,3),1) -> Medium (1 week to 1month) | CM9: =INDEX([1]Variables!$G$3:$G$5,RANDBETWEEN(1,3),1) -> very frequent ( more than 12 times a year) | CN9: 6 | CO9: =IF(ISNA(VLOOKUP(CK9,Variables!$K$1:$K$36,1,FALSE)),SUM('Other cost'!$B$2,'Salary in Industry'!$AR8,IF(ISNA(VLOOKUP(Simulation!CK9,'Ransom Statistics'!$A$1:$D$18,4,FALSE)),'Ransom Statistics'!$D$18,VLOOKUP(Simulation!CK9,'Ransom Statistics'!$A$1:$D$18,4,FALSE)))*IF(ISNA(VLOOKUP(CK9,'Industry Type P'!$A$2:$S$103,2,FALSE)),'Kidnapping Statistics'!$K$3,VLOOKUP(CK9,'Industry Type P'!$A$1:$S$102,MATCH($C9,'Industry Type P'!$A$1:$S$1,0),FALSE))*VLOOKUP(CM9,'travel frequence'!$A$1:$D$4,MATCH(CL9,'travel frequence'!$A$1:$D$1,0),FALSE)*CN9*IF(ISNA(VLOOKUP(CN9,'travel frequence'!$A$7:$B$23,2,FALSE)),'travel frequence'!$B$23,VLOOKUP(CN9,'travel frequence'!$A$7:$B$23,2,FALSE)),0) -> 4.305745056 | CP9: =IF(VLOOKUP(CK9,'Industry Type P'!$A$1:$S$102,MATCH($C9,'Industry Type P'!$A$1:$S$1,0),FALSE)>RAND(),"Y","N") -> N | CQ9: 0 | CR9: 0 | CS9: =IF(CP9="N"," ",INDEX('Other cost'!$A$9:$A$13,RANDBETWEEN(1,5),1)) ->  | CT9: =MIN($H9,IF(CP9="N",0,SUM(CR9,'Other cost'!$B$16,VLOOKUP(CS9,'Other cost'!$A$9:$B$13,2,FALSE),IF(CQ9>=30,HLOOKUP(30,'Salary in Industry'!$N$1:$AQ$1001,$B9+1,FALSE),HLOOKUP(CQ9,'Salary in Industry'!$N$1:$AQ$1001,$B9+1,FALSE)),IF(ISNA(VLOOKUP(CK9,'Ransom Statistics'!$A$1:$D$18,4,FALSE)),'Ransom Statistics'!$D$18,VLOOKUP(CK9,'Ransom Statistics'!$A$1:$D$18,4,FALSE))))) -> 0 | CU9: =INDEX([1]Variables!$A$2:$A$103,INT((RAND()*100)+1),1) -> Angola | CV9: =INDEX(Variables!$E$3:$E$5,RANDBETWEEN(1,3),1) -> Long (more than one month) | CW9: =INDEX([1]Variables!$G$3:$G$5,RANDBETWEEN(1,3),1) -> very frequent ( more than 12 times a year) | CX9: 20 | CY9: =IF(ISNA(VLOOKUP(CU9,Variables!$K$1:$K$36,1,FALSE)),SUM('Other cost'!$B$2,'Salary in Industry'!$AR8,IF(ISNA(VLOOKUP(Simulation!CU9,'Ransom Statistics'!$A$1:$D$18,4,FALSE)),'Ransom Statistics'!$D$18,VLOOKUP(Simulation!CU9,'Ransom Statistics'!$A$1:$D$18,4,FALSE)))*IF(ISNA(VLOOKUP(CU9,'Industry Type P'!$A$2:$S$103,2,FALSE)),'Kidnapping Statistics'!$K$3,VLOOKUP(CU9,'Industry Type P'!$A$1:$S$102,MATCH($C9,'Industry Type P'!$A$1:$S$1,0),FALSE))*VLOOKUP(CW9,'travel frequence'!$A$1:$D$4,MATCH(CV9,'travel frequence'!$A$1:$D$1,0),FALSE)*CX9*IF(ISNA(VLOOKUP(CX9,'travel frequence'!$A$7:$B$23,2,FALSE)),'travel frequence'!$B$23,VLOOKUP(CX9,'travel frequence'!$A$7:$B$23,2,FALSE)),0) -> 3383.085402 | CZ9: =IF(VLOOKUP(CU9,'Industry Type P'!$A$1:$S$102,MATCH($C9,'Industry Type P'!$A$1:$S$1,0),FALSE)>RAND(),"Y","N") -> N | DA9: 0 | DB9: 0 | DC9: =IF(CZ9="N"," ",INDEX('Other cost'!$A$9:$A$13,RANDBETWEEN(1,5),1)) ->  | DD9: =MIN($H9,IF(CZ9="N",0,SUM(DB9,'Other cost'!$B$16,VLOOKUP(DC9,'Other cost'!$A$9:$B$13,2,FALSE),IF(DA9>=30,HLOOKUP(30,'Salary in Industry'!$N$1:$AQ$1001,$B9+1,FALSE),HLOOKUP(DA9,'Salary in Industry'!$N$1:$AQ$1001,$B9+1,FALSE)),IF(ISNA(VLOOKUP(CU9,'Ransom Statistics'!$A$1:$D$18,4,FALSE)),'Ransom Statistics'!$D$18,VLOOKUP(CU9,'Ransom Statistics'!$A$1:$D$18,4,FALSE))))) -> 0 | DE9: 0 | DF9: =((IF(A9=0,0,IF(A9=1,M9,IF(A9=2,M9+W9,IF(A9=3,M9+W9+AG9,IF(A9=4,M9+W9+AG9+AQ9,IF(A9=5,M9+W9+AG9+AQ9+BA9,IF(A9=6,M9+W9+AG9+AQ9+BA9+BK9,IF(A9=7,M9+W9+AG9+AQ9+BA9+BK9+BU9,IF(A9=8,M9+W9+AG9+AQ9+BA9+BK9+BU9+CE9,IF(A9=9,M9+W9+AG9+AQ9+BA9+BK9+BU9+CE9+CO9,IF(A9=10,M9+W9+AG9+AQ9+BA9+BK9+BU9+CE9+CO9+CY9))))))))))))/(1+Variables!$G$12))*(1+Variables!$F$21) -> 389.0688987 | DJ9: Profit | DK9: =DK6-DK7-DK8 -> -340881.4053
A10: 7 | B10: 8 | C10: =INDEX([1]Variables!$C$2:$C$19,INT((RAND()*10)+1),1) -> Finance and Insurance | D10: 37 | E10: 328 | F10: 15778 | G10: 14163199 | H10: =Variables!$H$21 -> 1000000 | I10: =INDEX([1]Variables!$A$2:$A$103,INT((RAND()*100)+1),1) -> Coted'lvoire | J10: =INDEX(Variables!$E$3:$E$5,RANDBETWEEN(1,3),1) -> Medium (1 week to 1month) | K10: =INDEX([1]Variables!$G$3:$G$5,RANDBETWEEN(1,3),1) -> frequent (3 times to 12 times) | L10: 2 | M10: =IF(ISNA(VLOOKUP(I10,Variables!$K$1:$K$36,1,FALSE)),SUM('Other cost'!$B$2,'Salary in Industry'!$AR9,IF(ISNA(VLOOKUP(Simulation!I10,'Ransom Statistics'!$A$1:$D$18,4,FALSE)),'Ransom Statistics'!$D$18,VLOOKUP(Simulation!I10,'Ransom Statistics'!$A$1:$D$18,4,FALSE)))*IF(ISNA(VLOOKUP(I10,'Industry Type P'!$A$2:$S$103,2,FALSE)),'Kidnapping Statistics'!$K$3,VLOOKUP(I10,'Industry Type P'!$A$1:$S$102,MATCH($C10,'Industry Type P'!$A$1:$S$1,0),FALSE))*VLOOKUP(K10,'travel frequence'!$A$1:$D$4,MATCH(J10,'travel frequence'!$A$1:$D$1,0),FALSE)*L10*IF(ISNA(VLOOKUP(L10,'travel frequence'!$A$7:$B$23,2,FALSE)),'travel frequence'!$B$23,VLOOKUP(L10,'travel frequence'!$A$7:$B$23,2,FALSE)),0) -> 462.3983013 | N10: =IF(VLOOKUP(I10,'Industry Type P'!$A$1:$S$102,MATCH($C10,'Industry Type P'!$A$1:$S$1,0),FALSE)>RAND(),"Y","N") -> N | O10: 0 | P10: 0 | Q10: =IF(N10="N"," ",INDEX('Other cost'!$A$9:$A$13,RANDBETWEEN(1,5),1)) ->  | R10: =MIN($H10,IF(N10="N",0,SUM(P10,'Other cost'!$B$16,VLOOKUP(Q10,'Other cost'!$A$9:$B$13,2,FALSE),IF(O10>=30,HLOOKUP(30,'Salary in Industry'!$N$1:$AQ$1001,$B10+1,FALSE),HLOOKUP(O10,'Salary in Industry'!$N$1:$AQ$1001,$B10+1,FALSE)),IF(ISNA(VLOOKUP(I10,'Ransom Statistics'!$A$1:$D$18,4,FALSE)),'Ransom Statistics'!$D$18,VLOOKUP(I10,'Ransom Statistics'!$A$1:$D$18,4,FALSE))))) -> 0 | S10: =INDEX([1]Variables!$A$2:$A$103,INT((RAND()*100)+1),1) -> Panama | T10: =INDEX(Variables!$E$3:$E$5,RANDBETWEEN(1,3),1) -> Short (less a week) | U10: =INDEX([1]Variables!$G$3:$G$5,RANDBETWEEN(1,3),1) -> frequent (3 times to 12 times) | V10: 11 | W10: =IF(ISNA(VLOOKUP(S10,Variables!$K$1:$K$36,1,FALSE)),SUM('Other cost'!$B$2,'Salary in Industry'!$AR9,IF(ISNA(VLOOKUP(Simulation!S10,'Ransom Statistics'!$A$1:$D$18,4,FALSE)),'Ransom Statistics'!$D$18,VLOOKUP(Simulation!S10,'Ransom Statistics'!$A$1:$D$18,4,FALSE)))*IF(ISNA(VLOOKUP(S10,'Industry Type P'!$A$2:$S$103,2,FALSE)),'Kidnapping Statistics'!$K$3,VLOOKUP(S10,'Industry Type P'!$A$1:$S$102,MATCH($C10,'Industry Type P'!$A$1:$S$1,0),FALSE))*VLOOKUP(U10,'travel frequence'!$A$1:$D$4,MATCH(T10,'travel frequence'!$A$1:$D$1,0),FALSE)*V10*IF(ISNA(VLOOKUP(V10,'travel frequence'!$A$7:$B$23,2,FALSE)),'travel frequence'!$B$23,VLOOKUP(V10,'travel frequence'!$A$7:$B$23,2,FALSE)),0) -> 28.88562228 | X10: =IF(VLOOKUP(S10,'Industry Type P'!$A$1:$S$102,MATCH($C10,'Industry Type P'!$A$1:$S$1,0),FALSE)>RAND(),"Y","N") -> N | Y10: 0 | Z10: 0 | AA10: =IF(X10="N"," ",INDEX('Other cost'!$A$9:$A$13,RANDBETWEEN(1,5),1)) ->  | AB10: =MIN($H10,IF(X10="N",0,SUM(Z10,'Other cost'!$B$16,VLOOKUP(AA10,'Other cost'!$A$9:$B$13,2,FALSE),IF(Y10>=30,HLOOKUP(30,'Salary in Industry'!$N$1:$AQ$1001,$B10+1,FALSE),HLOOKUP(Y10,'Salary in Industry'!$N$1:$AQ$1001,$B10+1,FALSE)),IF(ISNA(VLOOKUP(S10,'Ransom Statistics'!$A$1:$D$18,4,FALSE)),'Ransom Statistics'!$D$18,VLOOKUP(S10,'Ransom Statistics'!$A$1:$D$18,4,FALSE))))) -> 0 | AC10: =INDEX([1]Variables!$A$2:$A$103,INT((RAND()*100)+1),1) -> Chile | AD10: =INDEX(Variables!$E$3:$E$5,RANDBETWEEN(1,3),1) -> Long (more than one month) | AE10: =INDEX([1]Variables!$G$3:$G$5,RANDBETWEEN(1,3),1) -> infrequent (less than 3 times) | AF10: 18 | AG10: =IF(ISNA(VLOOKUP(AC10,Variables!$K$1:$K$36,1,FALSE)),SUM('Other cost'!$B$2,'Salary in Industry'!$AR9,IF(ISNA(VLOOKUP(Simulation!AC10,'Ransom Statistics'!$A$1:$D$18,4,FALSE)),'Ransom Statistics'!$D$18,VLOOKUP(Simulation!AC10,'Ransom Statistics'!$A$1:$D$18,4,FALSE)))*IF(ISNA(VLOOKUP(AC10,'Industry Type P'!$A$2:$S$103,2,FALSE)),'Kidnapping Statistics'!$K$3,VLOOKUP(AC10,'Industry Type P'!$A$1:$S$102,MATCH($C10,'Industry Type P'!$A$1:$S$1,0),FALSE))*VLOOKUP(AE10,'travel frequence'!$A$1:$D$4,MATCH(AD10,'travel frequence'!$A$1:$D$1,0),FALSE)*AF10*IF(ISNA(VLOOKUP(AF10,'travel frequence'!$A$7:$B$23,2,FALSE)),'travel frequence'!$B$23,VLOOKUP(AF10,'travel frequence'!$A$7:$B$23,2,FALSE)),0) -> 490.6871595 | AH10: =IF(VLOOKUP(AC10,'Industry Type P'!$A$1:$S$102,MATCH($C10,'Industry Type P'!$A$1:$S$1,0),FALSE)>RAND(),"Y","N") -> N | AI10: 0 | AJ10: 0 | AK10: =IF(AH10="N"," ",INDEX('Other cost'!$A$9:$A$13,RANDBETWEEN(1,5),1)) ->  | AL10: =MIN($H10,IF(AH10="N",0,SUM(AJ10,'Other cost'!$B$16,VLOOKUP(AK10,'Other cost'!$A$9:$B$13,2,FALSE),IF(AI10>=30,HLOOKUP(30,'Salary in Industry'!$N$1:$AQ$1001,$B10+1,FALSE),HLOOKUP(AI10,'Salary in Industry'!$N$1:$AQ$1001,$B10+1,FALSE)),IF(ISNA(VLOOKUP(AC10,'Ransom Statistics'!$A$1:$D$18,4,FALSE)),'Ransom Statistics'!$D$18,VLOOKUP(AC10,'Ransom Statistics'!$A$1:$D$18,4,FALSE))))) -> 0 | AM10: =INDEX([1]Variables!$A$2:$A$103,INT((RAND()*100)+1),1) -> Maili | AN10: =INDEX(Variables!$E$3:$E$5,RANDBETWEEN(1,3),1) -> Medium (1 week to 1month) | AO10: =INDEX([1]Variables!$G$3:$G$5,RANDBETWEEN(1,3),1) -> frequent (3 times to 12 times) | AP10: 15 | AQ10: =IF(ISNA(VLOOKUP(AM10,Variables!$K$1:$K$36,1,FALSE)),SUM('Other cost'!$B$2,'Salary in Industry'!$AR9,IF(ISNA(VLOOKUP(Simulation!AM10,'Ransom Statistics'!$A$1:$D$18,4,FALSE)),'Ransom Statistics'!$D$18,VLOOKUP(Simulation!AM10,'Ransom Statistics'!$A$1:$D$18,4,FALSE)))*IF(ISNA(VLOOKUP(AM10,'Industry Type P'!$A$2:$S$103,2,FALSE)),'Kidnapping Statistics'!$K$3,VLOOKUP(AM10,'Industry Type P'!$A$1:$S$102,MATCH($C10,'Industry Type P'!$A$1:$S$1,0),FALSE))*VLOOKUP(AO10,'travel frequence'!$A$1:$D$4,MATCH(AN10,'travel frequence'!$A$1:$D$1,0),FALSE)*AP10*IF(ISNA(VLOOKUP(AP10,'travel frequence'!$A$7:$B$23,2,FALSE)),'travel frequence'!$B$23,VLOOKUP(AP10,'travel frequence'!$A$7:$B$23,2,FALSE)),0) -> 3082.655342 | AR10: =IF(VLOOKUP(AM10,'Industry Type P'!$A$1:$S$102,MATCH($C10,'Industry Type P'!$A$1:$S$1,0),FALSE)>RAND(),"Y","N") -> N | AS10: 0 | AT10: 0 | AU10: =IF(AR10="N"," ",INDEX('Other cost'!$A$9:$A$13,RANDBETWEEN(1,5),1)) ->  | AV10: =MIN($H10,IF(AR10="N",0,SUM(AT10,'Other cost'!$B$16,VLOOKUP(AU10,'Other cost'!$A$9:$B$13,2,FALSE),IF(AS10>=30,HLOOKUP(30,'Salary in Industry'!$N$1:$AQ$1001,$B10+1,FALSE),HLOOKUP(AS10,'Salary in Industry'!$N$1:$AQ$1001,$B10+1,FALSE)),IF(ISNA(VLOOKUP(AM10,'Ransom Statistics'!$A$1:$D$18,4,FALSE)),'Ransom Statistics'!$D$18,VLOOKUP(AM10,'Ransom Statistics'!$A$1:$D$18,4,FALSE))))) -> 0 | AW10: =INDEX([1]Variables!$A$2:$A$103,INT((RAND()*100)+1),1) -> Panama | AX10: =INDEX(Variables!$E$3:$E$5,RANDBETWEEN(1,3),1) -> Short (less a week) | AY10: =INDEX([1]Variables!$G$3:$G$5,RANDBETWEEN(1,3),1) -> frequent (3 times to 12 times) | AZ10: 20 | BA10: =IF(ISNA(VLOOKUP(AW10,Variables!$K$1:$K$36,1,FALSE)),SUM('Other cost'!$B$2,'Salary in Industry'!$AR9,IF(ISNA(VLOOKUP(Simulation!AW10,'Ransom Statistics'!$A$1:$D$18,4,FALSE)),'Ransom Statistics'!$D$18,VLOOKUP(Simulation!AW10,'Ransom Statistics'!$A$1:$D$18,4,FALSE)))*IF(ISNA(VLOOKUP(AW10,'Industry Type P'!$A$2:$S$103,2,FALSE)),'Kidnapping Statistics'!$K$3,VLOOKUP(AW10,'Industry Type P'!$A$1:$S$102,MATCH($C10,'Industry Type P'!$A$1:$S$1,0),FALSE))*VLOOKUP(AY10,'travel frequence'!$A$1:$D$4,MATCH(AX10,'travel frequence'!$A$1:$D$1,0),FALSE)*AZ10*IF(ISNA(VLOOKUP(AZ10,'travel frequence'!$A$7:$B$23,2,FALSE)),'travel frequence'!$B$23,VLOOKUP(AZ10,'travel frequence'!$A$7:$B$23,2,FALSE)),0) -> 45.0165542 | BB10: =IF(VLOOKUP(AW10,'Industry Type P'!$A$1:$S$102,MATCH($C10,'Industry Type P'!$A$1:$S$1,0),FALSE)>RAND(),"Y","N") -> N | BC10: 0 | BD10: 0 | BE10: =IF(BB10="N"," ",INDEX('Other cost'!$A$9:$A$13,RANDBETWEEN(1,5),1)) ->  | BF10: =MIN($H10,IF(BB10="N",0,SUM(BD10,'Other cost'!$B$16,VLOOKUP(BE10,'Other cost'!$A$9:$B$13,2,FALSE),IF(BC10>=30,HLOOKUP(30,'Salary in Industry'!$N$1:$AQ$1001,$B10+1,FALSE),HLOOKUP(BC10,'Salary in Industry'!$N$1:$AQ$1001,$B10+1,FALSE)),IF(ISNA(VLOOKUP(AW10,'Ransom Statistics'!$A$1:$D$18,4,FALSE)),'Ransom Statistics'!$D$18,VLOOKUP(AW10,'Ransom Statistics'!$A$1:$D$18,4,FALSE))))) -> 0 | BG10: =INDEX([1]Variables!$A$2:$A$103,INT((RAND()*100)+1),1) -> Brazil | BH10: =INDEX(Variables!$E$3:$E$5,RANDBETWEEN(1,3),1) -> Short (less a week) | BI10: =INDEX([1]Variables!$G$3:$G$5,RANDBETWEEN(1,3),1) -> infrequent (less than 3 times) | BJ10: 6 | BK10: =IF(ISNA(VLOOKUP(BG10,Variables!$K$1:$K$36,1,FALSE)),SUM('Other cost'!$B$2,'Salary in Industry'!$AR9,IF(ISNA(VLOOKUP(Simulation!BG10,'Ransom Statistics'!$A$1:$D$18,4,FALSE)),'Ransom Statistics'!$D$18,VLOOKUP(Simulation!BG10,'Ransom Statistics'!$A$1:$D$18,4,FALSE)))*IF(ISNA(VLOOKUP(BG10,'Industry Type P'!$A$2:$S$103,2,FALSE)),'Kidnapping Statistics'!$K$3,VLOOKUP(BG10,'Industry Type P'!$A$1:$S$102,MATCH($C10,'Industry Type P'!$A$1:$S$1,0),FALSE))*VLOOKUP(BI10,'travel frequence'!$A$1:$D$4,MATCH(BH10,'travel frequence'!$A$1:$D$1,0),FALSE)*BJ10*IF(ISNA(VLOOKUP(BJ10,'travel frequence'!$A$7:$B$23,2,FALSE)),'travel frequence'!$B$23,VLOOKUP(BJ10,'travel frequence'!$A$7:$B$23,2,FALSE)),0) -> 571.8448984 | BL10: =IF(VLOOKUP(BG10,'Industry Type P'!$A$1:$S$102,MATCH($C10,'Industry Type P'!$A$1:$S$1,0),FALSE)>RAND(),"Y","N") -> N | BM10: 0 | BN10: 0 | BO10: =IF(BL10="N"," ",INDEX('Other cost'!$A$9:$A$13,RANDBETWEEN(1,5),1)) ->  | BP10: =MIN($H10,IF(BL10="N",0,SUM(BN10,'Other cost'!$B$16,VLOOKUP(BO10,'Other cost'!$A$9:$B$13,2,FALSE),IF(BM10>=30,HLOOKUP(30,'Salary in Industry'!$N$1:$AQ$1001,$B10+1,FALSE),HLOOKUP(BM10,'Salary in Industry'!$N$1:$AQ$1001,$B10+1,FALSE)),IF(ISNA(VLOOKUP(BG10,'Ransom Statistics'!$A$1:$D$18,4,FALSE)),'Ransom Statistics'!$D$18,VLOOKUP(BG10,'Ransom Statistics'!$A$1:$D$18,4,FALSE))))) -> 0 | BQ10: =INDEX([1]Variables!$A$2:$A$103,INT((RAND()*100)+1),1) -> Congo | BR10: =INDEX(Variables!$E$3:$E$5,RANDBETWEEN(1,3),1) -> Short (less a week) | BS10: =INDEX([1]Variables!$G$3:$G$5,RANDBETWEEN(1,3),1) -> frequent (3 times to 12 times) | BT10: 19 | BU10: =IF(ISNA(VLOOKUP(BQ10,Variables!$K$1:$K$36,1,FALSE)),SUM('Other cost'!$B$2,'Salary in Industry'!$AR9,IF(ISNA(VLOOKUP(Simulation!BQ10,'Ransom Statistics'!$A$1:$D$18,4,FALSE)),'Ransom Statistics'!$D$18,VLOOKUP(Simulation!BQ10,'Ransom Statistics'!$A$1:$D$18,4,FALSE)))*IF(ISNA(VLOOKUP(BQ10,'Industry Type P'!$A$2:$S$103,2,FALSE)),'Kidnapping Statistics'!$K$3,VLOOKUP(BQ10,'Industry Type P'!$A$1:$S$102,MATCH($C10,'Industry Type P'!$A$1:$S$1,0),FALSE))*VLOOKUP(BS10,'travel frequence'!$A$1:$D$4,MATCH(BR10,'travel frequence'!$A$1:$D$1,0),FALSE)*BT10*IF(ISNA(VLOOKUP(BT10,'travel frequence'!$A$7:$B$23,2,FALSE)),'travel frequence'!$B$23,VLOOKUP(BT10,'travel frequence'!$A$7:$B$23,2,FALSE)),0) -> 9.296897063 | BV10: =IF(VLOOKUP(BQ10,'Industry Type P'!$A$1:$S$102,MATCH($C10,'Industry Type P'!$A$1:$S$1,0),FALSE)>RAND(),"Y","N") -> N | BW10: 0 | BX10: 0 | BY10: =IF(BV10="N"," ",INDEX('Other cost'!$A$9:$A$13,RANDBETWEEN(1,5),1)) ->  | BZ10: =MIN($H10,IF(BV10="N",0,SUM(BX10,'Other cost'!$B$16,VLOOKUP(BY10,'Other cost'!$A$9:$B$13,2,FALSE),IF(BW10>=30,HLOOKUP(30,'Salary in Industry'!$N$1:$AQ$1001,$B10+1,FALSE),HLOOKUP(BW10,'Salary in Industry'!$N$1:$AQ$1001,$B10+1,FALSE)),IF(ISNA(VLOOKUP(BQ10,'Ransom Statistics'!$A$1:$D$18,4,FALSE)),'Ransom Statistics'!$D$18,VLOOKUP(BQ10,'Ransom Statistics'!$A$1:$D$18,4,FALSE))))) -> 0 | CA10: =INDEX([1]Variables!$A$2:$A$103,INT((RAND()*100)+1),1) -> India | CB10: =INDEX(Variables!$E$3:$E$5,RANDBETWEEN(1,3),1) -> Medium (1 week to 1month) | CC10: =INDEX([1]Variables!$G$3:$G$5,RANDBETWEEN(1,3),1) -> very frequent ( more than 12 times a year) | CD10: 13 | CE10: =IF(ISNA(VLOOKUP(CA10,Variables!$K$1:$K$36,1,FALSE)),SUM('Other cost'!$B$2,'Salary in Industry'!$AR9,IF(ISNA(VLOOKUP(Simulation!CA10,'Ransom Statistics'!$A$1:$D$18,4,FALSE)),'Ransom Statistics'!$D$18,VLOOKUP(Simulation!CA10,'Ransom Statistics'!$A$1:$D$18,4,FALSE)))*IF(ISNA(VLOOKUP(CA10,'Industry Type P'!$A$2:$S$103,2,FALSE)),'Kidnapping Statistics'!$K$3,VLOOKUP(CA10,'Industry Type P'!$A$1:$S$102,MATCH($C10,'Industry Type P'!$A$1:$S$1,0),FALSE))*VLOOKUP(CC10,'travel frequence'!$A$1:$D$4,MATCH(CB10,'travel frequence'!$A$1:$D$1,0),FALSE)*CD10*IF(ISNA(VLOOKUP(CD10,'travel frequence'!$A$7:$B$23,2,FALSE)),'travel frequence'!$B$23,VLOOKUP(CD10,'travel frequence'!$A$7:$B$23,2,FALSE)),0) -> 15552.86052 | CF10: =IF(VLOOKUP(CA10,'Industry Type P'!$A$1:$S$102,MATCH($C10,'Industry Type P'!$A$1:$S$1,0),FALSE)>RAND(),"Y","N") -> N | CG10: 0 | CH10: 0 | CI10: =IF(CF10="N"," ",INDEX('Other cost'!$A$9:$A$13,RANDBETWEEN(1,5),1)) ->  | CJ10: =MIN($H10,IF(CF10="N",0,SUM(CH10,'Other cost'!$B$16,VLOOKUP(CI10,'Other cost'!$A$9:$B$13,2,FALSE),IF(CG10>=30,HLOOKUP(30,'Salary in Industry'!$N$1:$AQ$1001,$B10+1,FALSE),HLOOKUP(CG10,'Salary in Industry'!$N$1:$AQ$1001,$B10+1,FALSE)),IF(ISNA(VLOOKUP(CA10,'Ransom Statistics'!$A$1:$D$18,4,FALSE)),'Ransom Statistics'!$D$18,VLOOKUP(CA10,'Ransom Statistics'!$A$1:$D$18,4,FALSE))))) -> 0 | CK10: =INDEX([1]Variables!$A$2:$A$103,INT((RAND()*100)+1),1) -> Djibouti | CL10: =INDEX(Variables!$E$3:$E$5,RANDBETWEEN(1,3),1) -> Medium (1 week to 1month) | CM10: =INDEX([1]Variables!$G$3:$G$5,RANDBETWEEN(1,3),1) -> very frequent ( more than 12 times a year) | CN10: 19 | CO10: =IF(ISNA(VLOOKUP(CK10,Variables!$K$1:$K$36,1,FALSE)),SUM('Other cost'!$B$2,'Salary in Industry'!$AR9,IF(ISNA(VLOOKUP(Simulation!CK10,'Ransom Statistics'!$A$1:$D$18,4,FALSE)),'Ransom Statistics'!$D$18,VLOOKUP(Simulation!CK10,'Ransom Statistics'!$A$1:$D$18,4,FALSE)))*IF(ISNA(VLOOKUP(CK10,'Industry Type P'!$A$2:$S$103,2,FALSE)),'Kidnapping Statistics'!$K$3,VLOOKUP(CK10,'Industry Type P'!$A$1:$S$102,MATCH($C10,'Industry Type P'!$A$1:$S$1,0),FALSE))*VLOOKUP(CM10,'travel frequence'!$A$1:$D$4,MATCH(CL10,'travel frequence'!$A$1:$D$1,0),FALSE)*CN10*IF(ISNA(VLOOKUP(CN10,'travel frequence'!$A$7:$B$23,2,FALSE)),'travel frequence'!$B$23,VLOOKUP(CN10,'travel frequence'!$A$7:$B$23,2,FALSE)),0) -> 0 | CP10: =IF(VLOOKUP(CK10,'Industry Type P'!$A$1:$S$102,MATCH($C10,'Industry Type P'!$A$1:$S$1,0),FALSE)>RAND(),"Y","N") -> N | CQ10: 0 | CR10: 0 | CS10: =IF(CP10="N"," ",INDEX('Other cost'!$A$9:$A$13,RANDBETWEEN(1,5),1)) ->  | CT10: =MIN($H10,IF(CP10="N",0,SUM(CR10,'Other cost'!$B$16,VLOOKUP(CS10,'Other cost'!$A$9:$B$13,2,FALSE),IF(CQ10>=30,HLOOKUP(30,'Salary in Industry'!$N$1:$AQ$1001,$B10+1,FALSE),HLOOKUP(CQ10,'Salary in Industry'!$N$1:$AQ$1001,$B10+1,FALSE)),IF(ISNA(VLOOKUP(CK10,'Ransom Statistics'!$A$1:$D$18,4,FALSE)),'Ransom Statistics'!$D$18,VLOOKUP(CK10,'Ransom Statistics'!$A$1:$D$18,4,FALSE))))) -> 0 | CU10: =INDEX([1]Variables!$A$2:$A$103,INT((RAND()*100)+1),1) -> Laos | CV10: =INDEX(Variables!$E$3:$E$5,RANDBETWEEN(1,3),1) -> Medium (1 week to 1month) | CW10: =INDEX([1]Variables!$G$3:$G$5,RANDBETWEEN(1,3),1) -> infrequent (less than 3 times) | CX10: 16 | CY10: =IF(ISNA(VLOOKUP(CU10,Variables!$K$1:$K$36,1,FALSE)),SUM('Other cost'!$B$2,'Salary in Industry'!$AR9,IF(ISNA(VLOOKUP(Simulation!CU10,'Ransom Statistics'!$A$1:$D$18,4,FALSE)),'Ransom Statistics'!$D$18,VLOOKUP(Simulation!CU10,'Ransom Statistics'!$A$1:$D$18,4,FALSE)))*IF(ISNA(VLOOKUP(CU10,'Industry Type P'!$A$2:$S$103,2,FALSE)),'Kidnapping Statistics'!$K$3,VLOOKUP(CU10,'Industry Type P'!$A$1:$S$102,MATCH($C10,'Industry Type P'!$A$1:$S$1,0),FALSE))*VLOOKUP(CW10,'travel frequence'!$A$1:$D$4,MATCH(CV10,'travel frequence'!$A$1:$D$1,0),FALSE)*CX10*IF(ISNA(VLOOKUP(CX10,'travel frequence'!$A$7:$B$23,2,FALSE)),'travel frequence'!$B$23,VLOOKUP(CX10,'travel frequence'!$A$7:$B$23,2,FALSE)),0) -> 7.828965948 | CZ10: =IF(VLOOKUP(CU10,'Industry Type P'!$A$1:$S$102,MATCH($C10,'Industry Type P'!$A$1:$S$1,0),FALSE)>RAND(),"Y","N") -> N | DA10: 0 | DB10: 0 | DC10: =IF(CZ10="N"," ",INDEX('Other cost'!$A$9:$A$13,RANDBETWEEN(1,5),1)) ->  | DD10: =MIN($H10,IF(CZ10="N",0,SUM(DB10,'Other cost'!$B$16,VLOOKUP(DC10,'Other cost'!$A$9:$B$13,2,FALSE),IF(DA10>=30,HLOOKUP(30,'Salary in Industry'!$N$1:$AQ$1001,$B10+1,FALSE),HLOOKUP(DA10,'Salary in Industry'!$N$1:$AQ$1001,$B10+1,FALSE)),IF(ISNA(VLOOKUP(CU10,'Ransom Statistics'!$A$1:$D$18,4,FALSE)),'Ransom Statistics'!$D$18,VLOOKUP(CU10,'Ransom Statistics'!$A$1:$D$18,4,FALSE))))) -> 0 | DE10: 0 | DF10: =((IF(A10=0,0,IF(A10=1,M10,IF(A10=2,M10+W10,IF(A10=3,M10+W10+AG10,IF(A10=4,M10+W10+AG10+AQ10,IF(A10=5,M10+W10+AG10+AQ10+BA10,IF(A10=6,M10+W10+AG10+AQ10+BA10+BK10,IF(A10=7,M10+W10+AG10+AQ10+BA10+BK10+BU10,IF(A10=8,M10+W10+AG10+AQ10+BA10+BK10+BU10+CE10,IF(A10=9,M10+W10+AG10+AQ10+BA10+BK10+BU10+CE10+CO10,IF(A10=10,M10+W10+AG10+AQ10+BA10+BK10+BU10+CE10+CO10+CY10))))))))))))/(1+Variables!$G$12))*(1+Variables!$F$21) -> 5142.434239
A11: 0 | B11: 9 | C11: =INDEX([1]Variables!$C$2:$C$19,INT((RAND()*10)+1),1) -> Transportation and Warehousing | D11: 42 | E11: 317 | F11: 3532 | G11: 8597867 | H11: =Variables!$H$21 -> 1000000 | I11: =INDEX([1]Variables!$A$2:$A$103,INT((RAND()*100)+1),1) -> Benin | J11: =INDEX(Variables!$E$3:$E$5,RANDBETWEEN(1,3),1) -> Short (less a week) | K11: =INDEX([1]Variables!$G$3:$G$5,RANDBETWEEN(1,3),1) -> frequent (3 times to 12 times) | L11: 15 | M11: =IF(ISNA(VLOOKUP(I11,Variables!$K$1:$K$36,1,FALSE)),SUM('Other cost'!$B$2,'Salary in Industry'!$AR10,IF(ISNA(VLOOKUP(Simulation!I11,'Ransom Statistics'!$A$1:$D$18,4,FALSE)),'Ransom Statistics'!$D$18,VLOOKUP(Simulation!I11,'Ransom Statistics'!$A$1:$D$18,4,FALSE)))*IF(ISNA(VLOOKUP(I11,'Industry Type P'!$A$2:$S$103,2,FALSE)),'Kidnapping Statistics'!$K$3,VLOOKUP(I11,'Industry Type P'!$A$1:$S$102,MATCH($C11,'Industry Type P'!$A$1:$S$1,0),FALSE))*VLOOKUP(K11,'travel frequence'!$A$1:$D$4,MATCH(J11,'travel frequence'!$A$1:$D$1,0),FALSE)*L11*IF(ISNA(VLOOKUP(L11,'travel frequence'!$A$7:$B$23,2,FALSE)),'travel frequence'!$B$23,VLOOKUP(L11,'travel frequence'!$A$7:$B$23,2,FALSE)),0) -> 2201.656572 | N11: =IF(VLOOKUP(I11,'Industry Type P'!$A$1:$S$102,MATCH($C11,'Industry Type P'!$A$1:$S$1,0),FALSE)>RAND(),"Y","N") -> N | O11: 0 | P11: 0 | Q11: =IF(N11="N"," ",INDEX('Other cost'!$A$9:$A$13,RANDBETWEEN(1,5),1)) ->  | R11: =MIN($H11,IF(N11="N",0,SUM(P11,'Other cost'!$B$16,VLOOKUP(Q11,'Other cost'!$A$9:$B$13,2,FALSE),IF(O11>=30,HLOOKUP(30,'Salary in Industry'!$N$1:$AQ$1001,$B11+1,FALSE),HLOOKUP(O11,'Salary in Industry'!$N$1:$AQ$1001,$B11+1,FALSE)),IF(ISNA(VLOOKUP(I11,'Ransom Statistics'!$A$1:$D$18,4,FALSE)),'Ransom Statistics'!$D$18,VLOOKUP(I11,'Ransom Statistics'!$A$1:$D$18,4,FALSE))))) -> 0 | S11: =INDEX([1]Variables!$A$2:$A$103,INT((RAND()*100)+1),1) -> Russia | T11: =INDEX(Variables!$E$3:$E$5,RANDBETWEEN(1,3),1) -> Short (less a week) | U11: =INDEX([1]Variables!$G$3:$G$5,RANDBETWEEN(1,3),1) -> frequent (3 times to 12 times) | V11: 15 | W11: =IF(ISNA(VLOOKUP(S11,Variables!$K$1:$K$36,1,FALSE)),SUM('Other cost'!$B$2,'Salary in Industry'!$AR10,IF(ISNA(VLOOKUP(Simulation!S11,'Ransom Statistics'!$A$1:$D$18,4,FALSE)),'Ransom Statistics'!$D$18,VLOOKUP(Simulation!S11,'Ransom Statistics'!$A$1:$D$18,4,FALSE)))*IF(ISNA(VLOOKUP(S11,'Industry Type P'!$A$2:$S$103,2,FALSE)),'Kidnapping Statistics'!$K$3,VLOOKUP(S11,'Industry Type P'!$A$1:$S$102,MATCH($C11,'Industry Type P'!$A$1:$S$1,0),FALSE))*VLOOKUP(U11,'travel frequence'!$A$1:$D$4,MATCH(T11,'travel frequence'!$A$1:$D$1,0),FALSE)*V11*IF(ISNA(VLOOKUP(V11,'travel frequence'!$A$7:$B$23,2,FALSE)),'travel frequence'!$B$23,VLOOKUP(V11,'travel frequence'!$A$7:$B$23,2,FALSE)),0) -> 7.33885524 | X11: =IF(VLOOKUP(S11,'Industry Type P'!$A$1:$S$102,MATCH($C11,'Industry Type P'!$A$1:$S$1,0),FALSE)>RAND(),"Y","N") -> N | Y11: 0 | Z11: 0 | AA11: =IF(X11="N"," ",INDEX('Other cost'!$A$9:$A$13,RANDBETWEEN(1,5),1)) ->  | AB11: =MIN($H11,IF(X11="N",0,SUM(Z11,'Other cost'!$B$16,VLOOKUP(AA11,'Other cost'!$A$9:$B$13,2,FALSE),IF(Y11>=30,HLOOKUP(30,'Salary in Industry'!$N$1:$AQ$1001,$B11+1,FALSE),HLOOKUP(Y11,'Salary in Industry'!$N$1:$AQ$1001,$B11+1,FALSE)),IF(ISNA(VLOOKUP(S11,'Ransom Statistics'!$A$1:$D$18,4,FALSE)),'Ransom Statistics'!$D$18,VLOOKUP(S11,'Ransom Statistics'!$A$1:$D$18,4,FALSE))))) -> 0 | AC11: =INDEX([1]Variables!$A$2:$A$103,INT((RAND()*100)+1),1) -> Somalia | AD11: =INDEX(Variables!$E$3:$E$5,RANDBETWEEN(1,3),1) -> Long (more than one month) | AE11: =INDEX([1]Variables!$G$3:$G$5,RANDBETWEEN(1,3),1) -> very frequent ( more than 12 times a year) | AF11: 4 | AG11: =IF(ISNA(VLOOKUP(AC11,Variables!$K$1:$K$36,1,FALSE)),SUM('Other cost'!$B$2,'Salary in Industry'!$AR10,IF(ISNA(VLOOKUP(Simulation!AC11,'Ransom Statistics'!$A$1:$D$18,4,FALSE)),'Ransom Statistics'!$D$18,VLOOKUP(Simulation!AC11,'Ransom Statistics'!$A$1:$D$18,4,FALSE)))*IF(ISNA(VLOOKUP(AC11,'Industry Type P'!$A$2:$S$103,2,FALSE)),'Kidnapping Statistics'!$K$3,VLOOKUP(AC11,'Industry Type P'!$A$1:$S$102,MATCH($C11,'Industry Type P'!$A$1:$S$1,0),FALSE))*VLOOKUP(AE11,'travel frequence'!$A$1:$D$4,MATCH(AD11,'travel frequence'!$A$1:$D$1,0),FALSE)*AF11*IF(ISNA(VLOOKUP(AF11,'travel frequence'!$A$7:$B$23,2,FALSE)),'travel frequence'!$B$23,VLOOKUP(AF11,'travel frequence'!$A$7:$B$23,2,FALSE)),0) -> 1353.145119 | AH11: =IF(VLOOKUP(AC11,'Industry Type P'!$A$1:$S$102,MATCH($C11,'Industry Type P'!$A$1:$S$1,0),FALSE)>RAND(),"Y","N") -> N | AI11: 0 | AJ11: 0 | AK11: =IF(AH11="N"," ",INDEX('Other cost'!$A$9:$A$13,RANDBETWEEN(1,5),1)) ->  | AL11: =MIN($H11,IF(AH11="N",0,SUM(AJ11,'Other cost'!$B$16,VLOOKUP(AK11,'Other cost'!$A$9:$B$13,2,FALSE),IF(AI11>=30,HLOOKUP(30,'Salary in Industry'!$N$1:$AQ$1001,$B11+1,FALSE),HLOOKUP(AI11,'Salary in Industry'!$N$1:$AQ$1001,$B11+1,FALSE)),IF(ISNA(VLOOKUP(AC11,'Ransom Statistics'!$A$1:$D$18,4,FALSE)),'Ransom Statistics'!$D$18,VLOOKUP(AC11,'Ransom Statistics'!$A$1:$D$18,4,FALSE))))) -> 0 | AM11: =INDEX([1]Variables!$A$2:$A$103,INT((RAND()*100)+1),1) -> Venezuela | AN11: =INDEX(Variables!$E$3:$E$5,RANDBETWEEN(1,3),1) -> Long (more than one month) | AO11: =INDEX([1]Variables!$G$3:$G$5,RANDBETWEEN(1,3),1) -> infrequent (less than 3 times) | AP11: 1 | AQ11: =IF(ISNA(VLOOKUP(AM11,Variables!$K$1:$K$36,1,FALSE)),SUM('Other cost'!$B$2,'Salary in Industry'!$AR10,IF(ISNA(VLOOKUP(Simulation!AM11,'Ransom Statistics'!$A$1:$D$18,4,FALSE)),'Ransom Statistics'!$D$18,VLOOKUP(Simulation!AM11,'Ransom Statistics'!$A$1:$D$18,4,FALSE)))*IF(ISNA(VLOOKUP(AM11,'Industry Type P'!$A$2:$S$103,2,FALSE)),'Kidnapping Statistics'!$K$3,VLOOKUP(AM11,'Industry Type P'!$A$1:$S$102,MATCH($C11,'Industry Type P'!$A$1:$S$1,0),FALSE))*VLOOKUP(AO11,'travel frequence'!$A$1:$D$4,MATCH(AN11,'travel frequence'!$A$1:$D$1,0),FALSE)*AP11*IF(ISNA(VLOOKUP(AP11,'travel frequence'!$A$7:$B$23,2,FALSE)),'travel frequence'!$B$23,VLOOKUP(AP11,'travel frequence'!$A$7:$B$23,2,FALSE)),0) -> 436.5151213 | AR11: =IF(VLOOKUP(AM11,'Industry Type P'!$A$1:$S$102,MATCH($C11,'Industry Type P'!$A$1:$S$1,0),FALSE)>RAND(),"Y","N") -> N | AS11: 0 | AT11: 0 | AU11: =IF(AR11="N"," ",INDEX('Other cost'!$A$9:$A$13,RANDBETWEEN(1,5),1)) ->  | AV11: =MIN($H11,IF(AR11="N",0,SUM(AT11,'Other cost'!$B$16,VLOOKUP(AU11,'Other cost'!$A$9:$B$13,2,FALSE),IF(AS11>=30,HLOOKUP(30,'Salary in Industry'!$N$1:$AQ$1001,$B11+1,FALSE),HLOOKUP(AS11,'Salary in Industry'!$N$1:$AQ$1001,$B11+1,FALSE)),IF(ISNA(VLOOKUP(AM11,'Ransom Statistics'!$A$1:$D$18,4,FALSE)),'Ransom Statistics'!$D$18,VLOOKUP(AM11,'Ransom Statistics'!$A$1:$D$18,4,FALSE))))) -> 0 | AW11: =INDEX([1]Variables!$A$2:$A$103,INT((RAND()*100)+1),1) -> Burundi | AX11: =INDEX(Variables!$E$3:$E$5,RANDBETWEEN(1,3),1) -> Medium (1 week to 1month) | AY11: =INDEX([1]Variables!$G$3:$G$5,RANDBETWEEN(1,3),1) -> infrequent (less than 3 times) | AZ11: 8 | BA11: =IF(ISNA(VLOOKUP(AW11,Variables!$K$1:$K$36,1,FALSE)),SUM('Other cost'!$B$2,'Salary in Industry'!$AR10,IF(ISNA(VLOOKUP(Simulation!AW11,'Ransom Statistics'!$A$1:$D$18,4,FALSE)),'Ransom Statistics'!$D$18,VLOOKUP(Simulation!AW11,'Ransom Statistics'!$A$1:$D$18,4,FALSE)))*IF(ISNA(VLOOKUP(AW11,'Industry Type P'!$A$2:$S$103,2,FALSE)),'Kidnapping Statistics'!$K$3,VLOOKUP(AW11,'Industry Type P'!$A$1:$S$102,MATCH($C11,'Industry Type P'!$A$1:$S$1,0),FALSE))*VLOOKUP(AY11,'travel frequence'!$A$1:$D$4,MATCH(AX11,'travel frequence'!$A$1:$D$1,0),FALSE)*AZ11*IF(ISNA(VLOOKUP(AZ11,'travel frequence'!$A$7:$B$23,2,FALSE)),'travel frequence'!$B$23,VLOOKUP(AZ11,'travel frequence'!$A$7:$B$23,2,FALSE)),0) -> 1565.622451 | BB11: =IF(VLOOKUP(AW11,'Industry Type P'!$A$1:$S$102,MATCH($C11,'Industry Type P'!$A$1:$S$1,0),FALSE)>RAND(),"Y","N") -> N | BC11: 0 | BD11: 0 | BE11: =IF(BB11="N"," ",INDEX('Other cost'!$A$9:$A$13,RANDBETWEEN(1,5),1)) ->  | BF11: =MIN($H11,IF(BB11="N",0,SUM(BD11,'Other cost'!$B$16,VLOOKUP(BE11,'Other cost'!$A$9:$B$13,2,FALSE),IF(BC11>=30,HLOOKUP(30,'Salary in Industry'!$N$1:$AQ$1001,$B11+1,FALSE),HLOOKUP(BC11,'Salary in Industry'!$N$1:$AQ$1001,$B11+1,FALSE)),IF(ISNA(VLOOKUP(AW11,'Ransom Statistics'!$A$1:$D$18,4,FALSE)),'Ransom Statistics'!$D$18,VLOOKUP(AW11,'Ransom Statistics'!$A$1:$D$18,4,FALSE))))) -> 0 | BG11: =INDEX([1]Variables!$A$2:$A$103,INT((RAND()*100)+1),1) -> Rwanda | BH11: =INDEX(Variables!$E$3:$E$5,RANDBETWEEN(1,3),1) -> Medium (1 week to 1month) | BI11: =INDEX([1]Variables!$G$3:$G$5,RANDBETWEEN(1,3),1) -> frequent (3 times to 12 times) | BJ11: 15 | BK11: =IF(ISNA(VLOOKUP(BG11,Variables!$K$1:$K$36,1,FALSE)),SUM('Other cost'!$B$2,'Salary in Industry'!$AR10,IF(ISNA(VLOOKUP(Simulation!BG11,'Ransom Statistics'!$A$1:$D$18,4,FALSE)),'Ransom Statistics'!$D$18,VLOOKUP(Simulation!BG11,'Ransom Statistics'!$A$1:$D$18,4,FALSE)))*IF(ISNA(VLOOKUP(BG11,'Industry Type P'!$A$2:$S$103,2,FALSE)),'Kidnapping Statistics'!$K$3,VLOOKUP(BG11,'Industry Type P'!$A$1:$S$102,MATCH($C11,'Industry Type P'!$A$1:$S$1,0),FALSE))*VLOOKUP(BI11,'travel frequence'!$A$1:$D$4,MATCH(BH11,'travel frequence'!$A$1:$D$1,0),FALSE)*BJ11*IF(ISNA(VLOOKUP(BJ11,'travel frequence'!$A$7:$B$23,2,FALSE)),'travel frequence'!$B$23,VLOOKUP(BJ11,'travel frequence'!$A$7:$B$23,2,FALSE)),0) -> 2311.739401 | BL11: =IF(VLOOKUP(BG11,'Industry Type P'!$A$1:$S$102,MATCH($C11,'Industry Type P'!$A$1:$S$1,0),FALSE)>RAND(),"Y","N") -> N | BM11: 0 | BN11: 0 | BO11: =IF(BL11="N"," ",INDEX('Other cost'!$A$9:$A$13,RANDBETWEEN(1,5),1)) ->  | BP11: =MIN($H11,IF(BL11="N",0,SUM(BN11,'Other cost'!$B$16,VLOOKUP(BO11,'Other cost'!$A$9:$B$13,2,FALSE),IF(BM11>=30,HLOOKUP(30,'Salary in Industry'!$N$1:$AQ$1001,$B11+1,FALSE),HLOOKUP(BM11,'Salary in Industry'!$N$1:$AQ$1001,$B11+1,FALSE)),IF(ISNA(VLOOKUP(BG11,'Ransom Statistics'!$A$1:$D$18,4,FALSE)),'Ransom Statistics'!$D$18,VLOOKUP(BG11,'Ransom Statistics'!$A$1:$D$18,4,FALSE))))) -> 0 | BQ11: =INDEX([1]Variables!$A$2:$A$103,INT((RAND()*100)+1),1) -> Oman | BR11: =INDEX(Variables!$E$3:$E$5,RANDBETWEEN(1,3),1) -> Medium (1 week to 1month) | BS11: =INDEX([1]Variables!$G$3:$G$5,RANDBETWEEN(1,3),1) -> very frequent ( more than 12 times a year) | BT11: 5 | BU11: =IF(ISNA(VLOOKUP(BQ11,Variables!$K$1:$K$36,1,FALSE)),SUM('Other cost'!$B$2,'Salary in Industry'!$AR10,IF(ISNA(VLOOKUP(Simulation!BQ11,'Ransom Statistics'!$A$1:$D$18,4,FALSE)),'Ransom Statistics'!$D$18,VLOOKUP(Simulation!BQ11,'Ransom Statistics'!$A$1:$D$18,4,FALSE)))*IF(ISNA(VLOOKUP(BQ11,'Industry Type P'!$A$2:$S$103,2,FALSE)),'Kidnapping Statistics'!$K$3,VLOOKUP(BQ11,'Industry Type P'!$A$1:$S$102,MATCH($C11,'Industry Type P'!$A$1:$S$1,0),FALSE))*VLOOKUP(BS11,'travel frequence'!$A$1:$D$4,MATCH(BR11,'travel frequence'!$A$1:$D$1,0),FALSE)*BT11*IF(ISNA(VLOOKUP(BT11,'travel frequence'!$A$7:$B$23,2,FALSE)),'travel frequence'!$B$23,VLOOKUP(BT11,'travel frequence'!$A$7:$B$23,2,FALSE)),0) -> 3.587884784 | BV11: =IF(VLOOKUP(BQ11,'Industry Type P'!$A$1:$S$102,MATCH($C11,'Industry Type P'!$A$1:$S$1,0),FALSE)>RAND(),"Y","N") -> N | BW11: 0 | BX11: 0 | BY11: =IF(BV11="N"," ",INDEX('Other cost'!$A$9:$A$13,RANDBETWEEN(1,5),1)) ->  | BZ11: =MIN($H11,IF(BV11="N",0,SUM(BX11,'Other cost'!$B$16,VLOOKUP(BY11,'Other cost'!$A$9:$B$13,2,FALSE),IF(BW11>=30,HLOOKUP(30,'Salary in Industry'!$N$1:$AQ$1001,$B11+1,FALSE),HLOOKUP(BW11,'Salary in Industry'!$N$1:$AQ$1001,$B11+1,FALSE)),IF(ISNA(VLOOKUP(BQ11,'Ransom Statistics'!$A$1:$D$18,4,FALSE)),'Ransom Statistics'!$D$18,VLOOKUP(BQ11,'Ransom Statistics'!$A$1:$D$18,4,FALSE))))) -> 0 | CA11: =INDEX([1]Variables!$A$2:$A$103,INT((RAND()*100)+1),1) -> Panama | CB11: =INDEX(Variables!$E$3:$E$5,RANDBETWEEN(1,3),1) -> Medium (1 week to 1month) | CC11: =INDEX([1]Variables!$G$3:$G$5,RANDBETWEEN(1,3),1) -> infrequent (less than 3 times) | CD11: 18 | CE11: =IF(ISNA(VLOOKUP(CA11,Variables!$K$1:$K$36,1,FALSE)),SUM('Other cost'!$B$2,'Salary in Industry'!$AR10,IF(ISNA(VLOOKUP(Simulation!CA11,'Ransom Statistics'!$A$1:$D$18,4,FALSE)),'Ransom Statistics'!$D$18,VLOOKUP(Simulation!CA11,'Ransom Statistics'!$A$1:$D$18,4,FALSE)))*IF(ISNA(VLOOKUP(CA11,'Industry Type P'!$A$2:$S$103,2,FALSE)),'Kidnapping Statistics'!$K$3,VLOOKUP(CA11,'Industry Type P'!$A$1:$S$102,MATCH($C11,'Industry Type P'!$A$1:$S$1,0),FALSE))*VLOOKUP(CC11,'travel frequence'!$A$1:$D$4,MATCH(CB11,'travel frequence'!$A$1:$D$1,0),FALSE)*CD11*IF(ISNA(VLOOKUP(CD11,'travel frequence'!$A$7:$B$23,2,FALSE)),'travel frequence'!$B$23,VLOOKUP(CD11,'travel frequence'!$A$7:$B$23,2,FALSE)),0) -> 40.51048092 | CF11: =IF(VLOOKUP(CA11,'Industry Type P'!$A$1:$S$102,MATCH($C11,'Industry Type P'!$A$1:$S$1,0),FALSE)>RAND(),"Y","N") -> N | CG11: 0 | CH11: 0 | CI11: =IF(CF11="N"," ",INDEX('Other cost'!$A$9:$A$13,RANDBETWEEN(1,5),1)) ->  | CJ11: =MIN($H11,IF(CF11="N",0,SUM(CH11,'Other cost'!$B$16,VLOOKUP(CI11,'Other cost'!$A$9:$B$13,2,FALSE),IF(CG11>=30,HLOOKUP(30,'Salary in Industry'!$N$1:$AQ$1001,$B11+1,FALSE),HLOOKUP(CG11,'Salary in Industry'!$N$1:$AQ$1001,$B11+1,FALSE)),IF(ISNA(VLOOKUP(CA11,'Ransom Statistics'!$A$1:$D$18,4,FALSE)),'Ransom Statistics'!$D$18,VLOOKUP(CA11,'Ransom Statistics'!$A$1:$D$18,4,FALSE))))) -> 0 | CK11: =INDEX([1]Variables!$A$2:$A$103,INT((RAND()*100)+1),1) -> Coted'lvoire | CL11: =INDEX(Variables!$E$3:$E$5,RANDBETWEEN(1,3),1) -> Short (less a week) | CM11: =INDEX([1]Variables!$G$3:$G$5,RANDBETWEEN(1,3),1) -> frequent (3 times to 12 times) | CN11: 7 | CO11: =IF(ISNA(VLOOKUP(CK11,Variables!$K$1:$K$36,1,FALSE)),SUM('Other cost'!$B$2,'Salary in Industry'!$AR10,IF(ISNA(VLOOKUP(Simulation!CK11,'Ransom Statistics'!$A$1:$D$18,4,FALSE)),'Ransom Statistics'!$D$18,VLOOKUP(Simulation!CK11,'Ransom Statistics'!$A$1:$D$18,4,FALSE)))*IF(ISNA(VLOOKUP(CK11,'Industry Type P'!$A$2:$S$103,2,FALSE)),'Kidnapping Statistics'!$K$3,VLOOKUP(CK11,'Industry Type P'!$A$1:$S$102,MATCH($C11,'Industry Type P'!$A$1:$S$1,0),FALSE))*VLOOKUP(CM11,'travel frequence'!$A$1:$D$4,MATCH(CL11,'travel frequence'!$A$1:$D$1,0),FALSE)*CN11*IF(ISNA(VLOOKUP(CN11,'travel frequence'!$A$7:$B$23,2,FALSE)),'travel frequence'!$B$23,VLOOKUP(CN11,'travel frequence'!$A$7:$B$23,2,FALSE)),0) -> 1369.919645 | CP11: =IF(VLOOKUP(CK11,'Industry Type P'!$A$1:$S$102,MATCH($C11,'Industry Type P'!$A$1:$S$1,0),FALSE)>RAND(),"Y","N") -> N | CQ11: 0 | CR11: 0 | CS11: =IF(CP11="N"," ",INDEX('Other cost'!$A$9:$A$13,RANDBETWEEN(1,5),1)) ->  | CT11: =MIN($H11,IF(CP11="N",0,SUM(CR11,'Other cost'!$B$16,VLOOKUP(CS11,'Other cost'!$A$9:$B$13,2,FALSE),IF(CQ11>=30,HLOOKUP(30,'Salary in Industry'!$N$1:$AQ$1001,$B11+1,FALSE),HLOOKUP(CQ11,'Salary in Industry'!$N$1:$AQ$1001,$B11+1,FALSE)),IF(ISNA(VLOOKUP(CK11,'Ransom Statistics'!$A$1:$D$18,4,FALSE)),'Ransom Statistics'!$D$18,VLOOKUP(CK11,'Ransom Statistics'!$A$1:$D$18,4,FALSE))))) -> 0 | CU11: =INDEX([1]Variables!$A$2:$A$103,INT((RAND()*100)+1),1) -> Paraguay | CV11: =INDEX(Variables!$E$3:$E$5,RANDBETWEEN(1,3),1) -> Medium (1 week to 1month) | CW11: =INDEX([1]Variables!$G$3:$G$5,RANDBETWEEN(1,3),1) -> frequent (3 times to 12 times) | CX11: 14 | CY11: =IF(ISNA(VLOOKUP(CU11,Variables!$K$1:$K$36,1,FALSE)),SUM('Other cost'!$B$2,'Salary in Industry'!$AR10,IF(ISNA(VLOOKUP(Simulation!CU11,'Ransom Statistics'!$A$1:$D$18,4,FALSE)),'Ransom Statistics'!$D$18,VLOOKUP(Simulation!CU11,'Ransom Statistics'!$A$1:$D$18,4,FALSE)))*IF(ISNA(VLOOKUP(CU11,'Industry Type P'!$A$2:$S$103,2,FALSE)),'Kidnapping Statistics'!$K$3,VLOOKUP(CU11,'Industry Type P'!$A$1:$S$102,MATCH($C11,'Industry Type P'!$A$1:$S$1,0),FALSE))*VLOOKUP(CW11,'travel frequence'!$A$1:$D$4,MATCH(CV11,'travel frequence'!$A$1:$D$1,0),FALSE)*CX11*IF(ISNA(VLOOKUP(CX11,'travel frequence'!$A$7:$B$23,2,FALSE)),'travel frequence'!$B$23,VLOOKUP(CX11,'travel frequence'!$A$7:$B$23,2,FALSE)),0) -> 72.45904857 | CZ11: =IF(VLOOKUP(CU11,'Industry Type P'!$A$1:$S$102,MATCH($C11,'Industry Type P'!$A$1:$S$1,0),FALSE)>RAND(),"Y","N") -> N | DA11: 0 | DB11: 0 | DC11: =IF(CZ11="N"," ",INDEX('Other cost'!$A$9:$A$13,RANDBETWEEN(1,5),1)) ->  | DD11: =MIN($H11,IF(CZ11="N",0,SUM(DB11,'Other cost'!$B$16,VLOOKUP(DC11,'Other cost'!$A$9:$B$13,2,FALSE),IF(DA11>=30,HLOOKUP(30,'Salary in Industry'!$N$1:$AQ$1001,$B11+1,FALSE),HLOOKUP(DA11,'Salary in Industry'!$N$1:$AQ$1001,$B11+1,FALSE)),IF(ISNA(VLOOKUP(CU11,'Ransom Statistics'!$A$1:$D$18,4,FALSE)),'Ransom Statistics'!$D$18,VLOOKUP(CU11,'Ransom Statistics'!$A$1:$D$18,4,FALSE))))) -> 0 | DE11: 0 | DF11: =((IF(A11=0,0,IF(A11=1,M11,IF(A11=2,M11+W11,IF(A11=3,M11+W11+AG11,IF(A11=4,M11+W11+AG11+AQ11,IF(A11=5,M11+W11+AG11+AQ11+BA11,IF(A11=6,M11+W11+AG11+AQ11+BA11+BK11,IF(A11=7,M11+W11+AG11+AQ11+BA11+BK11+BU11,IF(A11=8,M11+W11+AG11+AQ11+BA11+BK11+BU11+CE11,IF(A11=9,M11+W11+AG11+AQ11+BA11+BK11+BU11+CE11+CO11,IF(A11=10,M11+W11+AG11+AQ11+BA11+BK11+BU11+CE11+CO11+CY11))))))))))))/(1+Variables!$G$12))*(1+Variables!$F$21) -> 0
A12: 4 | B12: 10 | C12: =INDEX([1]Variables!$C$2:$C$19,INT((RAND()*10)+1),1) -> Agriculture, Forestry, Fishing, and Hunting | D12: 31 | E12: 286 | F12: 1646 | G12: 25817323 | H12: =Variables!$H$21 -> 1000000 | I12: =INDEX([1]Variables!$A$2:$A$103,INT((RAND()*100)+1),1) -> Kuwait | J12: =INDEX(Variables!$E$3:$E$5,RANDBETWEEN(1,3),1) -> Medium (1 week to 1month) | K12: =INDEX([1]Variables!$G$3:$G$5,RANDBETWEEN(1,3),1) -> infrequent (less than 3 times) | L12: 6 | M12: =IF(ISNA(VLOOKUP(I12,Variables!$K$1:$K$36,1,FALSE)),SUM('Other cost'!$B$2,'Salary in Industry'!$AR11,IF(ISNA(VLOOKUP(Simulation!I12,'Ransom Statistics'!$A$1:$D$18,4,FALSE)),'Ransom Statistics'!$D$18,VLOOKUP(Simulation!I12,'Ransom Statistics'!$A$1:$D$18,4,FALSE)))*IF(ISNA(VLOOKUP(I12,'Industry Type P'!$A$2:$S$103,2,FALSE)),'Kidnapping Statistics'!$K$3,VLOOKUP(I12,'Industry Type P'!$A$1:$S$102,MATCH($C12,'Industry Type P'!$A$1:$S$1,0),FALSE))*VLOOKUP(K12,'travel frequence'!$A$1:$D$4,MATCH(J12,'travel frequence'!$A$1:$D$1,0),FALSE)*L12*IF(ISNA(VLOOKUP(L12,'travel frequence'!$A$7:$B$23,2,FALSE)),'travel frequence'!$B$23,VLOOKUP(L12,'travel frequence'!$A$7:$B$23,2,FALSE)),0) -> 450.8919678 | N12: =IF(VLOOKUP(I12,'Industry Type P'!$A$1:$S$102,MATCH($C12,'Industry Type P'!$A$1:$S$1,0),FALSE)>RAND(),"Y","N") -> N | O12: 0 | P12: 0 | Q12: =IF(N12="N"," ",INDEX('Other cost'!$A$9:$A$13,RANDBETWEEN(1,5),1)) ->  | R12: =MIN($H12,IF(N12="N",0,SUM(P12,'Other cost'!$B$16,VLOOKUP(Q12,'Other cost'!$A$9:$B$13,2,FALSE),IF(O12>=30,HLOOKUP(30,'Salary in Industry'!$N$1:$AQ$1001,$B12+1,FALSE),HLOOKUP(O12,'Salary in Industry'!$N$1:$AQ$1001,$B12+1,FALSE)),IF(ISNA(VLOOKUP(I12,'Ransom Statistics'!$A$1:$D$18,4,FALSE)),'Ransom Statistics'!$D$18,VLOOKUP(I12,'Ransom Statistics'!$A$1:$D$18,4,FALSE))))) -> 0 | S12: =INDEX([1]Variables!$A$2:$A$103,INT((RAND()*100)+1),1) -> Nigeria | T12: =INDEX(Variables!$E$3:$E$5,RANDBETWEEN(1,3),1) -> Short (less a week) | U12: =INDEX([1]Variables!$G$3:$G$5,RANDBETWEEN(1,3),1) -> very frequent ( more than 12 times a year) | V12: 1 | W12: =IF(ISNA(VLOOKUP(S12,Variables!$K$1:$K$36,1,FALSE)),SUM('Other cost'!$B$2,'Salary in Industry'!$AR11,IF(ISNA(VLOOKUP(Simulation!S12,'Ransom Statistics'!$A$1:$D$18,4,FALSE)),'Ransom Statistics'!$D$18,VLOOKUP(Simulation!S12,'Ransom Statistics'!$A$1:$D$18,4,FALSE)))*IF(ISNA(VLOOKUP(S12,'Industry Type P'!$A$2:$S$103,2,FALSE)),'Kidnapping Statistics'!$K$3,VLOOKUP(S12,'Industry Type P'!$A$1:$S$102,MATCH($C12,'Industry Type P'!$A$1:$S$1,0),FALSE))*VLOOKUP(U12,'travel frequence'!$A$1:$D$4,MATCH(T12,'travel frequence'!$A$1:$D$1,0),FALSE)*V12*IF(ISNA(VLOOKUP(V12,'travel frequence'!$A$7:$B$23,2,FALSE)),'travel frequence'!$B$23,VLOOKUP(V12,'travel frequence'!$A$7:$B$23,2,FALSE)),0) -> 0 | X12: =IF(VLOOKUP(S12,'Industry Type P'!$A$1:$S$102,MATCH($C12,'Industry Type P'!$A$1:$S$1,0),FALSE)>RAND(),"Y","N") -> N | Y12: 0 | Z12: 0 | AA12: =IF(X12="N"," ",INDEX('Other cost'!$A$9:$A$13,RANDBETWEEN(1,5),1)) ->  | AB12: =MIN($H12,IF(X12="N",0,SUM(Z12,'Other cost'!$B$16,VLOOKUP(AA12,'Other cost'!$A$9:$B$13,2,FALSE),IF(Y12>=30,HLOOKUP(30,'Salary in Industry'!$N$1:$AQ$1001,$B12+1,FALSE),HLOOKUP(Y12,'Salary in Industry'!$N$1:$AQ$1001,$B12+1,FALSE)),IF(ISNA(VLOOKUP(S12,'Ransom Statistics'!$A$1:$D$18,4,FALSE)),'Ransom Statistics'!$D$18,VLOOKUP(S12,'Ransom Statistics'!$A$1:$D$18,4,FALSE))))) -> 0 | AC12: =INDEX([1]Variables!$A$2:$A$103,INT((RAND()*100)+1),1) -> Ecuador | AD12: =INDEX(Variables!$E$3:$E$5,RANDBETWEEN(1,3),1) -> Long (more than one month) | AE12: =INDEX([1]Variables!$G$3:$G$5,RANDBETWEEN(1,3),1) -> infrequent (less than 3 times) | AF12: 19 | AG12: =IF(ISNA(VLOOKUP(AC12,Variables!$K$1:$K$36,1,FALSE)),SUM('Other cost'!$B$2,'Salary in Industry'!$AR11,IF(ISNA(VLOOKUP(Simulation!AC12,'Ransom Statistics'!$A$1:$D$18,4,FALSE)),'Ransom Statistics'!$D$18,VLOOKUP(Simulation!AC12,'Ransom Statistics'!$A$1:$D$18,4,FALSE)))*IF(ISNA(VLOOKUP(AC12,'Industry Type P'!$A$2:$S$103,2,FALSE)),'Kidnapping Statistics'!$K$3,VLOOKUP(AC12,'Industry Type P'!$A$1:$S$102,MATCH($C12,'Industry Type P'!$A$1:$S$1,0),FALSE))*VLOOKUP(AE12,'travel frequence'!$A$1:$D$4,MATCH(AD12,'travel frequence'!$A$1:$D$1,0),FALSE)*AF12*IF(ISNA(VLOOKUP(AF12,'travel frequence'!$A$7:$B$23,2,FALSE)),'travel frequence'!$B$23,VLOOKUP(AF12,'travel frequence'!$A$7:$B$23,2,FALSE)),0) -> 350.5819244 | AH12: =IF(VLOOKUP(AC12,'Industry Type P'!$A$1:$S$102,MATCH($C12,'Industry Type P'!$A$1:$S$1,0),FALSE)>RAND(),"Y","N") -> N | AI12: 0 | AJ12: 0 | AK12: =IF(AH12="N"," ",INDEX('Other cost'!$A$9:$A$13,RANDBETWEEN(1,5),1)) ->  | AL12: =MIN($H12,IF(AH12="N",0,SUM(AJ12,'Other cost'!$B$16,VLOOKUP(AK12,'Other cost'!$A$9:$B$13,2,FALSE),IF(AI12>=30,HLOOKUP(30,'Salary in Industry'!$N$1:$AQ$1001,$B12+1,FALSE),HLOOKUP(AI12,'Salary in Industry'!$N$1:$AQ$1001,$B12+1,FALSE)),IF(ISNA(VLOOKUP(AC12,'Ransom Statistics'!$A$1:$D$18,4,FALSE)),'Ransom Statistics'!$D$18,VLOOKUP(AC12,'Ransom Statistics'!$A$1:$D$18,4,FALSE))))) -> 0 | AM12: =INDEX([1]Variables!$A$2:$A$103,INT((RAND()*100)+1),1) -> Chechnya | AN12: =INDEX(Variables!$E$3:$E$5,RANDBETWEEN(1,3),1) -> Long (more than one month) | AO12: =INDEX([1]Variables!$G$3:$G$5,RANDBETWEEN(1,3),1) -> frequent (3 times to 12 times) | AP12: 13 | AQ12: =IF(ISNA(VLOOKUP(AM12,Variables!$K$1:$K$36,1,FALSE)),SUM('Other cost'!$B$2,'Salary in Industry'!$AR11,IF(ISNA(VLOOKUP(Simulation!AM12,'Ransom Statistics'!$A$1:$D$18,4,FALSE)),'Ransom Statistics'!$D$18,VLOOKUP(Simulation!AM12,'Ransom Statistics'!$A$1:$D$18,4,FALSE)))*IF(ISNA(VLOOKUP(AM12,'Industry Type P'!$A$2:$S$103,2,FALSE)),'Kidnapping Statistics'!$K$3,VLOOKUP(AM12,'Industry Type P'!$A$1:$S$102,MATCH($C12,'Industry Type P'!$A$1:$S$1,0),FALSE))*VLOOKUP(AO12,'travel frequence'!$A$1:$D$4,MATCH(AN12,'travel frequence'!$A$1:$D$1,0),FALSE)*AP12*IF(ISNA(VLOOKUP(AP12,'travel frequence'!$A$7:$B$23,2,FALSE)),'travel frequence'!$B$23,VLOOKUP(AP12,'travel frequence'!$A$7:$B$23,2,FALSE)),0) -> 3264.922307 | AR12: =IF(VLOOKUP(AM12,'Industry Type P'!$A$1:$S$102,MATCH($C12,'Industry Type P'!$A$1:$S$1,0),FALSE)>RAND(),"Y","N") -> N | AS12: 0 | AT12: 0 | AU12: =IF(AR12="N"," ",INDEX('Other cost'!$A$9:$A$13,RANDBETWEEN(1,5),1)) ->  | AV12: =MIN($H12,IF(AR12="N",0,SUM(AT12,'Other cost'!$B$16,VLOOKUP(AU12,'Other cost'!$A$9:$B$13,2,FALSE),IF(AS12>=30,HLOOKUP(30,'Salary in Industry'!$N$1:$AQ$1001,$B12+1,FALSE),HLOOKUP(AS12,'Salary in Industry'!$N$1:$AQ$1001,$B12+1,FALSE)),IF(ISNA(VLOOKUP(AM12,'Ransom Statistics'!$A$1:$D$18,4,FALSE)),'Ransom Statistics'!$D$18,VLOOKUP(AM12,'Ransom Statistics'!$A$1:$D$18,4,FALSE))))) -> 0 | AW12: =INDEX([1]Variables!$A$2:$A$103,INT((RAND()*100)+1),1) -> Cameroon | AX12: =INDEX(Variables!$E$3:$E$5,RANDBETWEEN(1,3),1) -> Medium (1 week to 1month) | AY12: =INDEX([1]Variables!$G$3:$G$5,RANDBETWEEN(1,3),1) -> frequent (3 times to 12 times) | AZ12: 3 | BA12: =IF(ISNA(VLOOKUP(AW12,Variables!$K$1:$K$36,1,FALSE)),SUM('Other cost'!$B$2,'Salary in Industry'!$AR11,IF(ISNA(VLOOKUP(Simulation!AW12,'Ransom Statistics'!$A$1:$D$18,4,FALSE)),'Ransom Statistics'!$D$18,VLOOKUP(Simulation!AW12,'Ransom Statistics'!$A$1:$D$18,4,FALSE)))*IF(ISNA(VLOOKUP(AW12,'Industry Type P'!$A$2:$S$103,2,FALSE)),'Kidnapping Statistics'!$K$3,VLOOKUP(AW12,'Industry Type P'!$A$1:$S$102,MATCH($C12,'Industry Type P'!$A$1:$S$1,0),FALSE))*VLOOKUP(AY12,'travel frequence'!$A$1:$D$4,MATCH(AX12,'travel frequence'!$A$1:$D$1,0),FALSE)*AZ12*IF(ISNA(VLOOKUP(AZ12,'travel frequence'!$A$7:$B$23,2,FALSE)),'travel frequence'!$B$23,VLOOKUP(AZ12,'travel frequence'!$A$7:$B$23,2,FALSE)),0) -> 0 | BB12: =IF(VLOOKUP(AW12,'Industry Type P'!$A$1:$S$102,MATCH($C12,'Industry Type P'!$A$1:$S$1,0),FALSE)>RAND(),"Y","N") -> N | BC12: 0 | BD12: 0 | BE12: =IF(BB12="N"," ",INDEX('Other cost'!$A$9:$A$13,RANDBETWEEN(1,5),1)) ->  | BF12: =MIN($H12,IF(BB12="N",0,SUM(BD12,'Other cost'!$B$16,VLOOKUP(BE12,'Other cost'!$A$9:$B$13,2,FALSE),IF(BC12>=30,HLOOKUP(30,'Salary in Industry'!$N$1:$AQ$1001,$B12+1,FALSE),HLOOKUP(BC12,'Salary in Industry'!$N$1:$AQ$1001,$B12+1,FALSE)),IF(ISNA(VLOOKUP(AW12,'Ransom Statistics'!$A$1:$D$18,4,FALSE)),'Ransom Statistics'!$D$18,VLOOKUP(AW12,'Ransom Statistics'!$A$1:$D$18,4,FALSE))))) -> 0 | BG12: =INDEX([1]Variables!$A$2:$A$103,INT((RAND()*100)+1),1) -> Greece | BH12: =INDEX(Variables!$E$3:$E$5,RANDBETWEEN(1,3),1) -> Medium (1 week to 1month) | BI12: =INDEX([1]Variables!$G$3:$G$5,RANDBETWEEN(1,3),1) -> infrequent (less than 3 times) | BJ12: 12 | BK12: =IF(ISNA(VLOOKUP(BG12,Variables!$K$1:$K$36,1,FALSE)),SUM('Other cost'!$B$2,'Salary in Industry'!$AR11,IF(ISNA(VLOOKUP(Simulation!BG12,'Ransom Statistics'!$A$1:$D$18,4,FALSE)),'Ransom Statistics'!$D$18,VLOOKUP(Simulation!BG12,'Ransom Statistics'!$A$1:$D$18,4,FALSE)))*IF(ISNA(VLOOKUP(BG12,'Industry Type P'!$A$2:$S$103,2,FALSE)),'Kidnapping Statistics'!$K$3,VLOOKUP(BG12,'Industry Type P'!$A$1:$S$102,MATCH($C12,'Industry Type P'!$A$1:$S$1,0),FALSE))*VLOOKUP(BI12,'travel frequence'!$A$1:$D$4,MATCH(BH12,'travel frequence'!$A$1:$D$1,0),FALSE)*BJ12*IF(ISNA(VLOOKUP(BJ12,'travel frequence'!$A$7:$B$23,2,FALSE)),'travel frequence'!$B$23,VLOOKUP(BJ12,'travel frequence'!$A$7:$B$23,2,FALSE)),0) -> 6.849487358 | BL12: =IF(VLOOKUP(BG12,'Industry Type P'!$A$1:$S$102,MATCH($C12,'Industry Type P'!$A$1:$S$1,0),FALSE)>RAND(),"Y","N") -> N | BM12: 0 | BN12: 0 | BO12: =IF(BL12="N"," ",INDEX('Other cost'!$A$9:$A$13,RANDBETWEEN(1,5),1)) ->  | BP12: =MIN($H12,IF(BL12="N",0,SUM(BN12,'Other cost'!$B$16,VLOOKUP(BO12,'Other cost'!$A$9:$B$13,2,FALSE),IF(BM12>=30,HLOOKUP(30,'Salary in Industry'!$N$1:$AQ$1001,$B12+1,FALSE),HLOOKUP(BM12,'Salary in Industry'!$N$1:$AQ$1001,$B12+1,FALSE)),IF(ISNA(VLOOKUP(BG12,'Ransom Statistics'!$A$1:$D$18,4,FALSE)),'Ransom Statistics'!$D$18,VLOOKUP(BG12,'Ransom Statistics'!$A$1:$D$18,4,FALSE))))) -> 0 | BQ12: =INDEX([1]Variables!$A$2:$A$103,INT((RAND()*100)+1),1) -> Guinea | BR12: =INDEX(Variables!$E$3:$E$5,RANDBETWEEN(1,3),1) -> Short (less a week) | BS12: =INDEX([1]Variables!$G$3:$G$5,RANDBETWEEN(1,3),1) -> infrequent (less than 3 times) | BT12: 1 | BU12: =IF(ISNA(VLOOKUP(BQ12,Variables!$K$1:$K$36,1,FALSE)),SUM('Other cost'!$B$2,'Salary in Industry'!$AR11,IF(ISNA(VLOOKUP(Simulation!BQ12,'Ransom Statistics'!$A$1:$D$18,4,FALSE)),'Ransom Statistics'!$D$18,VLOOKUP(Simulation!BQ12,'Ransom Statistics'!$A$1:$D$18,4,FALSE)))*IF(ISNA(VLOOKUP(BQ12,'Industry Type P'!$A$2:$S$103,2,FALSE)),'Kidnapping Statistics'!$K$3,VLOOKUP(BQ12,'Industry Type P'!$A$1:$S$102,MATCH($C12,'Industry Type P'!$A$1:$S$1,0),FALSE))*VLOOKUP(BS12,'travel frequence'!$A$1:$D$4,MATCH(BR12,'travel frequence'!$A$1:$D$1,0),FALSE)*BT12*IF(ISNA(VLOOKUP(BT12,'travel frequence'!$A$7:$B$23,2,FALSE)),'travel frequence'!$B$23,VLOOKUP(BT12,'travel frequence'!$A$7:$B$23,2,FALSE)),0) -> 0.7765858683 | BV12: =IF(VLOOKUP(BQ12,'Industry Type P'!$A$1:$S$102,MATCH($C12,'Industry Type P'!$A$1:$S$1,0),FALSE)>RAND(),"Y","N") -> N | BW12: 0 | BX12: 0 | BY12: =IF(BV12="N"," ",INDEX('Other cost'!$A$9:$A$13,RANDBETWEEN(1,5),1)) ->  | BZ12: =MIN($H12,IF(BV12="N",0,SUM(BX12,'Other cost'!$B$16,VLOOKUP(BY12,'Other cost'!$A$9:$B$13,2,FALSE),IF(BW12>=30,HLOOKUP(30,'Salary in Industry'!$N$1:$AQ$1001,$B12+1,FALSE),HLOOKUP(BW12,'Salary in Industry'!$N$1:$AQ$1001,$B12+1,FALSE)),IF(ISNA(VLOOKUP(BQ12,'Ransom Statistics'!$A$1:$D$18,4,FALSE)),'Ransom Statistics'!$D$18,VLOOKUP(BQ12,'Ransom Statistics'!$A$1:$D$18,4,FALSE))))) -> 0 | CA12: =INDEX([1]Variables!$A$2:$A$103,INT((RAND()*100)+1),1) -> Guinea | CB12: =INDEX(Variables!$E$3:$E$5,RANDBETWEEN(1,3),1) -> Short (less a week) | CC12: =INDEX([1]Variables!$G$3:$G$5,RANDBETWEEN(1,3),1) -> infrequent (less than 3 times) | CD12: 15 | CE12: =IF(ISNA(VLOOKUP(CA12,Variables!$K$1:$K$36,1,FALSE)),SUM('Other cost'!$B$2,'Salary in Industry'!$AR11,IF(ISNA(VLOOKUP(Simulation!CA12,'Ransom Statistics'!$A$1:$D$18,4,FALSE)),'Ransom Statistics'!$D$18,VLOOKUP(Simulation!CA12,'Ransom Statistics'!$A$1:$D$18,4,FALSE)))*IF(ISNA(VLOOKUP(CA12,'Industry Type P'!$A$2:$S$103,2,FALSE)),'Kidnapping Statistics'!$K$3,VLOOKUP(CA12,'Industry Type P'!$A$1:$S$102,MATCH($C12,'Industry Type P'!$A$1:$S$1,0),FALSE))*VLOOKUP(CC12,'travel frequence'!$A$1:$D$4,MATCH(CB12,'travel frequence'!$A$1:$D$1,0),FALSE)*CD12*IF(ISNA(VLOOKUP(CD12,'travel frequence'!$A$7:$B$23,2,FALSE)),'travel frequence'!$B$23,VLOOKUP(CD12,'travel frequence'!$A$7:$B$23,2,FALSE)),0) -> 6.989272815 | CF12: =IF(VLOOKUP(CA12,'Industry Type P'!$A$1:$S$102,MATCH($C12,'Industry Type P'!$A$1:$S$1,0),FALSE)>RAND(),"Y","N") -> N | CG12: 0 | CH12: 0 | CI12: =IF(CF12="N"," ",INDEX('Other cost'!$A$9:$A$13,RANDBETWEEN(1,5),1)) ->  | CJ12: =MIN($H12,IF(CF12="N",0,SUM(CH12,'Other cost'!$B$16,VLOOKUP(CI12,'Other cost'!$A$9:$B$13,2,FALSE),IF(CG12>=30,HLOOKUP(30,'Salary in Industry'!$N$1:$AQ$1001,$B12+1,FALSE),HLOOKUP(CG12,'Salary in Industry'!$N$1:$AQ$1001,$B12+1,FALSE)),IF(ISNA(VLOOKUP(CA12,'Ransom Statistics'!$A$1:$D$18,4,FALSE)),'Ransom Statistics'!$D$18,VLOOKUP(CA12,'Ransom Statistics'!$A$1:$D$18,4,FALSE))))) -> 0 | CK12: =INDEX([1]Variables!$A$2:$A$103,INT((RAND()*100)+1),1) -> Honduras | CL12: =INDEX(Variables!$E$3:$E$5,RANDBETWEEN(1,3),1) -> Long (more than one month) | CM12: =INDEX([1]Variables!$G$3:$G$5,RANDBETWEEN(1,3),1) -> infrequent (less than 3 times) | CN12: 5 | CO12: =IF(ISNA(VLOOKUP(CK12,Variables!$K$1:$K$36,1,FALSE)),SUM('Other cost'!$B$2,'Salary in Industry'!$AR11,IF(ISNA(VLOOKUP(Simulation!CK12,'Ransom Statistics'!$A$1:$D$18,4,FALSE)),'Ransom Statistics'!$D$18,VLOOKUP(Simulation!CK12,'Ransom Statistics'!$A$1:$D$18,4,FALSE)))*IF(ISNA(VLOOKUP(CK12,'Industry Type P'!$A$2:$S$103,2,FALSE)),'Kidnapping Statistics'!$K$3,VLOOKUP(CK12,'Industry Type P'!$A$1:$S$102,MATCH($C12,'Industry Type P'!$A$1:$S$1,0),FALSE))*VLOOKUP(CM12,'travel frequence'!$A$1:$D$4,MATCH(CL12,'travel frequence'!$A$1:$D$1,0),FALSE)*CN12*IF(ISNA(VLOOKUP(CN12,'travel frequence'!$A$7:$B$23,2,FALSE)),'travel frequence'!$B$23,VLOOKUP(CN12,'travel frequence'!$A$7:$B$23,2,FALSE)),0) -> 0 | CP12: =IF(VLOOKUP(CK12,'Industry Type P'!$A$1:$S$102,MATCH($C12,'Industry Type P'!$A$1:$S$1,0),FALSE)>RAND(),"Y","N") -> N | CQ12: 0 | CR12: 0 | CS12: =IF(CP12="N"," ",INDEX('Other cost'!$A$9:$A$13,RANDBETWEEN(1,5),1)) ->  | CT12: =MIN($H12,IF(CP12="N",0,SUM(CR12,'Other cost'!$B$16,VLOOKUP(CS12,'Other cost'!$A$9:$B$13,2,FALSE),IF(CQ12>=30,HLOOKUP(30,'Salary in Industry'!$N$1:$AQ$1001,$B12+1,FALSE),HLOOKUP(CQ12,'Salary in Industry'!$N$1:$AQ$1001,$B12+1,FALSE)),IF(ISNA(VLOOKUP(CK12,'Ransom Statistics'!$A$1:$D$18,4,FALSE)),'Ransom Statistics'!$D$18,VLOOKUP(CK12,'Ransom Statistics'!$A$1:$D$18,4,FALSE))))) -> 0 | CU12: =INDEX([1]Variables!$A$2:$A$103,INT((RAND()*100)+1),1) -> Romania | CV12: =INDEX(Variables!$E$3:$E$5,RANDBETWEEN(1,3),1) -> Medium (1 week to 1month) | CW12: =INDEX([1]Variables!$G$3:$G$5,RANDBETWEEN(1,3),1) -> infrequent (less than 3 times) | CX12: 7 | CY12: =IF(ISNA(VLOOKUP(CU12,Variables!$K$1:$K$36,1,FALSE)),SUM('Other cost'!$B$2,'Salary in Industry'!$AR11,IF(ISNA(VLOOKUP(Simulation!CU12,'Ransom Statistics'!$A$1:$D$18,4,FALSE)),'Ransom Statistics'!$D$18,VLOOKUP(Simulation!CU12,'Ransom Statistics'!$A$1:$D$18,4,FALSE)))*IF(ISNA(VLOOKUP(CU12,'Industry Type P'!$A$2:$S$103,2,FALSE)),'Kidnapping Statistics'!$K$3,VLOOKUP(CU12,'Industry Type P'!$A$1:$S$102,MATCH($C12,'Industry Type P'!$A$1:$S$1,0),FALSE))*VLOOKUP(CW12,'travel frequence'!$A$1:$D$4,MATCH(CV12,'travel frequence'!$A$1:$D$1,0),FALSE)*CX12*IF(ISNA(VLOOKUP(CX12,'travel frequence'!$A$7:$B$23,2,FALSE)),'travel frequence'!$B$23,VLOOKUP(CX12,'travel frequence'!$A$7:$B$23,2,FALSE)),0) -> 61.18875373 | CZ12: =IF(VLOOKUP(CU12,'Industry Type P'!$A$1:$S$102,MATCH($C12,'Industry Type P'!$A$1:$S$1,0),FALSE)>RAND(),"Y","N") -> N | DA12: 0 | DB12: 0 | DC12: =IF(CZ12="N"," ",INDEX('Other cost'!$A$9:$A$13,RANDBETWEEN(1,5),1)) ->  | DD12: =MIN($H12,IF(CZ12="N",0,SUM(DB12,'Other cost'!$B$16,VLOOKUP(DC12,'Other cost'!$A$9:$B$13,2,FALSE),IF(DA12>=30,HLOOKUP(30,'Salary in Industry'!$N$1:$AQ$1001,$B12+1,FALSE),HLOOKUP(DA12,'Salary in Industry'!$N$1:$AQ$1001,$B12+1,FALSE)),IF(ISNA(VLOOKUP(CU12,'Ransom Statistics'!$A$1:$D$18,4,FALSE)),'Ransom Statistics'!$D$18,VLOOKUP(CU12,'Ransom Statistics'!$A$1:$D$18,4,FALSE))))) -> 0 | DE12: 0 | DF12: =((IF(A12=0,0,IF(A12=1,M12,IF(A12=2,M12+W12,IF(A12=3,M12+W12+AG12,IF(A12=4,M12+W12+AG12+AQ12,IF(A12=5,M12+W12+AG12+AQ12+BA12,IF(A12=6,M12+W12+AG12+AQ12+BA12+BK12,IF(A12=7,M12+W12+AG12+AQ12+BA12+BK12+BU12,IF(A12=8,M12+W12+AG12+AQ12+BA12+BK12+BU12+CE12,IF(A12=9,M12+W12+AG12+AQ12+BA12+BK12+BU12+CE12+CO12,IF(A12=10,M12+W12+AG12+AQ12+BA12+BK12+BU12+CE12+CO12+CY12))))))))))))/(1+Variables!$G$12))*(1+Variables!$F$21) -> 4457.926776 | DJ12: Number of claims | DK12: =COUNTIF(DE3:DE1002,">0") -> 0
A13: 9 | B13: 11 | C13: =INDEX([1]Variables!$C$2:$C$19,INT((RAND()*10)+1),1) -> Construction | D13: 37 | E13: 62 | F13: 3834 | G13: 36003813 | H13: =Variables!$H$21 -> 1000000 | I13: =INDEX([1]Variables!$A$2:$A$103,INT((RAND()*100)+1),1) -> Costa Rica | J13: =INDEX(Variables!$E$3:$E$5,RANDBETWEEN(1,3),1) -> Long (more than one month) | K13: =INDEX([1]Variables!$G$3:$G$5,RANDBETWEEN(1,3),1) -> very frequent ( more than 12 times a year) | L13: 18 | M13: =IF(ISNA(VLOOKUP(I13,Variables!$K$1:$K$36,1,FALSE)),SUM('Other cost'!$B$2,'Salary in Industry'!$AR12,IF(ISNA(VLOOKUP(Simulation!I13,'Ransom Statistics'!$A$1:$D$18,4,FALSE)),'Ransom Statistics'!$D$18,VLOOKUP(Simulation!I13,'Ransom Statistics'!$A$1:$D$18,4,FALSE)))*IF(ISNA(VLOOKUP(I13,'Industry Type P'!$A$2:$S$103,2,FALSE)),'Kidnapping Statistics'!$K$3,VLOOKUP(I13,'Industry Type P'!$A$1:$S$102,MATCH($C13,'Industry Type P'!$A$1:$S$1,0),FALSE))*VLOOKUP(K13,'travel frequence'!$A$1:$D$4,MATCH(J13,'travel frequence'!$A$1:$D$1,0),FALSE)*L13*IF(ISNA(VLOOKUP(L13,'travel frequence'!$A$7:$B$23,2,FALSE)),'travel frequence'!$B$23,VLOOKUP(L13,'travel frequence'!$A$7:$B$23,2,FALSE)),0) -> 11.16349778 | N13: =IF(VLOOKUP(I13,'Industry Type P'!$A$1:$S$102,MATCH($C13,'Industry Type P'!$A$1:$S$1,0),FALSE)>RAND(),"Y","N") -> N | O13: 0 | P13: 0 | Q13: =IF(N13="N"," ",INDEX('Other cost'!$A$9:$A$13,RANDBETWEEN(1,5),1)) ->  | R13: =MIN($H13,IF(N13="N",0,SUM(P13,'Other cost'!$B$16,VLOOKUP(Q13,'Other cost'!$A$9:$B$13,2,FALSE),IF(O13>=30,HLOOKUP(30,'Salary in Industry'!$N$1:$AQ$1001,$B13+1,FALSE),HLOOKUP(O13,'Salary in Industry'!$N$1:$AQ$1001,$B13+1,FALSE)),IF(ISNA(VLOOKUP(I13,'Ransom Statistics'!$A$1:$D$18,4,FALSE)),'Ransom Statistics'!$D$18,VLOOKUP(I13,'Ransom Statistics'!$A$1:$D$18,4,FALSE))))) -> 0 | S13: =INDEX([1]Variables!$A$2:$A$103,INT((RAND()*100)+1),1) -> Russia | T13: =INDEX(Variables!$E$3:$E$5,RANDBETWEEN(1,3),1) -> Long (more than one month) | U13: =INDEX([1]Variables!$G$3:$G$5,RANDBETWEEN(1,3),1) -> infrequent (less than 3 times) | V13: 15 | W13: =IF(ISNA(VLOOKUP(S13,Variables!$K$1:$K$36,1,FALSE)),SUM('Other cost'!$B$2,'Salary in Industry'!$AR12,IF(ISNA(VLOOKUP(Simulation!S13,'Ransom Statistics'!$A$1:$D$18,4,FALSE)),'Ransom Statistics'!$D$18,VLOOKUP(Simulation!S13,'Ransom Statistics'!$A$1:$D$18,4,FALSE)))*IF(ISNA(VLOOKUP(S13,'Industry Type P'!$A$2:$S$103,2,FALSE)),'Kidnapping Statistics'!$K$3,VLOOKUP(S13,'Industry Type P'!$A$1:$S$102,MATCH($C13,'Industry Type P'!$A$1:$S$1,0),FALSE))*VLOOKUP(U13,'travel frequence'!$A$1:$D$4,MATCH(T13,'travel frequence'!$A$1:$D$1,0),FALSE)*V13*IF(ISNA(VLOOKUP(V13,'travel frequence'!$A$7:$B$23,2,FALSE)),'travel frequence'!$B$23,VLOOKUP(V13,'travel frequence'!$A$7:$B$23,2,FALSE)),0) -> 7.688359353 | X13: =IF(VLOOKUP(S13,'Industry Type P'!$A$1:$S$102,MATCH($C13,'Industry Type P'!$A$1:$S$1,0),FALSE)>RAND(),"Y","N") -> N | Y13: 0 | Z13: 0 | AA13: =IF(X13="N"," ",INDEX('Other cost'!$A$9:$A$13,RANDBETWEEN(1,5),1)) ->  | AB13: =MIN($H13,IF(X13="N",0,SUM(Z13,'Other cost'!$B$16,VLOOKUP(AA13,'Other cost'!$A$9:$B$13,2,FALSE),IF(Y13>=30,HLOOKUP(30,'Salary in Industry'!$N$1:$AQ$1001,$B13+1,FALSE),HLOOKUP(Y13,'Salary in Industry'!$N$1:$AQ$1001,$B13+1,FALSE)),IF(ISNA(VLOOKUP(S13,'Ransom Statistics'!$A$1:$D$18,4,FALSE)),'Ransom Statistics'!$D$18,VLOOKUP(S13,'Ransom Statistics'!$A$1:$D$18,4,FALSE))))) -> 0 | AC13: =INDEX([1]Variables!$A$2:$A$103,INT((RAND()*100)+1),1) -> Guinea | AD13: =INDEX(Variables!$E$3:$E$5,RANDBETWEEN(1,3),1) -> Short (less a week) | AE13: =INDEX([1]Variables!$G$3:$G$5,RANDBETWEEN(1,3),1) -> infrequent (less than 3 times) | AF13: 8 | AG13: =IF(ISNA(VLOOKUP(AC13,Variables!$K$1:$K$36,1,FALSE)),SUM('Other cost'!$B$2,'Salary in Industry'!$AR12,IF(ISNA(VLOOKUP(Simulation!AC13,'Ransom Statistics'!$A$1:$D$18,4,FALSE)),'Ransom Statistics'!$D$18,VLOOKUP(Simulation!AC13,'Ransom Statistics'!$A$1:$D$18,4,FALSE)))*IF(ISNA(VLOOKUP(AC13,'Industry Type P'!$A$2:$S$103,2,FALSE)),'Kidnapping Statistics'!$K$3,VLOOKUP(AC13,'Industry Type P'!$A$1:$S$102,MATCH($C13,'Industry Type P'!$A$1:$S$1,0),FALSE))*VLOOKUP(AE13,'travel frequence'!$A$1:$D$4,MATCH(AD13,'travel frequence'!$A$1:$D$1,0),FALSE)*AF13*IF(ISNA(VLOOKUP(AF13,'travel frequence'!$A$7:$B$23,2,FALSE)),'travel frequence'!$B$23,VLOOKUP(AF13,'travel frequence'!$A$7:$B$23,2,FALSE)),0) -> 4.970252511 | AH13: =IF(VLOOKUP(AC13,'Industry Type P'!$A$1:$S$102,MATCH($C13,'Industry Type P'!$A$1:$S$1,0),FALSE)>RAND(),"Y","N") -> N | AI13: 0 | AJ13: 0 | AK13: =IF(AH13="N"," ",INDEX('Other cost'!$A$9:$A$13,RANDBETWEEN(1,5),1)) ->  | AL13: =MIN($H13,IF(AH13="N",0,SUM(AJ13,'Other cost'!$B$16,VLOOKUP(AK13,'Other cost'!$A$9:$B$13,2,FALSE),IF(AI13>=30,HLOOKUP(30,'Salary in Industry'!$N$1:$AQ$1001,$B13+1,FALSE),HLOOKUP(AI13,'Salary in Industry'!$N$1:$AQ$1001,$B13+1,FALSE)),IF(ISNA(VLOOKUP(AC13,'Ransom Statistics'!$A$1:$D$18,4,FALSE)),'Ransom Statistics'!$D$18,VLOOKUP(AC13,'Ransom Statistics'!$A$1:$D$18,4,FALSE))))) -> 0 | AM13: =INDEX([1]Variables!$A$2:$A$103,INT((RAND()*100)+1),1) -> Mexico | AN13: =INDEX(Variables!$E$3:$E$5,RANDBETWEEN(1,3),1) -> Medium (1 week to 1month) | AO13: =INDEX([1]Variables!$G$3:$G$5,RANDBETWEEN(1,3),1) -> very frequent ( more than 12 times a year) | AP13: 16 | AQ13: =IF(ISNA(VLOOKUP(AM13,Variables!$K$1:$K$36,1,FALSE)),SUM('Other cost'!$B$2,'Salary in Industry'!$AR12,IF(ISNA(VLOOKUP(Simulation!AM13,'Ransom Statistics'!$A$1:$D$18,4,FALSE)),'Ransom Statistics'!$D$18,VLOOKUP(Simulation!AM13,'Ransom Statistics'!$A$1:$D$18,4,FALSE)))*IF(ISNA(VLOOKUP(AM13,'Industry Type P'!$A$2:$S$103,2,FALSE)),'Kidnapping Statistics'!$K$3,VLOOKUP(AM13,'Industry Type P'!$A$1:$S$102,MATCH($C13,'Industry Type P'!$A$1:$S$1,0),FALSE))*VLOOKUP(AO13,'travel frequence'!$A$1:$D$4,MATCH(AN13,'travel frequence'!$A$1:$D$1,0),FALSE)*AP13*IF(ISNA(VLOOKUP(AP13,'travel frequence'!$A$7:$B$23,2,FALSE)),'travel frequence'!$B$23,VLOOKUP(AP13,'travel frequence'!$A$7:$B$23,2,FALSE)),0) -> 0 | AR13: =IF(VLOOKUP(AM13,'Industry Type P'!$A$1:$S$102,MATCH($C13,'Industry Type P'!$A$1:$S$1,0),FALSE)>RAND(),"Y","N") -> N | AS13: 0 | AT13: 0 | AU13: =IF(AR13="N"," ",INDEX('Other cost'!$A$9:$A$13,RANDBETWEEN(1,5),1)) ->  | AV13: =MIN($H13,IF(AR13="N",0,SUM(AT13,'Other cost'!$B$16,VLOOKUP(AU13,'Other cost'!$A$9:$B$13,2,FALSE),IF(AS13>=30,HLOOKUP(30,'Salary in Industry'!$N$1:$AQ$1001,$B13+1,FALSE),HLOOKUP(AS13,'Salary in Industry'!$N$1:$AQ$1001,$B13+1,FALSE)),IF(ISNA(VLOOKUP(AM13,'Ransom Statistics'!$A$1:$D$18,4,FALSE)),'Ransom Statistics'!$D$18,VLOOKUP(AM13,'Ransom Statistics'!$A$1:$D$18,4,FALSE))))) -> 0 | AW13: =INDEX([1]Variables!$A$2:$A$103,INT((RAND()*100)+1),1) -> Colombia | AX13: =INDEX(Variables!$E$3:$E$5,RANDBETWEEN(1,3),1) -> Medium (1 week to 1month) | AY13: =INDEX([1]Variables!$G$3:$G$5,RANDBETWEEN(1,3),1) -> very frequent ( more than 12 times a year) | AZ13: 10 | BA13: =IF(ISNA(VLOOKUP(AW13,Variables!$K$1:$K$36,1,FALSE)),SUM('Other cost'!$B$2,'Salary in Industry'!$AR12,IF(ISNA(VLOOKUP(Simulation!AW13,'Ransom Statistics'!$A$1:$D$18,4,FALSE)),'Ransom Statistics'!$D$18,VLOOKUP(Simulation!AW13,'Ransom Statistics'!$A$1:$D$18,4,FALSE)))*IF(ISNA(VLOOKUP(AW13,'Industry Type P'!$A$2:$S$103,2,FALSE)),'Kidnapping Statistics'!$K$3,VLOOKUP(AW13,'Industry Type P'!$A$1:$S$102,MATCH($C13,'Industry Type P'!$A$1:$S$1,0),FALSE))*VLOOKUP(AY13,'travel frequence'!$A$1:$D$4,MATCH(AX13,'travel frequence'!$A$1:$D$1,0),FALSE)*AZ13*IF(ISNA(VLOOKUP(AZ13,'travel frequence'!$A$7:$B$23,2,FALSE)),'travel frequence'!$B$23,VLOOKUP(AZ13,'travel frequence'!$A$7:$B$23,2,FALSE)),0) -> 0 | BB13: =IF(VLOOKUP(AW13,'Industry Type P'!$A$1:$S$102,MATCH($C13,'Industry Type P'!$A$1:$S$1,0),FALSE)>RAND(),"Y","N") -> N | BC13: 0 | BD13: 0 | BE13: =IF(BB13="N"," ",INDEX('Other cost'!$A$9:$A$13,RANDBETWEEN(1,5),1)) ->  | BF13: =MIN($H13,IF(BB13="N",0,SUM(BD13,'Other cost'!$B$16,VLOOKUP(BE13,'Other cost'!$A$9:$B$13,2,FALSE),IF(BC13>=30,HLOOKUP(30,'Salary in Industry'!$N$1:$AQ$1001,$B13+1,FALSE),HLOOKUP(BC13,'Salary in Industry'!$N$1:$AQ$1001,$B13+1,FALSE)),IF(ISNA(VLOOKUP(AW13,'Ransom Statistics'!$A$1:$D$18,4,FALSE)),'Ransom Statistics'!$D$18,VLOOKUP(AW13,'Ransom Statistics'!$A$1:$D$18,4,FALSE))))) -> 0 | BG13: =INDEX([1]Variables!$A$2:$A$103,INT((RAND()*100)+1),1) -> the Balkans | BH13: =INDEX(Variables!$E$3:$E$5,RANDBETWEEN(1,3),1) -> Medium (1 week to 1month) | BI13: =INDEX([1]Variables!$G$3:$G$5,RANDBETWEEN(1,3),1) -> infrequent (less than 3 times) | BJ13: 11 | BK13: =IF(ISNA(VLOOKUP(BG13,Variables!$K$1:$K$36,1,FALSE)),SUM('Other cost'!$B$2,'Salary in Industry'!$AR12,IF(ISNA(VLOOKUP(Simulation!BG13,'Ransom Statistics'!$A$1:$D$18,4,FALSE)),'Ransom Statistics'!$D$18,VLOOKUP(Simulation!BG13,'Ransom Statistics'!$A$1:$D$18,4,FALSE)))*IF(ISNA(VLOOKUP(BG13,'Industry Type P'!$A$2:$S$103,2,FALSE)),'Kidnapping Statistics'!$K$3,VLOOKUP(BG13,'Industry Type P'!$A$1:$S$102,MATCH($C13,'Industry Type P'!$A$1:$S$1,0),FALSE))*VLOOKUP(BI13,'travel frequence'!$A$1:$D$4,MATCH(BH13,'travel frequence'!$A$1:$D$1,0),FALSE)*BJ13*IF(ISNA(VLOOKUP(BJ13,'travel frequence'!$A$7:$B$23,2,FALSE)),'travel frequence'!$B$23,VLOOKUP(BJ13,'travel frequence'!$A$7:$B$23,2,FALSE)),0) -> 6.278826805 | BL13: =IF(VLOOKUP(BG13,'Industry Type P'!$A$1:$S$102,MATCH($C13,'Industry Type P'!$A$1:$S$1,0),FALSE)>RAND(),"Y","N") -> N | BM13: 0 | BN13: 0 | BO13: =IF(BL13="N"," ",INDEX('Other cost'!$A$9:$A$13,RANDBETWEEN(1,5),1)) ->  | BP13: =MIN($H13,IF(BL13="N",0,SUM(BN13,'Other cost'!$B$16,VLOOKUP(BO13,'Other cost'!$A$9:$B$13,2,FALSE),IF(BM13>=30,HLOOKUP(30,'Salary in Industry'!$N$1:$AQ$1001,$B13+1,FALSE),HLOOKUP(BM13,'Salary in Industry'!$N$1:$AQ$1001,$B13+1,FALSE)),IF(ISNA(VLOOKUP(BG13,'Ransom Statistics'!$A$1:$D$18,4,FALSE)),'Ransom Statistics'!$D$18,VLOOKUP(BG13,'Ransom Statistics'!$A$1:$D$18,4,FALSE))))) -> 0 | BQ13: =INDEX([1]Variables!$A$2:$A$103,INT((RAND()*100)+1),1) -> Mauritania | BR13: =INDEX(Variables!$E$3:$E$5,RANDBETWEEN(1,3),1) -> Medium (1 week to 1month) | BS13: =INDEX([1]Variables!$G$3:$G$5,RANDBETWEEN(1,3),1) -> frequent (3 times to 12 times) | BT13: 10 | BU13: =IF(ISNA(VLOOKUP(BQ13,Variables!$K$1:$K$36,1,FALSE)),SUM('Other cost'!$B$2,'Salary in Industry'!$AR12,IF(ISNA(VLOOKUP(Simulation!BQ13,'Ransom Statistics'!$A$1:$D$18,4,FALSE)),'Ransom Statistics'!$D$18,VLOOKUP(Simulation!BQ13,'Ransom Statistics'!$A$1:$D$18,4,FALSE)))*IF(ISNA(VLOOKUP(BQ13,'Industry Type P'!$A$2:$S$103,2,FALSE)),'Kidnapping Statistics'!$K$3,VLOOKUP(BQ13,'Industry Type P'!$A$1:$S$102,MATCH($C13,'Industry Type P'!$A$1:$S$1,0),FALSE))*VLOOKUP(BS13,'travel frequence'!$A$1:$D$4,MATCH(BR13,'travel frequence'!$A$1:$D$1,0),FALSE)*BT13*IF(ISNA(VLOOKUP(BT13,'travel frequence'!$A$7:$B$23,2,FALSE)),'travel frequence'!$B$23,VLOOKUP(BT13,'travel frequence'!$A$7:$B$23,2,FALSE)),0) -> 0 | BV13: =IF(VLOOKUP(BQ13,'Industry Type P'!$A$1:$S$102,MATCH($C13,'Industry Type P'!$A$1:$S$1,0),FALSE)>RAND(),"Y","N") -> N | BW13: 0 | BX13: 0 | BY13: =IF(BV13="N"," ",INDEX('Other cost'!$A$9:$A$13,RANDBETWEEN(1,5),1)) ->  | BZ13: =MIN($H13,IF(BV13="N",0,SUM(BX13,'Other cost'!$B$16,VLOOKUP(BY13,'Other cost'!$A$9:$B$13,2,FALSE),IF(BW13>=30,HLOOKUP(30,'Salary in Industry'!$N$1:$AQ$1001,$B13+1,FALSE),HLOOKUP(BW13,'Salary in Industry'!$N$1:$AQ$1001,$B13+1,FALSE)),IF(ISNA(VLOOKUP(BQ13,'Ransom Statistics'!$A$1:$D$18,4,FALSE)),'Ransom Statistics'!$D$18,VLOOKUP(BQ13,'Ransom Statistics'!$A$1:$D$18,4,FALSE))))) -> 0 | CA13: =INDEX([1]Variables!$A$2:$A$103,INT((RAND()*100)+1),1) -> Guinea | CB13: =INDEX(Variables!$E$3:$E$5,RANDBETWEEN(1,3),1) -> Medium (1 week to 1month) | CC13: =INDEX([1]Variables!$G$3:$G$5,RANDBETWEEN(1,3),1) -> very frequent ( more than 12 times a year) | CD13: 16 | CE13: =IF(ISNA(VLOOKUP(CA13,Variables!$K$1:$K$36,1,FALSE)),SUM('Other cost'!$B$2,'Salary in Industry'!$AR12,IF(ISNA(VLOOKUP(Simulation!CA13,'Ransom Statistics'!$A$1:$D$18,4,FALSE)),'Ransom Statistics'!$D$18,VLOOKUP(Simulation!CA13,'Ransom Statistics'!$A$1:$D$18,4,FALSE)))*IF(ISNA(VLOOKUP(CA13,'Industry Type P'!$A$2:$S$103,2,FALSE)),'Kidnapping Statistics'!$K$3,VLOOKUP(CA13,'Industry Type P'!$A$1:$S$102,MATCH($C13,'Industry Type P'!$A$1:$S$1,0),FALSE))*VLOOKUP(CC13,'travel frequence'!$A$1:$D$4,MATCH(CB13,'travel frequence'!$A$1:$D$1,0),FALSE)*CD13*IF(ISNA(VLOOKUP(CD13,'travel frequence'!$A$7:$B$23,2,FALSE)),'travel frequence'!$B$23,VLOOKUP(CD13,'travel frequence'!$A$7:$B$23,2,FALSE)),0) -> 8.610962476 | CF13: =IF(VLOOKUP(CA13,'Industry Type P'!$A$1:$S$102,MATCH($C13,'Industry Type P'!$A$1:$S$1,0),FALSE)>RAND(),"Y","N") -> N | CG13: 0 | CH13: 0 | CI13: =IF(CF13="N"," ",INDEX('Other cost'!$A$9:$A$13,RANDBETWEEN(1,5),1)) ->  | CJ13: =MIN($H13,IF(CF13="N",0,SUM(CH13,'Other cost'!$B$16,VLOOKUP(CI13,'Other cost'!$A$9:$B$13,2,FALSE),IF(CG13>=30,HLOOKUP(30,'Salary in Industry'!$N$1:$AQ$1001,$B13+1,FALSE),HLOOKUP(CG13,'Salary in Industry'!$N$1:$AQ$1001,$B13+1,FALSE)),IF(ISNA(VLOOKUP(CA13,'Ransom Statistics'!$A$1:$D$18,4,FALSE)),'Ransom Statistics'!$D$18,VLOOKUP(CA13,'Ransom Statistics'!$A$1:$D$18,4,FALSE))))) -> 0 | CK13: =INDEX([1]Variables!$A$2:$A$103,INT((RAND()*100)+1),1) -> Equatorial | CL13: =INDEX(Variables!$E$3:$E$5,RANDBETWEEN(1,3),1) -> Long (more than one month) | CM13: =INDEX([1]Variables!$G$3:$G$5,RANDBETWEEN(1,3),1) -> very frequent ( more than 12 times a year) | CN13: 19 | CO13: =IF(ISNA(VLOOKUP(CK13,Variables!$K$1:$K$36,1,FALSE)),SUM('Other cost'!$B$2,'Salary in Industry'!$AR12,IF(ISNA(VLOOKUP(Simulation!CK13,'Ransom Statistics'!$A$1:$D$18,4,FALSE)),'Ransom Statistics'!$D$18,VLOOKUP(Simulation!CK13,'Ransom Statistics'!$A$1:$D$18,4,FALSE)))*IF(ISNA(VLOOKUP(CK13,'Industry Type P'!$A$2:$S$103,2,FALSE)),'Kidnapping Statistics'!$K$3,VLOOKUP(CK13,'Industry Type P'!$A$1:$S$102,MATCH($C13,'Industry Type P'!$A$1:$S$1,0),FALSE))*VLOOKUP(CM13,'travel frequence'!$A$1:$D$4,MATCH(CL13,'travel frequence'!$A$1:$D$1,0),FALSE)*CN13*IF(ISNA(VLOOKUP(CN13,'travel frequence'!$A$7:$B$23,2,FALSE)),'travel frequence'!$B$23,VLOOKUP(CN13,'travel frequence'!$A$7:$B$23,2,FALSE)),0) -> 10.71244737 | CP13: =IF(VLOOKUP(CK13,'Industry Type P'!$A$1:$S$102,MATCH($C13,'Industry Type P'!$A$1:$S$1,0),FALSE)>RAND(),"Y","N") -> N | CQ13: 0 | CR13: 0 | CS13: =IF(CP13="N"," ",INDEX('Other cost'!$A$9:$A$13,RANDBETWEEN(1,5),1)) ->  | CT13: =MIN($H13,IF(CP13="N",0,SUM(CR13,'Other cost'!$B$16,VLOOKUP(CS13,'Other cost'!$A$9:$B$13,2,FALSE),IF(CQ13>=30,HLOOKUP(30,'Salary in Industry'!$N$1:$AQ$1001,$B13+1,FALSE),HLOOKUP(CQ13,'Salary in Industry'!$N$1:$AQ$1001,$B13+1,FALSE)),IF(ISNA(VLOOKUP(CK13,'Ransom Statistics'!$A$1:$D$18,4,FALSE)),'Ransom Statistics'!$D$18,VLOOKUP(CK13,'Ransom Statistics'!$A$1:$D$18,4,FALSE))))) -> 0 | CU13: =INDEX([1]Variables!$A$2:$A$103,INT((RAND()*100)+1),1) -> Italy | CV13: =INDEX(Variables!$E$3:$E$5,RANDBETWEEN(1,3),1) -> Medium (1 week to 1month) | CW13: =INDEX([1]Variables!$G$3:$G$5,RANDBETWEEN(1,3),1) -> frequent (3 times to 12 times) | CX13: 19 | CY13: =IF(ISNA(VLOOKUP(CU13,Variables!$K$1:$K$36,1,FALSE)),SUM('Other cost'!$B$2,'Salary in Industry'!$AR12,IF(ISNA(VLOOKUP(Simulation!CU13,'Ransom Statistics'!$A$1:$D$18,4,FALSE)),'Ransom Statistics'!$D$18,VLOOKUP(Simulation!CU13,'Ransom Statistics'!$A$1:$D$18,4,FALSE)))*IF(ISNA(VLOOKUP(CU13,'Industry Type P'!$A$2:$S$103,2,FALSE)),'Kidnapping Statistics'!$K$3,VLOOKUP(CU13,'Industry Type P'!$A$1:$S$102,MATCH($C13,'Industry Type P'!$A$1:$S$1,0),FALSE))*VLOOKUP(CW13,'travel frequence'!$A$1:$D$4,MATCH(CV13,'travel frequence'!$A$1:$D$1,0),FALSE)*CX13*IF(ISNA(VLOOKUP(CX13,'travel frequence'!$A$7:$B$23,2,FALSE)),'travel frequence'!$B$23,VLOOKUP(CX13,'travel frequence'!$A$7:$B$23,2,FALSE)),0) -> 45.87539185 | CZ13: =IF(VLOOKUP(CU13,'Industry Type P'!$A$1:$S$102,MATCH($C13,'Industry Type P'!$A$1:$S$1,0),FALSE)>RAND(),"Y","N") -> N | DA13: 0 | DB13: 0 | DC13: =IF(CZ13="N"," ",INDEX('Other cost'!$A$9:$A$13,RANDBETWEEN(1,5),1)) ->  | DD13: =MIN($H13,IF(CZ13="N",0,SUM(DB13,'Other cost'!$B$16,VLOOKUP(DC13,'Other cost'!$A$9:$B$13,2,FALSE),IF(DA13>=30,HLOOKUP(30,'Salary in Industry'!$N$1:$AQ$1001,$B13+1,FALSE),HLOOKUP(DA13,'Salary in Industry'!$N$1:$AQ$1001,$B13+1,FALSE)),IF(ISNA(VLOOKUP(CU13,'Ransom Statistics'!$A$1:$D$18,4,FALSE)),'Ransom Statistics'!$D$18,VLOOKUP(CU13,'Ransom Statistics'!$A$1:$D$18,4,FALSE))))) -> 0 | DE13: 0 | DF13: =((IF(A13=0,0,IF(A13=1,M13,IF(A13=2,M13+W13,IF(A13=3,M13+W13+AG13,IF(A13=4,M13+W13+AG13+AQ13,IF(A13=5,M13+W13+AG13+AQ13+BA13,IF(A13=6,M13+W13+AG13+AQ13+BA13+BK13,IF(A13=7,M13+W13+AG13+AQ13+BA13+BK13+BU13,IF(A13=8,M13+W13+AG13+AQ13+BA13+BK13+BU13+CE13,IF(A13=9,M13+W13+AG13+AQ13+BA13+BK13+BU13+CE13+CO13,IF(A13=10,M13+W13+AG13+AQ13+BA13+BK13+BU13+CE13+CO13+CY13))))))))))))/(1+Variables!$G$12))*(1+Variables!$F$21) -> 54.18314052
A14: 6 | B14: 12 | C14: =INDEX([1]Variables!$C$2:$C$19,INT((RAND()*10)+1),1) -> Finance and Insurance | D14: 48 | E14: 433 | F14: 4723 | G14: 18505865 | H14: =Variables!$H$21 -> 1000000 | I14: =INDEX([1]Variables!$A$2:$A$103,INT((RAND()*100)+1),1) -> Equatorial | J14: =INDEX(Variables!$E$3:$E$5,RANDBETWEEN(1,3),1) -> Short (less a week) | K14: =INDEX([1]Variables!$G$3:$G$5,RANDBETWEEN(1,3),1) -> infrequent (less than 3 times) | L14: 16 | M14: =IF(ISNA(VLOOKUP(I14,Variables!$K$1:$K$36,1,FALSE)),SUM('Other cost'!$B$2,'Salary in Industry'!$AR13,IF(ISNA(VLOOKUP(Simulation!I14,'Ransom Statistics'!$A$1:$D$18,4,FALSE)),'Ransom Statistics'!$D$18,VLOOKUP(Simulation!I14,'Ransom Statistics'!$A$1:$D$18,4,FALSE)))*IF(ISNA(VLOOKUP(I14,'Industry Type P'!$A$2:$S$103,2,FALSE)),'Kidnapping Statistics'!$K$3,VLOOKUP(I14,'Industry Type P'!$A$1:$S$102,MATCH($C14,'Industry Type P'!$A$1:$S$1,0),FALSE))*VLOOKUP(K14,'travel frequence'!$A$1:$D$4,MATCH(J14,'travel frequence'!$A$1:$D$1,0),FALSE)*L14*IF(ISNA(VLOOKUP(L14,'travel frequence'!$A$7:$B$23,2,FALSE)),'travel frequence'!$B$23,VLOOKUP(L14,'travel frequence'!$A$7:$B$23,2,FALSE)),0) -> 7.455417707 | N14: =IF(VLOOKUP(I14,'Industry Type P'!$A$1:$S$102,MATCH($C14,'Industry Type P'!$A$1:$S$1,0),FALSE)>RAND(),"Y","N") -> N | O14: 0 | P14: 0 | Q14: =IF(N14="N"," ",INDEX('Other cost'!$A$9:$A$13,RANDBETWEEN(1,5),1)) ->  | R14: =MIN($H14,IF(N14="N",0,SUM(P14,'Other cost'!$B$16,VLOOKUP(Q14,'Other cost'!$A$9:$B$13,2,FALSE),IF(O14>=30,HLOOKUP(30,'Salary in Industry'!$N$1:$AQ$1001,$B14+1,FALSE),HLOOKUP(O14,'Salary in Industry'!$N$1:$AQ$1001,$B14+1,FALSE)),IF(ISNA(VLOOKUP(I14,'Ransom Statistics'!$A$1:$D$18,4,FALSE)),'Ransom Statistics'!$D$18,VLOOKUP(I14,'Ransom Statistics'!$A$1:$D$18,4,FALSE))))) -> 0 | S14: =INDEX([1]Variables!$A$2:$A$103,INT((RAND()*100)+1),1) -> CAR | T14: =INDEX(Variables!$E$3:$E$5,RANDBETWEEN(1,3),1) -> Medium (1 week to 1month) | U14: =INDEX([1]Variables!$G$3:$G$5,RANDBETWEEN(1,3),1) -> frequent (3 times to 12 times) | V14: 13 | W14: =IF(ISNA(VLOOKUP(S14,Variables!$K$1:$K$36,1,FALSE)),SUM('Other cost'!$B$2,'Salary in Industry'!$AR13,IF(ISNA(VLOOKUP(Simulation!S14,'Ransom Statistics'!$A$1:$D$18,4,FALSE)),'Ransom Statistics'!$D$18,VLOOKUP(Simulation!S14,'Ransom Statistics'!$A$1:$D$18,4,FALSE)))*IF(ISNA(VLOOKUP(S14,'Industry Type P'!$A$2:$S$103,2,FALSE)),'Kidnapping Statistics'!$K$3,VLOOKUP(S14,'Industry Type P'!$A$1:$S$102,MATCH($C14,'Industry Type P'!$A$1:$S$1,0),FALSE))*VLOOKUP(U14,'travel frequence'!$A$1:$D$4,MATCH(T14,'travel frequence'!$A$1:$D$1,0),FALSE)*V14*IF(ISNA(VLOOKUP(V14,'travel frequence'!$A$7:$B$23,2,FALSE)),'travel frequence'!$B$23,VLOOKUP(V14,'travel frequence'!$A$7:$B$23,2,FALSE)),0) -> 50788.99766 | X14: =IF(VLOOKUP(S14,'Industry Type P'!$A$1:$S$102,MATCH($C14,'Industry Type P'!$A$1:$S$1,0),FALSE)>RAND(),"Y","N") -> N | Y14: 0 | Z14: 0 | AA14: =IF(X14="N"," ",INDEX('Other cost'!$A$9:$A$13,RANDBETWEEN(1,5),1)) ->  | AB14: =MIN($H14,IF(X14="N",0,SUM(Z14,'Other cost'!$B$16,VLOOKUP(AA14,'Other cost'!$A$9:$B$13,2,FALSE),IF(Y14>=30,HLOOKUP(30,'Salary in Industry'!$N$1:$AQ$1001,$B14+1,FALSE),HLOOKUP(Y14,'Salary in Industry'!$N$1:$AQ$1001,$B14+1,FALSE)),IF(ISNA(VLOOKUP(S14,'Ransom Statistics'!$A$1:$D$18,4,FALSE)),'Ransom Statistics'!$D$18,VLOOKUP(S14,'Ransom Statistics'!$A$1:$D$18,4,FALSE))))) -> 0 | AC14: =INDEX([1]Variables!$A$2:$A$103,INT((RAND()*100)+1),1) -> Burundi | AD14: =INDEX(Variables!$E$3:$E$5,RANDBETWEEN(1,3),1) -> Medium (1 week to 1month) | AE14: =INDEX([1]Variables!$G$3:$G$5,RANDBETWEEN(1,3),1) -> frequent (3 times to 12 times) | AF14: 8 | AG14: =IF(ISNA(VLOOKUP(AC14,Variables!$K$1:$K$36,1,FALSE)),SUM('Other cost'!$B$2,'Salary in Industry'!$AR13,IF(ISNA(VLOOKUP(Simulation!AC14,'Ransom Statistics'!$A$1:$D$18,4,FALSE)),'Ransom Statistics'!$D$18,VLOOKUP(Simulation!AC14,'Ransom Statistics'!$A$1:$D$18,4,FALSE)))*IF(ISNA(VLOOKUP(AC14,'Industry Type P'!$A$2:$S$103,2,FALSE)),'Kidnapping Statistics'!$K$3,VLOOKUP(AC14,'Industry Type P'!$A$1:$S$102,MATCH($C14,'Industry Type P'!$A$1:$S$1,0),FALSE))*VLOOKUP(AE14,'travel frequence'!$A$1:$D$4,MATCH(AD14,'travel frequence'!$A$1:$D$1,0),FALSE)*AF14*IF(ISNA(VLOOKUP(AF14,'travel frequence'!$A$7:$B$23,2,FALSE)),'travel frequence'!$B$23,VLOOKUP(AF14,'travel frequence'!$A$7:$B$23,2,FALSE)),0) -> 1643.919604 | AH14: =IF(VLOOKUP(AC14,'Industry Type P'!$A$1:$S$102,MATCH($C14,'Industry Type P'!$A$1:$S$1,0),FALSE)>RAND(),"Y","N") -> N | AI14: 0 | AJ14: 0 | AK14: =IF(AH14="N"," ",INDEX('Other cost'!$A$9:$A$13,RANDBETWEEN(1,5),1)) ->  | AL14: =MIN($H14,IF(AH14="N",0,SUM(AJ14,'Other cost'!$B$16,VLOOKUP(AK14,'Other cost'!$A$9:$B$13,2,FALSE),IF(AI14>=30,HLOOKUP(30,'Salary in Industry'!$N$1:$AQ$1001,$B14+1,FALSE),HLOOKUP(AI14,'Salary in Industry'!$N$1:$AQ$1001,$B14+1,FALSE)),IF(ISNA(VLOOKUP(AC14,'Ransom Statistics'!$A$1:$D$18,4,FALSE)),'Ransom Statistics'!$D$18,VLOOKUP(AC14,'Ransom Statistics'!$A$1:$D$18,4,FALSE))))) -> 0 | AM14: =INDEX([1]Variables!$A$2:$A$103,INT((RAND()*100)+1),1) -> Mauritania | AN14: =INDEX(Variables!$E$3:$E$5,RANDBETWEEN(1,3),1) -> Medium (1 week to 1month) | AO14: =INDEX([1]Variables!$G$3:$G$5,RANDBETWEEN(1,3),1) -> frequent (3 times to 12 times) | AP14: 2 | AQ14: =IF(ISNA(VLOOKUP(AM14,Variables!$K$1:$K$36,1,FALSE)),SUM('Other cost'!$B$2,'Salary in Industry'!$AR13,IF(ISNA(VLOOKUP(Simulation!AM14,'Ransom Statistics'!$A$1:$D$18,4,FALSE)),'Ransom Statistics'!$D$18,VLOOKUP(Simulation!AM14,'Ransom Statistics'!$A$1:$D$18,4,FALSE)))*IF(ISNA(VLOOKUP(AM14,'Industry Type P'!$A$2:$S$103,2,FALSE)),'Kidnapping Statistics'!$K$3,VLOOKUP(AM14,'Industry Type P'!$A$1:$S$102,MATCH($C14,'Industry Type P'!$A$1:$S$1,0),FALSE))*VLOOKUP(AO14,'travel frequence'!$A$1:$D$4,MATCH(AN14,'travel frequence'!$A$1:$D$1,0),FALSE)*AP14*IF(ISNA(VLOOKUP(AP14,'travel frequence'!$A$7:$B$23,2,FALSE)),'travel frequence'!$B$23,VLOOKUP(AP14,'travel frequence'!$A$7:$B$23,2,FALSE)),0) -> 0 | AR14: =IF(VLOOKUP(AM14,'Industry Type P'!$A$1:$S$102,MATCH($C14,'Industry Type P'!$A$1:$S$1,0),FALSE)>RAND(),"Y","N") -> N | AS14: 0 | AT14: 0 | AU14: =IF(AR14="N"," ",INDEX('Other cost'!$A$9:$A$13,RANDBETWEEN(1,5),1)) ->  | AV14: =MIN($H14,IF(AR14="N",0,SUM(AT14,'Other cost'!$B$16,VLOOKUP(AU14,'Other cost'!$A$9:$B$13,2,FALSE),IF(AS14>=30,HLOOKUP(30,'Salary in Industry'!$N$1:$AQ$1001,$B14+1,FALSE),HLOOKUP(AS14,'Salary in Industry'!$N$1:$AQ$1001,$B14+1,FALSE)),IF(ISNA(VLOOKUP(AM14,'Ransom Statistics'!$A$1:$D$18,4,FALSE)),'Ransom Statistics'!$D$18,VLOOKUP(AM14,'Ransom Statistics'!$A$1:$D$18,4,FALSE))))) -> 0 | AW14: =INDEX([1]Variables!$A$2:$A$103,INT((RAND()*100)+1),1) -> Niger | AX14: =INDEX(Variables!$E$3:$E$5,RANDBETWEEN(1,3),1) -> Long (more than one month) | AY14: =INDEX([1]Variables!$G$3:$G$5,RANDBETWEEN(1,3),1) -> frequent (3 times to 12 times) | AZ14: 1 | BA14: =IF(ISNA(VLOOKUP(AW14,Variables!$K$1:$K$36,1,FALSE)),SUM('Other cost'!$B$2,'Salary in Industry'!$AR13,IF(ISNA(VLOOKUP(Simulation!AW14,'Ransom Statistics'!$A$1:$D$18,4,FALSE)),'Ransom Statistics'!$D$18,VLOOKUP(Simulation!AW14,'Ransom Statistics'!$A$1:$D$18,4,FALSE)))*IF(ISNA(VLOOKUP(AW14,'Industry Type P'!$A$2:$S$103,2,FALSE)),'Kidnapping Statistics'!$K$3,VLOOKUP(AW14,'Industry Type P'!$A$1:$S$102,MATCH($C14,'Industry Type P'!$A$1:$S$1,0),FALSE))*VLOOKUP(AY14,'travel frequence'!$A$1:$D$4,MATCH(AX14,'travel frequence'!$A$1:$D$1,0),FALSE)*AZ14*IF(ISNA(VLOOKUP(AZ14,'travel frequence'!$A$7:$B$23,2,FALSE)),'travel frequence'!$B$23,VLOOKUP(AZ14,'travel frequence'!$A$7:$B$23,2,FALSE)),0) -> 0 | BB14: =IF(VLOOKUP(AW14,'Industry Type P'!$A$1:$S$102,MATCH($C14,'Industry Type P'!$A$1:$S$1,0),FALSE)>RAND(),"Y","N") -> N | BC14: 0 | BD14: 0 | BE14: =IF(BB14="N"," ",INDEX('Other cost'!$A$9:$A$13,RANDBETWEEN(1,5),1)) ->  | BF14: =MIN($H14,IF(BB14="N",0,SUM(BD14,'Other cost'!$B$16,VLOOKUP(BE14,'Other cost'!$A$9:$B$13,2,FALSE),IF(BC14>=30,HLOOKUP(30,'Salary in Industry'!$N$1:$AQ$1001,$B14+1,FALSE),HLOOKUP(BC14,'Salary in Industry'!$N$1:$AQ$1001,$B14+1,FALSE)),IF(ISNA(VLOOKUP(AW14,'Ransom Statistics'!$A$1:$D$18,4,FALSE)),'Ransom Statistics'!$D$18,VLOOKUP(AW14,'Ransom Statistics'!$A$1:$D$18,4,FALSE))))) -> 0 | BG14: =INDEX([1]Variables!$A$2:$A$103,INT((RAND()*100)+1),1) -> Guinea | BH14: =INDEX(Variables!$E$3:$E$5,RANDBETWEEN(1,3),1) -> Long (more than one month) | BI14: =INDEX([1]Variables!$G$3:$G$5,RANDBETWEEN(1,3),1) -> very frequent ( more than 12 times a year) | BJ14: 6 | BK14: =IF(ISNA(VLOOKUP(BG14,Variables!$K$1:$K$36,1,FALSE)),SUM('Other cost'!$B$2,'Salary in Industry'!$AR13,IF(ISNA(VLOOKUP(Simulation!BG14,'Ransom Statistics'!$A$1:$D$18,4,FALSE)),'Ransom Statistics'!$D$18,VLOOKUP(Simulation!BG14,'Ransom Statistics'!$A$1:$D$18,4,FALSE)))*IF(ISNA(VLOOKUP(BG14,'Industry Type P'!$A$2:$S$103,2,FALSE)),'Kidnapping Statistics'!$K$3,VLOOKUP(BG14,'Industry Type P'!$A$1:$S$102,MATCH($C14,'Industry Type P'!$A$1:$S$1,0),FALSE))*VLOOKUP(BI14,'travel frequence'!$A$1:$D$4,MATCH(BH14,'travel frequence'!$A$1:$D$1,0),FALSE)*BJ14*IF(ISNA(VLOOKUP(BJ14,'travel frequence'!$A$7:$B$23,2,FALSE)),'travel frequence'!$B$23,VLOOKUP(BJ14,'travel frequence'!$A$7:$B$23,2,FALSE)),0) -> 4.510527713 | BL14: =IF(VLOOKUP(BG14,'Industry Type P'!$A$1:$S$102,MATCH($C14,'Industry Type P'!$A$1:$S$1,0),FALSE)>RAND(),"Y","N") -> N | BM14: 0 | BN14: 0 | BO14: =IF(BL14="N"," ",INDEX('Other cost'!$A$9:$A$13,RANDBETWEEN(1,5),1)) ->  | BP14: =MIN($H14,IF(BL14="N",0,SUM(BN14,'Other cost'!$B$16,VLOOKUP(BO14,'Other cost'!$A$9:$B$13,2,FALSE),IF(BM14>=30,HLOOKUP(30,'Salary in Industry'!$N$1:$AQ$1001,$B14+1,FALSE),HLOOKUP(BM14,'Salary in Industry'!$N$1:$AQ$1001,$B14+1,FALSE)),IF(ISNA(VLOOKUP(BG14,'Ransom Statistics'!$A$1:$D$18,4,FALSE)),'Ransom Statistics'!$D$18,VLOOKUP(BG14,'Ransom Statistics'!$A$1:$D$18,4,FALSE))))) -> 0 | BQ14: =INDEX([1]Variables!$A$2:$A$103,INT((RAND()*100)+1),1) -> Nbhutan | BR14: =INDEX(Variables!$E$3:$E$5,RANDBETWEEN(1,3),1) -> Medium (1 week to 1month) | BS14: =INDEX([1]Variables!$G$3:$G$5,RANDBETWEEN(1,3),1) -> infrequent (less than 3 times) | BT14: 9 | BU14: =IF(ISNA(VLOOKUP(BQ14,Variables!$K$1:$K$36,1,FALSE)),SUM('Other cost'!$B$2,'Salary in Industry'!$AR13,IF(ISNA(VLOOKUP(Simulation!BQ14,'Ransom Statistics'!$A$1:$D$18,4,FALSE)),'Ransom Statistics'!$D$18,VLOOKUP(Simulation!BQ14,'Ransom Statistics'!$A$1:$D$18,4,FALSE)))*IF(ISNA(VLOOKUP(BQ14,'Industry Type P'!$A$2:$S$103,2,FALSE)),'Kidnapping Statistics'!$K$3,VLOOKUP(BQ14,'Industry Type P'!$A$1:$S$102,MATCH($C14,'Industry Type P'!$A$1:$S$1,0),FALSE))*VLOOKUP(BS14,'travel frequence'!$A$1:$D$4,MATCH(BR14,'travel frequence'!$A$1:$D$1,0),FALSE)*BT14*IF(ISNA(VLOOKUP(BT14,'travel frequence'!$A$7:$B$23,2,FALSE)),'travel frequence'!$B$23,VLOOKUP(BT14,'travel frequence'!$A$7:$B$23,2,FALSE)),0) -> 5.871141445 | BV14: =IF(VLOOKUP(BQ14,'Industry Type P'!$A$1:$S$102,MATCH($C14,'Industry Type P'!$A$1:$S$1,0),FALSE)>RAND(),"Y","N") -> N | BW14: 0 | BX14: 0 | BY14: =IF(BV14="N"," ",INDEX('Other cost'!$A$9:$A$13,RANDBETWEEN(1,5),1)) ->  | BZ14: =MIN($H14,IF(BV14="N",0,SUM(BX14,'Other cost'!$B$16,VLOOKUP(BY14,'Other cost'!$A$9:$B$13,2,FALSE),IF(BW14>=30,HLOOKUP(30,'Salary in Industry'!$N$1:$AQ$1001,$B14+1,FALSE),HLOOKUP(BW14,'Salary in Industry'!$N$1:$AQ$1001,$B14+1,FALSE)),IF(ISNA(VLOOKUP(BQ14,'Ransom Statistics'!$A$1:$D$18,4,FALSE)),'Ransom Statistics'!$D$18,VLOOKUP(BQ14,'Ransom Statistics'!$A$1:$D$18,4,FALSE))))) -> 0 | CA14: =INDEX([1]Variables!$A$2:$A$103,INT((RAND()*100)+1),1) -> Kazakhstan | CB14: =INDEX(Variables!$E$3:$E$5,RANDBETWEEN(1,3),1) -> Short (less a week) | CC14: =INDEX([1]Variables!$G$3:$G$5,RANDBETWEEN(1,3),1) -> very frequent ( more than 12 times a year) | CD14: 14 | CE14: =IF(ISNA(VLOOKUP(CA14,Variables!$K$1:$K$36,1,FALSE)),SUM('Other cost'!$B$2,'Salary in Industry'!$AR13,IF(ISNA(VLOOKUP(Simulation!CA14,'Ransom Statistics'!$A$1:$D$18,4,FALSE)),'Ransom Statistics'!$D$18,VLOOKUP(Simulation!CA14,'Ransom Statistics'!$A$1:$D$18,4,FALSE)))*IF(ISNA(VLOOKUP(CA14,'Industry Type P'!$A$2:$S$103,2,FALSE)),'Kidnapping Statistics'!$K$3,VLOOKUP(CA14,'Industry Type P'!$A$1:$S$102,MATCH($C14,'Industry Type P'!$A$1:$S$1,0),FALSE))*VLOOKUP(CC14,'travel frequence'!$A$1:$D$4,MATCH(CB14,'travel frequence'!$A$1:$D$1,0),FALSE)*CD14*IF(ISNA(VLOOKUP(CD14,'travel frequence'!$A$7:$B$23,2,FALSE)),'travel frequence'!$B$23,VLOOKUP(CD14,'travel frequence'!$A$7:$B$23,2,FALSE)),0) -> 46.0449704 | CF14: =IF(VLOOKUP(CA14,'Industry Type P'!$A$1:$S$102,MATCH($C14,'Industry Type P'!$A$1:$S$1,0),FALSE)>RAND(),"Y","N") -> N | CG14: 0 | CH14: 0 | CI14: =IF(CF14="N"," ",INDEX('Other cost'!$A$9:$A$13,RANDBETWEEN(1,5),1)) ->  | CJ14: =MIN($H14,IF(CF14="N",0,SUM(CH14,'Other cost'!$B$16,VLOOKUP(CI14,'Other cost'!$A$9:$B$13,2,FALSE),IF(CG14>=30,HLOOKUP(30,'Salary in Industry'!$N$1:$AQ$1001,$B14+1,FALSE),HLOOKUP(CG14,'Salary in Industry'!$N$1:$AQ$1001,$B14+1,FALSE)),IF(ISNA(VLOOKUP(CA14,'Ransom Statistics'!$A$1:$D$18,4,FALSE)),'Ransom Statistics'!$D$18,VLOOKUP(CA14,'Ransom Statistics'!$A$1:$D$18,4,FALSE))))) -> 0 | CK14: =INDEX([1]Variables!$A$2:$A$103,INT((RAND()*100)+1),1) -> Equatorial | CL14: =INDEX(Variables!$E$3:$E$5,RANDBETWEEN(1,3),1) -> Medium (1 week to 1month) | CM14: =INDEX([1]Variables!$G$3:$G$5,RANDBETWEEN(1,3),1) -> infrequent (less than 3 times) | CN14: 15 | CO14: =IF(ISNA(VLOOKUP(CK14,Variables!$K$1:$K$36,1,FALSE)),SUM('Other cost'!$B$2,'Salary in Industry'!$AR13,IF(ISNA(VLOOKUP(Simulation!CK14,'Ransom Statistics'!$A$1:$D$18,4,FALSE)),'Ransom Statistics'!$D$18,VLOOKUP(Simulation!CK14,'Ransom Statistics'!$A$1:$D$18,4,FALSE)))*IF(ISNA(VLOOKUP(CK14,'Industry Type P'!$A$2:$S$103,2,FALSE)),'Kidnapping Statistics'!$K$3,VLOOKUP(CK14,'Industry Type P'!$A$1:$S$102,MATCH($C14,'Industry Type P'!$A$1:$S$1,0),FALSE))*VLOOKUP(CM14,'travel frequence'!$A$1:$D$4,MATCH(CL14,'travel frequence'!$A$1:$D$1,0),FALSE)*CN14*IF(ISNA(VLOOKUP(CN14,'travel frequence'!$A$7:$B$23,2,FALSE)),'travel frequence'!$B$23,VLOOKUP(CN14,'travel frequence'!$A$7:$B$23,2,FALSE)),0) -> 7.338926806 | CP14: =IF(VLOOKUP(CK14,'Industry Type P'!$A$1:$S$102,MATCH($C14,'Industry Type P'!$A$1:$S$1,0),FALSE)>RAND(),"Y","N") -> N | CQ14: 0 | CR14: 0 | CS14: =IF(CP14="N"," ",INDEX('Other cost'!$A$9:$A$13,RANDBETWEEN(1,5),1)) ->  | CT14: =MIN($H14,IF(CP14="N",0,SUM(CR14,'Other cost'!$B$16,VLOOKUP(CS14,'Other cost'!$A$9:$B$13,2,FALSE),IF(CQ14>=30,HLOOKUP(30,'Salary in Industry'!$N$1:$AQ$1001,$B14+1,FALSE),HLOOKUP(CQ14,'Salary in Industry'!$N$1:$AQ$1001,$B14+1,FALSE)),IF(ISNA(VLOOKUP(CK14,'Ransom Statistics'!$A$1:$D$18,4,FALSE)),'Ransom Statistics'!$D$18,VLOOKUP(CK14,'Ransom Statistics'!$A$1:$D$18,4,FALSE))))) -> 0 | CU14: =INDEX([1]Variables!$A$2:$A$103,INT((RAND()*100)+1),1) -> Coted'lvoire | CV14: =INDEX(Variables!$E$3:$E$5,RANDBETWEEN(1,3),1) -> Short (less a week) | CW14: =INDEX([1]Variables!$G$3:$G$5,RANDBETWEEN(1,3),1) -> frequent (3 times to 12 times) | CX14: 11 | CY14: =IF(ISNA(VLOOKUP(CU14,Variables!$K$1:$K$36,1,FALSE)),SUM('Other cost'!$B$2,'Salary in Industry'!$AR13,IF(ISNA(VLOOKUP(Simulation!CU14,'Ransom Statistics'!$A$1:$D$18,4,FALSE)),'Ransom Statistics'!$D$18,VLOOKUP(Simulation!CU14,'Ransom Statistics'!$A$1:$D$18,4,FALSE)))*IF(ISNA(VLOOKUP(CU14,'Industry Type P'!$A$2:$S$103,2,FALSE)),'Kidnapping Statistics'!$K$3,VLOOKUP(CU14,'Industry Type P'!$A$1:$S$102,MATCH($C14,'Industry Type P'!$A$1:$S$1,0),FALSE))*VLOOKUP(CW14,'travel frequence'!$A$1:$D$4,MATCH(CV14,'travel frequence'!$A$1:$D$1,0),FALSE)*CX14*IF(ISNA(VLOOKUP(CX14,'travel frequence'!$A$7:$B$23,2,FALSE)),'travel frequence'!$B$23,VLOOKUP(CX14,'travel frequence'!$A$7:$B$23,2,FALSE)),0) -> 1883.65788 | CZ14: =IF(VLOOKUP(CU14,'Industry Type P'!$A$1:$S$102,MATCH($C14,'Industry Type P'!$A$1:$S$1,0),FALSE)>RAND(),"Y","N") -> N | DA14: 0 | DB14: 0 | DC14: =IF(CZ14="N"," ",INDEX('Other cost'!$A$9:$A$13,RANDBETWEEN(1,5),1)) ->  | DD14: =MIN($H14,IF(CZ14="N",0,SUM(DB14,'Other cost'!$B$16,VLOOKUP(DC14,'Other cost'!$A$9:$B$13,2,FALSE),IF(DA14>=30,HLOOKUP(30,'Salary in Industry'!$N$1:$AQ$1001,$B14+1,FALSE),HLOOKUP(DA14,'Salary in Industry'!$N$1:$AQ$1001,$B14+1,FALSE)),IF(ISNA(VLOOKUP(CU14,'Ransom Statistics'!$A$1:$D$18,4,FALSE)),'Ransom Statistics'!$D$18,VLOOKUP(CU14,'Ransom Statistics'!$A$1:$D$18,4,FALSE))))) -> 0 | DE14: 0 | DF14: =((IF(A14=0,0,IF(A14=1,M14,IF(A14=2,M14+W14,IF(A14=3,M14+W14+AG14,IF(A14=4,M14+W14+AG14+AQ14,IF(A14=5,M14+W14+AG14+AQ14+BA14,IF(A14=6,M14+W14+AG14+AQ14+BA14+BK14,IF(A14=7,M14+W14+AG14+AQ14+BA14+BK14+BU14,IF(A14=8,M14+W14+AG14+AQ14+BA14+BK14+BU14+CE14,IF(A14=9,M14+W14+AG14+AQ14+BA14+BK14+BU14+CE14+CO14,IF(A14=10,M14+W14+AG14+AQ14+BA14+BK14+BU14+CE14+CO14+CY14))))))))))))/(1+Variables!$G$12))*(1+Variables!$F$21) -> 57494.50806
A15: 8 | B15: 13 | C15: =INDEX([1]Variables!$C$2:$C$19,INT((RAND()*10)+1),1) -> Construction | D15: 14 | E15: 282 | F15: 15369 | G15: 30266511 | H15: =Variables!$H$21 -> 1000000 | I15: =INDEX([1]Variables!$A$2:$A$103,INT((RAND()*100)+1),1) -> Peru | J15: =INDEX(Variables!$E$3:$E$5,RANDBETWEEN(1,3),1) -> Long (more than one month) | K15: =INDEX([1]Variables!$G$3:$G$5,RANDBETWEEN(1,3),1) -> very frequent ( more than 12 times a year) | L15: 2 | M15: =IF(ISNA(VLOOKUP(I15,Variables!$K$1:$K$36,1,FALSE)),SUM('Other cost'!$B$2,'Salary in Industry'!$AR14,IF(ISNA(VLOOKUP(Simulation!I15,'Ransom Statistics'!$A$1:$D$18,4,FALSE)),'Ransom Statistics'!$D$18,VLOOKUP(Simulation!I15,'Ransom Statistics'!$A$1:$D$18,4,FALSE)))*IF(ISNA(VLOOKUP(I15,'Industry Type P'!$A$2:$S$103,2,FALSE)),'Kidnapping Statistics'!$K$3,VLOOKUP(I15,'Industry Type P'!$A$1:$S$102,MATCH($C15,'Industry Type P'!$A$1:$S$1,0),FALSE))*VLOOKUP(K15,'travel frequence'!$A$1:$D$4,MATCH(J15,'travel frequence'!$A$1:$D$1,0),FALSE)*L15*IF(ISNA(VLOOKUP(L15,'travel frequence'!$A$7:$B$23,2,FALSE)),'travel frequence'!$B$23,VLOOKUP(L15,'travel frequence'!$A$7:$B$23,2,FALSE)),0) -> 6.93560366 | N15: =IF(VLOOKUP(I15,'Industry Type P'!$A$1:$S$102,MATCH($C15,'Industry Type P'!$A$1:$S$1,0),FALSE)>RAND(),"Y","N") -> N | O15: 0 | P15: 0 | Q15: =IF(N15="N"," ",INDEX('Other cost'!$A$9:$A$13,RANDBETWEEN(1,5),1)) ->  | R15: =MIN($H15,IF(N15="N",0,SUM(P15,'Other cost'!$B$16,VLOOKUP(Q15,'Other cost'!$A$9:$B$13,2,FALSE),IF(O15>=30,HLOOKUP(30,'Salary in Industry'!$N$1:$AQ$1001,$B15+1,FALSE),HLOOKUP(O15,'Salary in Industry'!$N$1:$AQ$1001,$B15+1,FALSE)),IF(ISNA(VLOOKUP(I15,'Ransom Statistics'!$A$1:$D$18,4,FALSE)),'Ransom Statistics'!$D$18,VLOOKUP(I15,'Ransom Statistics'!$A$1:$D$18,4,FALSE))))) -> 0 | S15: =INDEX([1]Variables!$A$2:$A$103,INT((RAND()*100)+1),1) -> Iran | T15: =INDEX(Variables!$E$3:$E$5,RANDBETWEEN(1,3),1) -> Short (less a week) | U15: =INDEX([1]Variables!$G$3:$G$5,RANDBETWEEN(1,3),1) -> very frequent ( more than 12 times a year) | V15: 8 | W15: =IF(ISNA(VLOOKUP(S15,Variables!$K$1:$K$36,1,FALSE)),SUM('Other cost'!$B$2,'Salary in Industry'!$AR14,IF(ISNA(VLOOKUP(Simulation!S15,'Ransom Statistics'!$A$1:$D$18,4,FALSE)),'Ransom Statistics'!$D$18,VLOOKUP(Simulation!S15,'Ransom Statistics'!$A$1:$D$18,4,FALSE)))*IF(ISNA(VLOOKUP(S15,'Industry Type P'!$A$2:$S$103,2,FALSE)),'Kidnapping Statistics'!$K$3,VLOOKUP(S15,'Industry Type P'!$A$1:$S$102,MATCH($C15,'Industry Type P'!$A$1:$S$1,0),FALSE))*VLOOKUP(U15,'travel frequence'!$A$1:$D$4,MATCH(T15,'travel frequence'!$A$1:$D$1,0),FALSE)*V15*IF(ISNA(VLOOKUP(V15,'travel frequence'!$A$7:$B$23,2,FALSE)),'travel frequence'!$B$23,VLOOKUP(V15,'travel frequence'!$A$7:$B$23,2,FALSE)),0) -> 0 | X15: =IF(VLOOKUP(S15,'Industry Type P'!$A$1:$S$102,MATCH($C15,'Industry Type P'!$A$1:$S$1,0),FALSE)>RAND(),"Y","N") -> N | Y15: 0 | Z15: 0 | AA15: =IF(X15="N"," ",INDEX('Other cost'!$A$9:$A$13,RANDBETWEEN(1,5),1)) ->  | AB15: =MIN($H15,IF(X15="N",0,SUM(Z15,'Other cost'!$B$16,VLOOKUP(AA15,'Other cost'!$A$9:$B$13,2,FALSE),IF(Y15>=30,HLOOKUP(30,'Salary in Industry'!$N$1:$AQ$1001,$B15+1,FALSE),HLOOKUP(Y15,'Salary in Industry'!$N$1:$AQ$1001,$B15+1,FALSE)),IF(ISNA(VLOOKUP(S15,'Ransom Statistics'!$A$1:$D$18,4,FALSE)),'Ransom Statistics'!$D$18,VLOOKUP(S15,'Ransom Statistics'!$A$1:$D$18,4,FALSE))))) -> 0 | AC15: =INDEX([1]Variables!$A$2:$A$103,INT((RAND()*100)+1),1) -> Congo | AD15: =INDEX(Variables!$E$3:$E$5,RANDBETWEEN(1,3),1) -> Short (less a week) | AE15: =INDEX([1]Variables!$G$3:$G$5,RANDBETWEEN(1,3),1) -> infrequent (less than 3 times) | AF15: 8 | AG15: =IF(ISNA(VLOOKUP(AC15,Variables!$K$1:$K$36,1,FALSE)),SUM('Other cost'!$B$2,'Salary in Industry'!$AR14,IF(ISNA(VLOOKUP(Simulation!AC15,'Ransom Statistics'!$A$1:$D$18,4,FALSE)),'Ransom Statistics'!$D$18,VLOOKUP(Simulation!AC15,'Ransom Statistics'!$A$1:$D$18,4,FALSE)))*IF(ISNA(VLOOKUP(AC15,'Industry Type P'!$A$2:$S$103,2,FALSE)),'Kidnapping Statistics'!$K$3,VLOOKUP(AC15,'Industry Type P'!$A$1:$S$102,MATCH($C15,'Industry Type P'!$A$1:$S$1,0),FALSE))*VLOOKUP(AE15,'travel frequence'!$A$1:$D$4,MATCH(AD15,'travel frequence'!$A$1:$D$1,0),FALSE)*AF15*IF(ISNA(VLOOKUP(AF15,'travel frequence'!$A$7:$B$23,2,FALSE)),'travel frequence'!$B$23,VLOOKUP(AF15,'travel frequence'!$A$7:$B$23,2,FALSE)),0) -> 4.970756727 | AH15: =IF(VLOOKUP(AC15,'Industry Type P'!$A$1:$S$102,MATCH($C15,'Industry Type P'!$A$1:$S$1,0),FALSE)>RAND(),"Y","N") -> N | AI15: 0 | AJ15: 0 | AK15: =IF(AH15="N"," ",INDEX('Other cost'!$A$9:$A$13,RANDBETWEEN(1,5),1)) ->  | AL15: =MIN($H15,IF(AH15="N",0,SUM(AJ15,'Other cost'!$B$16,VLOOKUP(AK15,'Other cost'!$A$9:$B$13,2,FALSE),IF(AI15>=30,HLOOKUP(30,'Salary in Industry'!$N$1:$AQ$1001,$B15+1,FALSE),HLOOKUP(AI15,'Salary in Industry'!$N$1:$AQ$1001,$B15+1,FALSE)),IF(ISNA(VLOOKUP(AC15,'Ransom Statistics'!$A$1:$D$18,4,FALSE)),'Ransom Statistics'!$D$18,VLOOKUP(AC15,'Ransom Statistics'!$A$1:$D$18,4,FALSE))))) -> 0 | AM15: =INDEX([1]Variables!$A$2:$A$103,INT((RAND()*100)+1),1) -> Kyrgyzstan | AN15: =INDEX(Variables!$E$3:$E$5,RANDBETWEEN(1,3),1) -> Medium (1 week to 1month) | AO15: =INDEX([1]Variables!$G$3:$G$5,RANDBETWEEN(1,3),1) -> frequent (3 times to 12 times) | AP15: 16 | AQ15: =IF(ISNA(VLOOKUP(AM15,Variables!$K$1:$K$36,1,FALSE)),SUM('Other cost'!$B$2,'Salary in Industry'!$AR14,IF(ISNA(VLOOKUP(Simulation!AM15,'Ransom Statistics'!$A$1:$D$18,4,FALSE)),'Ransom Statistics'!$D$18,VLOOKUP(Simulation!AM15,'Ransom Statistics'!$A$1:$D$18,4,FALSE)))*IF(ISNA(VLOOKUP(AM15,'Industry Type P'!$A$2:$S$103,2,FALSE)),'Kidnapping Statistics'!$K$3,VLOOKUP(AM15,'Industry Type P'!$A$1:$S$102,MATCH($C15,'Industry Type P'!$A$1:$S$1,0),FALSE))*VLOOKUP(AO15,'travel frequence'!$A$1:$D$4,MATCH(AN15,'travel frequence'!$A$1:$D$1,0),FALSE)*AP15*IF(ISNA(VLOOKUP(AP15,'travel frequence'!$A$7:$B$23,2,FALSE)),'travel frequence'!$B$23,VLOOKUP(AP15,'travel frequence'!$A$7:$B$23,2,FALSE)),0) -> 40316.12197 | AR15: =IF(VLOOKUP(AM15,'Industry Type P'!$A$1:$S$102,MATCH($C15,'Industry Type P'!$A$1:$S$1,0),FALSE)>RAND(),"Y","N") -> N | AS15: 0 | AT15: 0 | AU15: =IF(AR15="N"," ",INDEX('Other cost'!$A$9:$A$13,RANDBETWEEN(1,5),1)) ->  | AV15: =MIN($H15,IF(AR15="N",0,SUM(AT15,'Other cost'!$B$16,VLOOKUP(AU15,'Other cost'!$A$9:$B$13,2,FALSE),IF(AS15>=30,HLOOKUP(30,'Salary in Industry'!$N$1:$AQ$1001,$B15+1,FALSE),HLOOKUP(AS15,'Salary in Industry'!$N$1:$AQ$1001,$B15+1,FALSE)),IF(ISNA(VLOOKUP(AM15,'Ransom Statistics'!$A$1:$D$18,4,FALSE)),'Ransom Statistics'!$D$18,VLOOKUP(AM15,'Ransom Statistics'!$A$1:$D$18,4,FALSE))))) -> 0 | AW15: =INDEX([1]Variables!$A$2:$A$103,INT((RAND()*100)+1),1) -> Kashmir | AX15: =INDEX(Variables!$E$3:$E$5,RANDBETWEEN(1,3),1) -> Short (less a week) | AY15: =INDEX([1]Variables!$G$3:$G$5,RANDBETWEEN(1,3),1) -> frequent (3 times to 12 times) | AZ15: 3 | BA15: =IF(ISNA(VLOOKUP(AW15,Variables!$K$1:$K$36,1,FALSE)),SUM('Other cost'!$B$2,'Salary in Industry'!$AR14,IF(ISNA(VLOOKUP(Simulation!AW15,'Ransom Statistics'!$A$1:$D$18,4,FALSE)),'Ransom Statistics'!$D$18,VLOOKUP(Simulation!AW15,'Ransom Statistics'!$A$1:$D$18,4,FALSE)))*IF(ISNA(VLOOKUP(AW15,'Industry Type P'!$A$2:$S$103,2,FALSE)),'Kidnapping Statistics'!$K$3,VLOOKUP(AW15,'Industry Type P'!$A$1:$S$102,MATCH($C15,'Industry Type P'!$A$1:$S$1,0),FALSE))*VLOOKUP(AY15,'travel frequence'!$A$1:$D$4,MATCH(AX15,'travel frequence'!$A$1:$D$1,0),FALSE)*AZ15*IF(ISNA(VLOOKUP(AZ15,'travel frequence'!$A$7:$B$23,2,FALSE)),'travel frequence'!$B$23,VLOOKUP(AZ15,'travel frequence'!$A$7:$B$23,2,FALSE)),0) -> 880.7559576 | BB15: =IF(VLOOKUP(AW15,'Industry Type P'!$A$1:$S$102,MATCH($C15,'Industry Type P'!$A$1:$S$1,0),FALSE)>RAND(),"Y","N") -> N | BC15: 0 | BD15: 0 | BE15: =IF(BB15="N"," ",INDEX('Other cost'!$A$9:$A$13,RANDBETWEEN(1,5),1)) ->  | BF15: =MIN($H15,IF(BB15="N",0,SUM(BD15,'Other cost'!$B$16,VLOOKUP(BE15,'Other cost'!$A$9:$B$13,2,FALSE),IF(BC15>=30,HLOOKUP(30,'Salary in Industry'!$N$1:$AQ$1001,$B15+1,FALSE),HLOOKUP(BC15,'Salary in Industry'!$N$1:$AQ$1001,$B15+1,FALSE)),IF(ISNA(VLOOKUP(AW15,'Ransom Statistics'!$A$1:$D$18,4,FALSE)),'Ransom Statistics'!$D$18,VLOOKUP(AW15,'Ransom Statistics'!$A$1:$D$18,4,FALSE))))) -> 0 | BG15: =INDEX([1]Variables!$A$2:$A$103,INT((RAND()*100)+1),1) -> Turkey | BH15: =INDEX(Variables!$E$3:$E$5,RANDBETWEEN(1,3),1) -> Long (more than one month) | BI15: =INDEX([1]Variables!$G$3:$G$5,RANDBETWEEN(1,3),1) -> frequent (3 times to 12 times) | BJ15: 2 | BK15: =IF(ISNA(VLOOKUP(BG15,Variables!$K$1:$K$36,1,FALSE)),SUM('Other cost'!$B$2,'Salary in Industry'!$AR14,IF(ISNA(VLOOKUP(Simulation!BG15,'Ransom Statistics'!$A$1:$D$18,4,FALSE)),'Ransom Statistics'!$D$18,VLOOKUP(Simulation!BG15,'Ransom Statistics'!$A$1:$D$18,4,FALSE)))*IF(ISNA(VLOOKUP(BG15,'Industry Type P'!$A$2:$S$103,2,FALSE)),'Kidnapping Statistics'!$K$3,VLOOKUP(BG15,'Industry Type P'!$A$1:$S$102,MATCH($C15,'Industry Type P'!$A$1:$S$1,0),FALSE))*VLOOKUP(BI15,'travel frequence'!$A$1:$D$4,MATCH(BH15,'travel frequence'!$A$1:$D$1,0),FALSE)*BJ15*IF(ISNA(VLOOKUP(BJ15,'travel frequence'!$A$7:$B$23,2,FALSE)),'travel frequence'!$B$23,VLOOKUP(BJ15,'travel frequence'!$A$7:$B$23,2,FALSE)),0) -> 239.6243375 | BL15: =IF(VLOOKUP(BG15,'Industry Type P'!$A$1:$S$102,MATCH($C15,'Industry Type P'!$A$1:$S$1,0),FALSE)>RAND(),"Y","N") -> N | BM15: 0 | BN15: 0 | BO15: =IF(BL15="N"," ",INDEX('Other cost'!$A$9:$A$13,RANDBETWEEN(1,5),1)) ->  | BP15: =MIN($H15,IF(BL15="N",0,SUM(BN15,'Other cost'!$B$16,VLOOKUP(BO15,'Other cost'!$A$9:$B$13,2,FALSE),IF(BM15>=30,HLOOKUP(30,'Salary in Industry'!$N$1:$AQ$1001,$B15+1,FALSE),HLOOKUP(BM15,'Salary in Industry'!$N$1:$AQ$1001,$B15+1,FALSE)),IF(ISNA(VLOOKUP(BG15,'Ransom Statistics'!$A$1:$D$18,4,FALSE)),'Ransom Statistics'!$D$18,VLOOKUP(BG15,'Ransom Statistics'!$A$1:$D$18,4,FALSE))))) -> 0 | BQ15: =INDEX([1]Variables!$A$2:$A$103,INT((RAND()*100)+1),1) -> Iraq | BR15: =INDEX(Variables!$E$3:$E$5,RANDBETWEEN(1,3),1) -> Medium (1 week to 1month) | BS15: =INDEX([1]Variables!$G$3:$G$5,RANDBETWEEN(1,3),1) -> very frequent ( more than 12 times a year) | BT15: 14 | BU15: =IF(ISNA(VLOOKUP(BQ15,Variables!$K$1:$K$36,1,FALSE)),SUM('Other cost'!$B$2,'Salary in Industry'!$AR14,IF(ISNA(VLOOKUP(Simulation!BQ15,'Ransom Statistics'!$A$1:$D$18,4,FALSE)),'Ransom Statistics'!$D$18,VLOOKUP(Simulation!BQ15,'Ransom Statistics'!$A$1:$D$18,4,FALSE)))*IF(ISNA(VLOOKUP(BQ15,'Industry Type P'!$A$2:$S$103,2,FALSE)),'Kidnapping Statistics'!$K$3,VLOOKUP(BQ15,'Industry Type P'!$A$1:$S$102,MATCH($C15,'Industry Type P'!$A$1:$S$1,0),FALSE))*VLOOKUP(BS15,'travel frequence'!$A$1:$D$4,MATCH(BR15,'travel frequence'!$A$1:$D$1,0),FALSE)*BT15*IF(ISNA(VLOOKUP(BT15,'travel frequence'!$A$7:$B$23,2,FALSE)),'travel frequence'!$B$23,VLOOKUP(BT15,'travel frequence'!$A$7:$B$23,2,FALSE)),0) -> 0 | BV15: =IF(VLOOKUP(BQ15,'Industry Type P'!$A$1:$S$102,MATCH($C15,'Industry Type P'!$A$1:$S$1,0),FALSE)>RAND(),"Y","N") -> N | BW15: 0 | BX15: 0 | BY15: =IF(BV15="N"," ",INDEX('Other cost'!$A$9:$A$13,RANDBETWEEN(1,5),1)) ->  | BZ15: =MIN($H15,IF(BV15="N",0,SUM(BX15,'Other cost'!$B$16,VLOOKUP(BY15,'Other cost'!$A$9:$B$13,2,FALSE),IF(BW15>=30,HLOOKUP(30,'Salary in Industry'!$N$1:$AQ$1001,$B15+1,FALSE),HLOOKUP(BW15,'Salary in Industry'!$N$1:$AQ$1001,$B15+1,FALSE)),IF(ISNA(VLOOKUP(BQ15,'Ransom Statistics'!$A$1:$D$18,4,FALSE)),'Ransom Statistics'!$D$18,VLOOKUP(BQ15,'Ransom Statistics'!$A$1:$D$18,4,FALSE))))) -> 0 | CA15: =INDEX([1]Variables!$A$2:$A$103,INT((RAND()*100)+1),1) -> Uruguay | CB15: =INDEX(Variables!$E$3:$E$5,RANDBETWEEN(1,3),1) -> Long (more than one month) | CC15: =INDEX([1]Variables!$G$3:$G$5,RANDBETWEEN(1,3),1) -> infrequent (less than 3 times) | CD15: 12 | CE15: =IF(ISNA(VLOOKUP(CA15,Variables!$K$1:$K$36,1,FALSE)),SUM('Other cost'!$B$2,'Salary in Industry'!$AR14,IF(ISNA(VLOOKUP(Simulation!CA15,'Ransom Statistics'!$A$1:$D$18,4,FALSE)),'Ransom Statistics'!$D$18,VLOOKUP(Simulation!CA15,'Ransom Statistics'!$A$1:$D$18,4,FALSE)))*IF(ISNA(VLOOKUP(CA15,'Industry Type P'!$A$2:$S$103,2,FALSE)),'Kidnapping Statistics'!$K$3,VLOOKUP(CA15,'Industry Type P'!$A$1:$S$102,MATCH($C15,'Industry Type P'!$A$1:$S$1,0),FALSE))*VLOOKUP(CC15,'travel frequence'!$A$1:$D$4,MATCH(CB15,'travel frequence'!$A$1:$D$1,0),FALSE)*CD15*IF(ISNA(VLOOKUP(CD15,'travel frequence'!$A$7:$B$23,2,FALSE)),'travel frequence'!$B$23,VLOOKUP(CD15,'travel frequence'!$A$7:$B$23,2,FALSE)),0) -> 6.458877023 | CF15: =IF(VLOOKUP(CA15,'Industry Type P'!$A$1:$S$102,MATCH($C15,'Industry Type P'!$A$1:$S$1,0),FALSE)>RAND(),"Y","N") -> N | CG15: 0 | CH15: 0 | CI15: =IF(CF15="N"," ",INDEX('Other cost'!$A$9:$A$13,RANDBETWEEN(1,5),1)) ->  | CJ15: =MIN($H15,IF(CF15="N",0,SUM(CH15,'Other cost'!$B$16,VLOOKUP(CI15,'Other cost'!$A$9:$B$13,2,FALSE),IF(CG15>=30,HLOOKUP(30,'Salary in Industry'!$N$1:$AQ$1001,$B15+1,FALSE),HLOOKUP(CG15,'Salary in Industry'!$N$1:$AQ$1001,$B15+1,FALSE)),IF(ISNA(VLOOKUP(CA15,'Ransom Statistics'!$A$1:$D$18,4,FALSE)),'Ransom Statistics'!$D$18,VLOOKUP(CA15,'Ransom Statistics'!$A$1:$D$18,4,FALSE))))) -> 0 | CK15: =INDEX([1]Variables!$A$2:$A$103,INT((RAND()*100)+1),1) -> Paraguay | CL15: =INDEX(Variables!$E$3:$E$5,RANDBETWEEN(1,3),1) -> Medium (1 week to 1month) | CM15: =INDEX([1]Variables!$G$3:$G$5,RANDBETWEEN(1,3),1) -> infrequent (less than 3 times) | CN15: 16 | CO15: =IF(ISNA(VLOOKUP(CK15,Variables!$K$1:$K$36,1,FALSE)),SUM('Other cost'!$B$2,'Salary in Industry'!$AR14,IF(ISNA(VLOOKUP(Simulation!CK15,'Ransom Statistics'!$A$1:$D$18,4,FALSE)),'Ransom Statistics'!$D$18,VLOOKUP(Simulation!CK15,'Ransom Statistics'!$A$1:$D$18,4,FALSE)))*IF(ISNA(VLOOKUP(CK15,'Industry Type P'!$A$2:$S$103,2,FALSE)),'Kidnapping Statistics'!$K$3,VLOOKUP(CK15,'Industry Type P'!$A$1:$S$102,MATCH($C15,'Industry Type P'!$A$1:$S$1,0),FALSE))*VLOOKUP(CM15,'travel frequence'!$A$1:$D$4,MATCH(CL15,'travel frequence'!$A$1:$D$1,0),FALSE)*CN15*IF(ISNA(VLOOKUP(CN15,'travel frequence'!$A$7:$B$23,2,FALSE)),'travel frequence'!$B$23,VLOOKUP(CN15,'travel frequence'!$A$7:$B$23,2,FALSE)),0) -> 67.60744254 | CP15: =IF(VLOOKUP(CK15,'Industry Type P'!$A$1:$S$102,MATCH($C15,'Industry Type P'!$A$1:$S$1,0),FALSE)>RAND(),"Y","N") -> N | CQ15: 0 | CR15: 0 | CS15: =IF(CP15="N"," ",INDEX('Other cost'!$A$9:$A$13,RANDBETWEEN(1,5),1)) ->  | CT15: =MIN($H15,IF(CP15="N",0,SUM(CR15,'Other cost'!$B$16,VLOOKUP(CS15,'Other cost'!$A$9:$B$13,2,FALSE),IF(CQ15>=30,HLOOKUP(30,'Salary in Industry'!$N$1:$AQ$1001,$B15+1,FALSE),HLOOKUP(CQ15,'Salary in Industry'!$N$1:$AQ$1001,$B15+1,FALSE)),IF(ISNA(VLOOKUP(CK15,'Ransom Statistics'!$A$1:$D$18,4,FALSE)),'Ransom Statistics'!$D$18,VLOOKUP(CK15,'Ransom Statistics'!$A$1:$D$18,4,FALSE))))) -> 0 | CU15: =INDEX([1]Variables!$A$2:$A$103,INT((RAND()*100)+1),1) -> India | CV15: =INDEX(Variables!$E$3:$E$5,RANDBETWEEN(1,3),1) -> Long (more than one month) | CW15: =INDEX([1]Variables!$G$3:$G$5,RANDBETWEEN(1,3),1) -> very frequent ( more than 12 times a year) | CX15: 2 | CY15: =IF(ISNA(VLOOKUP(CU15,Variables!$K$1:$K$36,1,FALSE)),SUM('Other cost'!$B$2,'Salary in Industry'!$AR14,IF(ISNA(VLOOKUP(Simulation!CU15,'Ransom Statistics'!$A$1:$D$18,4,FALSE)),'Ransom Statistics'!$D$18,VLOOKUP(Simulation!CU15,'Ransom Statistics'!$A$1:$D$18,4,FALSE)))*IF(ISNA(VLOOKUP(CU15,'Industry Type P'!$A$2:$S$103,2,FALSE)),'Kidnapping Statistics'!$K$3,VLOOKUP(CU15,'Industry Type P'!$A$1:$S$102,MATCH($C15,'Industry Type P'!$A$1:$S$1,0),FALSE))*VLOOKUP(CW15,'travel frequence'!$A$1:$D$4,MATCH(CV15,'travel frequence'!$A$1:$D$1,0),FALSE)*CX15*IF(ISNA(VLOOKUP(CX15,'travel frequence'!$A$7:$B$23,2,FALSE)),'travel frequence'!$B$23,VLOOKUP(CX15,'travel frequence'!$A$7:$B$23,2,FALSE)),0) -> 3222.862525 | CZ15: =IF(VLOOKUP(CU15,'Industry Type P'!$A$1:$S$102,MATCH($C15,'Industry Type P'!$A$1:$S$1,0),FALSE)>RAND(),"Y","N") -> N | DA15: 0 | DB15: 0 | DC15: =IF(CZ15="N"," ",INDEX('Other cost'!$A$9:$A$13,RANDBETWEEN(1,5),1)) ->  | DD15: =MIN($H15,IF(CZ15="N",0,SUM(DB15,'Other cost'!$B$16,VLOOKUP(DC15,'Other cost'!$A$9:$B$13,2,FALSE),IF(DA15>=30,HLOOKUP(30,'Salary in Industry'!$N$1:$AQ$1001,$B15+1,FALSE),HLOOKUP(DA15,'Salary in Industry'!$N$1:$AQ$1001,$B15+1,FALSE)),IF(ISNA(VLOOKUP(CU15,'Ransom Statistics'!$A$1:$D$18,4,FALSE)),'Ransom Statistics'!$D$18,VLOOKUP(CU15,'Ransom Statistics'!$A$1:$D$18,4,FALSE))))) -> 0 | DE15: 0 | DF15: =((IF(A15=0,0,IF(A15=1,M15,IF(A15=2,M15+W15,IF(A15=3,M15+W15+AG15,IF(A15=4,M15+W15+AG15+AQ15,IF(A15=5,M15+W15+AG15+AQ15+BA15,IF(A15=6,M15+W15+AG15+AQ15+BA15+BK15,IF(A15=7,M15+W15+AG15+AQ15+BA15+BK15+BU15,IF(A15=8,M15+W15+AG15+AQ15+BA15+BK15+BU15+CE15,IF(A15=9,M15+W15+AG15+AQ15+BA15+BK15+BU15+CE15+CO15,IF(A15=10,M15+W15+AG15+AQ15+BA15+BK15+BU15+CE15+CO15+CY15))))))))))))/(1+Variables!$G$12))*(1+Variables!$F$21) -> 45446.32514
A16: 10 | B16: 14 | C16: =INDEX([1]Variables!$C$2:$C$19,INT((RAND()*10)+1),1) -> Mining | D16: 26 | E16: 321 | F16: 1122 | G16: 19931095 | H16: =Variables!$H$21 -> 1000000 | I16: =INDEX([1]Variables!$A$2:$A$103,INT((RAND()*100)+1),1) -> Ecuador | J16: =INDEX(Variables!$E$3:$E$5,RANDBETWEEN(1,3),1) -> Long (more than one month) | K16: =INDEX([1]Variables!$G$3:$G$5,RANDBETWEEN(1,3),1) -> infrequent (less than 3 times) | L16: 12 | M16: =IF(ISNA(VLOOKUP(I16,Variables!$K$1:$K$36,1,FALSE)),SUM('Other cost'!$B$2,'Salary in Industry'!$AR15,IF(ISNA(VLOOKUP(Simulation!I16,'Ransom Statistics'!$A$1:$D$18,4,FALSE)),'Ransom Statistics'!$D$18,VLOOKUP(Simulation!I16,'Ransom Statistics'!$A$1:$D$18,4,FALSE)))*IF(ISNA(VLOOKUP(I16,'Industry Type P'!$A$2:$S$103,2,FALSE)),'Kidnapping Statistics'!$K$3,VLOOKUP(I16,'Industry Type P'!$A$1:$S$102,MATCH($C16,'Industry Type P'!$A$1:$S$1,0),FALSE))*VLOOKUP(K16,'travel frequence'!$A$1:$D$4,MATCH(J16,'travel frequence'!$A$1:$D$1,0),FALSE)*L16*IF(ISNA(VLOOKUP(L16,'travel frequence'!$A$7:$B$23,2,FALSE)),'travel frequence'!$B$23,VLOOKUP(L16,'travel frequence'!$A$7:$B$23,2,FALSE)),0) -> 258.3223803 | N16: =IF(VLOOKUP(I16,'Industry Type P'!$A$1:$S$102,MATCH($C16,'Industry Type P'!$A$1:$S$1,0),FALSE)>RAND(),"Y","N") -> N | O16: 0 | P16: 0 | Q16: =IF(N16="N"," ",INDEX('Other cost'!$A$9:$A$13,RANDBETWEEN(1,5),1)) ->  | R16: =MIN($H16,IF(N16="N",0,SUM(P16,'Other cost'!$B$16,VLOOKUP(Q16,'Other cost'!$A$9:$B$13,2,FALSE),IF(O16>=30,HLOOKUP(30,'Salary in Industry'!$N$1:$AQ$1001,$B16+1,FALSE),HLOOKUP(O16,'Salary in Industry'!$N$1:$AQ$1001,$B16+1,FALSE)),IF(ISNA(VLOOKUP(I16,'Ransom Statistics'!$A$1:$D$18,4,FALSE)),'Ransom Statistics'!$D$18,VLOOKUP(I16,'Ransom Statistics'!$A$1:$D$18,4,FALSE))))) -> 0 | S16: =INDEX([1]Variables!$A$2:$A$103,INT((RAND()*100)+1),1) -> Coted'lvoire | T16: =INDEX(Variables!$E$3:$E$5,RANDBETWEEN(1,3),1) -> Short (less a week) | U16: =INDEX([1]Variables!$G$3:$G$5,RANDBETWEEN(1,3),1) -> very frequent ( more than 12 times a year) | V16: 4 | W16: =IF(ISNA(VLOOKUP(S16,Variables!$K$1:$K$36,1,FALSE)),SUM('Other cost'!$B$2,'Salary in Industry'!$AR15,IF(ISNA(VLOOKUP(Simulation!S16,'Ransom Statistics'!$A$1:$D$18,4,FALSE)),'Ransom Statistics'!$D$18,VLOOKUP(Simulation!S16,'Ransom Statistics'!$A$1:$D$18,4,FALSE)))*IF(ISNA(VLOOKUP(S16,'Industry Type P'!$A$2:$S$103,2,FALSE)),'Kidnapping Statistics'!$K$3,VLOOKUP(S16,'Industry Type P'!$A$1:$S$102,MATCH($C16,'Industry Type P'!$A$1:$S$1,0),FALSE))*VLOOKUP(U16,'travel frequence'!$A$1:$D$4,MATCH(T16,'travel frequence'!$A$1:$D$1,0),FALSE)*V16*IF(ISNA(VLOOKUP(V16,'travel frequence'!$A$7:$B$23,2,FALSE)),'travel frequence'!$B$23,VLOOKUP(V16,'travel frequence'!$A$7:$B$23,2,FALSE)),0) -> 922.5799296 | X16: =IF(VLOOKUP(S16,'Industry Type P'!$A$1:$S$102,MATCH($C16,'Industry Type P'!$A$1:$S$1,0),FALSE)>RAND(),"Y","N") -> N | Y16: 0 | Z16: 0 | AA16: =IF(X16="N"," ",INDEX('Other cost'!$A$9:$A$13,RANDBETWEEN(1,5),1)) ->  | AB16: =MIN($H16,IF(X16="N",0,SUM(Z16,'Other cost'!$B$16,VLOOKUP(AA16,'Other cost'!$A$9:$B$13,2,FALSE),IF(Y16>=30,HLOOKUP(30,'Salary in Industry'!$N$1:$AQ$1001,$B16+1,FALSE),HLOOKUP(Y16,'Salary in Industry'!$N$1:$AQ$1001,$B16+1,FALSE)),IF(ISNA(VLOOKUP(S16,'Ransom Statistics'!$A$1:$D$18,4,FALSE)),'Ransom Statistics'!$D$18,VLOOKUP(S16,'Ransom Statistics'!$A$1:$D$18,4,FALSE))))) -> 0 | AC16: =INDEX([1]Variables!$A$2:$A$103,INT((RAND()*100)+1),1) -> South Sudan | AD16: =INDEX(Variables!$E$3:$E$5,RANDBETWEEN(1,3),1) -> Short (less a week) | AE16: =INDEX([1]Variables!$G$3:$G$5,RANDBETWEEN(1,3),1) -> very frequent ( more than 12 times a year) | AF16: 5 | AG16: =IF(ISNA(VLOOKUP(AC16,Variables!$K$1:$K$36,1,FALSE)),SUM('Other cost'!$B$2,'Salary in Industry'!$AR15,IF(ISNA(VLOOKUP(Simulation!AC16,'Ransom Statistics'!$A$1:$D$18,4,FALSE)),'Ransom Statistics'!$D$18,VLOOKUP(Simulation!AC16,'Ransom Statistics'!$A$1:$D$18,4,FALSE)))*IF(ISNA(VLOOKUP(AC16,'Industry Type P'!$A$2:$S$103,2,FALSE)),'Kidnapping Statistics'!$K$3,VLOOKUP(AC16,'Industry Type P'!$A$1:$S$102,MATCH($C16,'Industry Type P'!$A$1:$S$1,0),FALSE))*VLOOKUP(AE16,'travel frequence'!$A$1:$D$4,MATCH(AD16,'travel frequence'!$A$1:$D$1,0),FALSE)*AF16*IF(ISNA(VLOOKUP(AF16,'travel frequence'!$A$7:$B$23,2,FALSE)),'travel frequence'!$B$23,VLOOKUP(AF16,'travel frequence'!$A$7:$B$23,2,FALSE)),0) -> 1918.854055 | AH16: =IF(VLOOKUP(AC16,'Industry Type P'!$A$1:$S$102,MATCH($C16,'Industry Type P'!$A$1:$S$1,0),FALSE)>RAND(),"Y","N") -> N | AI16: 0 | AJ16: 0 | AK16: =IF(AH16="N"," ",INDEX('Other cost'!$A$9:$A$13,RANDBETWEEN(1,5),1)) ->  | AL16: =MIN($H16,IF(AH16="N",0,SUM(AJ16,'Other cost'!$B$16,VLOOKUP(AK16,'Other cost'!$A$9:$B$13,2,FALSE),IF(AI16>=30,HLOOKUP(30,'Salary in Industry'!$N$1:$AQ$1001,$B16+1,FALSE),HLOOKUP(AI16,'Salary in Industry'!$N$1:$AQ$1001,$B16+1,FALSE)),IF(ISNA(VLOOKUP(AC16,'Ransom Statistics'!$A$1:$D$18,4,FALSE)),'Ransom Statistics'!$D$18,VLOOKUP(AC16,'Ransom Statistics'!$A$1:$D$18,4,FALSE))))) -> 0 | AM16: =INDEX([1]Variables!$A$2:$A$103,INT((RAND()*100)+1),1) -> Paraguay | AN16: =INDEX(Variables!$E$3:$E$5,RANDBETWEEN(1,3),1) -> Short (less a week) | AO16: =INDEX([1]Variables!$G$3:$G$5,RANDBETWEEN(1,3),1) -> very frequent ( more than 12 times a year) | AP16: 16 | AQ16: =IF(ISNA(VLOOKUP(AM16,Variables!$K$1:$K$36,1,FALSE)),SUM('Other cost'!$B$2,'Salary in Industry'!$AR15,IF(ISNA(VLOOKUP(Simulation!AM16,'Ransom Statistics'!$A$1:$D$18,4,FALSE)),'Ransom Statistics'!$D$18,VLOOKUP(Simulation!AM16,'Ransom Statistics'!$A$1:$D$18,4,FALSE)))*IF(ISNA(VLOOKUP(AM16,'Industry Type P'!$A$2:$S$103,2,FALSE)),'Kidnapping Statistics'!$K$3,VLOOKUP(AM16,'Industry Type P'!$A$1:$S$102,MATCH($C16,'Industry Type P'!$A$1:$S$1,0),FALSE))*VLOOKUP(AO16,'travel frequence'!$A$1:$D$4,MATCH(AN16,'travel frequence'!$A$1:$D$1,0),FALSE)*AP16*IF(ISNA(VLOOKUP(AP16,'travel frequence'!$A$7:$B$23,2,FALSE)),'travel frequence'!$B$23,VLOOKUP(AP16,'travel frequence'!$A$7:$B$23,2,FALSE)),0) -> 70.81787984 | AR16: =IF(VLOOKUP(AM16,'Industry Type P'!$A$1:$S$102,MATCH($C16,'Industry Type P'!$A$1:$S$1,0),FALSE)>RAND(),"Y","N") -> N | AS16: 0 | AT16: 0 | AU16: =IF(AR16="N"," ",INDEX('Other cost'!$A$9:$A$13,RANDBETWEEN(1,5),1)) ->  | AV16: =MIN($H16,IF(AR16="N",0,SUM(AT16,'Other cost'!$B$16,VLOOKUP(AU16,'Other cost'!$A$9:$B$13,2,FALSE),IF(AS16>=30,HLOOKUP(30,'Salary in Industry'!$N$1:$AQ$1001,$B16+1,FALSE),HLOOKUP(AS16,'Salary in Industry'!$N$1:$AQ$1001,$B16+1,FALSE)),IF(ISNA(VLOOKUP(AM16,'Ransom Statistics'!$A$1:$D$18,4,FALSE)),'Ransom Statistics'!$D$18,VLOOKUP(AM16,'Ransom Statistics'!$A$1:$D$18,4,FALSE))))) -> 0 | AW16: =INDEX([1]Variables!$A$2:$A$103,INT((RAND()*100)+1),1) -> Angola | AX16: =INDEX(Variables!$E$3:$E$5,RANDBETWEEN(1,3),1) -> Long (more than one month) | AY16: =INDEX([1]Variables!$G$3:$G$5,RANDBETWEEN(1,3),1) -> frequent (3 times to 12 times) | AZ16: 4 | BA16: =IF(ISNA(VLOOKUP(AW16,Variables!$K$1:$K$36,1,FALSE)),SUM('Other cost'!$B$2,'Salary in Industry'!$AR15,IF(ISNA(VLOOKUP(Simulation!AW16,'Ransom Statistics'!$A$1:$D$18,4,FALSE)),'Ransom Statistics'!$D$18,VLOOKUP(Simulation!AW16,'Ransom Statistics'!$A$1:$D$18,4,FALSE)))*IF(ISNA(VLOOKUP(AW16,'Industry Type P'!$A$2:$S$103,2,FALSE)),'Kidnapping Statistics'!$K$3,VLOOKUP(AW16,'Industry Type P'!$A$1:$S$102,MATCH($C16,'Industry Type P'!$A$1:$S$1,0),FALSE))*VLOOKUP(AY16,'travel frequence'!$A$1:$D$4,MATCH(AX16,'travel frequence'!$A$1:$D$1,0),FALSE)*AZ16*IF(ISNA(VLOOKUP(AZ16,'travel frequence'!$A$7:$B$23,2,FALSE)),'travel frequence'!$B$23,VLOOKUP(AZ16,'travel frequence'!$A$7:$B$23,2,FALSE)),0) -> 968.7089261 | BB16: =IF(VLOOKUP(AW16,'Industry Type P'!$A$1:$S$102,MATCH($C16,'Industry Type P'!$A$1:$S$1,0),FALSE)>RAND(),"Y","N") -> N | BC16: 0 | BD16: 0 | BE16: =IF(BB16="N"," ",INDEX('Other cost'!$A$9:$A$13,RANDBETWEEN(1,5),1)) ->  | BF16: =MIN($H16,IF(BB16="N",0,SUM(BD16,'Other cost'!$B$16,VLOOKUP(BE16,'Other cost'!$A$9:$B$13,2,FALSE),IF(BC16>=30,HLOOKUP(30,'Salary in Industry'!$N$1:$AQ$1001,$B16+1,FALSE),HLOOKUP(BC16,'Salary in Industry'!$N$1:$AQ$1001,$B16+1,FALSE)),IF(ISNA(VLOOKUP(AW16,'Ransom Statistics'!$A$1:$D$18,4,FALSE)),'Ransom Statistics'!$D$18,VLOOKUP(AW16,'Ransom Statistics'!$A$1:$D$18,4,FALSE))))) -> 0 | BG16: =INDEX([1]Variables!$A$2:$A$103,INT((RAND()*100)+1),1) -> Haiti | BH16: =INDEX(Variables!$E$3:$E$5,RANDBETWEEN(1,3),1) -> Short (less a week) | BI16: =INDEX([1]Variables!$G$3:$G$5,RANDBETWEEN(1,3),1) -> infrequent (less than 3 times) | BJ16: 5 | BK16: =IF(ISNA(VLOOKUP(BG16,Variables!$K$1:$K$36,1,FALSE)),SUM('Other cost'!$B$2,'Salary in Industry'!$AR15,IF(ISNA(VLOOKUP(Simulation!BG16,'Ransom Statistics'!$A$1:$D$18,4,FALSE)),'Ransom Statistics'!$D$18,VLOOKUP(Simulation!BG16,'Ransom Statistics'!$A$1:$D$18,4,FALSE)))*IF(ISNA(VLOOKUP(BG16,'Industry Type P'!$A$2:$S$103,2,FALSE)),'Kidnapping Statistics'!$K$3,VLOOKUP(BG16,'Industry Type P'!$A$1:$S$102,MATCH($C16,'Industry Type P'!$A$1:$S$1,0),FALSE))*VLOOKUP(BI16,'travel frequence'!$A$1:$D$4,MATCH(BH16,'travel frequence'!$A$1:$D$1,0),FALSE)*BJ16*IF(ISNA(VLOOKUP(BJ16,'travel frequence'!$A$7:$B$23,2,FALSE)),'travel frequence'!$B$23,VLOOKUP(BJ16,'travel frequence'!$A$7:$B$23,2,FALSE)),0) -> 0 | BL16: =IF(VLOOKUP(BG16,'Industry Type P'!$A$1:$S$102,MATCH($C16,'Industry Type P'!$A$1:$S$1,0),FALSE)>RAND(),"Y","N") -> N | BM16: 0 | BN16: 0 | BO16: =IF(BL16="N"," ",INDEX('Other cost'!$A$9:$A$13,RANDBETWEEN(1,5),1)) ->  | BP16: =MIN($H16,IF(BL16="N",0,SUM(BN16,'Other cost'!$B$16,VLOOKUP(BO16,'Other cost'!$A$9:$B$13,2,FALSE),IF(BM16>=30,HLOOKUP(30,'Salary in Industry'!$N$1:$AQ$1001,$B16+1,FALSE),HLOOKUP(BM16,'Salary in Industry'!$N$1:$AQ$1001,$B16+1,FALSE)),IF(ISNA(VLOOKUP(BG16,'Ransom Statistics'!$A$1:$D$18,4,FALSE)),'Ransom Statistics'!$D$18,VLOOKUP(BG16,'Ransom Statistics'!$A$1:$D$18,4,FALSE))))) -> 0 | BQ16: =INDEX([1]Variables!$A$2:$A$103,INT((RAND()*100)+1),1) -> Nangladesh | BR16: =INDEX(Variables!$E$3:$E$5,RANDBETWEEN(1,3),1) -> Medium (1 week to 1month) | BS16: =INDEX([1]Variables!$G$3:$G$5,RANDBETWEEN(1,3),1) -> infrequent (less than 3 times) | BT16: 16 | BU16: =IF(ISNA(VLOOKUP(BQ16,Variables!$K$1:$K$36,1,FALSE)),SUM('Other cost'!$B$2,'Salary in Industry'!$AR15,IF(ISNA(VLOOKUP(Simulation!BQ16,'Ransom Statistics'!$A$1:$D$18,4,FALSE)),'Ransom Statistics'!$D$18,VLOOKUP(Simulation!BQ16,'Ransom Statistics'!$A$1:$D$18,4,FALSE)))*IF(ISNA(VLOOKUP(BQ16,'Industry Type P'!$A$2:$S$103,2,FALSE)),'Kidnapping Statistics'!$K$3,VLOOKUP(BQ16,'Industry Type P'!$A$1:$S$102,MATCH($C16,'Industry Type P'!$A$1:$S$1,0),FALSE))*VLOOKUP(BS16,'travel frequence'!$A$1:$D$4,MATCH(BR16,'travel frequence'!$A$1:$D$1,0),FALSE)*BT16*IF(ISNA(VLOOKUP(BT16,'travel frequence'!$A$7:$B$23,2,FALSE)),'travel frequence'!$B$23,VLOOKUP(BT16,'travel frequence'!$A$7:$B$23,2,FALSE)),0) -> 22476.29471 | BV16: =IF(VLOOKUP(BQ16,'Industry Type P'!$A$1:$S$102,MATCH($C16,'Industry Type P'!$A$1:$S$1,0),FALSE)>RAND(),"Y","N") -> N | BW16: 0 | BX16: 0 | BY16: =IF(BV16="N"," ",INDEX('Other cost'!$A$9:$A$13,RANDBETWEEN(1,5),1)) ->  | BZ16: =MIN($H16,IF(BV16="N",0,SUM(BX16,'Other cost'!$B$16,VLOOKUP(BY16,'Other cost'!$A$9:$B$13,2,FALSE),IF(BW16>=30,HLOOKUP(30,'Salary in Industry'!$N$1:$AQ$1001,$B16+1,FALSE),HLOOKUP(BW16,'Salary in Industry'!$N$1:$AQ$1001,$B16+1,FALSE)),IF(ISNA(VLOOKUP(BQ16,'Ransom Statistics'!$A$1:$D$18,4,FALSE)),'Ransom Statistics'!$D$18,VLOOKUP(BQ16,'Ransom Statistics'!$A$1:$D$18,4,FALSE))))) -> 0 | CA16: =INDEX([1]Variables!$A$2:$A$103,INT((RAND()*100)+1),1) -> Poland | CB16: =INDEX(Variables!$E$3:$E$5,RANDBETWEEN(1,3),1) -> Short (less a week) | CC16: =INDEX([1]Variables!$G$3:$G$5,RANDBETWEEN(1,3),1) -> infrequent (less than 3 times) | CD16: 6 | CE16: =IF(ISNA(VLOOKUP(CA16,Variables!$K$1:$K$36,1,FALSE)),SUM('Other cost'!$B$2,'Salary in Industry'!$AR15,IF(ISNA(VLOOKUP(Simulation!CA16,'Ransom Statistics'!$A$1:$D$18,4,FALSE)),'Ransom Statistics'!$D$18,VLOOKUP(Simulation!CA16,'Ransom Statistics'!$A$1:$D$18,4,FALSE)))*IF(ISNA(VLOOKUP(CA16,'Industry Type P'!$A$2:$S$103,2,FALSE)),'Kidnapping Statistics'!$K$3,VLOOKUP(CA16,'Industry Type P'!$A$1:$S$102,MATCH($C16,'Industry Type P'!$A$1:$S$1,0),FALSE))*VLOOKUP(CC16,'travel frequence'!$A$1:$D$4,MATCH(CB16,'travel frequence'!$A$1:$D$1,0),FALSE)*CD16*IF(ISNA(VLOOKUP(CD16,'travel frequence'!$A$7:$B$23,2,FALSE)),'travel frequence'!$B$23,VLOOKUP(CD16,'travel frequence'!$A$7:$B$23,2,FALSE)),0) -> 2.236557405 | CF16: =IF(VLOOKUP(CA16,'Industry Type P'!$A$1:$S$102,MATCH($C16,'Industry Type P'!$A$1:$S$1,0),FALSE)>RAND(),"Y","N") -> N | CG16: 0 | CH16: 0 | CI16: =IF(CF16="N"," ",INDEX('Other cost'!$A$9:$A$13,RANDBETWEEN(1,5),1)) ->  | CJ16: =MIN($H16,IF(CF16="N",0,SUM(CH16,'Other cost'!$B$16,VLOOKUP(CI16,'Other cost'!$A$9:$B$13,2,FALSE),IF(CG16>=30,HLOOKUP(30,'Salary in Industry'!$N$1:$AQ$1001,$B16+1,FALSE),HLOOKUP(CG16,'Salary in Industry'!$N$1:$AQ$1001,$B16+1,FALSE)),IF(ISNA(VLOOKUP(CA16,'Ransom Statistics'!$A$1:$D$18,4,FALSE)),'Ransom Statistics'!$D$18,VLOOKUP(CA16,'Ransom Statistics'!$A$1:$D$18,4,FALSE))))) -> 0 | CK16: =INDEX([1]Variables!$A$2:$A$103,INT((RAND()*100)+1),1) -> Ethiopia | CL16: =INDEX(Variables!$E$3:$E$5,RANDBETWEEN(1,3),1) -> Short (less a week) | CM16: =INDEX([1]Variables!$G$3:$G$5,RANDBETWEEN(1,3),1) -> very frequent ( more than 12 times a year) | CN16: 10 | CO16: =IF(ISNA(VLOOKUP(CK16,Variables!$K$1:$K$36,1,FALSE)),SUM('Other cost'!$B$2,'Salary in Industry'!$AR15,IF(ISNA(VLOOKUP(Simulation!CK16,'Ransom Statistics'!$A$1:$D$18,4,FALSE)),'Ransom Statistics'!$D$18,VLOOKUP(Simulation!CK16,'Ransom Statistics'!$A$1:$D$18,4,FALSE)))*IF(ISNA(VLOOKUP(CK16,'Industry Type P'!$A$2:$S$103,2,FALSE)),'Kidnapping Statistics'!$K$3,VLOOKUP(CK16,'Industry Type P'!$A$1:$S$102,MATCH($C16,'Industry Type P'!$A$1:$S$1,0),FALSE))*VLOOKUP(CM16,'travel frequence'!$A$1:$D$4,MATCH(CL16,'travel frequence'!$A$1:$D$1,0),FALSE)*CN16*IF(ISNA(VLOOKUP(CN16,'travel frequence'!$A$7:$B$23,2,FALSE)),'travel frequence'!$B$23,VLOOKUP(CN16,'travel frequence'!$A$7:$B$23,2,FALSE)),0) -> 1793.905419 | CP16: =IF(VLOOKUP(CK16,'Industry Type P'!$A$1:$S$102,MATCH($C16,'Industry Type P'!$A$1:$S$1,0),FALSE)>RAND(),"Y","N") -> N | CQ16: 0 | CR16: 0 | CS16: =IF(CP16="N"," ",INDEX('Other cost'!$A$9:$A$13,RANDBETWEEN(1,5),1)) ->  | CT16: =MIN($H16,IF(CP16="N",0,SUM(CR16,'Other cost'!$B$16,VLOOKUP(CS16,'Other cost'!$A$9:$B$13,2,FALSE),IF(CQ16>=30,HLOOKUP(30,'Salary in Industry'!$N$1:$AQ$1001,$B16+1,FALSE),HLOOKUP(CQ16,'Salary in Industry'!$N$1:$AQ$1001,$B16+1,FALSE)),IF(ISNA(VLOOKUP(CK16,'Ransom Statistics'!$A$1:$D$18,4,FALSE)),'Ransom Statistics'!$D$18,VLOOKUP(CK16,'Ransom Statistics'!$A$1:$D$18,4,FALSE))))) -> 0 | CU16: =INDEX([1]Variables!$A$2:$A$103,INT((RAND()*100)+1),1) -> the Balkans | CV16: =INDEX(Variables!$E$3:$E$5,RANDBETWEEN(1,3),1) -> Long (more than one month) | CW16: =INDEX([1]Variables!$G$3:$G$5,RANDBETWEEN(1,3),1) -> infrequent (less than 3 times) | CX16: 10 | CY16: =IF(ISNA(VLOOKUP(CU16,Variables!$K$1:$K$36,1,FALSE)),SUM('Other cost'!$B$2,'Salary in Industry'!$AR15,IF(ISNA(VLOOKUP(Simulation!CU16,'Ransom Statistics'!$A$1:$D$18,4,FALSE)),'Ransom Statistics'!$D$18,VLOOKUP(Simulation!CU16,'Ransom Statistics'!$A$1:$D$18,4,FALSE)))*IF(ISNA(VLOOKUP(CU16,'Industry Type P'!$A$2:$S$103,2,FALSE)),'Kidnapping Statistics'!$K$3,VLOOKUP(CU16,'Industry Type P'!$A$1:$S$102,MATCH($C16,'Industry Type P'!$A$1:$S$1,0),FALSE))*VLOOKUP(CW16,'travel frequence'!$A$1:$D$4,MATCH(CV16,'travel frequence'!$A$1:$D$1,0),FALSE)*CX16*IF(ISNA(VLOOKUP(CX16,'travel frequence'!$A$7:$B$23,2,FALSE)),'travel frequence'!$B$23,VLOOKUP(CX16,'travel frequence'!$A$7:$B$23,2,FALSE)),0) -> 5.979684729 | CZ16: =IF(VLOOKUP(CU16,'Industry Type P'!$A$1:$S$102,MATCH($C16,'Industry Type P'!$A$1:$S$1,0),FALSE)>RAND(),"Y","N") -> N | DA16: 0 | DB16: 0 | DC16: =IF(CZ16="N"," ",INDEX('Other cost'!$A$9:$A$13,RANDBETWEEN(1,5),1)) ->  | DD16: =MIN($H16,IF(CZ16="N",0,SUM(DB16,'Other cost'!$B$16,VLOOKUP(DC16,'Other cost'!$A$9:$B$13,2,FALSE),IF(DA16>=30,HLOOKUP(30,'Salary in Industry'!$N$1:$AQ$1001,$B16+1,FALSE),HLOOKUP(DA16,'Salary in Industry'!$N$1:$AQ$1001,$B16+1,FALSE)),IF(ISNA(VLOOKUP(CU16,'Ransom Statistics'!$A$1:$D$18,4,FALSE)),'Ransom Statistics'!$D$18,VLOOKUP(CU16,'Ransom Statistics'!$A$1:$D$18,4,FALSE))))) -> 0 | DE16: 0 | DF16: =((IF(A16=0,0,IF(A16=1,M16,IF(A16=2,M16+W16,IF(A16=3,M16+W16+AG16,IF(A16=4,M16+W16+AG16+AQ16,IF(A16=5,M16+W16+AG16+AQ16+BA16,IF(A16=6,M16+W16+AG16+AQ16+BA16+BK16,IF(A16=7,M16+W16+AG16+AQ16+BA16+BK16+BU16,IF(A16=8,M16+W16+AG16+AQ16+BA16+BK16+BU16+CE16,IF(A16=9,M16+W16+AG16+AQ16+BA16+BK16+BU16+CE16+CO16,IF(A16=10,M16+W16+AG16+AQ16+BA16+BK16+BU16+CE16+CO16+CY16))))))))))))/(1+Variables!$G$12))*(1+Variables!$F$21) -> 31153.8811
A17: 6 | B17: 15 | C17: =INDEX([1]Variables!$C$2:$C$19,INT((RAND()*10)+1),1) -> Construction | D17: 8 | E17: 50 | F17: 17852 | G17: 6825543 | H17: =Variables!$H$21 -> 1000000 | I17: =INDEX([1]Variables!$A$2:$A$103,INT((RAND()*100)+1),1) -> Bolivia | J17: =INDEX(Variables!$E$3:$E$5,RANDBETWEEN(1,3),1) -> Medium (1 week to 1month) | K17: =INDEX([1]Variables!$G$3:$G$5,RANDBETWEEN(1,3),1) -> very frequent ( more than 12 times a year) | L17: 8 | M17: =IF(ISNA(VLOOKUP(I17,Variables!$K$1:$K$36,1,FALSE)),SUM('Other cost'!$B$2,'Salary in Industry'!$AR16,IF(ISNA(VLOOKUP(Simulation!I17,'Ransom Statistics'!$A$1:$D$18,4,FALSE)),'Ransom Statistics'!$D$18,VLOOKUP(Simulation!I17,'Ransom Statistics'!$A$1:$D$18,4,FALSE)))*IF(ISNA(VLOOKUP(I17,'Industry Type P'!$A$2:$S$103,2,FALSE)),'Kidnapping Statistics'!$K$3,VLOOKUP(I17,'Industry Type P'!$A$1:$S$102,MATCH($C17,'Industry Type P'!$A$1:$S$1,0),FALSE))*VLOOKUP(K17,'travel frequence'!$A$1:$D$4,MATCH(J17,'travel frequence'!$A$1:$D$1,0),FALSE)*L17*IF(ISNA(VLOOKUP(L17,'travel frequence'!$A$7:$B$23,2,FALSE)),'travel frequence'!$B$23,VLOOKUP(L17,'travel frequence'!$A$7:$B$23,2,FALSE)),0) -> 30.42922478 | N17: =IF(VLOOKUP(I17,'Industry Type P'!$A$1:$S$102,MATCH($C17,'Industry Type P'!$A$1:$S$1,0),FALSE)>RAND(),"Y","N") -> N | O17: 0 | P17: 0 | Q17: =IF(N17="N"," ",INDEX('Other cost'!$A$9:$A$13,RANDBETWEEN(1,5),1)) ->  | R17: =MIN($H17,IF(N17="N",0,SUM(P17,'Other cost'!$B$16,VLOOKUP(Q17,'Other cost'!$A$9:$B$13,2,FALSE),IF(O17>=30,HLOOKUP(30,'Salary in Industry'!$N$1:$AQ$1001,$B17+1,FALSE),HLOOKUP(O17,'Salary in Industry'!$N$1:$AQ$1001,$B17+1,FALSE)),IF(ISNA(VLOOKUP(I17,'Ransom Statistics'!$A$1:$D$18,4,FALSE)),'Ransom Statistics'!$D$18,VLOOKUP(I17,'Ransom Statistics'!$A$1:$D$18,4,FALSE))))) -> 0 | S17: =INDEX([1]Variables!$A$2:$A$103,INT((RAND()*100)+1),1) -> Liberia | T17: =INDEX(Variables!$E$3:$E$5,RANDBETWEEN(1,3),1) -> Long (more than one month) | U17: =INDEX([1]Variables!$G$3:$G$5,RANDBETWEEN(1,3),1) -> frequent (3 times to 12 times) | V17: 19 | W17: =IF(ISNA(VLOOKUP(S17,Variables!$K$1:$K$36,1,FALSE)),SUM('Other cost'!$B$2,'Salary in Industry'!$AR16,IF(ISNA(VLOOKUP(Simulation!S17,'Ransom Statistics'!$A$1:$D$18,4,FALSE)),'Ransom Statistics'!$D$18,VLOOKUP(Simulation!S17,'Ransom Statistics'!$A$1:$D$18,4,FALSE)))*IF(ISNA(VLOOKUP(S17,'Industry Type P'!$A$2:$S$103,2,FALSE)),'Kidnapping Statistics'!$K$3,VLOOKUP(S17,'Industry Type P'!$A$1:$S$102,MATCH($C17,'Industry Type P'!$A$1:$S$1,0),FALSE))*VLOOKUP(U17,'travel frequence'!$A$1:$D$4,MATCH(T17,'travel frequence'!$A$1:$D$1,0),FALSE)*V17*IF(ISNA(VLOOKUP(V17,'travel frequence'!$A$7:$B$23,2,FALSE)),'travel frequence'!$B$23,VLOOKUP(V17,'travel frequence'!$A$7:$B$23,2,FALSE)),0) -> 0 | X17: =IF(VLOOKUP(S17,'Industry Type P'!$A$1:$S$102,MATCH($C17,'Industry Type P'!$A$1:$S$1,0),FALSE)>RAND(),"Y","N") -> N | Y17: 0 | Z17: 0 | AA17: =IF(X17="N"," ",INDEX('Other cost'!$A$9:$A$13,RANDBETWEEN(1,5),1)) ->  | AB17: =MIN($H17,IF(X17="N",0,SUM(Z17,'Other cost'!$B$16,VLOOKUP(AA17,'Other cost'!$A$9:$B$13,2,FALSE),IF(Y17>=30,HLOOKUP(30,'Salary in Industry'!$N$1:$AQ$1001,$B17+1,FALSE),HLOOKUP(Y17,'Salary in Industry'!$N$1:$AQ$1001,$B17+1,FALSE)),IF(ISNA(VLOOKUP(S17,'Ransom Statistics'!$A$1:$D$18,4,FALSE)),'Ransom Statistics'!$D$18,VLOOKUP(S17,'Ransom Statistics'!$A$1:$D$18,4,FALSE))))) -> 0 | AC17: =INDEX([1]Variables!$A$2:$A$103,INT((RAND()*100)+1),1) -> Gaza Strip | AD17: =INDEX(Variables!$E$3:$E$5,RANDBETWEEN(1,3),1) -> Long (more than one month) | AE17: =INDEX([1]Variables!$G$3:$G$5,RANDBETWEEN(1,3),1) -> very frequent ( more than 12 times a year) | AF17: 5 | AG17: =IF(ISNA(VLOOKUP(AC17,Variables!$K$1:$K$36,1,FALSE)),SUM('Other cost'!$B$2,'Salary in Industry'!$AR16,IF(ISNA(VLOOKUP(Simulation!AC17,'Ransom Statistics'!$A$1:$D$18,4,FALSE)),'Ransom Statistics'!$D$18,VLOOKUP(Simulation!AC17,'Ransom Statistics'!$A$1:$D$18,4,FALSE)))*IF(ISNA(VLOOKUP(AC17,'Industry Type P'!$A$2:$S$103,2,FALSE)),'Kidnapping Statistics'!$K$3,VLOOKUP(AC17,'Industry Type P'!$A$1:$S$102,MATCH($C17,'Industry Type P'!$A$1:$S$1,0),FALSE))*VLOOKUP(AE17,'travel frequence'!$A$1:$D$4,MATCH(AD17,'travel frequence'!$A$1:$D$1,0),FALSE)*AF17*IF(ISNA(VLOOKUP(AF17,'travel frequence'!$A$7:$B$23,2,FALSE)),'travel frequence'!$B$23,VLOOKUP(AF17,'travel frequence'!$A$7:$B$23,2,FALSE)),0) -> 1127.767765 | AH17: =IF(VLOOKUP(AC17,'Industry Type P'!$A$1:$S$102,MATCH($C17,'Industry Type P'!$A$1:$S$1,0),FALSE)>RAND(),"Y","N") -> N | AI17: 0 | AJ17: 0 | AK17: =IF(AH17="N"," ",INDEX('Other cost'!$A$9:$A$13,RANDBETWEEN(1,5),1)) ->  | AL17: =MIN($H17,IF(AH17="N",0,SUM(AJ17,'Other cost'!$B$16,VLOOKUP(AK17,'Other cost'!$A$9:$B$13,2,FALSE),IF(AI17>=30,HLOOKUP(30,'Salary in Industry'!$N$1:$AQ$1001,$B17+1,FALSE),HLOOKUP(AI17,'Salary in Industry'!$N$1:$AQ$1001,$B17+1,FALSE)),IF(ISNA(VLOOKUP(AC17,'Ransom Statistics'!$A$1:$D$18,4,FALSE)),'Ransom Statistics'!$D$18,VLOOKUP(AC17,'Ransom Statistics'!$A$1:$D$18,4,FALSE))))) -> 0 | AM17: =INDEX([1]Variables!$A$2:$A$103,INT((RAND()*100)+1),1) -> Coted'lvoire | AN17: =INDEX(Variables!$E$3:$E$5,RANDBETWEEN(1,3),1) -> Short (less a week) | AO17: =INDEX([1]Variables!$G$3:$G$5,RANDBETWEEN(1,3),1) -> frequent (3 times to 12 times) | AP17: 9 | AQ17: =IF(ISNA(VLOOKUP(AM17,Variables!$K$1:$K$36,1,FALSE)),SUM('Other cost'!$B$2,'Salary in Industry'!$AR16,IF(ISNA(VLOOKUP(Simulation!AM17,'Ransom Statistics'!$A$1:$D$18,4,FALSE)),'Ransom Statistics'!$D$18,VLOOKUP(Simulation!AM17,'Ransom Statistics'!$A$1:$D$18,4,FALSE)))*IF(ISNA(VLOOKUP(AM17,'Industry Type P'!$A$2:$S$103,2,FALSE)),'Kidnapping Statistics'!$K$3,VLOOKUP(AM17,'Industry Type P'!$A$1:$S$102,MATCH($C17,'Industry Type P'!$A$1:$S$1,0),FALSE))*VLOOKUP(AO17,'travel frequence'!$A$1:$D$4,MATCH(AN17,'travel frequence'!$A$1:$D$1,0),FALSE)*AP17*IF(ISNA(VLOOKUP(AP17,'travel frequence'!$A$7:$B$23,2,FALSE)),'travel frequence'!$B$23,VLOOKUP(AP17,'travel frequence'!$A$7:$B$23,2,FALSE)),0) -> 1761.554608 | AR17: =IF(VLOOKUP(AM17,'Industry Type P'!$A$1:$S$102,MATCH($C17,'Industry Type P'!$A$1:$S$1,0),FALSE)>RAND(),"Y","N") -> N | AS17: 0 | AT17: 0 | AU17: =IF(AR17="N"," ",INDEX('Other cost'!$A$9:$A$13,RANDBETWEEN(1,5),1)) ->  | AV17: =MIN($H17,IF(AR17="N",0,SUM(AT17,'Other cost'!$B$16,VLOOKUP(AU17,'Other cost'!$A$9:$B$13,2,FALSE),IF(AS17>=30,HLOOKUP(30,'Salary in Industry'!$N$1:$AQ$1001,$B17+1,FALSE),HLOOKUP(AS17,'Salary in Industry'!$N$1:$AQ$1001,$B17+1,FALSE)),IF(ISNA(VLOOKUP(AM17,'Ransom Statistics'!$A$1:$D$18,4,FALSE)),'Ransom Statistics'!$D$18,VLOOKUP(AM17,'Ransom Statistics'!$A$1:$D$18,4,FALSE))))) -> 0 | AW17: =INDEX([1]Variables!$A$2:$A$103,INT((RAND()*100)+1),1) -> Uganda | AX17: =INDEX(Variables!$E$3:$E$5,RANDBETWEEN(1,3),1) -> Long (more than one month) | AY17: =INDEX([1]Variables!$G$3:$G$5,RANDBETWEEN(1,3),1) -> very frequent ( more than 12 times a year) | AZ17: 3 | BA17: =IF(ISNA(VLOOKUP(AW17,Variables!$K$1:$K$36,1,FALSE)),SUM('Other cost'!$B$2,'Salary in Industry'!$AR16,IF(ISNA(VLOOKUP(Simulation!AW17,'Ransom Statistics'!$A$1:$D$18,4,FALSE)),'Ransom Statistics'!$D$18,VLOOKUP(Simulation!AW17,'Ransom Statistics'!$A$1:$D$18,4,FALSE)))*IF(ISNA(VLOOKUP(AW17,'Industry Type P'!$A$2:$S$103,2,FALSE)),'Kidnapping Statistics'!$K$3,VLOOKUP(AW17,'Industry Type P'!$A$1:$S$102,MATCH($C17,'Industry Type P'!$A$1:$S$1,0),FALSE))*VLOOKUP(AY17,'travel frequence'!$A$1:$D$4,MATCH(AX17,'travel frequence'!$A$1:$D$1,0),FALSE)*AZ17*IF(ISNA(VLOOKUP(AZ17,'travel frequence'!$A$7:$B$23,2,FALSE)),'travel frequence'!$B$23,VLOOKUP(AZ17,'travel frequence'!$A$7:$B$23,2,FALSE)),0) -> 174.350989 | BB17: =IF(VLOOKUP(AW17,'Industry Type P'!$A$1:$S$102,MATCH($C17,'Industry Type P'!$A$1:$S$1,0),FALSE)>RAND(),"Y","N") -> N | BC17: 0 | BD17: 0 | BE17: =IF(BB17="N"," ",INDEX('Other cost'!$A$9:$A$13,RANDBETWEEN(1,5),1)) ->  | BF17: =MIN($H17,IF(BB17="N",0,SUM(BD17,'Other cost'!$B$16,VLOOKUP(BE17,'Other cost'!$A$9:$B$13,2,FALSE),IF(BC17>=30,HLOOKUP(30,'Salary in Industry'!$N$1:$AQ$1001,$B17+1,FALSE),HLOOKUP(BC17,'Salary in Industry'!$N$1:$AQ$1001,$B17+1,FALSE)),IF(ISNA(VLOOKUP(AW17,'Ransom Statistics'!$A$1:$D$18,4,FALSE)),'Ransom Statistics'!$D$18,VLOOKUP(AW17,'Ransom Statistics'!$A$1:$D$18,4,FALSE))))) -> 0 | BG17: =INDEX([1]Variables!$A$2:$A$103,INT((RAND()*100)+1),1) -> Rwanda | BH17: =INDEX(Variables!$E$3:$E$5,RANDBETWEEN(1,3),1) -> Short (less a week) | BI17: =INDEX([1]Variables!$G$3:$G$5,RANDBETWEEN(1,3),1) -> infrequent (less than 3 times) | BJ17: 9 | BK17: =IF(ISNA(VLOOKUP(BG17,Variables!$K$1:$K$36,1,FALSE)),SUM('Other cost'!$B$2,'Salary in Industry'!$AR16,IF(ISNA(VLOOKUP(Simulation!BG17,'Ransom Statistics'!$A$1:$D$18,4,FALSE)),'Ransom Statistics'!$D$18,VLOOKUP(Simulation!BG17,'Ransom Statistics'!$A$1:$D$18,4,FALSE)))*IF(ISNA(VLOOKUP(BG17,'Industry Type P'!$A$2:$S$103,2,FALSE)),'Kidnapping Statistics'!$K$3,VLOOKUP(BG17,'Industry Type P'!$A$1:$S$102,MATCH($C17,'Industry Type P'!$A$1:$S$1,0),FALSE))*VLOOKUP(BI17,'travel frequence'!$A$1:$D$4,MATCH(BH17,'travel frequence'!$A$1:$D$1,0),FALSE)*BJ17*IF(ISNA(VLOOKUP(BJ17,'travel frequence'!$A$7:$B$23,2,FALSE)),'travel frequence'!$B$23,VLOOKUP(BJ17,'travel frequence'!$A$7:$B$23,2,FALSE)),0) -> 1677.671055 | BL17: =IF(VLOOKUP(BG17,'Industry Type P'!$A$1:$S$102,MATCH($C17,'Industry Type P'!$A$1:$S$1,0),FALSE)>RAND(),"Y","N") -> N | BM17: 0 | BN17: 0 | BO17: =IF(BL17="N"," ",INDEX('Other cost'!$A$9:$A$13,RANDBETWEEN(1,5),1)) ->  | BP17: =MIN($H17,IF(BL17="N",0,SUM(BN17,'Other cost'!$B$16,VLOOKUP(BO17,'Other cost'!$A$9:$B$13,2,FALSE),IF(BM17>=30,HLOOKUP(30,'Salary in Industry'!$N$1:$AQ$1001,$B17+1,FALSE),HLOOKUP(BM17,'Salary in Industry'!$N$1:$AQ$1001,$B17+1,FALSE)),IF(ISNA(VLOOKUP(BG17,'Ransom Statistics'!$A$1:$D$18,4,FALSE)),'Ransom Statistics'!$D$18,VLOOKUP(BG17,'Ransom Statistics'!$A$1:$D$18,4,FALSE))))) -> 0 | BQ17: =INDEX([1]Variables!$A$2:$A$103,INT((RAND()*100)+1),1) -> Russia | BR17: =INDEX(Variables!$E$3:$E$5,RANDBETWEEN(1,3),1) -> Medium (1 week to 1month) | BS17: =INDEX([1]Variables!$G$3:$G$5,RANDBETWEEN(1,3),1) -> frequent (3 times to 12 times) | BT17: 10 | BU17: =IF(ISNA(VLOOKUP(BQ17,Variables!$K$1:$K$36,1,FALSE)),SUM('Other cost'!$B$2,'Salary in Industry'!$AR16,IF(ISNA(VLOOKUP(Simulation!BQ17,'Ransom Statistics'!$A$1:$D$18,4,FALSE)),'Ransom Statistics'!$D$18,VLOOKUP(Simulation!BQ17,'Ransom Statistics'!$A$1:$D$18,4,FALSE)))*IF(ISNA(VLOOKUP(BQ17,'Industry Type P'!$A$2:$S$103,2,FALSE)),'Kidnapping Statistics'!$K$3,VLOOKUP(BQ17,'Industry Type P'!$A$1:$S$102,MATCH($C17,'Industry Type P'!$A$1:$S$1,0),FALSE))*VLOOKUP(BS17,'travel frequence'!$A$1:$D$4,MATCH(BR17,'travel frequence'!$A$1:$D$1,0),FALSE)*BT17*IF(ISNA(VLOOKUP(BT17,'travel frequence'!$A$7:$B$23,2,FALSE)),'travel frequence'!$B$23,VLOOKUP(BT17,'travel frequence'!$A$7:$B$23,2,FALSE)),0) -> 5.994178874 | BV17: =IF(VLOOKUP(BQ17,'Industry Type P'!$A$1:$S$102,MATCH($C17,'Industry Type P'!$A$1:$S$1,0),FALSE)>RAND(),"Y","N") -> N | BW17: 0 | BX17: 0 | BY17: =IF(BV17="N"," ",INDEX('Other cost'!$A$9:$A$13,RANDBETWEEN(1,5),1)) ->  | BZ17: =MIN($H17,IF(BV17="N",0,SUM(BX17,'Other cost'!$B$16,VLOOKUP(BY17,'Other cost'!$A$9:$B$13,2,FALSE),IF(BW17>=30,HLOOKUP(30,'Salary in Industry'!$N$1:$AQ$1001,$B17+1,FALSE),HLOOKUP(BW17,'Salary in Industry'!$N$1:$AQ$1001,$B17+1,FALSE)),IF(ISNA(VLOOKUP(BQ17,'Ransom Statistics'!$A$1:$D$18,4,FALSE)),'Ransom Statistics'!$D$18,VLOOKUP(BQ17,'Ransom Statistics'!$A$1:$D$18,4,FALSE))))) -> 0 | CA17: =INDEX([1]Variables!$A$2:$A$103,INT((RAND()*100)+1),1) -> Uganda | CB17: =INDEX(Variables!$E$3:$E$5,RANDBETWEEN(1,3),1) -> Short (less a week) | CC17: =INDEX([1]Variables!$G$3:$G$5,RANDBETWEEN(1,3),1) -> frequent (3 times to 12 times) | CD17: 10 | CE17: =IF(ISNA(VLOOKUP(CA17,Variables!$K$1:$K$36,1,FALSE)),SUM('Other cost'!$B$2,'Salary in Industry'!$AR16,IF(ISNA(VLOOKUP(Simulation!CA17,'Ransom Statistics'!$A$1:$D$18,4,FALSE)),'Ransom Statistics'!$D$18,VLOOKUP(Simulation!CA17,'Ransom Statistics'!$A$1:$D$18,4,FALSE)))*IF(ISNA(VLOOKUP(CA17,'Industry Type P'!$A$2:$S$103,2,FALSE)),'Kidnapping Statistics'!$K$3,VLOOKUP(CA17,'Industry Type P'!$A$1:$S$102,MATCH($C17,'Industry Type P'!$A$1:$S$1,0),FALSE))*VLOOKUP(CC17,'travel frequence'!$A$1:$D$4,MATCH(CB17,'travel frequence'!$A$1:$D$1,0),FALSE)*CD17*IF(ISNA(VLOOKUP(CD17,'travel frequence'!$A$7:$B$23,2,FALSE)),'travel frequence'!$B$23,VLOOKUP(CD17,'travel frequence'!$A$7:$B$23,2,FALSE)),0) -> 392.2496998 | CF17: =IF(VLOOKUP(CA17,'Industry Type P'!$A$1:$S$102,MATCH($C17,'Industry Type P'!$A$1:$S$1,0),FALSE)>RAND(),"Y","N") -> N | CG17: 0 | CH17: 0 | CI17: =IF(CF17="N"," ",INDEX('Other cost'!$A$9:$A$13,RANDBETWEEN(1,5),1)) ->  | CJ17: =MIN($H17,IF(CF17="N",0,SUM(CH17,'Other cost'!$B$16,VLOOKUP(CI17,'Other cost'!$A$9:$B$13,2,FALSE),IF(CG17>=30,HLOOKUP(30,'Salary in Industry'!$N$1:$AQ$1001,$B17+1,FALSE),HLOOKUP(CG17,'Salary in Industry'!$N$1:$AQ$1001,$B17+1,FALSE)),IF(ISNA(VLOOKUP(CA17,'Ransom Statistics'!$A$1:$D$18,4,FALSE)),'Ransom Statistics'!$D$18,VLOOKUP(CA17,'Ransom Statistics'!$A$1:$D$18,4,FALSE))))) -> 0 | CK17: =INDEX([1]Variables!$A$2:$A$103,INT((RAND()*100)+1),1) -> Portugal | CL17: =INDEX(Variables!$E$3:$E$5,RANDBETWEEN(1,3),1) -> Short (less a week) | CM17: =INDEX([1]Variables!$G$3:$G$5,RANDBETWEEN(1,3),1) -> very frequent ( more than 12 times a year) | CN17: 9 | CO17: =IF(ISNA(VLOOKUP(CK17,Variables!$K$1:$K$36,1,FALSE)),SUM('Other cost'!$B$2,'Salary in Industry'!$AR16,IF(ISNA(VLOOKUP(Simulation!CK17,'Ransom Statistics'!$A$1:$D$18,4,FALSE)),'Ransom Statistics'!$D$18,VLOOKUP(Simulation!CK17,'Ransom Statistics'!$A$1:$D$18,4,FALSE)))*IF(ISNA(VLOOKUP(CK17,'Industry Type P'!$A$2:$S$103,2,FALSE)),'Kidnapping Statistics'!$K$3,VLOOKUP(CK17,'Industry Type P'!$A$1:$S$102,MATCH($C17,'Industry Type P'!$A$1:$S$1,0),FALSE))*VLOOKUP(CM17,'travel frequence'!$A$1:$D$4,MATCH(CL17,'travel frequence'!$A$1:$D$1,0),FALSE)*CN17*IF(ISNA(VLOOKUP(CN17,'travel frequence'!$A$7:$B$23,2,FALSE)),'travel frequence'!$B$23,VLOOKUP(CN17,'travel frequence'!$A$7:$B$23,2,FALSE)),0) -> 322.9516781 | CP17: =IF(VLOOKUP(CK17,'Industry Type P'!$A$1:$S$102,MATCH($C17,'Industry Type P'!$A$1:$S$1,0),FALSE)>RAND(),"Y","N") -> N | CQ17: 0 | CR17: 0 | CS17: =IF(CP17="N"," ",INDEX('Other cost'!$A$9:$A$13,RANDBETWEEN(1,5),1)) ->  | CT17: =MIN($H17,IF(CP17="N",0,SUM(CR17,'Other cost'!$B$16,VLOOKUP(CS17,'Other cost'!$A$9:$B$13,2,FALSE),IF(CQ17>=30,HLOOKUP(30,'Salary in Industry'!$N$1:$AQ$1001,$B17+1,FALSE),HLOOKUP(CQ17,'Salary in Industry'!$N$1:$AQ$1001,$B17+1,FALSE)),IF(ISNA(VLOOKUP(CK17,'Ransom Statistics'!$A$1:$D$18,4,FALSE)),'Ransom Statistics'!$D$18,VLOOKUP(CK17,'Ransom Statistics'!$A$1:$D$18,4,FALSE))))) -> 0 | CU17: =INDEX([1]Variables!$A$2:$A$103,INT((RAND()*100)+1),1) -> Portugal | CV17: =INDEX(Variables!$E$3:$E$5,RANDBETWEEN(1,3),1) -> Medium (1 week to 1month) | CW17: =INDEX([1]Variables!$G$3:$G$5,RANDBETWEEN(1,3),1) -> very frequent ( more than 12 times a year) | CX17: 6 | CY17: =IF(ISNA(VLOOKUP(CU17,Variables!$K$1:$K$36,1,FALSE)),SUM('Other cost'!$B$2,'Salary in Industry'!$AR16,IF(ISNA(VLOOKUP(Simulation!CU17,'Ransom Statistics'!$A$1:$D$18,4,FALSE)),'Ransom Statistics'!$D$18,VLOOKUP(Simulation!CU17,'Ransom Statistics'!$A$1:$D$18,4,FALSE)))*IF(ISNA(VLOOKUP(CU17,'Industry Type P'!$A$2:$S$103,2,FALSE)),'Kidnapping Statistics'!$K$3,VLOOKUP(CU17,'Industry Type P'!$A$1:$S$102,MATCH($C17,'Industry Type P'!$A$1:$S$1,0),FALSE))*VLOOKUP(CW17,'travel frequence'!$A$1:$D$4,MATCH(CV17,'travel frequence'!$A$1:$D$1,0),FALSE)*CX17*IF(ISNA(VLOOKUP(CX17,'travel frequence'!$A$7:$B$23,2,FALSE)),'travel frequence'!$B$23,VLOOKUP(CX17,'travel frequence'!$A$7:$B$23,2,FALSE)),0) -> 226.0661747 | CZ17: =IF(VLOOKUP(CU17,'Industry Type P'!$A$1:$S$102,MATCH($C17,'Industry Type P'!$A$1:$S$1,0),FALSE)>RAND(),"Y","N") -> N | DA17: 0 | DB17: 0 | DC17: =IF(CZ17="N"," ",INDEX('Other cost'!$A$9:$A$13,RANDBETWEEN(1,5),1)) ->  | DD17: =MIN($H17,IF(CZ17="N",0,SUM(DB17,'Other cost'!$B$16,VLOOKUP(DC17,'Other cost'!$A$9:$B$13,2,FALSE),IF(DA17>=30,HLOOKUP(30,'Salary in Industry'!$N$1:$AQ$1001,$B17+1,FALSE),HLOOKUP(DA17,'Salary in Industry'!$N$1:$AQ$1001,$B17+1,FALSE)),IF(ISNA(VLOOKUP(CU17,'Ransom Statistics'!$A$1:$D$18,4,FALSE)),'Ransom Statistics'!$D$18,VLOOKUP(CU17,'Ransom Statistics'!$A$1:$D$18,4,FALSE))))) -> 0 | DE17: 0 | DF17: =((IF(A17=0,0,IF(A17=1,M17,IF(A17=2,M17+W17,IF(A17=3,M17+W17+AG17,IF(A17=4,M17+W17+AG17+AQ17,IF(A17=5,M17+W17+AG17+AQ17+BA17,IF(A17=6,M17+W17+AG17+AQ17+BA17+BK17,IF(A17=7,M17+W17+AG17+AQ17+BA17+BK17+BU17,IF(A17=8,M17+W17+AG17+AQ17+BA17+BK17+BU17+CE17,IF(A17=9,M17+W17+AG17+AQ17+BA17+BK17+BU17+CE17+CO17,IF(A17=10,M17+W17+AG17+AQ17+BA17+BK17+BU17+CE17+CO17+CY17))))))))))))/(1+Variables!$G$12))*(1+Variables!$F$21) -> 5231.221072
A18: 3 | B18: 16 | C18: =INDEX([1]Variables!$C$2:$C$19,INT((RAND()*10)+1),1) -> Finance and Insurance | D18: 14 | E18: 342 | F18: 12982 | G18: 1864252 | H18: =Variables!$H$21 -> 1000000 | I18: =INDEX([1]Variables!$A$2:$A$103,INT((RAND()*100)+1),1) -> Philippines | J18: =INDEX(Variables!$E$3:$E$5,RANDBETWEEN(1,3),1) -> Long (more than one month) | K18: =INDEX([1]Variables!$G$3:$G$5,RANDBETWEEN(1,3),1) -> very frequent ( more than 12 times a year) | L18: 3 | M18: =IF(ISNA(VLOOKUP(I18,Variables!$K$1:$K$36,1,FALSE)),SUM('Other cost'!$B$2,'Salary in Industry'!$AR17,IF(ISNA(VLOOKUP(Simulation!I18,'Ransom Statistics'!$A$1:$D$18,4,FALSE)),'Ransom Statistics'!$D$18,VLOOKUP(Simulation!I18,'Ransom Statistics'!$A$1:$D$18,4,FALSE)))*IF(ISNA(VLOOKUP(I18,'Industry Type P'!$A$2:$S$103,2,FALSE)),'Kidnapping Statistics'!$K$3,VLOOKUP(I18,'Industry Type P'!$A$1:$S$102,MATCH($C18,'Industry Type P'!$A$1:$S$1,0),FALSE))*VLOOKUP(K18,'travel frequence'!$A$1:$D$4,MATCH(J18,'travel frequence'!$A$1:$D$1,0),FALSE)*L18*IF(ISNA(VLOOKUP(L18,'travel frequence'!$A$7:$B$23,2,FALSE)),'travel frequence'!$B$23,VLOOKUP(L18,'travel frequence'!$A$7:$B$23,2,FALSE)),0) -> 682.1264782 | N18: =IF(VLOOKUP(I18,'Industry Type P'!$A$1:$S$102,MATCH($C18,'Industry Type P'!$A$1:$S$1,0),FALSE)>RAND(),"Y","N") -> N | O18: 0 | P18: 0 | Q18: =IF(N18="N"," ",INDEX('Other cost'!$A$9:$A$13,RANDBETWEEN(1,5),1)) ->  | R18: =MIN($H18,IF(N18="N",0,SUM(P18,'Other cost'!$B$16,VLOOKUP(Q18,'Other cost'!$A$9:$B$13,2,FALSE),IF(O18>=30,HLOOKUP(30,'Salary in Industry'!$N$1:$AQ$1001,$B18+1,FALSE),HLOOKUP(O18,'Salary in Industry'!$N$1:$AQ$1001,$B18+1,FALSE)),IF(ISNA(VLOOKUP(I18,'Ransom Statistics'!$A$1:$D$18,4,FALSE)),'Ransom Statistics'!$D$18,VLOOKUP(I18,'Ransom Statistics'!$A$1:$D$18,4,FALSE))))) -> 0 | S18: =INDEX([1]Variables!$A$2:$A$103,INT((RAND()*100)+1),1) -> Republic of Ireland | T18: =INDEX(Variables!$E$3:$E$5,RANDBETWEEN(1,3),1) -> Short (less a week) | U18: =INDEX([1]Variables!$G$3:$G$5,RANDBETWEEN(1,3),1) -> infrequent (less than 3 times) | V18: 18 | W18: =IF(ISNA(VLOOKUP(S18,Variables!$K$1:$K$36,1,FALSE)),SUM('Other cost'!$B$2,'Salary in Industry'!$AR17,IF(ISNA(VLOOKUP(Simulation!S18,'Ransom Statistics'!$A$1:$D$18,4,FALSE)),'Ransom Statistics'!$D$18,VLOOKUP(Simulation!S18,'Ransom Statistics'!$A$1:$D$18,4,FALSE)))*IF(ISNA(VLOOKUP(S18,'Industry Type P'!$A$2:$S$103,2,FALSE)),'Kidnapping Statistics'!$K$3,VLOOKUP(S18,'Industry Type P'!$A$1:$S$102,MATCH($C18,'Industry Type P'!$A$1:$S$1,0),FALSE))*VLOOKUP(U18,'travel frequence'!$A$1:$D$4,MATCH(T18,'travel frequence'!$A$1:$D$1,0),FALSE)*V18*IF(ISNA(VLOOKUP(V18,'travel frequence'!$A$7:$B$23,2,FALSE)),'travel frequence'!$B$23,VLOOKUP(V18,'travel frequence'!$A$7:$B$23,2,FALSE)),0) -> 156.8550207 | X18: =IF(VLOOKUP(S18,'Industry Type P'!$A$1:$S$102,MATCH($C18,'Industry Type P'!$A$1:$S$1,0),FALSE)>RAND(),"Y","N") -> N | Y18: 0 | Z18: 0 | AA18: =IF(X18="N"," ",INDEX('Other cost'!$A$9:$A$13,RANDBETWEEN(1,5),1)) ->  | AB18: =MIN($H18,IF(X18="N",0,SUM(Z18,'Other cost'!$B$16,VLOOKUP(AA18,'Other cost'!$A$9:$B$13,2,FALSE),IF(Y18>=30,HLOOKUP(30,'Salary in Industry'!$N$1:$AQ$1001,$B18+1,FALSE),HLOOKUP(Y18,'Salary in Industry'!$N$1:$AQ$1001,$B18+1,FALSE)),IF(ISNA(VLOOKUP(S18,'Ransom Statistics'!$A$1:$D$18,4,FALSE)),'Ransom Statistics'!$D$18,VLOOKUP(S18,'Ransom Statistics'!$A$1:$D$18,4,FALSE))))) -> 0 | AC18: =INDEX([1]Variables!$A$2:$A$103,INT((RAND()*100)+1),1) -> the Balkans | AD18: =INDEX(Variables!$E$3:$E$5,RANDBETWEEN(1,3),1) -> Medium (1 week to 1month) | AE18: =INDEX([1]Variables!$G$3:$G$5,RANDBETWEEN(1,3),1) -> infrequent (less than 3 times) | AF18: 7 | AG18: =IF(ISNA(VLOOKUP(AC18,Variables!$K$1:$K$36,1,FALSE)),SUM('Other cost'!$B$2,'Salary in Industry'!$AR17,IF(ISNA(VLOOKUP(Simulation!AC18,'Ransom Statistics'!$A$1:$D$18,4,FALSE)),'Ransom Statistics'!$D$18,VLOOKUP(Simulation!AC18,'Ransom Statistics'!$A$1:$D$18,4,FALSE)))*IF(ISNA(VLOOKUP(AC18,'Industry Type P'!$A$2:$S$103,2,FALSE)),'Kidnapping Statistics'!$K$3,VLOOKUP(AC18,'Industry Type P'!$A$1:$S$102,MATCH($C18,'Industry Type P'!$A$1:$S$1,0),FALSE))*VLOOKUP(AE18,'travel frequence'!$A$1:$D$4,MATCH(AD18,'travel frequence'!$A$1:$D$1,0),FALSE)*AF18*IF(ISNA(VLOOKUP(AF18,'travel frequence'!$A$7:$B$23,2,FALSE)),'travel frequence'!$B$23,VLOOKUP(AF18,'travel frequence'!$A$7:$B$23,2,FALSE)),0) -> 4.566783135 | AH18: =IF(VLOOKUP(AC18,'Industry Type P'!$A$1:$S$102,MATCH($C18,'Industry Type P'!$A$1:$S$1,0),FALSE)>RAND(),"Y","N") -> N | AI18: 0 | AJ18: 0 | AK18: =IF(AH18="N"," ",INDEX('Other cost'!$A$9:$A$13,RANDBETWEEN(1,5),1)) ->  | AL18: =MIN($H18,IF(AH18="N",0,SUM(AJ18,'Other cost'!$B$16,VLOOKUP(AK18,'Other cost'!$A$9:$B$13,2,FALSE),IF(AI18>=30,HLOOKUP(30,'Salary in Industry'!$N$1:$AQ$1001,$B18+1,FALSE),HLOOKUP(AI18,'Salary in Industry'!$N$1:$AQ$1001,$B18+1,FALSE)),IF(ISNA(VLOOKUP(AC18,'Ransom Statistics'!$A$1:$D$18,4,FALSE)),'Ransom Statistics'!$D$18,VLOOKUP(AC18,'Ransom Statistics'!$A$1:$D$18,4,FALSE))))) -> 0 | AM18: =INDEX([1]Variables!$A$2:$A$103,INT((RAND()*100)+1),1) -> Philippines | AN18: =INDEX(Variables!$E$3:$E$5,RANDBETWEEN(1,3),1) -> Medium (1 week to 1month) | AO18: =INDEX([1]Variables!$G$3:$G$5,RANDBETWEEN(1,3),1) -> frequent (3 times to 12 times) | AP18: 7 | AQ18: =IF(ISNA(VLOOKUP(AM18,Variables!$K$1:$K$36,1,FALSE)),SUM('Other cost'!$B$2,'Salary in Industry'!$AR17,IF(ISNA(VLOOKUP(Simulation!AM18,'Ransom Statistics'!$A$1:$D$18,4,FALSE)),'Ransom Statistics'!$D$18,VLOOKUP(Simulation!AM18,'Ransom Statistics'!$A$1:$D$18,4,FALSE)))*IF(ISNA(VLOOKUP(AM18,'Industry Type P'!$A$2:$S$103,2,FALSE)),'Kidnapping Statistics'!$K$3,VLOOKUP(AM18,'Industry Type P'!$A$1:$S$102,MATCH($C18,'Industry Type P'!$A$1:$S$1,0),FALSE))*VLOOKUP(AO18,'travel frequence'!$A$1:$D$4,MATCH(AN18,'travel frequence'!$A$1:$D$1,0),FALSE)*AP18*IF(ISNA(VLOOKUP(AP18,'travel frequence'!$A$7:$B$23,2,FALSE)),'travel frequence'!$B$23,VLOOKUP(AP18,'travel frequence'!$A$7:$B$23,2,FALSE)),0) -> 1289.087504 | AR18: =IF(VLOOKUP(AM18,'Industry Type P'!$A$1:$S$102,MATCH($C18,'Industry Type P'!$A$1:$S$1,0),FALSE)>RAND(),"Y","N") -> N | AS18: 0 | AT18: 0 | AU18: =IF(AR18="N"," ",INDEX('Other cost'!$A$9:$A$13,RANDBETWEEN(1,5),1)) ->  | AV18: =MIN($H18,IF(AR18="N",0,SUM(AT18,'Other cost'!$B$16,VLOOKUP(AU18,'Other cost'!$A$9:$B$13,2,FALSE),IF(AS18>=30,HLOOKUP(30,'Salary in Industry'!$N$1:$AQ$1001,$B18+1,FALSE),HLOOKUP(AS18,'Salary in Industry'!$N$1:$AQ$1001,$B18+1,FALSE)),IF(ISNA(VLOOKUP(AM18,'Ransom Statistics'!$A$1:$D$18,4,FALSE)),'Ransom Statistics'!$D$18,VLOOKUP(AM18,'Ransom Statistics'!$A$1:$D$18,4,FALSE))))) -> 0 | AW18: =INDEX([1]Variables!$A$2:$A$103,INT((RAND()*100)+1),1) -> Paraguay | AX18: =INDEX(Variables!$E$3:$E$5,RANDBETWEEN(1,3),1) -> Short (less a week) | AY18: =INDEX([1]Variables!$G$3:$G$5,RANDBETWEEN(1,3),1) -> frequent (3 times to 12 times) | AZ18: 1 | BA18: =IF(ISNA(VLOOKUP(AW18,Variables!$K$1:$K$36,1,FALSE)),SUM('Other cost'!$B$2,'Salary in Industry'!$AR17,IF(ISNA(VLOOKUP(Simulation!AW18,'Ransom Statistics'!$A$1:$D$18,4,FALSE)),'Ransom Statistics'!$D$18,VLOOKUP(Simulation!AW18,'Ransom Statistics'!$A$1:$D$18,4,FALSE)))*IF(ISNA(VLOOKUP(AW18,'Industry Type P'!$A$2:$S$103,2,FALSE)),'Kidnapping Statistics'!$K$3,VLOOKUP(AW18,'Industry Type P'!$A$1:$S$102,MATCH($C18,'Industry Type P'!$A$1:$S$1,0),FALSE))*VLOOKUP(AY18,'travel frequence'!$A$1:$D$4,MATCH(AX18,'travel frequence'!$A$1:$D$1,0),FALSE)*AZ18*IF(ISNA(VLOOKUP(AZ18,'travel frequence'!$A$7:$B$23,2,FALSE)),'travel frequence'!$B$23,VLOOKUP(AZ18,'travel frequence'!$A$7:$B$23,2,FALSE)),0) -> 7.042288327 | BB18: =IF(VLOOKUP(AW18,'Industry Type P'!$A$1:$S$102,MATCH($C18,'Industry Type P'!$A$1:$S$1,0),FALSE)>RAND(),"Y","N") -> N | BC18: 0 | BD18: 0 | BE18: =IF(BB18="N"," ",INDEX('Other cost'!$A$9:$A$13,RANDBETWEEN(1,5),1)) ->  | BF18: =MIN($H18,IF(BB18="N",0,SUM(BD18,'Other cost'!$B$16,VLOOKUP(BE18,'Other cost'!$A$9:$B$13,2,FALSE),IF(BC18>=30,HLOOKUP(30,'Salary in Industry'!$N$1:$AQ$1001,$B18+1,FALSE),HLOOKUP(BC18,'Salary in Industry'!$N$1:$AQ$1001,$B18+1,FALSE)),IF(ISNA(VLOOKUP(AW18,'Ransom Statistics'!$A$1:$D$18,4,FALSE)),'Ransom Statistics'!$D$18,VLOOKUP(AW18,'Ransom Statistics'!$A$1:$D$18,4,FALSE))))) -> 0 | BG18: =INDEX([1]Variables!$A$2:$A$103,INT((RAND()*100)+1),1) -> Honduras | BH18: =INDEX(Variables!$E$3:$E$5,RANDBETWEEN(1,3),1) -> Short (less a week) | BI18: =INDEX([1]Variables!$G$3:$G$5,RANDBETWEEN(1,3),1) -> very frequent ( more than 12 times a year) | BJ18: 16 | BK18: =IF(ISNA(VLOOKUP(BG18,Variables!$K$1:$K$36,1,FALSE)),SUM('Other cost'!$B$2,'Salary in Industry'!$AR17,IF(ISNA(VLOOKUP(Simulation!BG18,'Ransom Statistics'!$A$1:$D$18,4,FALSE)),'Ransom Statistics'!$D$18,VLOOKUP(Simulation!BG18,'Ransom Statistics'!$A$1:$D$18,4,FALSE)))*IF(ISNA(VLOOKUP(BG18,'Industry Type P'!$A$2:$S$103,2,FALSE)),'Kidnapping Statistics'!$K$3,VLOOKUP(BG18,'Industry Type P'!$A$1:$S$102,MATCH($C18,'Industry Type P'!$A$1:$S$1,0),FALSE))*VLOOKUP(BI18,'travel frequence'!$A$1:$D$4,MATCH(BH18,'travel frequence'!$A$1:$D$1,0),FALSE)*BJ18*IF(ISNA(VLOOKUP(BJ18,'travel frequence'!$A$7:$B$23,2,FALSE)),'travel frequence'!$B$23,VLOOKUP(BJ18,'travel frequence'!$A$7:$B$23,2,FALSE)),0) -> 0 | BL18: =IF(VLOOKUP(BG18,'Industry Type P'!$A$1:$S$102,MATCH($C18,'Industry Type P'!$A$1:$S$1,0),FALSE)>RAND(),"Y","N") -> N | BM18: 0 | BN18: 0 | BO18: =IF(BL18="N"," ",INDEX('Other cost'!$A$9:$A$13,RANDBETWEEN(1,5),1)) ->  | BP18: =MIN($H18,IF(BL18="N",0,SUM(BN18,'Other cost'!$B$16,VLOOKUP(BO18,'Other cost'!$A$9:$B$13,2,FALSE),IF(BM18>=30,HLOOKUP(30,'Salary in Industry'!$N$1:$AQ$1001,$B18+1,FALSE),HLOOKUP(BM18,'Salary in Industry'!$N$1:$AQ$1001,$B18+1,FALSE)),IF(ISNA(VLOOKUP(BG18,'Ransom Statistics'!$A$1:$D$18,4,FALSE)),'Ransom Statistics'!$D$18,VLOOKUP(BG18,'Ransom Statistics'!$A$1:$D$18,4,FALSE))))) -> 0 | BQ18: =INDEX([1]Variables!$A$2:$A$103,INT((RAND()*100)+1),1) -> Iraq | BR18: =INDEX(Variables!$E$3:$E$5,RANDBETWEEN(1,3),1) -> Short (less a week) | BS18: =INDEX([1]Variables!$G$3:$G$5,RANDBETWEEN(1,3),1) -> infrequent (less than 3 times) | BT18: 4 | BU18: =IF(ISNA(VLOOKUP(BQ18,Variables!$K$1:$K$36,1,FALSE)),SUM('Other cost'!$B$2,'Salary in Industry'!$AR17,IF(ISNA(VLOOKUP(Simulation!BQ18,'Ransom Statistics'!$A$1:$D$18,4,FALSE)),'Ransom Statistics'!$D$18,VLOOKUP(Simulation!BQ18,'Ransom Statistics'!$A$1:$D$18,4,FALSE)))*IF(ISNA(VLOOKUP(BQ18,'Industry Type P'!$A$2:$S$103,2,FALSE)),'Kidnapping Statistics'!$K$3,VLOOKUP(BQ18,'Industry Type P'!$A$1:$S$102,MATCH($C18,'Industry Type P'!$A$1:$S$1,0),FALSE))*VLOOKUP(BS18,'travel frequence'!$A$1:$D$4,MATCH(BR18,'travel frequence'!$A$1:$D$1,0),FALSE)*BT18*IF(ISNA(VLOOKUP(BT18,'travel frequence'!$A$7:$B$23,2,FALSE)),'travel frequence'!$B$23,VLOOKUP(BT18,'travel frequence'!$A$7:$B$23,2,FALSE)),0) -> 0 | BV18: =IF(VLOOKUP(BQ18,'Industry Type P'!$A$1:$S$102,MATCH($C18,'Industry Type P'!$A$1:$S$1,0),FALSE)>RAND(),"Y","N") -> N | BW18: 0 | BX18: 0 | BY18: =IF(BV18="N"," ",INDEX('Other cost'!$A$9:$A$13,RANDBETWEEN(1,5),1)) ->  | BZ18: =MIN($H18,IF(BV18="N",0,SUM(BX18,'Other cost'!$B$16,VLOOKUP(BY18,'Other cost'!$A$9:$B$13,2,FALSE),IF(BW18>=30,HLOOKUP(30,'Salary in Industry'!$N$1:$AQ$1001,$B18+1,FALSE),HLOOKUP(BW18,'Salary in Industry'!$N$1:$AQ$1001,$B18+1,FALSE)),IF(ISNA(VLOOKUP(BQ18,'Ransom Statistics'!$A$1:$D$18,4,FALSE)),'Ransom Statistics'!$D$18,VLOOKUP(BQ18,'Ransom Statistics'!$A$1:$D$18,4,FALSE))))) -> 0 | CA18: =INDEX([1]Variables!$A$2:$A$103,INT((RAND()*100)+1),1) -> Guinea | CB18: =INDEX(Variables!$E$3:$E$5,RANDBETWEEN(1,3),1) -> Long (more than one month) | CC18: =INDEX([1]Variables!$G$3:$G$5,RANDBETWEEN(1,3),1) -> frequent (3 times to 12 times) | CD18: 2 | CE18: =IF(ISNA(VLOOKUP(CA18,Variables!$K$1:$K$36,1,FALSE)),SUM('Other cost'!$B$2,'Salary in Industry'!$AR17,IF(ISNA(VLOOKUP(Simulation!CA18,'Ransom Statistics'!$A$1:$D$18,4,FALSE)),'Ransom Statistics'!$D$18,VLOOKUP(Simulation!CA18,'Ransom Statistics'!$A$1:$D$18,4,FALSE)))*IF(ISNA(VLOOKUP(CA18,'Industry Type P'!$A$2:$S$103,2,FALSE)),'Kidnapping Statistics'!$K$3,VLOOKUP(CA18,'Industry Type P'!$A$1:$S$102,MATCH($C18,'Industry Type P'!$A$1:$S$1,0),FALSE))*VLOOKUP(CC18,'travel frequence'!$A$1:$D$4,MATCH(CB18,'travel frequence'!$A$1:$D$1,0),FALSE)*CD18*IF(ISNA(VLOOKUP(CD18,'travel frequence'!$A$7:$B$23,2,FALSE)),'travel frequence'!$B$23,VLOOKUP(CD18,'travel frequence'!$A$7:$B$23,2,FALSE)),0) -> 1.614684037 | CF18: =IF(VLOOKUP(CA18,'Industry Type P'!$A$1:$S$102,MATCH($C18,'Industry Type P'!$A$1:$S$1,0),FALSE)>RAND(),"Y","N") -> N | CG18: 0 | CH18: 0 | CI18: =IF(CF18="N"," ",INDEX('Other cost'!$A$9:$A$13,RANDBETWEEN(1,5),1)) ->  | CJ18: =MIN($H18,IF(CF18="N",0,SUM(CH18,'Other cost'!$B$16,VLOOKUP(CI18,'Other cost'!$A$9:$B$13,2,FALSE),IF(CG18>=30,HLOOKUP(30,'Salary in Industry'!$N$1:$AQ$1001,$B18+1,FALSE),HLOOKUP(CG18,'Salary in Industry'!$N$1:$AQ$1001,$B18+1,FALSE)),IF(ISNA(VLOOKUP(CA18,'Ransom Statistics'!$A$1:$D$18,4,FALSE)),'Ransom Statistics'!$D$18,VLOOKUP(CA18,'Ransom Statistics'!$A$1:$D$18,4,FALSE))))) -> 0 | CK18: =INDEX([1]Variables!$A$2:$A$103,INT((RAND()*100)+1),1) -> Nbhutan | CL18: =INDEX(Variables!$E$3:$E$5,RANDBETWEEN(1,3),1) -> Long (more than one month) | CM18: =INDEX([1]Variables!$G$3:$G$5,RANDBETWEEN(1,3),1) -> very frequent ( more than 12 times a year) | CN18: 17 | CO18: =IF(ISNA(VLOOKUP(CK18,Variables!$K$1:$K$36,1,FALSE)),SUM('Other cost'!$B$2,'Salary in Industry'!$AR17,IF(ISNA(VLOOKUP(Simulation!CK18,'Ransom Statistics'!$A$1:$D$18,4,FALSE)),'Ransom Statistics'!$D$18,VLOOKUP(Simulation!CK18,'Ransom Statistics'!$A$1:$D$18,4,FALSE)))*IF(ISNA(VLOOKUP(CK18,'Industry Type P'!$A$2:$S$103,2,FALSE)),'Kidnapping Statistics'!$K$3,VLOOKUP(CK18,'Industry Type P'!$A$1:$S$102,MATCH($C18,'Industry Type P'!$A$1:$S$1,0),FALSE))*VLOOKUP(CM18,'travel frequence'!$A$1:$D$4,MATCH(CL18,'travel frequence'!$A$1:$D$1,0),FALSE)*CN18*IF(ISNA(VLOOKUP(CN18,'travel frequence'!$A$7:$B$23,2,FALSE)),'travel frequence'!$B$23,VLOOKUP(CN18,'travel frequence'!$A$7:$B$23,2,FALSE)),0) -> 9.5855846 | CP18: =IF(VLOOKUP(CK18,'Industry Type P'!$A$1:$S$102,MATCH($C18,'Industry Type P'!$A$1:$S$1,0),FALSE)>RAND(),"Y","N") -> N | CQ18: 0 | CR18: 0 | CS18: =IF(CP18="N"," ",INDEX('Other cost'!$A$9:$A$13,RANDBETWEEN(1,5),1)) ->  | CT18: =MIN($H18,IF(CP18="N",0,SUM(CR18,'Other cost'!$B$16,VLOOKUP(CS18,'Other cost'!$A$9:$B$13,2,FALSE),IF(CQ18>=30,HLOOKUP(30,'Salary in Industry'!$N$1:$AQ$1001,$B18+1,FALSE),HLOOKUP(CQ18,'Salary in Industry'!$N$1:$AQ$1001,$B18+1,FALSE)),IF(ISNA(VLOOKUP(CK18,'Ransom Statistics'!$A$1:$D$18,4,FALSE)),'Ransom Statistics'!$D$18,VLOOKUP(CK18,'Ransom Statistics'!$A$1:$D$18,4,FALSE))))) -> 0 | CU18: =INDEX([1]Variables!$A$2:$A$103,INT((RAND()*100)+1),1) -> Maili | CV18: =INDEX(Variables!$E$3:$E$5,RANDBETWEEN(1,3),1) -> Long (more than one month) | CW18: =INDEX([1]Variables!$G$3:$G$5,RANDBETWEEN(1,3),1) -> frequent (3 times to 12 times) | CX18: 14 | CY18: =IF(ISNA(VLOOKUP(CU18,Variables!$K$1:$K$36,1,FALSE)),SUM('Other cost'!$B$2,'Salary in Industry'!$AR17,IF(ISNA(VLOOKUP(Simulation!CU18,'Ransom Statistics'!$A$1:$D$18,4,FALSE)),'Ransom Statistics'!$D$18,VLOOKUP(Simulation!CU18,'Ransom Statistics'!$A$1:$D$18,4,FALSE)))*IF(ISNA(VLOOKUP(CU18,'Industry Type P'!$A$2:$S$103,2,FALSE)),'Kidnapping Statistics'!$K$3,VLOOKUP(CU18,'Industry Type P'!$A$1:$S$102,MATCH($C18,'Industry Type P'!$A$1:$S$1,0),FALSE))*VLOOKUP(CW18,'travel frequence'!$A$1:$D$4,MATCH(CV18,'travel frequence'!$A$1:$D$1,0),FALSE)*CX18*IF(ISNA(VLOOKUP(CX18,'travel frequence'!$A$7:$B$23,2,FALSE)),'travel frequence'!$B$23,VLOOKUP(CX18,'travel frequence'!$A$7:$B$23,2,FALSE)),0) -> 3516.423014 | CZ18: =IF(VLOOKUP(CU18,'Industry Type P'!$A$1:$S$102,MATCH($C18,'Industry Type P'!$A$1:$S$1,0),FALSE)>RAND(),"Y","N") -> N | DA18: 0 | DB18: 0 | DC18: =IF(CZ18="N"," ",INDEX('Other cost'!$A$9:$A$13,RANDBETWEEN(1,5),1)) ->  | DD18: =MIN($H18,IF(CZ18="N",0,SUM(DB18,'Other cost'!$B$16,VLOOKUP(DC18,'Other cost'!$A$9:$B$13,2,FALSE),IF(DA18>=30,HLOOKUP(30,'Salary in Industry'!$N$1:$AQ$1001,$B18+1,FALSE),HLOOKUP(DA18,'Salary in Industry'!$N$1:$AQ$1001,$B18+1,FALSE)),IF(ISNA(VLOOKUP(CU18,'Ransom Statistics'!$A$1:$D$18,4,FALSE)),'Ransom Statistics'!$D$18,VLOOKUP(CU18,'Ransom Statistics'!$A$1:$D$18,4,FALSE))))) -> 0 | DE18: 0 | DF18: =((IF(A18=0,0,IF(A18=1,M18,IF(A18=2,M18+W18,IF(A18=3,M18+W18+AG18,IF(A18=4,M18+W18+AG18+AQ18,IF(A18=5,M18+W18+AG18+AQ18+BA18,IF(A18=6,M18+W18+AG18+AQ18+BA18+BK18,IF(A18=7,M18+W18+AG18+AQ18+BA18+BK18+BU18,IF(A18=8,M18+W18+AG18+AQ18+BA18+BK18+BU18+CE18,IF(A18=9,M18+W18+AG18+AQ18+BA18+BK18+BU18+CE18+CO18,IF(A18=10,M18+W18+AG18+AQ18+BA18+BK18+BU18+CE18+CO18+CY18))))))))))))/(1+Variables!$G$12))*(1+Variables!$F$21) -> 924.7688342
A19: 1 | B19: 17 | C19: =INDEX([1]Variables!$C$2:$C$19,INT((RAND()*10)+1),1) -> Finance and Insurance | D19: 35 | E19: 182 | F19: 12958 | G19: 34250423 | H19: =Variables!$H$21 -> 1000000 | I19: =INDEX([1]Variables!$A$2:$A$103,INT((RAND()*100)+1),1) -> Faso | J19: =INDEX(Variables!$E$3:$E$5,RANDBETWEEN(1,3),1) -> Long (more than one month) | K19: =INDEX([1]Variables!$G$3:$G$5,RANDBETWEEN(1,3),1) -> infrequent (less than 3 times) | L19: 9 | M19: =IF(ISNA(VLOOKUP(I19,Variables!$K$1:$K$36,1,FALSE)),SUM('Other cost'!$B$2,'Salary in Industry'!$AR18,IF(ISNA(VLOOKUP(Simulation!I19,'Ransom Statistics'!$A$1:$D$18,4,FALSE)),'Ransom Statistics'!$D$18,VLOOKUP(Simulation!I19,'Ransom Statistics'!$A$1:$D$18,4,FALSE)))*IF(ISNA(VLOOKUP(I19,'Industry Type P'!$A$2:$S$103,2,FALSE)),'Kidnapping Statistics'!$K$3,VLOOKUP(I19,'Industry Type P'!$A$1:$S$102,MATCH($C19,'Industry Type P'!$A$1:$S$1,0),FALSE))*VLOOKUP(K19,'travel frequence'!$A$1:$D$4,MATCH(J19,'travel frequence'!$A$1:$D$1,0),FALSE)*L19*IF(ISNA(VLOOKUP(L19,'travel frequence'!$A$7:$B$23,2,FALSE)),'travel frequence'!$B$23,VLOOKUP(L19,'travel frequence'!$A$7:$B$23,2,FALSE)),0) -> 6.151182943 | N19: =IF(VLOOKUP(I19,'Industry Type P'!$A$1:$S$102,MATCH($C19,'Industry Type P'!$A$1:$S$1,0),FALSE)>RAND(),"Y","N") -> N | O19: 0 | P19: 0 | Q19: =IF(N19="N"," ",INDEX('Other cost'!$A$9:$A$13,RANDBETWEEN(1,5),1)) ->  | R19: =MIN($H19,IF(N19="N",0,SUM(P19,'Other cost'!$B$16,VLOOKUP(Q19,'Other cost'!$A$9:$B$13,2,FALSE),IF(O19>=30,HLOOKUP(30,'Salary in Industry'!$N$1:$AQ$1001,$B19+1,FALSE),HLOOKUP(O19,'Salary in Industry'!$N$1:$AQ$1001,$B19+1,FALSE)),IF(ISNA(VLOOKUP(I19,'Ransom Statistics'!$A$1:$D$18,4,FALSE)),'Ransom Statistics'!$D$18,VLOOKUP(I19,'Ransom Statistics'!$A$1:$D$18,4,FALSE))))) -> 0 | S19: =INDEX([1]Variables!$A$2:$A$103,INT((RAND()*100)+1),1) -> Russia | T19: =INDEX(Variables!$E$3:$E$5,RANDBETWEEN(1,3),1) -> Medium (1 week to 1month) | U19: =INDEX([1]Variables!$G$3:$G$5,RANDBETWEEN(1,3),1) -> infrequent (less than 3 times) | V19: 17 | W19: =IF(ISNA(VLOOKUP(S19,Variables!$K$1:$K$36,1,FALSE)),SUM('Other cost'!$B$2,'Salary in Industry'!$AR18,IF(ISNA(VLOOKUP(Simulation!S19,'Ransom Statistics'!$A$1:$D$18,4,FALSE)),'Ransom Statistics'!$D$18,VLOOKUP(Simulation!S19,'Ransom Statistics'!$A$1:$D$18,4,FALSE)))*IF(ISNA(VLOOKUP(S19,'Industry Type P'!$A$2:$S$103,2,FALSE)),'Kidnapping Statistics'!$K$3,VLOOKUP(S19,'Industry Type P'!$A$1:$S$102,MATCH($C19,'Industry Type P'!$A$1:$S$1,0),FALSE))*VLOOKUP(U19,'travel frequence'!$A$1:$D$4,MATCH(T19,'travel frequence'!$A$1:$D$1,0),FALSE)*V19*IF(ISNA(VLOOKUP(V19,'travel frequence'!$A$7:$B$23,2,FALSE)),'travel frequence'!$B$23,VLOOKUP(V19,'travel frequence'!$A$7:$B$23,2,FALSE)),0) -> 8.318076934 | X19: =IF(VLOOKUP(S19,'Industry Type P'!$A$1:$S$102,MATCH($C19,'Industry Type P'!$A$1:$S$1,0),FALSE)>RAND(),"Y","N") -> N | Y19: 0 | Z19: 0 | AA19: =IF(X19="N"," ",INDEX('Other cost'!$A$9:$A$13,RANDBETWEEN(1,5),1)) ->  | AB19: =MIN($H19,IF(X19="N",0,SUM(Z19,'Other cost'!$B$16,VLOOKUP(AA19,'Other cost'!$A$9:$B$13,2,FALSE),IF(Y19>=30,HLOOKUP(30,'Salary in Industry'!$N$1:$AQ$1001,$B19+1,FALSE),HLOOKUP(Y19,'Salary in Industry'!$N$1:$AQ$1001,$B19+1,FALSE)),IF(ISNA(VLOOKUP(S19,'Ransom Statistics'!$A$1:$D$18,4,FALSE)),'Ransom Statistics'!$D$18,VLOOKUP(S19,'Ransom Statistics'!$A$1:$D$18,4,FALSE))))) -> 0 | AC19: =INDEX([1]Variables!$A$2:$A$103,INT((RAND()*100)+1),1) -> Togo | AD19: =INDEX(Variables!$E$3:$E$5,RANDBETWEEN(1,3),1) -> Medium (1 week to 1month) | AE19: =INDEX([1]Variables!$G$3:$G$5,RANDBETWEEN(1,3),1) -> infrequent (less than 3 times) | AF19: 20 | AG19: =IF(ISNA(VLOOKUP(AC19,Variables!$K$1:$K$36,1,FALSE)),SUM('Other cost'!$B$2,'Salary in Industry'!$AR18,IF(ISNA(VLOOKUP(Simulation!AC19,'Ransom Statistics'!$A$1:$D$18,4,FALSE)),'Ransom Statistics'!$D$18,VLOOKUP(Simulation!AC19,'Ransom Statistics'!$A$1:$D$18,4,FALSE)))*IF(ISNA(VLOOKUP(AC19,'Industry Type P'!$A$2:$S$103,2,FALSE)),'Kidnapping Statistics'!$K$3,VLOOKUP(AC19,'Industry Type P'!$A$1:$S$102,MATCH($C19,'Industry Type P'!$A$1:$S$1,0),FALSE))*VLOOKUP(AE19,'travel frequence'!$A$1:$D$4,MATCH(AD19,'travel frequence'!$A$1:$D$1,0),FALSE)*AF19*IF(ISNA(VLOOKUP(AF19,'travel frequence'!$A$7:$B$23,2,FALSE)),'travel frequence'!$B$23,VLOOKUP(AF19,'travel frequence'!$A$7:$B$23,2,FALSE)),0) -> 6454.577846 | AH19: =IF(VLOOKUP(AC19,'Industry Type P'!$A$1:$S$102,MATCH($C19,'Industry Type P'!$A$1:$S$1,0),FALSE)>RAND(),"Y","N") -> N | AI19: 0 | AJ19: 0 | AK19: =IF(AH19="N"," ",INDEX('Other cost'!$A$9:$A$13,RANDBETWEEN(1,5),1)) ->  | AL19: =MIN($H19,IF(AH19="N",0,SUM(AJ19,'Other cost'!$B$16,VLOOKUP(AK19,'Other cost'!$A$9:$B$13,2,FALSE),IF(AI19>=30,HLOOKUP(30,'Salary in Industry'!$N$1:$AQ$1001,$B19+1,FALSE),HLOOKUP(AI19,'Salary in Industry'!$N$1:$AQ$1001,$B19+1,FALSE)),IF(ISNA(VLOOKUP(AC19,'Ransom Statistics'!$A$1:$D$18,4,FALSE)),'Ransom Statistics'!$D$18,VLOOKUP(AC19,'Ransom Statistics'!$A$1:$D$18,4,FALSE))))) -> 0 | AM19: =INDEX([1]Variables!$A$2:$A$103,INT((RAND()*100)+1),1) -> Burkina | AN19: =INDEX(Variables!$E$3:$E$5,RANDBETWEEN(1,3),1) -> Long (more than one month) | AO19: =INDEX([1]Variables!$G$3:$G$5,RANDBETWEEN(1,3),1) -> infrequent (less than 3 times) | AP19: 19 | AQ19: =IF(ISNA(VLOOKUP(AM19,Variables!$K$1:$K$36,1,FALSE)),SUM('Other cost'!$B$2,'Salary in Industry'!$AR18,IF(ISNA(VLOOKUP(Simulation!AM19,'Ransom Statistics'!$A$1:$D$18,4,FALSE)),'Ransom Statistics'!$D$18,VLOOKUP(Simulation!AM19,'Ransom Statistics'!$A$1:$D$18,4,FALSE)))*IF(ISNA(VLOOKUP(AM19,'Industry Type P'!$A$2:$S$103,2,FALSE)),'Kidnapping Statistics'!$K$3,VLOOKUP(AM19,'Industry Type P'!$A$1:$S$102,MATCH($C19,'Industry Type P'!$A$1:$S$1,0),FALSE))*VLOOKUP(AO19,'travel frequence'!$A$1:$D$4,MATCH(AN19,'travel frequence'!$A$1:$D$1,0),FALSE)*AP19*IF(ISNA(VLOOKUP(AP19,'travel frequence'!$A$7:$B$23,2,FALSE)),'travel frequence'!$B$23,VLOOKUP(AP19,'travel frequence'!$A$7:$B$23,2,FALSE)),0) -> 9.739372992 | AR19: =IF(VLOOKUP(AM19,'Industry Type P'!$A$1:$S$102,MATCH($C19,'Industry Type P'!$A$1:$S$1,0),FALSE)>RAND(),"Y","N") -> N | AS19: 0 | AT19: 0 | AU19: =IF(AR19="N"," ",INDEX('Other cost'!$A$9:$A$13,RANDBETWEEN(1,5),1)) ->  | AV19: =MIN($H19,IF(AR19="N",0,SUM(AT19,'Other cost'!$B$16,VLOOKUP(AU19,'Other cost'!$A$9:$B$13,2,FALSE),IF(AS19>=30,HLOOKUP(30,'Salary in Industry'!$N$1:$AQ$1001,$B19+1,FALSE),HLOOKUP(AS19,'Salary in Industry'!$N$1:$AQ$1001,$B19+1,FALSE)),IF(ISNA(VLOOKUP(AM19,'Ransom Statistics'!$A$1:$D$18,4,FALSE)),'Ransom Statistics'!$D$18,VLOOKUP(AM19,'Ransom Statistics'!$A$1:$D$18,4,FALSE))))) -> 0 | AW19: =INDEX([1]Variables!$A$2:$A$103,INT((RAND()*100)+1),1) -> Benin | AX19: =INDEX(Variables!$E$3:$E$5,RANDBETWEEN(1,3),1) -> Short (less a week) | AY19: =INDEX([1]Variables!$G$3:$G$5,RANDBETWEEN(1,3),1) -> infrequent (less than 3 times) | AZ19: 18 | BA19: =IF(ISNA(VLOOKUP(AW19,Variables!$K$1:$K$36,1,FALSE)),SUM('Other cost'!$B$2,'Salary in Industry'!$AR18,IF(ISNA(VLOOKUP(Simulation!AW19,'Ransom Statistics'!$A$1:$D$18,4,FALSE)),'Ransom Statistics'!$D$18,VLOOKUP(Simulation!AW19,'Ransom Statistics'!$A$1:$D$18,4,FALSE)))*IF(ISNA(VLOOKUP(AW19,'Industry Type P'!$A$2:$S$103,2,FALSE)),'Kidnapping Statistics'!$K$3,VLOOKUP(AW19,'Industry Type P'!$A$1:$S$102,MATCH($C19,'Industry Type P'!$A$1:$S$1,0),FALSE))*VLOOKUP(AY19,'travel frequence'!$A$1:$D$4,MATCH(AX19,'travel frequence'!$A$1:$D$1,0),FALSE)*AZ19*IF(ISNA(VLOOKUP(AZ19,'travel frequence'!$A$7:$B$23,2,FALSE)),'travel frequence'!$B$23,VLOOKUP(AZ19,'travel frequence'!$A$7:$B$23,2,FALSE)),0) -> 2516.393022 | BB19: =IF(VLOOKUP(AW19,'Industry Type P'!$A$1:$S$102,MATCH($C19,'Industry Type P'!$A$1:$S$1,0),FALSE)>RAND(),"Y","N") -> N | BC19: 0 | BD19: 0 | BE19: =IF(BB19="N"," ",INDEX('Other cost'!$A$9:$A$13,RANDBETWEEN(1,5),1)) ->  | BF19: =MIN($H19,IF(BB19="N",0,SUM(BD19,'Other cost'!$B$16,VLOOKUP(BE19,'Other cost'!$A$9:$B$13,2,FALSE),IF(BC19>=30,HLOOKUP(30,'Salary in Industry'!$N$1:$AQ$1001,$B19+1,FALSE),HLOOKUP(BC19,'Salary in Industry'!$N$1:$AQ$1001,$B19+1,FALSE)),IF(ISNA(VLOOKUP(AW19,'Ransom Statistics'!$A$1:$D$18,4,FALSE)),'Ransom Statistics'!$D$18,VLOOKUP(AW19,'Ransom Statistics'!$A$1:$D$18,4,FALSE))))) -> 0 | BG19: =INDEX([1]Variables!$A$2:$A$103,INT((RAND()*100)+1),1) -> Oman | BH19: =INDEX(Variables!$E$3:$E$5,RANDBETWEEN(1,3),1) -> Medium (1 week to 1month) | BI19: =INDEX([1]Variables!$G$3:$G$5,RANDBETWEEN(1,3),1) -> very frequent ( more than 12 times a year) | BJ19: 4 | BK19: =IF(ISNA(VLOOKUP(BG19,Variables!$K$1:$K$36,1,FALSE)),SUM('Other cost'!$B$2,'Salary in Industry'!$AR18,IF(ISNA(VLOOKUP(Simulation!BG19,'Ransom Statistics'!$A$1:$D$18,4,FALSE)),'Ransom Statistics'!$D$18,VLOOKUP(Simulation!BG19,'Ransom Statistics'!$A$1:$D$18,4,FALSE)))*IF(ISNA(VLOOKUP(BG19,'Industry Type P'!$A$2:$S$103,2,FALSE)),'Kidnapping Statistics'!$K$3,VLOOKUP(BG19,'Industry Type P'!$A$1:$S$102,MATCH($C19,'Industry Type P'!$A$1:$S$1,0),FALSE))*VLOOKUP(BI19,'travel frequence'!$A$1:$D$4,MATCH(BH19,'travel frequence'!$A$1:$D$1,0),FALSE)*BJ19*IF(ISNA(VLOOKUP(BJ19,'travel frequence'!$A$7:$B$23,2,FALSE)),'travel frequence'!$B$23,VLOOKUP(BJ19,'travel frequence'!$A$7:$B$23,2,FALSE)),0) -> 3.229371045 | BL19: =IF(VLOOKUP(BG19,'Industry Type P'!$A$1:$S$102,MATCH($C19,'Industry Type P'!$A$1:$S$1,0),FALSE)>RAND(),"Y","N") -> N | BM19: 0 | BN19: 0 | BO19: =IF(BL19="N"," ",INDEX('Other cost'!$A$9:$A$13,RANDBETWEEN(1,5),1)) ->  | BP19: =MIN($H19,IF(BL19="N",0,SUM(BN19,'Other cost'!$B$16,VLOOKUP(BO19,'Other cost'!$A$9:$B$13,2,FALSE),IF(BM19>=30,HLOOKUP(30,'Salary in Industry'!$N$1:$AQ$1001,$B19+1,FALSE),HLOOKUP(BM19,'Salary in Industry'!$N$1:$AQ$1001,$B19+1,FALSE)),IF(ISNA(VLOOKUP(BG19,'Ransom Statistics'!$A$1:$D$18,4,FALSE)),'Ransom Statistics'!$D$18,VLOOKUP(BG19,'Ransom Statistics'!$A$1:$D$18,4,FALSE))))) -> 0 | BQ19: =INDEX([1]Variables!$A$2:$A$103,INT((RAND()*100)+1),1) -> Honduras | BR19: =INDEX(Variables!$E$3:$E$5,RANDBETWEEN(1,3),1) -> Medium (1 week to 1month) | BS19: =INDEX([1]Variables!$G$3:$G$5,RANDBETWEEN(1,3),1) -> infrequent (less than 3 times) | BT19: 7 | BU19: =IF(ISNA(VLOOKUP(BQ19,Variables!$K$1:$K$36,1,FALSE)),SUM('Other cost'!$B$2,'Salary in Industry'!$AR18,IF(ISNA(VLOOKUP(Simulation!BQ19,'Ransom Statistics'!$A$1:$D$18,4,FALSE)),'Ransom Statistics'!$D$18,VLOOKUP(Simulation!BQ19,'Ransom Statistics'!$A$1:$D$18,4,FALSE)))*IF(ISNA(VLOOKUP(BQ19,'Industry Type P'!$A$2:$S$103,2,FALSE)),'Kidnapping Statistics'!$K$3,VLOOKUP(BQ19,'Industry Type P'!$A$1:$S$102,MATCH($C19,'Industry Type P'!$A$1:$S$1,0),FALSE))*VLOOKUP(BS19,'travel frequence'!$A$1:$D$4,MATCH(BR19,'travel frequence'!$A$1:$D$1,0),FALSE)*BT19*IF(ISNA(VLOOKUP(BT19,'travel frequence'!$A$7:$B$23,2,FALSE)),'travel frequence'!$B$23,VLOOKUP(BT19,'travel frequence'!$A$7:$B$23,2,FALSE)),0) -> 0 | BV19: =IF(VLOOKUP(BQ19,'Industry Type P'!$A$1:$S$102,MATCH($C19,'Industry Type P'!$A$1:$S$1,0),FALSE)>RAND(),"Y","N") -> N | BW19: 0 | BX19: 0 | BY19: =IF(BV19="N"," ",INDEX('Other cost'!$A$9:$A$13,RANDBETWEEN(1,5),1)) ->  | BZ19: =MIN($H19,IF(BV19="N",0,SUM(BX19,'Other cost'!$B$16,VLOOKUP(BY19,'Other cost'!$A$9:$B$13,2,FALSE),IF(BW19>=30,HLOOKUP(30,'Salary in Industry'!$N$1:$AQ$1001,$B19+1,FALSE),HLOOKUP(BW19,'Salary in Industry'!$N$1:$AQ$1001,$B19+1,FALSE)),IF(ISNA(VLOOKUP(BQ19,'Ransom Statistics'!$A$1:$D$18,4,FALSE)),'Ransom Statistics'!$D$18,VLOOKUP(BQ19,'Ransom Statistics'!$A$1:$D$18,4,FALSE))))) -> 0 | CA19: =INDEX([1]Variables!$A$2:$A$103,INT((RAND()*100)+1),1) -> Myanmar | CB19: =INDEX(Variables!$E$3:$E$5,RANDBETWEEN(1,3),1) -> Long (more than one month) | CC19: =INDEX([1]Variables!$G$3:$G$5,RANDBETWEEN(1,3),1) -> frequent (3 times to 12 times) | CD19: 10 | CE19: =IF(ISNA(VLOOKUP(CA19,Variables!$K$1:$K$36,1,FALSE)),SUM('Other cost'!$B$2,'Salary in Industry'!$AR18,IF(ISNA(VLOOKUP(Simulation!CA19,'Ransom Statistics'!$A$1:$D$18,4,FALSE)),'Ransom Statistics'!$D$18,VLOOKUP(Simulation!CA19,'Ransom Statistics'!$A$1:$D$18,4,FALSE)))*IF(ISNA(VLOOKUP(CA19,'Industry Type P'!$A$2:$S$103,2,FALSE)),'Kidnapping Statistics'!$K$3,VLOOKUP(CA19,'Industry Type P'!$A$1:$S$102,MATCH($C19,'Industry Type P'!$A$1:$S$1,0),FALSE))*VLOOKUP(CC19,'travel frequence'!$A$1:$D$4,MATCH(CB19,'travel frequence'!$A$1:$D$1,0),FALSE)*CD19*IF(ISNA(VLOOKUP(CD19,'travel frequence'!$A$7:$B$23,2,FALSE)),'travel frequence'!$B$23,VLOOKUP(CD19,'travel frequence'!$A$7:$B$23,2,FALSE)),0) -> 1883.799776 | CF19: =IF(VLOOKUP(CA19,'Industry Type P'!$A$1:$S$102,MATCH($C19,'Industry Type P'!$A$1:$S$1,0),FALSE)>RAND(),"Y","N") -> N | CG19: 0 | CH19: 0 | CI19: =IF(CF19="N"," ",INDEX('Other cost'!$A$9:$A$13,RANDBETWEEN(1,5),1)) ->  | CJ19: =MIN($H19,IF(CF19="N",0,SUM(CH19,'Other cost'!$B$16,VLOOKUP(CI19,'Other cost'!$A$9:$B$13,2,FALSE),IF(CG19>=30,HLOOKUP(30,'Salary in Industry'!$N$1:$AQ$1001,$B19+1,FALSE),HLOOKUP(CG19,'Salary in Industry'!$N$1:$AQ$1001,$B19+1,FALSE)),IF(ISNA(VLOOKUP(CA19,'Ransom Statistics'!$A$1:$D$18,4,FALSE)),'Ransom Statistics'!$D$18,VLOOKUP(CA19,'Ransom Statistics'!$A$1:$D$18,4,FALSE))))) -> 0 | CK19: =INDEX([1]Variables!$A$2:$A$103,INT((RAND()*100)+1),1) -> North Korea | CL19: =INDEX(Variables!$E$3:$E$5,RANDBETWEEN(1,3),1) -> Medium (1 week to 1month) | CM19: =INDEX([1]Variables!$G$3:$G$5,RANDBETWEEN(1,3),1) -> infrequent (less than 3 times) | CN19: 14 | CO19: =IF(ISNA(VLOOKUP(CK19,Variables!$K$1:$K$36,1,FALSE)),SUM('Other cost'!$B$2,'Salary in Industry'!$AR18,IF(ISNA(VLOOKUP(Simulation!CK19,'Ransom Statistics'!$A$1:$D$18,4,FALSE)),'Ransom Statistics'!$D$18,VLOOKUP(Simulation!CK19,'Ransom Statistics'!$A$1:$D$18,4,FALSE)))*IF(ISNA(VLOOKUP(CK19,'Industry Type P'!$A$2:$S$103,2,FALSE)),'Kidnapping Statistics'!$K$3,VLOOKUP(CK19,'Industry Type P'!$A$1:$S$102,MATCH($C19,'Industry Type P'!$A$1:$S$1,0),FALSE))*VLOOKUP(CM19,'travel frequence'!$A$1:$D$4,MATCH(CL19,'travel frequence'!$A$1:$D$1,0),FALSE)*CN19*IF(ISNA(VLOOKUP(CN19,'travel frequence'!$A$7:$B$23,2,FALSE)),'travel frequence'!$B$23,VLOOKUP(CN19,'travel frequence'!$A$7:$B$23,2,FALSE)),0) -> 0 | CP19: =IF(VLOOKUP(CK19,'Industry Type P'!$A$1:$S$102,MATCH($C19,'Industry Type P'!$A$1:$S$1,0),FALSE)>RAND(),"Y","N") -> N | CQ19: 0 | CR19: 0 | CS19: =IF(CP19="N"," ",INDEX('Other cost'!$A$9:$A$13,RANDBETWEEN(1,5),1)) ->  | CT19: =MIN($H19,IF(CP19="N",0,SUM(CR19,'Other cost'!$B$16,VLOOKUP(CS19,'Other cost'!$A$9:$B$13,2,FALSE),IF(CQ19>=30,HLOOKUP(30,'Salary in Industry'!$N$1:$AQ$1001,$B19+1,FALSE),HLOOKUP(CQ19,'Salary in Industry'!$N$1:$AQ$1001,$B19+1,FALSE)),IF(ISNA(VLOOKUP(CK19,'Ransom Statistics'!$A$1:$D$18,4,FALSE)),'Ransom Statistics'!$D$18,VLOOKUP(CK19,'Ransom Statistics'!$A$1:$D$18,4,FALSE))))) -> 0 | CU19: =INDEX([1]Variables!$A$2:$A$103,INT((RAND()*100)+1),1) -> Guinea | CV19: =INDEX(Variables!$E$3:$E$5,RANDBETWEEN(1,3),1) -> Long (more than one month) | CW19: =INDEX([1]Variables!$G$3:$G$5,RANDBETWEEN(1,3),1) -> infrequent (less than 3 times) | CX19: 1 | CY19: =IF(ISNA(VLOOKUP(CU19,Variables!$K$1:$K$36,1,FALSE)),SUM('Other cost'!$B$2,'Salary in Industry'!$AR18,IF(ISNA(VLOOKUP(Simulation!CU19,'Ransom Statistics'!$A$1:$D$18,4,FALSE)),'Ransom Statistics'!$D$18,VLOOKUP(Simulation!CU19,'Ransom Statistics'!$A$1:$D$18,4,FALSE)))*IF(ISNA(VLOOKUP(CU19,'Industry Type P'!$A$2:$S$103,2,FALSE)),'Kidnapping Statistics'!$K$3,VLOOKUP(CU19,'Industry Type P'!$A$1:$S$102,MATCH($C19,'Industry Type P'!$A$1:$S$1,0),FALSE))*VLOOKUP(CW19,'travel frequence'!$A$1:$D$4,MATCH(CV19,'travel frequence'!$A$1:$D$1,0),FALSE)*CX19*IF(ISNA(VLOOKUP(CX19,'travel frequence'!$A$7:$B$23,2,FALSE)),'travel frequence'!$B$23,VLOOKUP(CX19,'travel frequence'!$A$7:$B$23,2,FALSE)),0) -> 0.8543309642 | CZ19: =IF(VLOOKUP(CU19,'Industry Type P'!$A$1:$S$102,MATCH($C19,'Industry Type P'!$A$1:$S$1,0),FALSE)>RAND(),"Y","N") -> N | DA19: 0 | DB19: 0 | DC19: =IF(CZ19="N"," ",INDEX('Other cost'!$A$9:$A$13,RANDBETWEEN(1,5),1)) ->  | DD19: =MIN($H19,IF(CZ19="N",0,SUM(DB19,'Other cost'!$B$16,VLOOKUP(DC19,'Other cost'!$A$9:$B$13,2,FALSE),IF(DA19>=30,HLOOKUP(30,'Salary in Industry'!$N$1:$AQ$1001,$B19+1,FALSE),HLOOKUP(DA19,'Salary in Industry'!$N$1:$AQ$1001,$B19+1,FALSE)),IF(ISNA(VLOOKUP(CU19,'Ransom Statistics'!$A$1:$D$18,4,FALSE)),'Ransom Statistics'!$D$18,VLOOKUP(CU19,'Ransom Statistics'!$A$1:$D$18,4,FALSE))))) -> 0 | DE19: 0 | DF19: =((IF(A19=0,0,IF(A19=1,M19,IF(A19=2,M19+W19,IF(A19=3,M19+W19+AG19,IF(A19=4,M19+W19+AG19+AQ19,IF(A19=5,M19+W19+AG19+AQ19+BA19,IF(A19=6,M19+W19+AG19+AQ19+BA19+BK19,IF(A19=7,M19+W19+AG19+AQ19+BA19+BK19+BU19,IF(A19=8,M19+W19+AG19+AQ19+BA19+BK19+BU19+CE19,IF(A19=9,M19+W19+AG19+AQ19+BA19+BK19+BU19+CE19+CO19,IF(A19=10,M19+W19+AG19+AQ19+BA19+BK19+BU19+CE19+CO19+CY19))))))))))))/(1+Variables!$G$12))*(1+Variables!$F$21) -> 6.743445989
